{"text_format":"3","workbook":"xlsx","n_sheets":6,"sheets":["DATOS ANEXO 2","Sector","menu","cat_municipio_MAY2014","ARCHIVO GENERADO PARA IMPRESION","HABILITAR LAS MACROS EN EXCEL"],"not_rendered":{"images":6,"macros":1,"external_links":1,"defined_names":39},"read":"whole","date_system":"1900"}

{"sheet":"DATOS ANEXO 2","index":0,"n_rows":502,"n_cols":17,"rows_kept":502,"merged":[[1,1,1,14],[3,1,3,14],[7,7,7,9],[7,10,7,14],[10,1,10,3],[501,1,501,14]]}
[{"$f":"COUNTA(A13:A10001)","v":2}]
[null,"Anexo 2"]
[]
[null,"REQUERIMIENTOS PARA EL PRESUPUESTO DE EGRESOS DE LA FEDERACIÓN PARA EL EJERCICIO FISCAL 2015"]
[]
[]
[]
[{"$f":"COUNT(A10:A1000)","v":2},{"$nulls":6},"ESTUDIOS",null,null,"MONTO DEL PROYECTO (PESOS)"]
["NUMERO DE PROYECTOS","SECTOR  1/","ENTIDAD FEDERATIVA 2/","MUNICIPIO 3/","PROYECTO SOLICITADO 4/","CLAVE DE CARTERA DE LA SHCP 5/","NIVEL DE PRIORIZACIÓN 6/","PROYECTO EJECUTIVO (Si/No)  7/","FACTIBILIDAD (Si/No)  8/","ANÁLISIS (Si/No)  9/","COSTO TOTAL 10/","INVERSIÓN FEDERAL SOLICITADA PARA 2015 11/","INVERSIÓN ESTATAL 2015 12/","INVERSIÓN MUNICIPAL 2015 13/","OTRAS INVERSIONES 14/"]
[]
[null,"TOTAL",null,null,{"$f":"COUNTA(E13:E500)","v":0},{"$nulls":5},{"$f":"SUM(K13:K500)","v":{"v":0,"d":"$0.00"}},{"$f":"SUM(L13:L500)","v":{"v":0,"d":"$0.00"}},{"$f":"SUM(M13:M500)","v":{"v":0,"d":"$0.00"}},{"$f":"SUM(N13:N500)","v":{"v":0,"d":"$0.00"}},{"$f":"SUM(O13:O500)","v":{"v":0,"d":"$0.00"}}]
[]
[1,{"$nulls":15},{"$f":"C13&\"_mun\"","v":"_mun"}]
[2,{"$nulls":15},{"$f":"C14&\"_mun\"","v":"_mun"}]
[{"$nulls":16},"_mun"]
[{"$nulls":16},"_mun"]
[{"$nulls":16},"_mun"]
[{"$nulls":16},"_mun"]
[{"$nulls":16},"_mun"]
[{"$nulls":16},"_mun"]
[{"$nulls":16},"_mun"]
[{"$nulls":16},"_mun"]
[{"$nulls":16},"_mun"]
[{"$nulls":16},"_mun"]
[{"$nulls":16},"_mun"]
[{"$nulls":16},"_mun"]
[{"$nulls":16},"_mun"]
[{"$nulls":16},"_mun"]
[{"$nulls":16},"_mun"]
[{"$nulls":16},"_mun"]
[{"$nulls":16},"_mun"]
[{"$nulls":16},"_mun"]
[{"$nulls":16},"_mun"]
[{"$nulls":16},"_mun"]
[{"$nulls":16},"_mun"]
[{"$nulls":16},"_mun"]
[{"$nulls":16},"_mun"]
[{"$nulls":16},"_mun"]
[{"$nulls":16},"_mun"]
[{"$nulls":16},"_mun"]
[{"$nulls":16},"_mun"]
[{"$nulls":16},"_mun"]
[{"$nulls":16},"_mun"]
[{"$nulls":16},"_mun"]
[{"$nulls":16},"_mun"]
[{"$nulls":16},"_mun"]
[{"$nulls":16},"_mun"]
[{"$nulls":16},"_mun"]
[{"$nulls":16},"_mun"]
[{"$nulls":16},"_mun"]
[{"$nulls":16},"_mun"]
[{"$nulls":16},"_mun"]
[{"$nulls":16},"_mun"]
[{"$nulls":16},"_mun"]
[{"$nulls":16},"_mun"]
[{"$nulls":16},"_mun"]
[{"$nulls":16},"_mun"]
[{"$nulls":16},"_mun"]
[{"$nulls":16},"_mun"]
[{"$nulls":16},"_mun"]
[{"$nulls":16},"_mun"]
[{"$nulls":16},"_mun"]
[{"$nulls":16},"_mun"]
[{"$nulls":16},"_mun"]
[{"$nulls":16},"_mun"]
[{"$nulls":16},"_mun"]
[{"$nulls":16},"_mun"]
[{"$nulls":16},"_mun"]
[{"$nulls":16},"_mun"]
[{"$nulls":16},"_mun"]
[{"$nulls":16},"_mun"]
[{"$nulls":16},"_mun"]
[{"$nulls":16},"_mun"]
[{"$nulls":16},"_mun"]
[{"$nulls":16},"_mun"]
[{"$nulls":16},"_mun"]
[{"$nulls":16},"_mun"]
[{"$nulls":16},{"$f":"C78&\"_mun\"","v":"_mun"}]
[{"$nulls":16},"_mun"]
[{"$nulls":16},"_mun"]
[{"$nulls":16},"_mun"]
[{"$nulls":16},{"$f":"C82&\"_mun\"","v":"_mun"}]
[{"$nulls":16},"_mun"]
[{"$nulls":16},"_mun"]
[{"$nulls":16},"_mun"]
[{"$nulls":16},"_mun"]
[{"$nulls":16},"_mun"]
[{"$nulls":16},"_mun"]
[{"$nulls":16},"_mun"]
[{"$nulls":16},"_mun"]
[{"$nulls":16},"_mun"]
[{"$nulls":16},"_mun"]
[{"$nulls":16},"_mun"]
[{"$nulls":16},"_mun"]
[{"$nulls":16},"_mun"]
[{"$nulls":16},"_mun"]
[{"$nulls":16},"_mun"]
[{"$nulls":16},"_mun"]
[{"$nulls":16},"_mun"]
[{"$nulls":16},"_mun"]
[{"$nulls":16},"_mun"]
[{"$nulls":16},"_mun"]
[{"$nulls":16},"_mun"]
[{"$nulls":16},"_mun"]
[{"$nulls":16},"_mun"]
[{"$nulls":16},"_mun"]
[{"$nulls":16},"_mun"]
[{"$nulls":16},"_mun"]
[{"$nulls":16},"_mun"]
[{"$nulls":16},"_mun"]
[{"$nulls":16},"_mun"]
[{"$nulls":16},"_mun"]
[{"$nulls":16},"_mun"]
[{"$nulls":16},"_mun"]
[{"$nulls":16},"_mun"]
[{"$nulls":16},"_mun"]
[{"$nulls":16},"_mun"]
[{"$nulls":16},"_mun"]
[{"$nulls":16},"_mun"]
[{"$nulls":16},"_mun"]
[{"$nulls":16},"_mun"]
[{"$nulls":16},"_mun"]
[{"$nulls":16},"_mun"]
[{"$nulls":16},"_mun"]
[{"$nulls":16},"_mun"]
[{"$nulls":16},"_mun"]
[{"$nulls":16},"_mun"]
[{"$nulls":16},"_mun"]
[{"$nulls":16},"_mun"]
[{"$nulls":16},"_mun"]
[{"$nulls":16},"_mun"]
[{"$nulls":16},"_mun"]
[{"$nulls":16},"_mun"]
[{"$nulls":16},"_mun"]
[{"$nulls":16},"_mun"]
[{"$nulls":16},"_mun"]
[{"$nulls":16},"_mun"]
[{"$nulls":16},"_mun"]
[{"$nulls":16},"_mun"]
[{"$nulls":16},"_mun"]
[{"$nulls":16},"_mun"]
[{"$nulls":16},{"$f":"C142&\"_mun\"","v":"_mun"}]
[{"$nulls":16},"_mun"]
[{"$nulls":16},"_mun"]
[{"$nulls":16},"_mun"]
[{"$nulls":16},"_mun"]
[{"$nulls":16},"_mun"]
[{"$nulls":16},"_mun"]
[{"$nulls":16},"_mun"]
[{"$nulls":16},"_mun"]
[{"$nulls":16},"_mun"]
[{"$nulls":16},"_mun"]
[{"$nulls":16},"_mun"]
[{"$nulls":16},"_mun"]
[{"$nulls":16},"_mun"]
[{"$nulls":16},"_mun"]
[{"$nulls":16},"_mun"]
[{"$nulls":16},"_mun"]
[{"$nulls":16},"_mun"]
[{"$nulls":16},"_mun"]
[{"$nulls":16},"_mun"]
[{"$nulls":16},"_mun"]
[{"$nulls":16},"_mun"]
[{"$nulls":16},"_mun"]
[{"$nulls":16},"_mun"]
[{"$nulls":16},"_mun"]
[{"$nulls":16},"_mun"]
[{"$nulls":16},"_mun"]
[{"$nulls":16},"_mun"]
[{"$nulls":16},"_mun"]
[{"$nulls":16},"_mun"]
[{"$nulls":16},"_mun"]
[{"$nulls":16},"_mun"]
[{"$nulls":16},"_mun"]
[{"$nulls":16},"_mun"]
[{"$nulls":16},"_mun"]
[{"$nulls":16},"_mun"]
[{"$nulls":16},"_mun"]
[{"$nulls":16},"_mun"]
[{"$nulls":16},"_mun"]
[{"$nulls":16},"_mun"]
[{"$nulls":16},"_mun"]
[{"$nulls":16},"_mun"]
[{"$nulls":16},"_mun"]
[{"$nulls":16},"_mun"]
[{"$nulls":16},"_mun"]
[{"$nulls":16},"_mun"]
[{"$nulls":16},"_mun"]
[{"$nulls":16},"_mun"]
[{"$nulls":16},"_mun"]
[{"$nulls":16},"_mun"]
[{"$nulls":16},"_mun"]
[{"$nulls":16},"_mun"]
[{"$nulls":16},"_mun"]
[{"$nulls":16},"_mun"]
[{"$nulls":16},"_mun"]
[{"$nulls":16},"_mun"]
[{"$nulls":16},"_mun"]
[{"$nulls":16},"_mun"]
[{"$nulls":16},"_mun"]
[{"$nulls":16},"_mun"]
[{"$nulls":16},"_mun"]
[{"$nulls":16},"_mun"]
[{"$nulls":16},"_mun"]
[{"$nulls":16},"_mun"]
[{"$nulls":16},{"$f":"C206&\"_mun\"","v":"_mun"}]
[{"$nulls":16},"_mun"]
[{"$nulls":16},"_mun"]
[{"$nulls":16},"_mun"]
[{"$nulls":16},"_mun"]
[{"$nulls":16},"_mun"]
[{"$nulls":16},"_mun"]
[{"$nulls":16},"_mun"]
[{"$nulls":16},"_mun"]
[{"$nulls":16},"_mun"]
[{"$nulls":16},"_mun"]
[{"$nulls":16},"_mun"]
[{"$nulls":16},"_mun"]
[{"$nulls":16},"_mun"]
[{"$nulls":16},"_mun"]
[{"$nulls":16},"_mun"]
[{"$nulls":16},"_mun"]
[{"$nulls":16},"_mun"]
[{"$nulls":16},"_mun"]
[{"$nulls":16},"_mun"]
[{"$nulls":16},"_mun"]
[{"$nulls":16},"_mun"]
[{"$nulls":16},"_mun"]
[{"$nulls":16},"_mun"]
[{"$nulls":16},"_mun"]
[{"$nulls":16},"_mun"]
[{"$nulls":16},"_mun"]
[{"$nulls":16},"_mun"]
[{"$nulls":16},"_mun"]
[{"$nulls":16},"_mun"]
[{"$nulls":16},"_mun"]
[{"$nulls":16},"_mun"]
[{"$nulls":16},"_mun"]
[{"$nulls":16},"_mun"]
[{"$nulls":16},"_mun"]
[{"$nulls":16},"_mun"]
[{"$nulls":16},"_mun"]
[{"$nulls":16},"_mun"]
[{"$nulls":16},"_mun"]
[{"$nulls":16},"_mun"]
[{"$nulls":16},"_mun"]
[{"$nulls":16},"_mun"]
[{"$nulls":16},"_mun"]
[{"$nulls":16},"_mun"]
[{"$nulls":16},"_mun"]
[{"$nulls":16},"_mun"]
[{"$nulls":16},"_mun"]
[{"$nulls":16},"_mun"]
[{"$nulls":16},"_mun"]
[{"$nulls":16},"_mun"]
[{"$nulls":16},"_mun"]
[{"$nulls":16},"_mun"]
[{"$nulls":16},"_mun"]
[{"$nulls":16},"_mun"]
[{"$nulls":16},"_mun"]
[{"$nulls":16},"_mun"]
[{"$nulls":16},"_mun"]
[{"$nulls":16},"_mun"]
[{"$nulls":16},"_mun"]
[{"$nulls":16},"_mun"]
[{"$nulls":16},"_mun"]
[{"$nulls":16},"_mun"]
[{"$nulls":16},"_mun"]
[{"$nulls":16},"_mun"]
[{"$nulls":16},{"$f":"C270&\"_mun\"","v":"_mun"}]
[{"$nulls":16},"_mun"]
[{"$nulls":16},"_mun"]
[{"$nulls":16},"_mun"]
[{"$nulls":16},"_mun"]
[{"$nulls":16},"_mun"]
[{"$nulls":16},"_mun"]
[{"$nulls":16},"_mun"]
[{"$nulls":16},"_mun"]
[{"$nulls":16},"_mun"]
[{"$nulls":16},"_mun"]
[{"$nulls":16},"_mun"]
[{"$nulls":16},"_mun"]
[{"$nulls":16},"_mun"]
[{"$nulls":16},"_mun"]
[{"$nulls":16},"_mun"]
[{"$nulls":16},"_mun"]
[{"$nulls":16},"_mun"]
[{"$nulls":16},"_mun"]
[{"$nulls":16},"_mun"]
[{"$nulls":16},"_mun"]
[{"$nulls":16},"_mun"]
[{"$nulls":16},"_mun"]
[{"$nulls":16},"_mun"]
[{"$nulls":16},"_mun"]
[{"$nulls":16},"_mun"]
[{"$nulls":16},"_mun"]
[{"$nulls":16},"_mun"]
[{"$nulls":16},"_mun"]
[{"$nulls":16},"_mun"]
[{"$nulls":16},"_mun"]
[{"$nulls":16},"_mun"]
[{"$nulls":16},"_mun"]
[{"$nulls":16},"_mun"]
[{"$nulls":16},"_mun"]
[{"$nulls":16},"_mun"]
[{"$nulls":16},"_mun"]
[{"$nulls":16},"_mun"]
[{"$nulls":16},"_mun"]
[{"$nulls":16},"_mun"]
[{"$nulls":16},"_mun"]
[{"$nulls":16},"_mun"]
[{"$nulls":16},"_mun"]
[{"$nulls":16},"_mun"]
[{"$nulls":16},"_mun"]
[{"$nulls":16},"_mun"]
[{"$nulls":16},"_mun"]
[{"$nulls":16},"_mun"]
[{"$nulls":16},"_mun"]
[{"$nulls":16},"_mun"]
[{"$nulls":16},"_mun"]
[{"$nulls":16},"_mun"]
[{"$nulls":16},"_mun"]
[{"$nulls":16},"_mun"]
[{"$nulls":16},"_mun"]
[{"$nulls":16},"_mun"]
[{"$nulls":16},"_mun"]
[{"$nulls":16},"_mun"]
[{"$nulls":16},"_mun"]
[{"$nulls":16},"_mun"]
[{"$nulls":16},"_mun"]
[{"$nulls":16},"_mun"]
[{"$nulls":16},"_mun"]
[{"$nulls":16},"_mun"]
[{"$nulls":16},{"$f":"C334&\"_mun\"","v":"_mun"}]
[{"$nulls":16},"_mun"]
[{"$nulls":16},"_mun"]
[{"$nulls":16},"_mun"]
[{"$nulls":16},"_mun"]
[{"$nulls":16},"_mun"]
[{"$nulls":16},"_mun"]
[{"$nulls":16},"_mun"]
[{"$nulls":16},"_mun"]
[{"$nulls":16},"_mun"]
[{"$nulls":16},"_mun"]
[{"$nulls":16},"_mun"]
[{"$nulls":16},"_mun"]
[{"$nulls":16},"_mun"]
[{"$nulls":16},"_mun"]
[{"$nulls":16},"_mun"]
[{"$nulls":16},"_mun"]
[{"$nulls":16},"_mun"]
[{"$nulls":16},"_mun"]
[{"$nulls":16},"_mun"]
[{"$nulls":16},"_mun"]
[{"$nulls":16},"_mun"]
[{"$nulls":16},"_mun"]
[{"$nulls":16},"_mun"]
[{"$nulls":16},"_mun"]
[{"$nulls":16},"_mun"]
[{"$nulls":16},"_mun"]
[{"$nulls":16},"_mun"]
[{"$nulls":16},"_mun"]
[{"$nulls":16},"_mun"]
[{"$nulls":16},"_mun"]
[{"$nulls":16},"_mun"]
[{"$nulls":16},"_mun"]
[{"$nulls":16},"_mun"]
[{"$nulls":16},"_mun"]
[{"$nulls":16},"_mun"]
[{"$nulls":16},"_mun"]
[{"$nulls":16},"_mun"]
[{"$nulls":16},"_mun"]
[{"$nulls":16},"_mun"]
[{"$nulls":16},"_mun"]
[{"$nulls":16},"_mun"]
[{"$nulls":16},"_mun"]
[{"$nulls":16},"_mun"]
[{"$nulls":16},"_mun"]
[{"$nulls":16},"_mun"]
[{"$nulls":16},"_mun"]
[{"$nulls":16},"_mun"]
[{"$nulls":16},"_mun"]
[{"$nulls":16},"_mun"]
[{"$nulls":16},"_mun"]
[{"$nulls":16},"_mun"]
[{"$nulls":16},"_mun"]
[{"$nulls":16},"_mun"]
[{"$nulls":16},"_mun"]
[{"$nulls":16},"_mun"]
[{"$nulls":16},"_mun"]
[{"$nulls":16},"_mun"]
[{"$nulls":16},"_mun"]
[{"$nulls":16},"_mun"]
[{"$nulls":16},"_mun"]
[{"$nulls":16},"_mun"]
[{"$nulls":16},"_mun"]
[{"$nulls":16},"_mun"]
[{"$nulls":16},{"$f":"C398&\"_mun\"","v":"_mun"}]
[{"$nulls":16},"_mun"]
[{"$nulls":16},"_mun"]
[{"$nulls":16},"_mun"]
[{"$nulls":16},"_mun"]
[{"$nulls":16},"_mun"]
[{"$nulls":16},"_mun"]
[{"$nulls":16},"_mun"]
[{"$nulls":16},"_mun"]
[{"$nulls":16},"_mun"]
[{"$nulls":16},"_mun"]
[{"$nulls":16},"_mun"]
[{"$nulls":16},"_mun"]
[{"$nulls":16},"_mun"]
[{"$nulls":16},"_mun"]
[{"$nulls":16},"_mun"]
[{"$nulls":16},"_mun"]
[{"$nulls":16},"_mun"]
[{"$nulls":16},"_mun"]
[{"$nulls":16},"_mun"]
[{"$nulls":16},"_mun"]
[{"$nulls":16},"_mun"]
[{"$nulls":16},"_mun"]
[{"$nulls":16},"_mun"]
[{"$nulls":16},"_mun"]
[{"$nulls":16},"_mun"]
[{"$nulls":16},"_mun"]
[{"$nulls":16},"_mun"]
[{"$nulls":16},"_mun"]
[{"$nulls":16},"_mun"]
[{"$nulls":16},"_mun"]
[{"$nulls":16},"_mun"]
[{"$nulls":16},"_mun"]
[{"$nulls":16},"_mun"]
[{"$nulls":16},"_mun"]
[{"$nulls":16},"_mun"]
[{"$nulls":16},"_mun"]
[{"$nulls":16},"_mun"]
[{"$nulls":16},"_mun"]
[{"$nulls":16},"_mun"]
[{"$nulls":16},"_mun"]
[{"$nulls":16},"_mun"]
[{"$nulls":16},"_mun"]
[{"$nulls":16},"_mun"]
[{"$nulls":16},"_mun"]
[{"$nulls":16},"_mun"]
[{"$nulls":16},"_mun"]
[{"$nulls":16},"_mun"]
[{"$nulls":16},"_mun"]
[{"$nulls":16},"_mun"]
[{"$nulls":16},"_mun"]
[{"$nulls":16},"_mun"]
[{"$nulls":16},"_mun"]
[{"$nulls":16},"_mun"]
[{"$nulls":16},"_mun"]
[{"$nulls":16},"_mun"]
[{"$nulls":16},"_mun"]
[{"$nulls":16},"_mun"]
[{"$nulls":16},"_mun"]
[{"$nulls":16},"_mun"]
[{"$nulls":16},"_mun"]
[{"$nulls":16},"_mun"]
[{"$nulls":16},"_mun"]
[{"$nulls":16},"_mun"]
[{"$nulls":16},{"$f":"C462&\"_mun\"","v":"_mun"}]
[{"$nulls":16},"_mun"]
[{"$nulls":16},"_mun"]
[{"$nulls":16},"_mun"]
[{"$nulls":16},"_mun"]
[{"$nulls":16},"_mun"]
[{"$nulls":16},"_mun"]
[{"$nulls":16},"_mun"]
[{"$nulls":16},"_mun"]
[{"$nulls":16},"_mun"]
[{"$nulls":16},"_mun"]
[{"$nulls":16},"_mun"]
[{"$nulls":16},"_mun"]
[{"$nulls":16},"_mun"]
[{"$nulls":16},"_mun"]
[{"$nulls":16},"_mun"]
[{"$nulls":16},"_mun"]
[{"$nulls":16},"_mun"]
[{"$nulls":16},"_mun"]
[{"$nulls":16},"_mun"]
[{"$nulls":16},"_mun"]
[{"$nulls":16},"_mun"]
[{"$nulls":16},"_mun"]
[{"$nulls":16},"_mun"]
[{"$nulls":16},"_mun"]
[{"$nulls":16},"_mun"]
[{"$nulls":16},"_mun"]
[{"$nulls":16},"_mun"]
[{"$nulls":16},"_mun"]
[{"$nulls":16},"_mun"]
[{"$nulls":16},"_mun"]
[{"$nulls":16},"_mun"]
[{"$nulls":16},"_mun"]
[{"$nulls":16},"_mun"]
[{"$nulls":16},"_mun"]
[{"$nulls":16},"_mun"]
[{"$nulls":16},"_mun"]
[{"$nulls":16},"_mun"]
[{"$nulls":16},"_mun"]
[]
[null,"* Este documento deberá ser entregado de manera impresa y electrónica en formato Microsoft Office Excel  2007."]

{"sheet":"Sector","index":1,"n_rows":50,"n_cols":8,"rows_kept":50,"hidden":true}
["Sector","clave_sector",null,null,"Priorizacion","Clave_pro",null,"pft_sn"]
[".",{"$nulls":3},"Muy Alto",1,null,"SI"]
["AGRICULTURA Y SISTEMAS DE RIEGO",1,null,null,"Alta",2,null,"NO"]
["AGUA POTABLE Y SANEAMIENTO",2,null,null,"Normal",3]
["ASUNTOS FRONTERA NORTE",3]
["ASUNTOS FRONTERA SUR-SURESTE",4]
["ASUNTOS INDIGENAS",5]
["ASUNTOS MIGRATORIOS",6]
["ATENCION A GRUPOS VULNERABLES",7]
["CAMBIO CLIMATICO",8]
["CIENCIA Y TECNOLOGIA",9]
["COMPETITIVIDAD",10]
["COMUNICACIONES",11]
["CULTURA Y CINEMATOGRAFIA",12]
["DEFENSA NACIONAL",13]
["DEPORTE",14]
["DERECHOS DE LA NIÑEZ",15]
["DERECHOS HUMANOS",16]
["DESARROLLO METROPOLITANO",17]
["DESARROLLO MUNICIPAL",18]
["DESARROLLO RURAL",19]
["DESARROLLO SOCIAL",20]
["DESARROLLO URBANO Y ORDENAMIENTO TERRITORIAL",21]
["DISTRITO FEDERAL",22]
["ECONOMIA",23]
["EDUCACION PUBLICA Y SERVICIOS EDUCATIVOS",24]
["ENERGIA",25]
["FOMENTO COOPERATIVO Y ECONOMIA SOCIAL",26]
["GANADERIA",27]
["IGUALDAD DE GENERO",28]
["INFRAESTRUCTURA",29]
["JUSTICIA",30]
["JUVENTUD",31]
["MARINA",32]
["MEDIO AMBIENTE Y RECURSOS NATURALES",33]
["PESCA",34]
["PROTECCION CIVIL",35]
["RADIO Y TELEVISION",36]
["RECURSOS HIDRAULICOS",37]
["REFORMA AGRARIA",38]
["RELACIONES EXTERIORES",39]
["SALUD",40]
["SEGURIDAD PUBLICA",41]
["SEGURIDAD SOCIAL",42]
["TRABAJO Y PREVISION SOCIAL",43]
["TRANSPARENCIA Y ANTICORRUPCION",44]
["TRANSPORTES",45]
["TURISMO",46]
["VIGILANCIA DE LA AUDITORIA SUPERIOR DE LA FEDERACION",47]
["VIVIENDA",48]

{"sheet":"menu","index":2,"n_rows":573,"n_cols":168,"rows_kept":573,"hidden":true}
[null,"ESTADOS","CLAVE EST",null,null,1,"Aguascalientes_mun",{"$nulls":3},2,"Baja_California_mun",{"$nulls":4},3,"Baja_California_Sur_mun",{"$nulls":4},4,"Campeche_mun",{"$nulls":4},5,"Coahuila_de_Zaragoza_mun",{"$nulls":4},6,"Colima_mun",{"$nulls":4},7,"Chiapas_mun",{"$nulls":3},8,"Chihuahua_mun",{"$nulls":3},9,"Distrito_Federal_mun",{"$nulls":3},10,"Durango_mun",{"$nulls":3},11,"Guanajuato_mun",{"$nulls":3},12,"Guerrero_mun",{"$nulls":3},13,"Hidalgo_mun",{"$nulls":3},14,"Jalisco_mun",{"$nulls":3},15,"México_mun",{"$nulls":3},16,"Michoacán_de_Ocampo_mun",{"$nulls":3},17,"Morelos_mun",{"$nulls":3},18,"Nayarit_mun",{"$nulls":3},19,"Nuevo_León_mun",{"$nulls":3},20,"Oaxaca_mun",{"$nulls":3},21,"Puebla_mun",{"$nulls":3},22,"Querétaro_mun",{"$nulls":3},23,"Quintana_Roo_mun",{"$nulls":3},24,"San_Luis_Potosí_mun",{"$nulls":3},25,"Sinaloa_mun",{"$nulls":3},26,"Sonora_mun",{"$nulls":3},27,"Tabasco_mun",{"$nulls":3},28,"Tamaulipas_mun",{"$nulls":3},29,"Tlaxcala_mun",{"$nulls":3},30,"Veracruz_de_Ignacio_de_la_Llave_mun",{"$nulls":3},31,"Yucatán_mun",{"$nulls":3},32,"Zacatecas_mun"]
[null,".",0,{"$nulls":3},".",{"$nulls":4},".",{"$nulls":5},".",{"$nulls":5},".",{"$nulls":5},".",{"$nulls":5},".",{"$nulls":5},".",{"$nulls":4},".",{"$nulls":4},".",{"$nulls":4},".",{"$nulls":4},".",{"$nulls":4},".",{"$nulls":4},".",{"$nulls":4},".",{"$nulls":4},".",{"$nulls":4},".",{"$nulls":4},".",{"$nulls":4},".",{"$nulls":4},".",{"$nulls":4},".",{"$nulls":4},".",{"$nulls":4},".",{"$nulls":4},".",{"$nulls":4},".",{"$nulls":4},".",{"$nulls":4},".",{"$nulls":4},".",{"$nulls":4},".",{"$nulls":4},".",{"$nulls":4},".",{"$nulls":4},".",{"$nulls":4},"."]
[null,"Aguascalientes",1,null,"Ags.","Aguascalientes","Cobertura Estatal",{"$nulls":4},"Cobertura Estatal",{"$nulls":5},"Cobertura Estatal",{"$nulls":5},"Cobertura Estatal",{"$nulls":5},"Cobertura Estatal",{"$nulls":5},"Cobertura Estatal",{"$nulls":5},"Cobertura Estatal",{"$nulls":4},"Cobertura Estatal",{"$nulls":4},"Cobertura Estatal",{"$nulls":4},"Cobertura Estatal",{"$nulls":4},"Cobertura Estatal",{"$nulls":4},"Cobertura Estatal",{"$nulls":4},"Cobertura Estatal",{"$nulls":4},"Cobertura Estatal",{"$nulls":4},"Cobertura Estatal",{"$nulls":4},"Cobertura Estatal",{"$nulls":4},"Cobertura Estatal",{"$nulls":4},"Cobertura Estatal",{"$nulls":4},"Cobertura Estatal",{"$nulls":4},"Cobertura Estatal",{"$nulls":4},"Cobertura Estatal",{"$nulls":4},"Cobertura Estatal",{"$nulls":4},"Cobertura Estatal",{"$nulls":4},"Cobertura Estatal",{"$nulls":4},"Cobertura Estatal",{"$nulls":4},"Cobertura Estatal",{"$nulls":4},"Cobertura Estatal",{"$nulls":4},"Cobertura Estatal",{"$nulls":4},"Cobertura Estatal",{"$nulls":4},"Cobertura Estatal",{"$nulls":4},"Cobertura Estatal",{"$nulls":4},"Cobertura Estatal"]
[null,"Baja_California",2,null,"Ags.","Asientos",{"$f":"F3&\", \"&E3","v":"Aguascalientes, Ags."},1,null,"BC","Ensenada",{"$f":"K4&\", \"&J4","v":"Ensenada, BC"},1,null,null,"BCS","Comondú",{"$f":"Q4&\", \"&P4","v":"Comondú, BCS"},1,5,null,"Camp.","Calakmul",{"$f":"W4&\", \"&V4","v":"Calakmul, Camp."},10,11,null,"Coah.","Abasolo",{"$f":"AC4&\", \"&AB4","v":"Abasolo, Coah."},1,null,null,"Col.","Armería",{"$f":"AI4&\", \"&AH4","v":"Armería, Col."},1,null,null,"Chis.","Acacoyagua",{"$f":"AO4&\", \"&AN4","v":"Acacoyagua, Chis."},1,null,"Chih.","Ahumada",{"$f":"AT4&\", \"&AS4","v":"Ahumada, Chih."},1,null,"DF","Alvaro Obregón",{"$f":"AY4&\", \"&AX4","v":"Alvaro Obregón, DF"},10,null,"Dgo.","Canatlán",{"$f":"BD4&\", \"&BC4","v":"Canatlán, Dgo."},1,null,"Gto.","Abasolo",{"$f":"BI4&\", \"&BH4","v":"Abasolo, Gto."},1,null,"Gro.","Acapulco de Juárez",{"$f":"BN4&\", \"&BM4","v":"Acapulco de Juárez, Gro."},1,null,"Hgo.","Acatlán",{"$f":"BS4&\", \"&BR4","v":"Acatlán, Hgo."},1,null,"Jal.","Acatic",{"$f":"BX4&\", \"&BW4","v":"Acatic, Jal."},1,null,"Mex.","Acambay de Ruíz Castañeda",{"$f":"CC4&\", \"&CB4","v":"Acambay de Ruíz Castañeda, Mex."},1,null,"Mich.","Acuitzio",{"$f":"CH4&\", \"&CG4","v":"Acuitzio, Mich."},1,null,"Mor.","Amacuzac",{"$f":"CM4&\", \"&CL4","v":"Amacuzac, Mor."},1,null,"Nay.","Acaponeta",{"$f":"CR4&\", \"&CQ4","v":"Acaponeta, Nay."},1,null,"NL","Abasolo",{"$f":"CW4&\", \"&CV4","v":"Abasolo, NL"},1,null,"Oax.","Abejones",{"$f":"DB4&\", \"&DA4","v":"Abejones, Oax."},1,null,"Pue.","Acajete",{"$f":"DG4&\", \"&DF4","v":"Acajete, Pue."},1,null,"Qro.","Amealco de Bonfil",{"$f":"DL4&\", \"&DK4","v":"Amealco de Bonfil, Qro."},1,null,"Q. Roo","Bacalar",{"$f":"DQ4&\", \"&DP4","v":"Bacalar, Q. Roo"},10,null,"SLP","Ahualulco",{"$f":"DV4&\", \"&DU4","v":"Ahualulco, SLP"},1,null,"Sin.","Ahome",{"$f":"EA4&\", \"&DZ4","v":"Ahome, Sin."},1,null,"Son.","Aconchi",{"$f":"EF4&\", \"&EE4","v":"Aconchi, Son."},1,null,"Tab.","Balancán",{"$f":"EK4&\", \"&EJ4","v":"Balancán, Tab."},1,null,"Tamps.","Abasolo",{"$f":"EP4&\", \"&EO4","v":"Abasolo, Tamps."},1,null,"Tlax.","Acuamanala de Miguel Hidalgo",{"$f":"EU4&\", \"&ET4","v":"Acuamanala de Miguel Hidalgo, Tlax."},22,null,"Ver.","Acajete",{"$f":"EZ4&\", \"&EY4","v":"Acajete, Ver."},1,null,"Yuc.","Abalá",{"$f":"FE4&\", \"&FD4","v":"Abalá, Yuc."},1,null,"Zac.","Apozol",{"$f":"FJ4&\", \"&FI4","v":"Apozol, Zac."},1]
[null,"Baja_California_Sur",3,null,"Ags.","Calvillo","Asientos, Ags.",2,null,"BC","Mexicali",{"$f":"K5&\", \"&J5","v":"Mexicali, BC"},2,null,null,"BCS","Mulegé",{"$f":"Q5&\", \"&P5","v":"Mulegé, BCS"},2,5,null,"Camp.","Calkiní","Calkiní, Camp.",1,11,null,"Coah.","Acuña","Acuña, Coah.",2,null,null,"Col.","Colima","Colima, Col.",2,null,null,"Chis.","Acala","Acala, Chis.",2,null,"Chih.","Aldama","Aldama, Chih.",2,null,"DF","Azcapotzalco","Azcapotzalco, DF",2,null,"Dgo.","Canelas","Canelas, Dgo.",2,null,"Gto.","Acámbaro","Acámbaro, Gto.",2,null,"Gro.","Acatepec","Acatepec, Gro.",76,null,"Hgo.","Acaxochitlán","Acaxochitlán, Hgo.",2,null,"Jal.","Acatlán de Juárez","Acatlán de Juárez, Jal.",2,null,"Mex.","Acolman","Acolman, Mex.",2,null,"Mich.","Aguililla","Aguililla, Mich.",2,null,"Mor.","Atlatlahucan","Atlatlahucan, Mor.",2,null,"Nay.","Ahuacatlán","Ahuacatlán, Nay.",2,null,"NL","Agualeguas","Agualeguas, NL",2,null,"Oax.","Acatlán de Pérez Figueroa","Acatlán de Pérez Figueroa, Oax.",2,null,"Pue.","Acateno","Acateno, Pue.",2,null,"Qro.","Arroyo Seco","Arroyo Seco, Qro.",3,null,"Q. Roo","Benito Juárez","Benito Juárez, Q. Roo",5,null,"SLP","Alaquines","Alaquines, SLP",2,null,"Sin.","Angostura","Angostura, Sin.",2,null,"Son.","Agua Prieta","Agua Prieta, Son.",2,null,"Tab.","Cárdenas","Cárdenas, Tab.",2,null,"Tamps.","Aldama","Aldama, Tamps.",2,null,"Tlax.","Amaxac de Guerrero","Amaxac de Guerrero, Tlax.",1,null,"Ver.","Acatlán","Acatlán, Ver.",2,null,"Yuc.","Acanceh","Acanceh, Yuc.",2,null,"Zac.","Apulco","Apulco, Zac.",2]
[null,"Campeche",4,null,"Ags.","Cosío","Calvillo, Ags.",3,null,"BC","Playas de Rosarito",{"$f":"K6&\", \"&J6","v":"Playas de Rosarito, BC"},5,null,null,"BCS","La Paz",{"$f":"Q6&\", \"&P6","v":"La Paz, BCS"},3,5,null,"Camp.","Campeche","Campeche, Camp.",2,11,null,"Coah.","Allende","Allende, Coah.",3,null,null,"Col.","Comala","Comala, Col.",3,null,null,"Chis.","Acapetahua","Acapetahua, Chis.",3,null,"Chih.","Allende","Allende, Chih.",3,null,"DF","Benito Juárez","Benito Juárez, DF",14,null,"Dgo.","Coneto de Comonfort","Coneto de Comonfort, Dgo.",3,null,"Gto.","Apaseo el Alto","Apaseo el Alto, Gto.",4,null,"Gro.","Ahuacuotzingo","Ahuacuotzingo, Gro.",2,null,"Hgo.","Actopan","Actopan, Hgo.",3,null,"Jal.","Ahualulco de Mercado","Ahualulco de Mercado, Jal.",3,null,"Mex.","Aculco","Aculco, Mex.",3,null,"Mich.","Alvaro Obregón","Alvaro Obregón, Mich.",3,null,"Mor.","Axochiapan","Axochiapan, Mor.",3,null,"Nay.","Amatlán de Cañas","Amatlán de Cañas, Nay.",3,null,"NL","Allende","Allende, NL",4,null,"Oax.","Animas Trujano","Animas Trujano, Oax.",174,null,"Pue.","Acatlán","Acatlán, Pue.",3,null,"Qro.","Cadereyta de Montes","Cadereyta de Montes, Qro.",4,null,"Q. Roo","Cozumel","Cozumel, Q. Roo",1,null,"SLP","Aquismón","Aquismón, SLP",3,null,"Sin.","Badiraguato","Badiraguato, Sin.",3,null,"Son.","Alamos","Alamos, Son.",3,null,"Tab.","Centla","Centla, Tab.",3,null,"Tamps.","Altamira","Altamira, Tamps.",3,null,"Tlax.","Apetatitlán de Antonio Carvajal","Apetatitlán de Antonio Carvajal, Tlax.",2,null,"Ver.","Acayucan","Acayucan, Ver.",3,null,"Yuc.","Akil","Akil, Yuc.",3,null,"Zac.","Atolinga","Atolinga, Zac.",3]
[null,"Coahuila_de_Zaragoza",5,null,"Ags.","El Llano","Cosío, Ags.",4,null,"BC","Tecate",{"$f":"K7&\", \"&J7","v":"Tecate, BC"},3,null,null,"BCS","Los Cabos",{"$f":"Q7&\", \"&P7","v":"Los Cabos, BCS"},8,5,null,"Camp.","Candelaria","Candelaria, Camp.",11,11,null,"Coah.","Arteaga","Arteaga, Coah.",4,null,null,"Col.","Coquimatlán","Coquimatlán, Col.",4,null,null,"Chis.","Aldama","Aldama, Chis.",113,null,"Chih.","Aquiles Serdán","Aquiles Serdán, Chih.",4,null,"DF","Coyoacán","Coyoacán, DF",3,null,"Dgo.","Cuencamé","Cuencamé, Dgo.",4,null,"Gto.","Apaseo el Grande","Apaseo el Grande, Gto.",5,null,"Gro.","Ajuchitlán del Progreso","Ajuchitlán del Progreso, Gro.",3,null,"Hgo.","Agua Blanca de Iturbide","Agua Blanca de Iturbide, Hgo.",4,null,"Jal.","Amacueca","Amacueca, Jal.",4,null,"Mex.","Almoloya de Alquisiras","Almoloya de Alquisiras, Mex.",4,null,"Mich.","Angamacutiro","Angamacutiro, Mich.",4,null,"Mor.","Ayala","Ayala, Mor.",4,null,"Nay.","Bahía de Banderas","Bahía de Banderas, Nay.",20,null,"NL","Anáhuac","Anáhuac, NL",5,null,"Oax.","Asunción Cacalotepec","Asunción Cacalotepec, Oax.",3,null,"Pue.","Acatzingo","Acatzingo, Pue.",4,null,"Qro.","Colón","Colón, Qro.",5,null,"Q. Roo","Felipe Carrillo Puerto","Felipe Carrillo Puerto, Q. Roo",2,null,"SLP","Armadillo de los Infante","Armadillo de los Infante, SLP",4,null,"Sin.","Choix","Choix, Sin.",7,null,"Son.","Altar","Altar, Son.",4,null,"Tab.","Centro","Centro, Tab.",4,null,"Tamps.","Antiguo Morelos","Antiguo Morelos, Tamps.",4,null,"Tlax.","Apizaco","Apizaco, Tlax.",5,null,"Ver.","Actopan","Actopan, Ver.",4,null,"Yuc.","Baca","Baca, Yuc.",4,null,"Zac.","Benito Juárez","Benito Juárez, Zac.",4]
[null,"Colima",6,null,"Ags.","Jesús María","El Llano, Ags.",10,null,"BC","Tijuana",{"$f":"K8&\", \"&J8","v":"Tijuana, BC"},4,null,null,"BCS","Loreto",{"$f":"Q8&\", \"&P8","v":"Loreto, BCS"},9,5,null,"Camp.","Carmen","Carmen, Camp.",3,11,null,"Coah.","Candela","Candela, Coah.",5,null,null,"Col.","Cuauhtémoc","Cuauhtémoc, Col.",5,null,null,"Chis.","Altamirano","Altamirano, Chis.",4,null,"Chih.","Ascensión","Ascensión, Chih.",5,null,"DF","Cuajimalpa de Morelos","Cuajimalpa de Morelos, DF",4,null,"Dgo.","Durango","Durango, Dgo.",5,null,"Gto.","Atarjea","Atarjea, Gto.",6,null,"Gro.","Alcozauca de Guerrero","Alcozauca de Guerrero, Gro.",4,null,"Hgo.","Ajacuba","Ajacuba, Hgo.",5,null,"Jal.","Amatitán","Amatitán, Jal.",5,null,"Mex.","Almoloya de Juárez","Almoloya de Juárez, Mex.",5,null,"Mich.","Angangueo","Angangueo, Mich.",5,null,"Mor.","Coatlán del Río","Coatlán del Río, Mor.",5,null,"Nay.","Compostela","Compostela, Nay.",4,null,"NL","Apodaca","Apodaca, NL",6,null,"Oax.","Asunción Cuyotepeji","Asunción Cuyotepeji, Oax.",4,null,"Pue.","Acteopan","Acteopan, Pue.",5,null,"Qro.","Corregidora","Corregidora, Qro.",6,null,"Q. Roo","Isla Mujeres","Isla Mujeres, Q. Roo",3,null,"SLP","Axtla de Terrazas","Axtla de Terrazas, SLP",53,null,"Sin.","Concordia","Concordia, Sin.",4,null,"Son.","Arivechi","Arivechi, Son.",5,null,"Tab.","Comalcalco","Comalcalco, Tab.",5,null,"Tamps.","Burgos","Burgos, Tamps.",5,null,"Tlax.","Atlangatepec","Atlangatepec, Tlax.",3,null,"Ver.","Acula","Acula, Ver.",5,null,"Yuc.","Bokobá","Bokobá, Yuc.",5,null,"Zac.","Calera","Calera, Zac.",5]
[null,"Chiapas",7,null,"Ags.","Pabellón de Arteaga","Jesús María, Ags.",5,{"$nulls":13},"Camp.","Champotón","Champotón, Camp.",4,11,null,"Coah.","Castaños","Castaños, Coah.",6,null,null,"Col.","Ixtlahuacán","Ixtlahuacán, Col.",6,null,null,"Chis.","Amatán","Amatán, Chis.",5,null,"Chih.","Bachíniva","Bachíniva, Chih.",6,null,"DF","Cuauhtémoc","Cuauhtémoc, DF",15,null,"Dgo.","El Oro","El Oro, Dgo.",18,null,"Gto.","Celaya","Celaya, Gto.",7,null,"Gro.","Alpoyeca","Alpoyeca, Gro.",5,null,"Hgo.","Alfajayucan","Alfajayucan, Hgo.",6,null,"Jal.","Ameca","Ameca, Jal.",6,null,"Mex.","Almoloya del Río","Almoloya del Río, Mex.",6,null,"Mich.","Apatzingán","Apatzingán, Mich.",6,null,"Mor.","Cuautla","Cuautla, Mor.",6,null,"Nay.","Del Nayar","Del Nayar, Nay.",9,null,"NL","Aramberri","Aramberri, NL",7,null,"Oax.","Asunción Ixtaltepec","Asunción Ixtaltepec, Oax.",5,null,"Pue.","Ahuacatlán","Ahuacatlán, Pue.",6,null,"Qro.","El Marqués","El Marqués, Qro.",11,null,"Q. Roo","José María Morelos","José María Morelos, Q. Roo",6,null,"SLP","Cárdenas","Cárdenas, SLP",5,null,"Sin.","Cosalá","Cosalá, Sin.",5,null,"Son.","Arizpe","Arizpe, Son.",6,null,"Tab.","Cunduacán","Cunduacán, Tab.",6,null,"Tamps.","Bustamante","Bustamante, Tamps.",6,null,"Tlax.","Atltzayanca","Atltzayanca, Tlax.",4,null,"Ver.","Acultzingo","Acultzingo, Ver.",6,null,"Yuc.","Buctzotz","Buctzotz, Yuc.",6,null,"Zac.","Cañitas de Felipe Pescador","Cañitas de Felipe Pescador, Zac.",6]
[null,"Chihuahua",8,null,"Ags.","Rincón de Romos","Pabellón de Arteaga, Ags.",6,{"$nulls":13},"Camp.","Escárcega","Escárcega, Camp.",9,11,null,"Coah.","Cuatro Ciénegas","Cuatro Ciénegas, Coah.",7,null,null,"Col.","Manzanillo","Manzanillo, Col.",7,null,null,"Chis.","Amatenango de la Frontera","Amatenango de la Frontera, Chis.",6,null,"Chih.","Balleza","Balleza, Chih.",7,null,"DF","Gustavo A. Madero","Gustavo A. Madero, DF",5,null,"Dgo.","General Simón Bolívar","General Simón Bolívar, Dgo.",6,null,"Gto.","Comonfort","Comonfort, Gto.",9,null,"Gro.","Apaxtla","Apaxtla, Gro.",6,null,"Hgo.","Almoloya","Almoloya, Hgo.",7,null,"Jal.","Arandas","Arandas, Jal.",8,null,"Mex.","Amanalco","Amanalco, Mex.",7,null,"Mich.","Aporo","Aporo, Mich.",7,null,"Mor.","Cuernavaca","Cuernavaca, Mor.",7,null,"Nay.","Huajicori","Huajicori, Nay.",5,null,"NL","Bustamante","Bustamante, NL",8,null,"Oax.","Asunción Nochixtlán","Asunción Nochixtlán, Oax.",6,null,"Pue.","Ahuatlán","Ahuatlán, Pue.",7,null,"Qro.","Ezequiel Montes","Ezequiel Montes, Qro.",7,null,"Q. Roo","Lázaro Cárdenas","Lázaro Cárdenas, Q. Roo",7,null,"SLP","Catorce","Catorce, SLP",6,null,"Sin.","Culiacán","Culiacán, Sin.",6,null,"Son.","Atil","Atil, Son.",7,null,"Tab.","Emiliano Zapata","Emiliano Zapata, Tab.",7,null,"Tamps.","Camargo","Camargo, Tamps.",7,null,"Tlax.","Benito Juárez","Benito Juárez, Tlax.",45,null,"Ver.","Agua Dulce","Agua Dulce, Ver.",204,null,"Yuc.","Cacalchén","Cacalchén, Yuc.",7,null,"Zac.","Chalchihuites","Chalchihuites, Zac.",9]
[null,"Distrito_Federal",9,null,"Ags.","San Francisco de los Romo","Rincón de Romos, Ags.",7,{"$nulls":13},"Camp.","Hecelchakán","Hecelchakán, Camp.",5,11,null,"Coah.","Escobedo","Escobedo, Coah.",8,null,null,"Col.","Minatitlán","Minatitlán, Col.",8,null,null,"Chis.","Amatenango del Valle","Amatenango del Valle, Chis.",7,null,"Chih.","Batopilas","Batopilas, Chih.",8,null,"DF","Iztacalco","Iztacalco, DF",6,null,"Dgo.","Gómez Palacio","Gómez Palacio, Dgo.",7,null,"Gto.","Coroneo","Coroneo, Gto.",10,null,"Gro.","Arcelia","Arcelia, Gro.",7,null,"Hgo.","Apan","Apan, Hgo.",8,null,"Jal.","Atemajac de Brizuela","Atemajac de Brizuela, Jal.",10,null,"Mex.","Amatepec","Amatepec, Mex.",8,null,"Mich.","Aquila","Aquila, Mich.",8,null,"Mor.","Emiliano Zapata","Emiliano Zapata, Mor.",8,null,"Nay.","Ixtlán del Río","Ixtlán del Río, Nay.",6,null,"NL","Cadereyta Jiménez","Cadereyta Jiménez, NL",9,null,"Oax.","Asunción Ocotlán","Asunción Ocotlán, Oax.",7,null,"Pue.","Ahuazotepec","Ahuazotepec, Pue.",8,null,"Qro.","Huimilpan","Huimilpan, Qro.",8,null,"Q. Roo","Othón P. Blanco","Othón P. Blanco, Q. Roo",4,null,"SLP","Cedral","Cedral, SLP",7,null,"Sin.","El Fuerte","El Fuerte, Sin.",10,null,"Son.","Bacadéhuachi","Bacadéhuachi, Son.",8,null,"Tab.","Huimanguillo","Huimanguillo, Tab.",8,null,"Tamps.","Casas","Casas, Tamps.",8,null,"Tlax.","Calpulalpan","Calpulalpan, Tlax.",6,null,"Ver.","Alamo Temapache","Alamo Temapache, Ver.",160,null,"Yuc.","Calotmul","Calotmul, Yuc.",8,null,"Zac.","Concepción del Oro","Concepción del Oro, Zac.",7]
[null,"Durango",10,null,"Ags.","San José de Gracia","San Francisco de los Romo, Ags.",11,{"$nulls":13},"Camp.","Hopelchén","Hopelchén, Camp.",6,11,null,"Coah.","Francisco I. Madero","Francisco I. Madero, Coah.",9,null,null,"Col.","Tecomán","Tecomán, Col.",9,null,null,"Chis.","Angel Albino Corzo","Angel Albino Corzo, Chis.",8,null,"Chih.","Bocoyna","Bocoyna, Chih.",9,null,"DF","Iztapalapa","Iztapalapa, DF",7,null,"Dgo.","Guadalupe Victoria","Guadalupe Victoria, Dgo.",8,null,"Gto.","Cortazar","Cortazar, Gto.",11,null,"Gro.","Atenango del Río","Atenango del Río, Gro.",8,null,"Hgo.","Atitalaquia","Atitalaquia, Hgo.",10,null,"Jal.","Atengo","Atengo, Jal.",11,null,"Mex.","Amecameca","Amecameca, Mex.",9,null,"Mich.","Ario","Ario, Mich.",9,null,"Mor.","Huitzilac","Huitzilac, Mor.",9,null,"Nay.","Jala","Jala, Nay.",7,null,"NL","Cerralvo","Cerralvo, NL",11,null,"Oax.","Asunción Tlacolulita","Asunción Tlacolulita, Oax.",8,null,"Pue.","Ahuehuetitla","Ahuehuetitla, Pue.",9,null,"Qro.","Jalpan de Serra","Jalpan de Serra, Qro.",9,null,"Q. Roo","Solidaridad","Solidaridad, Q. Roo",8,null,"SLP","Cerritos","Cerritos, SLP",8,null,"Sin.","Elota","Elota, Sin.",8,null,"Son.","Bacanora","Bacanora, Son.",9,null,"Tab.","Jalapa","Jalapa, Tab.",9,null,"Tamps.","Ciudad Madero","Ciudad Madero, Tamps.",9,null,"Tlax.","Chiautempan","Chiautempan, Tlax.",10,null,"Ver.","Alpatláhuac","Alpatláhuac, Ver.",8,null,"Yuc.","Cansahcab","Cansahcab, Yuc.",9,null,"Zac.","Cuauhtémoc","Cuauhtémoc, Zac.",8]
[null,"Guanajuato",11,null,"Ags.","Tepezalá","San José de Gracia, Ags.",8,{"$nulls":13},"Camp.","Palizada","Palizada, Camp.",7,11,null,"Coah.","Frontera","Frontera, Coah.",10,null,null,"Col.","Villa de Alvarez","Villa de Alvarez, Col.",10,null,null,"Chis.","Arriaga","Arriaga, Chis.",9,null,"Chih.","Buenaventura","Buenaventura, Chih.",10,null,"DF","La Magdalena Contreras","La Magdalena Contreras, DF",8,null,"Dgo.","Guanaceví","Guanaceví, Dgo.",9,null,"Gto.","Cuerámaro","Cuerámaro, Gto.",12,null,"Gro.","Atlamajalcingo del Monte","Atlamajalcingo del Monte, Gro.",9,null,"Hgo.","Atlapexco","Atlapexco, Hgo.",11,null,"Jal.","Atenguillo","Atenguillo, Jal.",12,null,"Mex.","Apaxco","Apaxco, Mex.",10,null,"Mich.","Arteaga","Arteaga, Mich.",10,null,"Mor.","Jantetelco","Jantetelco, Mor.",10,null,"Nay.","La Yesca","La Yesca, Nay.",19,null,"NL","China","China, NL",13,null,"Oax.","Ayoquezco de Aldama","Ayoquezco de Aldama, Oax.",398,null,"Pue.","Ajalpan","Ajalpan, Pue.",10,null,"Qro.","Landa de Matamoros","Landa de Matamoros, Qro.",10,null,"Q. Roo","Tulum","Tulum, Q. Roo",9,null,"SLP","Cerro de San Pedro","Cerro de San Pedro, SLP",9,null,"Sin.","Escuinapa","Escuinapa, Sin.",9,null,"Son.","Bacerac","Bacerac, Son.",10,null,"Tab.","Jalpa de Méndez","Jalpa de Méndez, Tab.",10,null,"Tamps.","Cruillas","Cruillas, Tamps.",10,null,"Tlax.","Contla de Juan Cuamatzi","Contla de Juan Cuamatzi, Tlax.",18,null,"Ver.","Alto Lucero de Gutiérrez Barrios","Alto Lucero de Gutiérrez Barrios, Ver.",9,null,"Yuc.","Cantamayec","Cantamayec, Yuc.",10,null,"Zac.","El Plateado de Joaquín Amaro","El Plateado de Joaquín Amaro, Zac.",15]
[null,"Guerrero",12,{"$nulls":3},"Tepezalá, Ags.",9,{"$nulls":13},"Camp.","Tenabo","Tenabo, Camp.",8,11,null,"Coah.","General Cepeda","General Cepeda, Coah.",11,{"$nulls":8},"Chis.","Bejucal de Ocampo","Bejucal de Ocampo, Chis.",10,null,"Chih.","Camargo","Camargo, Chih.",11,null,"DF","Miguel Hidalgo","Miguel Hidalgo, DF",16,null,"Dgo.","Hidalgo","Hidalgo, Dgo.",10,null,"Gto.","Doctor Mora","Doctor Mora, Gto.",13,null,"Gro.","Atlixtac","Atlixtac, Gro.",10,null,"Hgo.","Atotonilco de Tula","Atotonilco de Tula, Hgo.",13,null,"Jal.","Atotonilco el Alto","Atotonilco el Alto, Jal.",13,null,"Mex.","Atenco","Atenco, Mex.",11,null,"Mich.","Briseñas","Briseñas, Mich.",11,null,"Mor.","Jiutepec","Jiutepec, Mor.",11,null,"Nay.","Rosamorada","Rosamorada, Nay.",10,null,"NL","Ciénega de Flores","Ciénega de Flores, NL",12,null,"Oax.","Ayotzintepec","Ayotzintepec, Oax.",9,null,"Pue.","Albino Zertuche","Albino Zertuche, Pue.",11,null,"Qro.","Pedro Escobedo","Pedro Escobedo, Qro.",12,{"$nulls":6},"SLP","Charcas","Charcas, SLP",15,null,"Sin.","Guasave","Guasave, Sin.",11,null,"Son.","Bacoachi","Bacoachi, Son.",11,null,"Tab.","Jonuta","Jonuta, Tab.",11,null,"Tamps.","El Mante","El Mante, Tamps.",21,null,"Tlax.","Cuapiaxtla","Cuapiaxtla, Tlax.",8,null,"Ver.","Altotonga","Altotonga, Ver.",10,null,"Yuc.","Celestún","Celestún, Yuc.",11,null,"Zac.","El Salvador","El Salvador, Zac.",41]
[null,"Hidalgo",13,{"$nulls":24},"Coah.","Guerrero","Guerrero, Coah.",12,{"$nulls":8},"Chis.","Bella Vista","Bella Vista, Chis.",11,null,"Chih.","Carichí","Carichí, Chih.",12,null,"DF","Milpa Alta","Milpa Alta, DF",9,null,"Dgo.","Indé","Indé, Dgo.",11,null,"Gto.","Dolores Hidalgo Cuna de la Independencia Nacional","Dolores Hidalgo Cuna de la Independencia Nacional, Gto.",14,null,"Gro.","Atoyac de Alvarez","Atoyac de Alvarez, Gro.",11,null,"Hgo.","Atotonilco el Grande","Atotonilco el Grande, Hgo.",12,null,"Jal.","Atoyac","Atoyac, Jal.",14,null,"Mex.","Atizapán de Zaragoza","Atizapán de Zaragoza, Mex.",13,null,"Mich.","Buenavista","Buenavista, Mich.",12,null,"Mor.","Jojutla","Jojutla, Mor.",12,null,"Nay.","Ruíz","Ruíz, Nay.",11,null,"NL","Doctor Arroyo","Doctor Arroyo, NL",14,null,"Oax.","Calihualá","Calihualá, Oax.",11,null,"Pue.","Aljojuca","Aljojuca, Pue.",12,null,"Qro.","Peñamiller","Peñamiller, Qro.",13,{"$nulls":6},"SLP","Ciudad del Maíz","Ciudad del Maíz, SLP",10,null,"Sin.","Mazatlán","Mazatlán, Sin.",12,null,"Son.","Bácum","Bácum, Son.",12,null,"Tab.","Macuspana","Macuspana, Tab.",12,null,"Tamps.","Gómez Farías","Gómez Farías, Tamps.",11,null,"Tlax.","Cuaxomulco","Cuaxomulco, Tlax.",9,null,"Ver.","Alvarado","Alvarado, Ver.",11,null,"Yuc.","Cenotillo","Cenotillo, Yuc.",12,null,"Zac.","Fresnillo","Fresnillo, Zac.",10]
[null,"Jalisco",14,{"$nulls":24},"Coah.","Hidalgo","Hidalgo, Coah.",13,{"$nulls":8},"Chis.","Benemérito de las Américas","Benemérito de las Américas, Chis.",114,null,"Chih.","Casas Grandes","Casas Grandes, Chih.",13,null,"DF","Tláhuac","Tláhuac, DF",11,null,"Dgo.","Lerdo","Lerdo, Dgo.",12,null,"Gto.","Guanajuato","Guanajuato, Gto.",15,null,"Gro.","Ayutla de los Libres","Ayutla de los Libres, Gro.",12,null,"Hgo.","Calnali","Calnali, Hgo.",14,null,"Jal.","Autlán de Navarro","Autlán de Navarro, Jal.",15,null,"Mex.","Atizapán","Atizapán, Mex.",12,null,"Mich.","Carácuaro","Carácuaro, Mich.",13,null,"Mor.","Jonacatepec","Jonacatepec, Mor.",13,null,"Nay.","San Blas","San Blas, Nay.",12,null,"NL","Doctor Coss","Doctor Coss, NL",15,null,"Oax.","Candelaria Loxicha","Candelaria Loxicha, Oax.",12,null,"Pue.","Altepexi","Altepexi, Pue.",13,null,"Qro.","Pinal de Amoles","Pinal de Amoles, Qro.",2,{"$nulls":6},"SLP","Ciudad Fernández","Ciudad Fernández, SLP",11,null,"Sin.","Mocorito","Mocorito, Sin.",13,null,"Son.","Banámichi","Banámichi, Son.",13,null,"Tab.","Nacajuca","Nacajuca, Tab.",13,null,"Tamps.","González","González, Tamps.",12,null,"Tlax.","El Carmen Tequexquitla","El Carmen Tequexquitla, Tlax.",7,null,"Ver.","Amatitlán","Amatitlán, Ver.",12,null,"Yuc.","Chacsinkín","Chacsinkín, Yuc.",16,null,"Zac.","Genaro Codina","Genaro Codina, Zac.",12]
[null,"México",15,{"$nulls":24},"Coah.","Jiménez","Jiménez, Coah.",14,{"$nulls":8},"Chis.","Berriozábal","Berriozábal, Chis.",12,null,"Chih.","Chihuahua","Chihuahua, Chih.",19,null,"DF","Tlalpan","Tlalpan, DF",12,null,"Dgo.","Mapimí","Mapimí, Dgo.",13,null,"Gto.","Huanímaro","Huanímaro, Gto.",16,null,"Gro.","Azoyú","Azoyú, Gro.",13,null,"Hgo.","Cardonal","Cardonal, Hgo.",15,null,"Jal.","Ayotlán","Ayotlán, Jal.",16,null,"Mex.","Atlacomulco","Atlacomulco, Mex.",14,null,"Mich.","Charapan","Charapan, Mich.",21,null,"Mor.","Mazatepec","Mazatepec, Mor.",14,null,"Nay.","San Pedro Lagunillas","San Pedro Lagunillas, Nay.",13,null,"NL","Doctor González","Doctor González, NL",16,null,"Oax.","Capulálpam de Méndez","Capulálpam de Méndez, Oax.",247,null,"Pue.","Amixtlán","Amixtlán, Pue.",14,null,"Qro.","Querétaro","Querétaro, Qro.",14,{"$nulls":6},"SLP","Ciudad Valles","Ciudad Valles, SLP",13,null,"Sin.","Navolato","Navolato, Sin.",18,null,"Son.","Baviácora","Baviácora, Son.",14,null,"Tab.","Paraíso","Paraíso, Tab.",14,null,"Tamps.","Güémez","Güémez, Tamps.",13,null,"Tlax.","Emiliano Zapata","Emiliano Zapata, Tlax.",46,null,"Ver.","Amatlán de los Reyes","Amatlán de los Reyes, Ver.",14,null,"Yuc.","Chankom","Chankom, Yuc.",17,null,"Zac.","General Enrique Estrada","General Enrique Estrada, Zac.",13]
[null,"Michoacán_de_Ocampo",16,{"$nulls":24},"Coah.","Juárez","Juárez, Coah.",15,{"$nulls":8},"Chis.","Bochil","Bochil, Chis.",13,null,"Chih.","Chínipas","Chínipas, Chih.",20,null,"DF","Venustiano Carranza","Venustiano Carranza, DF",17,null,"Dgo.","Mezquital","Mezquital, Dgo.",14,null,"Gto.","Irapuato","Irapuato, Gto.",17,null,"Gro.","Benito Juárez","Benito Juárez, Gro.",14,null,"Hgo.","Chapantongo","Chapantongo, Hgo.",17,null,"Jal.","Ayutla","Ayutla, Jal.",17,null,"Mex.","Atlautla","Atlautla, Mex.",15,null,"Mich.","Charo","Charo, Mich.",22,null,"Mor.","Miacatlán","Miacatlán, Mor.",15,null,"Nay.","Santa María del Oro","Santa María del Oro, Nay.",14,null,"NL","El Carmen","El Carmen, NL",10,null,"Oax.","Chahuites","Chahuites, Oax.",25,null,"Pue.","Amozoc","Amozoc, Pue.",15,null,"Qro.","San Joaquín","San Joaquín, Qro.",15,{"$nulls":6},"SLP","Coxcatlán","Coxcatlán, SLP",14,null,"Sin.","Rosario","Rosario, Sin.",14,null,"Son.","Bavispe","Bavispe, Son.",15,null,"Tab.","Tacotalpa","Tacotalpa, Tab.",15,null,"Tamps.","Guerrero","Guerrero, Tamps.",14,null,"Tlax.","Españita","Españita, Tlax.",12,null,"Ver.","Angel R. Cabada","Angel R. Cabada, Ver.",15,null,"Yuc.","Chapab","Chapab, Yuc.",18,null,"Zac.","General Francisco R. Murguía","General Francisco R. Murguía, Zac.",14]
[null,"Morelos",17,{"$nulls":24},"Coah.","Lamadrid","Lamadrid, Coah.",16,{"$nulls":8},"Chis.","Cacahoatán","Cacahoatán, Chis.",15,null,"Chih.","Coronado","Coronado, Chih.",14,null,"DF","Xochimilco","Xochimilco, DF",13,null,"Dgo.","Nazas","Nazas, Dgo.",15,null,"Gto.","Jaral del Progreso","Jaral del Progreso, Gto.",18,null,"Gro.","Buenavista de Cuéllar","Buenavista de Cuéllar, Gro.",15,null,"Hgo.","Chapulhuacán","Chapulhuacán, Hgo.",18,null,"Jal.","Bolaños","Bolaños, Jal.",19,null,"Mex.","Axapusco","Axapusco, Mex.",16,null,"Mich.","Chavinda","Chavinda, Mich.",23,null,"Mor.","Ocuituco","Ocuituco, Mor.",16,null,"Nay.","Santiago Ixcuintla","Santiago Ixcuintla, Nay.",15,null,"NL","Galeana","Galeana, NL",17,null,"Oax.","Chalcatongo de Hidalgo","Chalcatongo de Hidalgo, Oax.",26,null,"Pue.","Aquixtla","Aquixtla, Pue.",16,null,"Qro.","San Juan del Río","San Juan del Río, Qro.",16,{"$nulls":6},"SLP","Ebano","Ebano, SLP",16,null,"Sin.","Salvador Alvarado","Salvador Alvarado, Sin.",15,null,"Son.","Benito Juárez","Benito Juárez, Son.",71,null,"Tab.","Teapa","Teapa, Tab.",16,null,"Tamps.","Gustavo Díaz Ordaz","Gustavo Díaz Ordaz, Tamps.",15,null,"Tlax.","Huamantla","Huamantla, Tlax.",13,null,"Ver.","Apazapan","Apazapan, Ver.",17,null,"Yuc.","Chemax","Chemax, Yuc.",19,null,"Zac.","General Pánfilo Natera","General Pánfilo Natera, Zac.",16]
[null,"Nayarit",18,{"$nulls":24},"Coah.","Matamoros","Matamoros, Coah.",17,{"$nulls":8},"Chis.","Catazajá","Catazajá, Chis.",16,null,"Chih.","Coyame del Sotol","Coyame del Sotol, Chih.",15,{"$nulls":6},"Dgo.","Nombre de Dios","Nombre de Dios, Dgo.",16,null,"Gto.","Jerécuaro","Jerécuaro, Gto.",19,null,"Gro.","Chilapa de Alvarez","Chilapa de Alvarez, Gro.",28,null,"Hgo.","Chilcuautla","Chilcuautla, Hgo.",19,null,"Jal.","Cabo Corrientes","Cabo Corrientes, Jal.",20,null,"Mex.","Ayapango","Ayapango, Mex.",17,null,"Mich.","Cherán","Cherán, Mich.",24,null,"Mor.","Puente de Ixtla","Puente de Ixtla, Mor.",17,null,"Nay.","Tecuala","Tecuala, Nay.",16,null,"NL","García","García, NL",18,null,"Oax.","Chiquihuitlán de Benito Juárez","Chiquihuitlán de Benito Juárez, Oax.",27,null,"Pue.","Atempan","Atempan, Pue.",17,null,"Qro.","Tequisquiapan","Tequisquiapan, Qro.",17,{"$nulls":6},"SLP","El Naranjo","El Naranjo, SLP",58,null,"Sin.","San Ignacio","San Ignacio, Sin.",16,null,"Son.","Benjamín Hill","Benjamín Hill, Son.",16,null,"Tab.","Tenosique","Tenosique, Tab.",17,null,"Tamps.","Hidalgo","Hidalgo, Tamps.",16,null,"Tlax.","Hueyotlipan","Hueyotlipan, Tlax.",14,null,"Ver.","Aquila","Aquila, Ver.",18,null,"Yuc.","Chichimilá","Chichimilá, Yuc.",21,null,"Zac.","Guadalupe","Guadalupe, Zac.",17]
[null,"Nuevo_León",19,{"$nulls":24},"Coah.","Monclova","Monclova, Coah.",18,{"$nulls":8},"Chis.","Chalchihuitán","Chalchihuitán, Chis.",22,null,"Chih.","Cuauhtémoc","Cuauhtémoc, Chih.",17,{"$nulls":6},"Dgo.","Nuevo Ideal","Nuevo Ideal, Dgo.",39,null,"Gto.","León","León, Gto.",20,null,"Gro.","Chilpancingo de los Bravo","Chilpancingo de los Bravo, Gro.",29,null,"Hgo.","Cuautepec de Hinojosa","Cuautepec de Hinojosa, Hgo.",16,null,"Jal.","Cañadas de Obregón","Cañadas de Obregón, Jal.",117,null,"Mex.","Calimaya","Calimaya, Mex.",18,null,"Mich.","Chilchota","Chilchota, Mich.",25,null,"Mor.","Temixco","Temixco, Mor.",18,null,"Nay.","Tepic","Tepic, Nay.",17,null,"NL","General Bravo","General Bravo, NL",20,null,"Oax.","Ciénega de Zimatlán","Ciénega de Zimatlán, Oax.",13,null,"Pue.","Atexcal","Atexcal, Pue.",18,null,"Qro.","Tolimán","Tolimán, Qro.",18,{"$nulls":6},"SLP","Guadalcázar","Guadalcázar, SLP",17,null,"Sin.","Sinaloa","Sinaloa, Sin.",17,null,"Son.","Caborca","Caborca, Son.",17,{"$nulls":6},"Tamps.","Jaumave","Jaumave, Tamps.",17,null,"Tlax.","Ixtacuixtla de Mariano Matamoros","Ixtacuixtla de Mariano Matamoros, Tlax.",15,null,"Ver.","Astacinga","Astacinga, Ver.",19,null,"Yuc.","Chicxulub Pueblo","Chicxulub Pueblo, Yuc.",20,null,"Zac.","Huanusco","Huanusco, Zac.",18]
[null,"Oaxaca",20,{"$nulls":24},"Coah.","Morelos","Morelos, Coah.",19,{"$nulls":8},"Chis.","Chamula","Chamula, Chis.",23,null,"Chih.","Cusihuiriachi","Cusihuiriachi, Chih.",18,{"$nulls":6},"Dgo.","Ocampo","Ocampo, Dgo.",17,null,"Gto.","Manuel Doblado","Manuel Doblado, Gto.",8,null,"Gro.","Coahuayutla de José María Izazaga","Coahuayutla de José María Izazaga, Gro.",16,null,"Hgo.","El Arenal","El Arenal, Hgo.",9,null,"Jal.","Casimiro Castillo","Casimiro Castillo, Jal.",21,null,"Mex.","Capulhuac","Capulhuac, Mex.",19,null,"Mich.","Chinicuila","Chinicuila, Mich.",26,null,"Mor.","Temoac","Temoac, Mor.",33,null,"Nay.","Tuxpan","Tuxpan, Nay.",18,null,"NL","General Escobedo","General Escobedo, NL",21,null,"Oax.","Ciudad Ixtepec","Ciudad Ixtepec, Oax.",14,null,"Pue.","Atlequizayan","Atlequizayan, Pue.",80,{"$nulls":11},"SLP","Huehuetlán","Huehuetlán, SLP",18,{"$nulls":6},"Son.","Cajeme","Cajeme, Son.",18,{"$nulls":6},"Tamps.","Jiménez","Jiménez, Tamps.",18,null,"Tlax.","Ixtenco","Ixtenco, Tlax.",16,null,"Ver.","Atlahuilco","Atlahuilco, Ver.",20,null,"Yuc.","Chikindzonot","Chikindzonot, Yuc.",22,null,"Zac.","Jalpa","Jalpa, Zac.",19]
[null,"Puebla",21,{"$nulls":24},"Coah.","Múzquiz","Múzquiz, Coah.",20,{"$nulls":8},"Chis.","Chanal","Chanal, Chis.",24,null,"Chih.","Delicias","Delicias, Chih.",21,{"$nulls":6},"Dgo.","Otáez","Otáez, Dgo.",19,null,"Gto.","Moroleón","Moroleón, Gto.",21,null,"Gro.","Cochoapa el Grande","Cochoapa el Grande, Gro.",78,null,"Hgo.","Eloxochitlán","Eloxochitlán, Hgo.",20,null,"Jal.","Chapala","Chapala, Jal.",30,null,"Mex.","Chalco","Chalco, Mex.",25,null,"Mich.","Chucándiro","Chucándiro, Mich.",27,null,"Mor.","Tepalcingo","Tepalcingo, Mor.",19,null,"Nay.","Xalisco","Xalisco, Nay.",8,null,"NL","General Terán","General Terán, NL",22,null,"Oax.","Coatecas Altas","Coatecas Altas, Oax.",15,null,"Pue.","Atlixco","Atlixco, Pue.",19,{"$nulls":11},"SLP","Lagunillas","Lagunillas, SLP",19,{"$nulls":6},"Son.","Cananea","Cananea, Son.",19,{"$nulls":6},"Tamps.","Llera","Llera, Tamps.",19,null,"Tlax.","La Magdalena Tlaltelulco","La Magdalena Tlaltelulco, Tlax.",48,null,"Ver.","Atoyac","Atoyac, Ver.",21,null,"Yuc.","Chocholá","Chocholá, Yuc.",23,null,"Zac.","Jerez","Jerez, Zac.",20]
[null,"Querétaro",22,{"$nulls":24},"Coah.","Nadadores","Nadadores, Coah.",21,{"$nulls":8},"Chis.","Chapultenango","Chapultenango, Chis.",25,null,"Chih.","Dr. Belisario Domínguez","Dr. Belisario Domínguez, Chih.",22,{"$nulls":6},"Dgo.","Pánuco de Coronado","Pánuco de Coronado, Dgo.",20,null,"Gto.","Ocampo","Ocampo, Gto.",22,null,"Gro.","Cocula","Cocula, Gro.",17,null,"Hgo.","Emiliano Zapata","Emiliano Zapata, Hgo.",21,null,"Jal.","Chimaltitán","Chimaltitán, Jal.",31,null,"Mex.","Chapa de Mota","Chapa de Mota, Mex.",26,null,"Mich.","Churintzio","Churintzio, Mich.",28,null,"Mor.","Tepoztlán","Tepoztlán, Mor.",20,{"$nulls":6},"NL","General Treviño","General Treviño, NL",23,null,"Oax.","Coicoyán de las Flores","Coicoyán de las Flores, Oax.",16,null,"Pue.","Atoyatempan","Atoyatempan, Pue.",20,{"$nulls":11},"SLP","Matehuala","Matehuala, SLP",20,{"$nulls":6},"Son.","Carbó","Carbó, Son.",20,{"$nulls":6},"Tamps.","Mainero","Mainero, Tamps.",20,null,"Tlax.","Lázaro Cárdenas","Lázaro Cárdenas, Tlax.",47,null,"Ver.","Atzacan","Atzacan, Ver.",22,null,"Yuc.","Chumayel","Chumayel, Yuc.",24,null,"Zac.","Jiménez del Teul","Jiménez del Teul, Zac.",21]
[null,"Quintana_Roo",23,{"$nulls":24},"Coah.","Nava","Nava, Coah.",22,{"$nulls":8},"Chis.","Chenalhó","Chenalhó, Chis.",26,null,"Chih.","El Tule","El Tule, Chih.",64,{"$nulls":6},"Dgo.","Peñón Blanco","Peñón Blanco, Dgo.",21,null,"Gto.","Pénjamo","Pénjamo, Gto.",23,null,"Gro.","Copala","Copala, Gro.",18,null,"Hgo.","Epazoyucan","Epazoyucan, Hgo.",22,null,"Jal.","Chiquilistlán","Chiquilistlán, Jal.",32,null,"Mex.","Chapultepec","Chapultepec, Mex.",27,null,"Mich.","Churumuco","Churumuco, Mich.",29,null,"Mor.","Tetecala","Tetecala, Mor.",21,{"$nulls":6},"NL","General Zaragoza","General Zaragoza, NL",24,null,"Oax.","Concepción Buenavista","Concepción Buenavista, Oax.",18,null,"Pue.","Atzala","Atzala, Pue.",21,{"$nulls":11},"SLP","Matlapa","Matlapa, SLP",57,{"$nulls":6},"Son.","Cucurpe","Cucurpe, Son.",22,{"$nulls":6},"Tamps.","Matamoros","Matamoros, Tamps.",22,null,"Tlax.","Mazatecochco de José María Morelos","Mazatecochco de José María Morelos, Tlax.",17,null,"Ver.","Atzalan","Atzalan, Ver.",23,null,"Yuc.","Conkal","Conkal, Yuc.",13,null,"Zac.","Juan Aldama","Juan Aldama, Zac.",22]
[null,"San_Luis_Potosí",24,{"$nulls":24},"Coah.","Ocampo","Ocampo, Coah.",23,{"$nulls":8},"Chis.","Chiapa de Corzo","Chiapa de Corzo, Chis.",27,null,"Chih.","Galeana","Galeana, Chih.",23,{"$nulls":6},"Dgo.","Poanas","Poanas, Dgo.",22,null,"Gto.","Pueblo Nuevo","Pueblo Nuevo, Gto.",24,null,"Gro.","Copalillo","Copalillo, Gro.",19,null,"Hgo.","Francisco I. Madero","Francisco I. Madero, Hgo.",23,null,"Jal.","Cihuatlán","Cihuatlán, Jal.",22,null,"Mex.","Chiautla","Chiautla, Mex.",28,null,"Mich.","Coahuayana","Coahuayana, Mich.",14,null,"Mor.","Tetela del Volcán","Tetela del Volcán, Mor.",22,{"$nulls":6},"NL","General Zuazua","General Zuazua, NL",25,null,"Oax.","Concepción Pápalo","Concepción Pápalo, Oax.",19,null,"Pue.","Atzitzihuacán","Atzitzihuacán, Pue.",22,{"$nulls":11},"SLP","Mexquitic de Carmona","Mexquitic de Carmona, SLP",21,{"$nulls":6},"Son.","Cumpas","Cumpas, Son.",23,{"$nulls":6},"Tamps.","Méndez","Méndez, Tamps.",23,null,"Tlax.","Muñoz de Domingo Arenas","Muñoz de Domingo Arenas, Tlax.",11,null,"Ver.","Ayahualulco","Ayahualulco, Ver.",25,null,"Yuc.","Cuncunul","Cuncunul, Yuc.",14,null,"Zac.","Juchipila","Juchipila, Zac.",23]
[null,"Sinaloa",25,{"$nulls":24},"Coah.","Parras","Parras, Coah.",24,{"$nulls":8},"Chis.","Chiapilla","Chiapilla, Chis.",28,null,"Chih.","Gómez Farías","Gómez Farías, Chih.",25,{"$nulls":6},"Dgo.","Pueblo Nuevo","Pueblo Nuevo, Dgo.",23,null,"Gto.","Purísima del Rincón","Purísima del Rincón, Gto.",25,null,"Gro.","Copanatoyac","Copanatoyac, Gro.",20,null,"Hgo.","Huasca de Ocampo","Huasca de Ocampo, Hgo.",24,null,"Jal.","Cocula","Cocula, Jal.",24,null,"Mex.","Chicoloapan","Chicoloapan, Mex.",29,null,"Mich.","Coalcomán de Vázquez Pallares","Coalcomán de Vázquez Pallares, Mich.",15,null,"Mor.","Tlalnepantla","Tlalnepantla, Mor.",23,{"$nulls":6},"NL","Guadalupe","Guadalupe, NL",26,null,"Oax.","Constancia del Rosario","Constancia del Rosario, Oax.",20,null,"Pue.","Atzitzintla","Atzitzintla, Pue.",23,{"$nulls":11},"SLP","Moctezuma","Moctezuma, SLP",22,{"$nulls":6},"Son.","Divisaderos","Divisaderos, Son.",24,{"$nulls":6},"Tamps.","Mier","Mier, Tamps.",24,null,"Tlax.","Nanacamilpa de Mariano Arista","Nanacamilpa de Mariano Arista, Tlax.",21,null,"Ver.","Banderilla","Banderilla, Ver.",26,null,"Yuc.","Cuzamá","Cuzamá, Yuc.",15,null,"Zac.","Loreto","Loreto, Zac.",24]
[null,"Sonora",26,{"$nulls":24},"Coah.","Piedras Negras","Piedras Negras, Coah.",25,{"$nulls":8},"Chis.","Chicoasén","Chicoasén, Chis.",29,null,"Chih.","Gran Morelos","Gran Morelos, Chih.",26,{"$nulls":6},"Dgo.","Rodeo","Rodeo, Dgo.",24,null,"Gto.","Romita","Romita, Gto.",26,null,"Gro.","Coyuca de Benítez","Coyuca de Benítez, Gro.",21,null,"Hgo.","Huautla","Huautla, Hgo.",25,null,"Jal.","Colotlán","Colotlán, Jal.",25,null,"Mex.","Chiconcuac","Chiconcuac, Mex.",30,null,"Mich.","Coeneo","Coeneo, Mich.",16,null,"Mor.","Tlaltizapán de Zapata","Tlaltizapán de Zapata, Mor.",24,{"$nulls":6},"NL","Hidalgo","Hidalgo, NL",47,null,"Oax.","Cosolapa","Cosolapa, Oax.",21,null,"Pue.","Axutla","Axutla, Pue.",24,{"$nulls":11},"SLP","Rayón","Rayón, SLP",23,{"$nulls":6},"Son.","Empalme","Empalme, Son.",25,{"$nulls":6},"Tamps.","Miguel Alemán","Miguel Alemán, Tamps.",25,null,"Tlax.","Natívitas","Natívitas, Tlax.",23,null,"Ver.","Benito Juárez","Benito Juárez, Ver.",27,null,"Yuc.","Dzán","Dzán, Yuc.",25,null,"Zac.","Luis Moya","Luis Moya, Zac.",25]
[null,"Tabasco",27,{"$nulls":24},"Coah.","Progreso","Progreso, Coah.",26,{"$nulls":8},"Chis.","Chicomuselo","Chicomuselo, Chis.",30,null,"Chih.","Guachochi","Guachochi, Chih.",27,{"$nulls":6},"Dgo.","San Bernardo","San Bernardo, Dgo.",25,null,"Gto.","Salamanca","Salamanca, Gto.",27,null,"Gro.","Coyuca de Catalán","Coyuca de Catalán, Gro.",22,null,"Hgo.","Huazalingo","Huazalingo, Hgo.",26,null,"Jal.","Concepción de Buenos Aires","Concepción de Buenos Aires, Jal.",26,null,"Mex.","Chimalhuacán","Chimalhuacán, Mex.",31,null,"Mich.","Cojumatlán de Régules","Cojumatlán de Régules, Mich.",74,null,"Mor.","Tlaquiltenango","Tlaquiltenango, Mor.",25,{"$nulls":6},"NL","Higueras","Higueras, NL",28,null,"Oax.","Cosoltepec","Cosoltepec, Oax.",22,null,"Pue.","Ayotoxco de Guerrero","Ayotoxco de Guerrero, Pue.",25,{"$nulls":11},"SLP","Rioverde","Rioverde, SLP",24,{"$nulls":6},"Son.","Etchojoa","Etchojoa, Son.",26,{"$nulls":6},"Tamps.","Miquihuana","Miquihuana, Tamps.",26,null,"Tlax.","Panotla","Panotla, Tlax.",24,null,"Ver.","Boca del Río","Boca del Río, Ver.",28,null,"Yuc.","Dzemul","Dzemul, Yuc.",26,null,"Zac.","Mazapil","Mazapil, Zac.",26]
[null,"Tamaulipas",28,{"$nulls":24},"Coah.","Ramos Arizpe","Ramos Arizpe, Coah.",27,{"$nulls":8},"Chis.","Chilón","Chilón, Chis.",31,null,"Chih.","Guadalupe y Calvo","Guadalupe y Calvo, Chih.",29,{"$nulls":6},"Dgo.","San Dimas","San Dimas, Dgo.",26,null,"Gto.","Salvatierra","Salvatierra, Gto.",28,null,"Gro.","Cuajinicuilapa","Cuajinicuilapa, Gro.",23,null,"Hgo.","Huehuetla","Huehuetla, Hgo.",27,null,"Jal.","Cuautitlán de García Barragán","Cuautitlán de García Barragán, Jal.",27,null,"Mex.","Coacalco de Berriozábal","Coacalco de Berriozábal, Mex.",20,null,"Mich.","Contepec","Contepec, Mich.",17,null,"Mor.","Tlayacapan","Tlayacapan, Mor.",26,{"$nulls":6},"NL","Hualahuises","Hualahuises, NL",29,null,"Oax.","Cuilápam de Guerrero","Cuilápam de Guerrero, Oax.",23,null,"Pue.","Calpan","Calpan, Pue.",26,{"$nulls":11},"SLP","Salinas","Salinas, SLP",25,{"$nulls":6},"Son.","Fronteras","Fronteras, Son.",27,{"$nulls":6},"Tamps.","Nuevo Laredo","Nuevo Laredo, Tamps.",27,null,"Tlax.","Papalotla de Xicohténcatl","Papalotla de Xicohténcatl, Tlax.",41,null,"Ver.","Calcahualco","Calcahualco, Ver.",29,null,"Yuc.","Dzidzantún","Dzidzantún, Yuc.",27,null,"Zac.","Melchor Ocampo","Melchor Ocampo, Zac.",27]
[null,"Tlaxcala",29,{"$nulls":24},"Coah.","Sabinas","Sabinas, Coah.",28,{"$nulls":8},"Chis.","Cintalapa","Cintalapa, Chis.",17,null,"Chih.","Guadalupe","Guadalupe, Chih.",28,{"$nulls":6},"Dgo.","San Juan de Guadalupe","San Juan de Guadalupe, Dgo.",27,null,"Gto.","San Diego de la Unión","San Diego de la Unión, Gto.",29,null,"Gro.","Cualác","Cualác, Gro.",24,null,"Hgo.","Huejutla de Reyes","Huejutla de Reyes, Hgo.",28,null,"Jal.","Cuautla","Cuautla, Jal.",28,null,"Mex.","Coatepec Harinas","Coatepec Harinas, Mex.",21,null,"Mich.","Copándaro","Copándaro, Mich.",18,null,"Mor.","Totolapan","Totolapan, Mor.",27,{"$nulls":6},"NL","Iturbide","Iturbide, NL",30,null,"Oax.","Cuyamecalco Villa de Zaragoza","Cuyamecalco Villa de Zaragoza, Oax.",24,null,"Pue.","Caltepec","Caltepec, Pue.",27,{"$nulls":11},"SLP","San Antonio","San Antonio, SLP",26,{"$nulls":6},"Son.","General Plutarco Elías Calles","General Plutarco Elías Calles, Son.",70,{"$nulls":6},"Tamps.","Nuevo Morelos","Nuevo Morelos, Tamps.",28,null,"Tlax.","San Damián Texóloc","San Damián Texóloc, Tlax.",49,null,"Ver.","Camarón de Tejeda","Camarón de Tejeda, Ver.",7,null,"Yuc.","Dzilam de Bravo","Dzilam de Bravo, Yuc.",28,null,"Zac.","Mezquital del Oro","Mezquital del Oro, Zac.",28]
[null,"Veracruz_de_Ignacio_de_la_Llave",30,{"$nulls":24},"Coah.","Sacramento","Sacramento, Coah.",29,{"$nulls":8},"Chis.","Coapilla","Coapilla, Chis.",18,null,"Chih.","Guazapares","Guazapares, Chih.",30,{"$nulls":6},"Dgo.","San Juan del Río","San Juan del Río, Dgo.",28,null,"Gto.","San Felipe","San Felipe, Gto.",30,null,"Gro.","Cuautepec","Cuautepec, Gro.",25,null,"Hgo.","Huichapan","Huichapan, Hgo.",29,null,"Jal.","Cuquío","Cuquío, Jal.",29,null,"Mex.","Cocotitlán","Cocotitlán, Mex.",22,null,"Mich.","Cotija","Cotija, Mich.",19,null,"Mor.","Xochitepec","Xochitepec, Mor.",28,{"$nulls":6},"NL","Juárez","Juárez, NL",31,null,"Oax.","El Barrio de la Soledad","El Barrio de la Soledad, Oax.",10,null,"Pue.","Camocuautla","Camocuautla, Pue.",28,{"$nulls":11},"SLP","San Ciro de Acosta","San Ciro de Acosta, SLP",27,{"$nulls":6},"Son.","Granados","Granados, Son.",28,{"$nulls":6},"Tamps.","Ocampo","Ocampo, Tamps.",29,null,"Tlax.","San Francisco Tetlanohcan","San Francisco Tetlanohcan, Tlax.",50,null,"Ver.","Camerino Z. Mendoza","Camerino Z. Mendoza, Ver.",30,null,"Yuc.","Dzilam González","Dzilam González, Yuc.",29,null,"Zac.","Miguel Auza","Miguel Auza, Zac.",29]
[null,"Yucatán",31,{"$nulls":24},"Coah.","Saltillo","Saltillo, Coah.",30,{"$nulls":8},"Chis.","Comitán de Domínguez","Comitán de Domínguez, Chis.",19,null,"Chih.","Guerrero","Guerrero, Chih.",31,{"$nulls":6},"Dgo.","San Luis del Cordero","San Luis del Cordero, Dgo.",29,null,"Gto.","San Francisco del Rincón","San Francisco del Rincón, Gto.",31,null,"Gro.","Cuetzala del Progreso","Cuetzala del Progreso, Gro.",26,null,"Hgo.","Ixmiquilpan","Ixmiquilpan, Hgo.",30,null,"Jal.","Degollado","Degollado, Jal.",33,null,"Mex.","Coyotepec","Coyotepec, Mex.",23,null,"Mich.","Cuitzeo","Cuitzeo, Mich.",20,null,"Mor.","Yautepec","Yautepec, Mor.",29,{"$nulls":6},"NL","Lampazos de Naranjo","Lampazos de Naranjo, NL",32,null,"Oax.","El Espinal","El Espinal, Oax.",30,null,"Pue.","Cañada Morelos","Cañada Morelos, Pue.",99,{"$nulls":11},"SLP","San Luis Potosí","San Luis Potosí, SLP",28,{"$nulls":6},"Son.","Guaymas","Guaymas, Son.",29,{"$nulls":6},"Tamps.","Padilla","Padilla, Tamps.",30,null,"Tlax.","San Jerónimo Zacualpan","San Jerónimo Zacualpan, Tlax.",51,null,"Ver.","Carlos A. Carrillo","Carlos A. Carrillo, Ver.",208,null,"Yuc.","Dzitás","Dzitás, Yuc.",30,null,"Zac.","Momax","Momax, Zac.",30]
[null,"Zacatecas",32,{"$nulls":24},"Coah.","San Buenaventura","San Buenaventura, Coah.",31,{"$nulls":8},"Chis.","Copainalá","Copainalá, Chis.",21,null,"Chih.","Hidalgo del Parral","Hidalgo del Parral, Chih.",32,{"$nulls":6},"Dgo.","San Pedro del Gallo","San Pedro del Gallo, Dgo.",30,null,"Gto.","San José Iturbide","San José Iturbide, Gto.",32,null,"Gro.","Cutzamala de Pinzón","Cutzamala de Pinzón, Gro.",27,null,"Hgo.","Jacala de Ledezma","Jacala de Ledezma, Hgo.",31,null,"Jal.","Ejutla","Ejutla, Jal.",34,null,"Mex.","Cuautitlán Izcalli","Cuautitlán Izcalli, Mex.",121,null,"Mich.","Ecuandureo","Ecuandureo, Mich.",30,null,"Mor.","Yecapixtla","Yecapixtla, Mor.",30,{"$nulls":6},"NL","Linares","Linares, NL",33,null,"Oax.","Eloxochitlán de Flores Magón","Eloxochitlán de Flores Magón, Oax.",29,null,"Pue.","Caxhuacan","Caxhuacan, Pue.",29,{"$nulls":11},"SLP","San Martín Chalchicuautla","San Martín Chalchicuautla, SLP",29,{"$nulls":6},"Son.","Hermosillo","Hermosillo, Son.",30,{"$nulls":6},"Tamps.","Palmillas","Palmillas, Tamps.",31,null,"Tlax.","San José Teacalco","San José Teacalco, Tlax.",52,null,"Ver.","Carrillo Puerto","Carrillo Puerto, Ver.",31,null,"Yuc.","Dzoncauich","Dzoncauich, Yuc.",31,null,"Zac.","Monte Escobedo","Monte Escobedo, Zac.",31]
[{"$nulls":27},"Coah.","San Juan de Sabinas","San Juan de Sabinas, Coah.",32,{"$nulls":8},"Chis.","El Bosque","El Bosque, Chis.",14,null,"Chih.","Huejotitán","Huejotitán, Chih.",33,{"$nulls":6},"Dgo.","Santa Clara","Santa Clara, Dgo.",31,null,"Gto.","San Luis de la Paz","San Luis de la Paz, Gto.",33,null,"Gro.","Eduardo Neri","Eduardo Neri, Gro.",75,null,"Hgo.","Jaltocán","Jaltocán, Hgo.",32,null,"Jal.","El Arenal","El Arenal, Jal.",9,null,"Mex.","Cuautitlán","Cuautitlán, Mex.",24,null,"Mich.","Epitacio Huerta","Epitacio Huerta, Mich.",31,null,"Mor.","Zacatepec","Zacatepec, Mor.",31,{"$nulls":6},"NL","Los Aldamas","Los Aldamas, NL",3,null,"Oax.","Fresnillo de Trujano","Fresnillo de Trujano, Oax.",32,null,"Pue.","Chalchicomula de Sesma","Chalchicomula de Sesma, Pue.",45,{"$nulls":11},"SLP","San Nicolás Tolentino","San Nicolás Tolentino, SLP",30,{"$nulls":6},"Son.","Huachinera","Huachinera, Son.",31,{"$nulls":6},"Tamps.","Reynosa","Reynosa, Tamps.",32,null,"Tlax.","San Juan Huactzinco","San Juan Huactzinco, Tlax.",53,null,"Ver.","Castillo de Teayo","Castillo de Teayo, Ver.",157,null,"Yuc.","Espita","Espita, Yuc.",32,null,"Zac.","Morelos","Morelos, Zac.",32]
[{"$nulls":27},"Coah.","San Pedro","San Pedro, Coah.",33,{"$nulls":8},"Chis.","El Porvenir","El Porvenir, Chis.",70,null,"Chih.","Ignacio Zaragoza","Ignacio Zaragoza, Chih.",34,{"$nulls":6},"Dgo.","Santiago Papasquiaro","Santiago Papasquiaro, Dgo.",32,null,"Gto.","San Miguel de Allende","San Miguel de Allende, Gto.",3,null,"Gro.","Florencio Villarreal","Florencio Villarreal, Gro.",30,null,"Hgo.","Juárez Hidalgo","Juárez Hidalgo, Hgo.",33,null,"Jal.","El Grullo","El Grullo, Jal.",37,null,"Mex.","Donato Guerra","Donato Guerra, Mex.",32,null,"Mich.","Erongarícuaro","Erongarícuaro, Mich.",32,null,"Mor.","Zacualpan","Zacualpan, Mor.",32,{"$nulls":6},"NL","Los Herreras","Los Herreras, NL",27,null,"Oax.","Guadalupe de Ramírez","Guadalupe de Ramírez, Oax.",34,null,"Pue.","Chapulco","Chapulco, Pue.",46,{"$nulls":11},"SLP","San Vicente Tancuayalab","San Vicente Tancuayalab, SLP",34,{"$nulls":6},"Son.","Huásabas","Huásabas, Son.",32,{"$nulls":6},"Tamps.","Río Bravo","Río Bravo, Tamps.",33,null,"Tlax.","San Lorenzo Axocomanitla","San Lorenzo Axocomanitla, Tlax.",54,null,"Ver.","Catemaco","Catemaco, Ver.",32,null,"Yuc.","Halachó","Halachó, Yuc.",33,null,"Zac.","Moyahua de Estrada","Moyahua de Estrada, Zac.",33]
[{"$nulls":27},"Coah.","Sierra Mojada","Sierra Mojada, Coah.",34,{"$nulls":8},"Chis.","Escuintla","Escuintla, Chis.",32,null,"Chih.","Janos","Janos, Chih.",35,{"$nulls":6},"Dgo.","Súchil","Súchil, Dgo.",33,null,"Gto.","Santa Catarina","Santa Catarina, Gto.",34,null,"Gro.","General Canuto A. Neri","General Canuto A. Neri, Gro.",31,null,"Hgo.","La Misión","La Misión, Hgo.",40,null,"Jal.","El Limón","El Limón, Jal.",54,null,"Mex.","Ecatepec de Morelos","Ecatepec de Morelos, Mex.",33,null,"Mich.","Gabriel Zamora","Gabriel Zamora, Mich.",33,{"$nulls":11},"NL","Los Ramones","Los Ramones, NL",42,null,"Oax.","Guadalupe Etla","Guadalupe Etla, Oax.",33,null,"Pue.","Chiautla","Chiautla, Pue.",47,{"$nulls":11},"SLP","Santa Catarina","Santa Catarina, SLP",31,{"$nulls":6},"Son.","Huatabampo","Huatabampo, Son.",33,{"$nulls":6},"Tamps.","San Carlos","San Carlos, Tamps.",34,null,"Tlax.","San Lucas Tecopilco","San Lucas Tecopilco, Tlax.",55,null,"Ver.","Cazones de Herrera","Cazones de Herrera, Ver.",33,null,"Yuc.","Hocabá","Hocabá, Yuc.",34,null,"Zac.","Nochistlán de Mejía","Nochistlán de Mejía, Zac.",34]
[{"$nulls":27},"Coah.","Torreón","Torreón, Coah.",35,{"$nulls":8},"Chis.","Francisco León","Francisco León, Chis.",33,null,"Chih.","Jiménez","Jiménez, Chih.",36,{"$nulls":6},"Dgo.","Tamazula","Tamazula, Dgo.",34,null,"Gto.","Santa Cruz de Juventino Rosas","Santa Cruz de Juventino Rosas, Gto.",35,null,"Gro.","General Heliodoro Castillo","General Heliodoro Castillo, Gro.",32,null,"Hgo.","Lolotla","Lolotla, Hgo.",34,null,"Jal.","El Salto","El Salto, Jal.",70,null,"Mex.","Ecatzingo","Ecatzingo, Mex.",34,null,"Mich.","Hidalgo","Hidalgo, Mich.",34,{"$nulls":11},"NL","Marín","Marín, NL",34,null,"Oax.","Guelatao de Juárez","Guelatao de Juárez, Oax.",35,null,"Pue.","Chiautzingo","Chiautzingo, Pue.",48,{"$nulls":11},"SLP","Santa María del Río","Santa María del Río, SLP",32,{"$nulls":6},"Son.","Huépac","Huépac, Son.",34,{"$nulls":6},"Tamps.","San Fernando","San Fernando, Tamps.",35,null,"Tlax.","San Pablo del Monte","San Pablo del Monte, Tlax.",25,null,"Ver.","Cerro Azul","Cerro Azul, Ver.",34,null,"Yuc.","Hoctún","Hoctún, Yuc.",35,null,"Zac.","Noria de Angeles","Noria de Angeles, Zac.",35]
[{"$nulls":27},"Coah.","Viesca","Viesca, Coah.",36,{"$nulls":8},"Chis.","Frontera Comalapa","Frontera Comalapa, Chis.",34,null,"Chih.","Juárez","Juárez, Chih.",37,{"$nulls":6},"Dgo.","Tepehuanes","Tepehuanes, Dgo.",35,null,"Gto.","Santiago Maravatío","Santiago Maravatío, Gto.",36,null,"Gro.","Huamuxtitlán","Huamuxtitlán, Gro.",33,null,"Hgo.","Metepec","Metepec, Hgo.",35,null,"Jal.","Encarnación de Díaz","Encarnación de Díaz, Jal.",35,null,"Mex.","El Oro","El Oro, Mex.",64,null,"Mich.","Huandacareo","Huandacareo, Mich.",36,{"$nulls":11},"NL","Melchor Ocampo","Melchor Ocampo, NL",35,null,"Oax.","Guevea de Humboldt","Guevea de Humboldt, Oax.",36,null,"Pue.","Chichiquila","Chichiquila, Pue.",50,{"$nulls":11},"SLP","Santo Domingo","Santo Domingo, SLP",33,{"$nulls":6},"Son.","Imuris","Imuris, Son.",35,{"$nulls":6},"Tamps.","San Nicolás","San Nicolás, Tamps.",36,null,"Tlax.","Sanctórum de Lázaro Cárdenas","Sanctórum de Lázaro Cárdenas, Tlax.",20,null,"Ver.","Chacaltianguis","Chacaltianguis, Ver.",54,null,"Yuc.","Homún","Homún, Yuc.",36,null,"Zac.","Ojocaliente","Ojocaliente, Zac.",36]
[{"$nulls":27},"Coah.","Villa Unión","Villa Unión, Coah.",37,{"$nulls":8},"Chis.","Frontera Hidalgo","Frontera Hidalgo, Chis.",35,null,"Chih.","Julimes","Julimes, Chih.",38,{"$nulls":6},"Dgo.","Tlahualilo","Tlahualilo, Dgo.",36,null,"Gto.","Silao de la Victoria","Silao de la Victoria, Gto.",37,null,"Gro.","Huitzuco de los Figueroa","Huitzuco de los Figueroa, Gro.",34,null,"Hgo.","Metztitlán","Metztitlán, Hgo.",37,null,"Jal.","Etzatlán","Etzatlán, Jal.",36,null,"Mex.","Huehuetoca","Huehuetoca, Mex.",35,null,"Mich.","Huaniqueo","Huaniqueo, Mich.",37,{"$nulls":11},"NL","Mier y Noriega","Mier y Noriega, NL",36,null,"Oax.","Heroica Ciudad de Ejutla de Crespo","Heroica Ciudad de Ejutla de Crespo, Oax.",28,null,"Pue.","Chiconcuautla","Chiconcuautla, Pue.",49,{"$nulls":11},"SLP","Soledad de Graciano Sánchez","Soledad de Graciano Sánchez, SLP",35,{"$nulls":6},"Son.","La Colorada","La Colorada, Son.",21,{"$nulls":6},"Tamps.","Soto la Marina","Soto la Marina, Tamps.",37,null,"Tlax.","Santa Ana Nopalucan","Santa Ana Nopalucan, Tlax.",56,null,"Ver.","Chalma","Chalma, Ver.",55,null,"Yuc.","Huhí","Huhí, Yuc.",37,null,"Zac.","Pánuco","Pánuco, Zac.",37]
[{"$nulls":27},"Coah.","Zaragoza","Zaragoza, Coah.",38,{"$nulls":8},"Chis.","Huehuetán","Huehuetán, Chis.",37,null,"Chih.","La Cruz","La Cruz, Chih.",16,{"$nulls":6},"Dgo.","Topia","Topia, Dgo.",37,null,"Gto.","Tarandacuao","Tarandacuao, Gto.",38,null,"Gro.","Iguala de la Independencia","Iguala de la Independencia, Gro.",35,null,"Hgo.","Mineral de la Reforma","Mineral de la Reforma, Hgo.",51,null,"Jal.","Gómez Farías","Gómez Farías, Jal.",79,null,"Mex.","Hueypoxtla","Hueypoxtla, Mex.",36,null,"Mich.","Huetamo","Huetamo, Mich.",38,{"$nulls":11},"NL","Mina","Mina, NL",37,null,"Oax.","Heroica Ciudad de Huajuapan de León","Heroica Ciudad de Huajuapan de León, Oax.",39,null,"Pue.","Chietla","Chietla, Pue.",51,{"$nulls":11},"SLP","Tamasopo","Tamasopo, SLP",36,{"$nulls":6},"Son.","Magdalena","Magdalena, Son.",36,{"$nulls":6},"Tamps.","Tampico","Tampico, Tamps.",38,null,"Tlax.","Santa Apolonia Teacalco","Santa Apolonia Teacalco, Tlax.",57,null,"Ver.","Chiconamel","Chiconamel, Ver.",56,null,"Yuc.","Hunucmá","Hunucmá, Yuc.",38,null,"Zac.","Pinos","Pinos, Zac.",38]
[{"$nulls":39},"Chis.","Huitiupán","Huitiupán, Chis.",39,null,"Chih.","López","López, Chih.",39,{"$nulls":6},"Dgo.","Vicente Guerrero","Vicente Guerrero, Dgo.",38,null,"Gto.","Tarimoro","Tarimoro, Gto.",39,null,"Gro.","Igualapa","Igualapa, Gro.",36,null,"Hgo.","Mineral del Chico","Mineral del Chico, Hgo.",38,null,"Jal.","Guachinango","Guachinango, Jal.",38,null,"Mex.","Huixquilucan","Huixquilucan, Mex.",37,null,"Mich.","Huiramba","Huiramba, Mich.",39,{"$nulls":11},"NL","Montemorelos","Montemorelos, NL",38,null,"Oax.","Heroica Ciudad de Juchitán de Zaragoza","Heroica Ciudad de Juchitán de Zaragoza, Oax.",43,null,"Pue.","Chigmecatitlán","Chigmecatitlán, Pue.",52,{"$nulls":11},"SLP","Tamazunchale","Tamazunchale, SLP",37,{"$nulls":6},"Son.","Mazatán","Mazatán, Son.",37,{"$nulls":6},"Tamps.","Tula","Tula, Tamps.",39,null,"Tlax.","Santa Catarina Ayometla","Santa Catarina Ayometla, Tlax.",58,null,"Ver.","Chiconquiaco","Chiconquiaco, Ver.",57,null,"Yuc.","Ixil","Ixil, Yuc.",39,null,"Zac.","Río Grande","Río Grande, Zac.",39]
[{"$nulls":39},"Chis.","Huixtán","Huixtán, Chis.",38,null,"Chih.","Madera","Madera, Chih.",40,{"$nulls":11},"Gto.","Tierra Blanca","Tierra Blanca, Gto.",40,null,"Gro.","Iliatenco","Iliatenco, Gro.",81,null,"Hgo.","Mineral del Monte","Mineral del Monte, Hgo.",39,null,"Jal.","Guadalajara","Guadalajara, Jal.",39,null,"Mex.","Isidro Fabela","Isidro Fabela, Mex.",38,null,"Mich.","Indaparapeo","Indaparapeo, Mich.",40,{"$nulls":11},"NL","Monterrey","Monterrey, NL",39,null,"Oax.","Heroica Ciudad de Tlaxiaco","Heroica Ciudad de Tlaxiaco, Oax.",397,null,"Pue.","Chignahuapan","Chignahuapan, Pue.",53,{"$nulls":11},"SLP","Tampacán","Tampacán, SLP",38,{"$nulls":6},"Son.","Moctezuma","Moctezuma, Son.",38,{"$nulls":6},"Tamps.","Valle Hermoso","Valle Hermoso, Tamps.",40,null,"Tlax.","Santa Cruz Quilehtla","Santa Cruz Quilehtla, Tlax.",59,null,"Ver.","Chicontepec","Chicontepec, Ver.",58,null,"Yuc.","Izamal","Izamal, Yuc.",40,null,"Zac.","Sain Alto","Sain Alto, Zac.",40]
[{"$nulls":39},"Chis.","Huixtla","Huixtla, Chis.",40,null,"Chih.","Maguarichi","Maguarichi, Chih.",41,{"$nulls":11},"Gto.","Uriangato","Uriangato, Gto.",41,null,"Gro.","Ixcateopan de Cuauhtémoc","Ixcateopan de Cuauhtémoc, Gro.",37,null,"Hgo.","Mixquiahuala de Juárez","Mixquiahuala de Juárez, Hgo.",41,null,"Jal.","Hostotipaquillo","Hostotipaquillo, Jal.",40,null,"Mex.","Ixtapaluca","Ixtapaluca, Mex.",39,null,"Mich.","Irimbo","Irimbo, Mich.",41,{"$nulls":11},"NL","Parás","Parás, NL",40,null,"Oax.","Heroica Villa Tezoatlán de Segura y Luna, Cuna de la Independencia de Oaxaca","Heroica Villa Tezoatlán de Segura y Luna, Cuna de la Independencia de Oaxaca, Oax.",549,null,"Pue.","Chignautla","Chignautla, Pue.",54,{"$nulls":11},"SLP","Tampamolón Corona","Tampamolón Corona, SLP",39,{"$nulls":6},"Son.","Naco","Naco, Son.",39,{"$nulls":6},"Tamps.","Victoria","Victoria, Tamps.",41,null,"Tlax.","Santa Cruz Tlaxcala","Santa Cruz Tlaxcala, Tlax.",26,null,"Ver.","Chinameca","Chinameca, Ver.",59,null,"Yuc.","Kanasín","Kanasín, Yuc.",41,null,"Zac.","Santa María de la Paz","Santa María de la Paz, Zac.",58]
[{"$nulls":39},"Chis.","Ixhuatán","Ixhuatán, Chis.",42,null,"Chih.","Manuel Benavides","Manuel Benavides, Chih.",42,{"$nulls":11},"Gto.","Valle de Santiago","Valle de Santiago, Gto.",42,null,"Gro.","José Joaquín de Herrera","José Joaquín de Herrera, Gro.",79,null,"Hgo.","Molango de Escamilla","Molango de Escamilla, Hgo.",42,null,"Jal.","Huejúcar","Huejúcar, Jal.",41,null,"Mex.","Ixtapan de la Sal","Ixtapan de la Sal, Mex.",40,null,"Mich.","Ixtlán","Ixtlán, Mich.",42,{"$nulls":11},"NL","Pesquería","Pesquería, NL",41,null,"Oax.","Huautepec","Huautepec, Oax.",40,null,"Pue.","Chila de la Sal","Chila de la Sal, Pue.",56,{"$nulls":11},"SLP","Tamuín","Tamuín, SLP",40,{"$nulls":6},"Son.","Nácori Chico","Nácori Chico, Son.",40,{"$nulls":6},"Tamps.","Villagrán","Villagrán, Tamps.",42,null,"Tlax.","Santa Isabel Xiloxoxtla","Santa Isabel Xiloxoxtla, Tlax.",60,null,"Ver.","Chinampa de Gorostiza","Chinampa de Gorostiza, Ver.",60,null,"Yuc.","Kantunil","Kantunil, Yuc.",42,null,"Zac.","Sombrerete","Sombrerete, Zac.",42]
[{"$nulls":39},"Chis.","Ixtacomitán","Ixtacomitán, Chis.",43,null,"Chih.","Matachí","Matachí, Chih.",43,{"$nulls":11},"Gto.","Victoria","Victoria, Gto.",43,null,"Gro.","Juan R. Escudero","Juan R. Escudero, Gro.",39,null,"Hgo.","Nicolás Flores","Nicolás Flores, Hgo.",43,null,"Jal.","Huejuquilla el Alto","Huejuquilla el Alto, Jal.",42,null,"Mex.","Ixtapan del Oro","Ixtapan del Oro, Mex.",41,null,"Mich.","Jacona","Jacona, Mich.",43,{"$nulls":11},"NL","Rayones","Rayones, NL",43,null,"Oax.","Huautla de Jiménez","Huautla de Jiménez, Oax.",41,null,"Pue.","Chila","Chila, Pue.",55,{"$nulls":11},"SLP","Tancanhuitz","Tancanhuitz, SLP",12,{"$nulls":6},"Son.","Nacozari de García","Nacozari de García, Son.",41,{"$nulls":6},"Tamps.","Xicoténcatl","Xicoténcatl, Tamps.",43,null,"Tlax.","Tenancingo","Tenancingo, Tlax.",27,null,"Ver.","Chocamán","Chocamán, Ver.",62,null,"Yuc.","Kaua","Kaua, Yuc.",43,null,"Zac.","Susticacán","Susticacán, Zac.",43]
[{"$nulls":39},"Chis.","Ixtapa","Ixtapa, Chis.",44,null,"Chih.","Matamoros","Matamoros, Chih.",44,{"$nulls":11},"Gto.","Villagrán","Villagrán, Gto.",44,null,"Gro.","Juchitán","Juchitán, Gro.",80,null,"Hgo.","Nopala de Villagrán","Nopala de Villagrán, Hgo.",44,null,"Jal.","Ixtlahuacán de los Membrillos","Ixtlahuacán de los Membrillos, Jal.",44,null,"Mex.","Ixtlahuaca","Ixtlahuaca, Mex.",42,null,"Mich.","Jiménez","Jiménez, Mich.",44,{"$nulls":11},"NL","Sabinas Hidalgo","Sabinas Hidalgo, NL",44,null,"Oax.","Ixpantepec Nieves","Ixpantepec Nieves, Oax.",65,null,"Pue.","Chilchotla","Chilchotla, Pue.",58,{"$nulls":11},"SLP","Tanlajás","Tanlajás, SLP",41,{"$nulls":6},"Son.","Navojoa","Navojoa, Son.",42,{"$nulls":11},"Tlax.","Teolocholco","Teolocholco, Tlax.",28,null,"Ver.","Chontla","Chontla, Ver.",63,null,"Yuc.","Kinchil","Kinchil, Yuc.",44,null,"Zac.","Tabasco","Tabasco, Zac.",44]
[{"$nulls":39},"Chis.","Ixtapangajoya","Ixtapangajoya, Chis.",45,null,"Chih.","Meoqui","Meoqui, Chih.",45,{"$nulls":11},"Gto.","Xichú","Xichú, Gto.",45,null,"Gro.","La Unión de Isidoro Montes de Oca","La Unión de Isidoro Montes de Oca, Gro.",68,null,"Hgo.","Omitlán de Juárez","Omitlán de Juárez, Hgo.",45,null,"Jal.","Ixtlahuacán del Río","Ixtlahuacán del Río, Jal.",45,null,"Mex.","Jaltenco","Jaltenco, Mex.",44,null,"Mich.","Jiquilpan","Jiquilpan, Mich.",45,{"$nulls":11},"NL","Salinas Victoria","Salinas Victoria, NL",45,null,"Oax.","Ixtlán de Juárez","Ixtlán de Juárez, Oax.",42,null,"Pue.","Chinantla","Chinantla, Pue.",59,{"$nulls":11},"SLP","Tanquián de Escobedo","Tanquián de Escobedo, SLP",42,{"$nulls":6},"Son.","Nogales","Nogales, Son.",43,{"$nulls":11},"Tlax.","Tepetitla de Lardizábal","Tepetitla de Lardizábal, Tlax.",19,null,"Ver.","Chumatlán","Chumatlán, Ver.",64,null,"Yuc.","Kopomá","Kopomá, Yuc.",45,null,"Zac.","Tepechitlán","Tepechitlán, Zac.",45]
[{"$nulls":39},"Chis.","Jiquipilas","Jiquipilas, Chis.",46,null,"Chih.","Morelos","Morelos, Chih.",46,{"$nulls":11},"Gto.","Yuriria","Yuriria, Gto.",46,null,"Gro.","Leonardo Bravo","Leonardo Bravo, Gro.",40,null,"Hgo.","Pachuca de Soto","Pachuca de Soto, Hgo.",48,null,"Jal.","Jalostotitlán","Jalostotitlán, Jal.",46,null,"Mex.","Jilotepec","Jilotepec, Mex.",45,null,"Mich.","José Sixto Verduzco","José Sixto Verduzco, Mich.",113,{"$nulls":11},"NL","San Nicolás de los Garza","San Nicolás de los Garza, NL",46,null,"Oax.","La Compañía","La Compañía, Oax.",17,null,"Pue.","Coatepec","Coatepec, Pue.",30,{"$nulls":11},"SLP","Tierra Nueva","Tierra Nueva, SLP",43,{"$nulls":6},"Son.","Onavas","Onavas, Son.",44,{"$nulls":11},"Tlax.","Tepeyanco","Tepeyanco, Tlax.",29,null,"Ver.","Citlaltépetl","Citlaltépetl, Ver.",35,null,"Yuc.","Mama","Mama, Yuc.",46,null,"Zac.","Tepetongo","Tepetongo, Zac.",46]
[{"$nulls":39},"Chis.","Jitotol","Jitotol, Chis.",47,null,"Chih.","Moris","Moris, Chih.",47,{"$nulls":16},"Gro.","Malinaltepec","Malinaltepec, Gro.",41,null,"Hgo.","Pacula","Pacula, Hgo.",47,null,"Jal.","Jamay","Jamay, Jal.",47,null,"Mex.","Jilotzingo","Jilotzingo, Mex.",46,null,"Mich.","Juárez","Juárez, Mich.",46,{"$nulls":11},"NL","San Pedro Garza García","San Pedro Garza García, NL",19,null,"Oax.","La Pe","La Pe, Oax.",69,null,"Pue.","Coatzingo","Coatzingo, Pue.",31,{"$nulls":11},"SLP","Vanegas","Vanegas, SLP",44,{"$nulls":6},"Son.","Opodepe","Opodepe, Son.",45,{"$nulls":11},"Tlax.","Terrenate","Terrenate, Tlax.",30,null,"Ver.","Coacoatzintla","Coacoatzintla, Ver.",36,null,"Yuc.","Maní","Maní, Yuc.",47,null,"Zac.","Teúl de González Ortega","Teúl de González Ortega, Zac.",47]
[{"$nulls":39},"Chis.","Juárez","Juárez, Chis.",48,null,"Chih.","Namiquipa","Namiquipa, Chih.",48,{"$nulls":16},"Gro.","Marquelia","Marquelia, Gro.",77,null,"Hgo.","Pisaflores","Pisaflores, Hgo.",49,null,"Jal.","Jesús María","Jesús María, Jal.",48,null,"Mex.","Jiquipilco","Jiquipilco, Mex.",47,null,"Mich.","Jungapeo","Jungapeo, Mich.",47,{"$nulls":11},"NL","Santa Catarina","Santa Catarina, NL",48,null,"Oax.","La Reforma","La Reforma, Oax.",76,null,"Pue.","Cohetzala","Cohetzala, Pue.",32,{"$nulls":11},"SLP","Venado","Venado, SLP",45,{"$nulls":6},"Son.","Oquitoa","Oquitoa, Son.",46,{"$nulls":11},"Tlax.","Tetla de la Solidaridad","Tetla de la Solidaridad, Tlax.",31,null,"Ver.","Coahuitlán","Coahuitlán, Ver.",37,null,"Yuc.","Maxcanú","Maxcanú, Yuc.",48,null,"Zac.","Tlaltenango de Sánchez Román","Tlaltenango de Sánchez Román, Zac.",48]
[{"$nulls":39},"Chis.","La Concordia","La Concordia, Chis.",20,null,"Chih.","Nonoava","Nonoava, Chih.",49,{"$nulls":16},"Gro.","Mártir de Cuilapan","Mártir de Cuilapan, Gro.",42,null,"Hgo.","Progreso de Obregón","Progreso de Obregón, Hgo.",50,null,"Jal.","Jilotlán de los Dolores","Jilotlán de los Dolores, Jal.",49,null,"Mex.","Jocotitlán","Jocotitlán, Mex.",48,null,"Mich.","La Huacana","La Huacana, Mich.",35,{"$nulls":11},"NL","Santiago","Santiago, NL",49,null,"Oax.","La Trinidad Vista Hermosa","La Trinidad Vista Hermosa, Oax.",556,null,"Pue.","Cohuecan","Cohuecan, Pue.",33,{"$nulls":11},"SLP","Villa de Arista","Villa de Arista, SLP",56,{"$nulls":6},"Son.","Pitiquito","Pitiquito, Son.",47,{"$nulls":11},"Tlax.","Tetlatlahuca","Tetlatlahuca, Tlax.",32,null,"Ver.","Coatepec","Coatepec, Ver.",38,null,"Yuc.","Mayapán","Mayapán, Yuc.",49,null,"Zac.","Trancoso","Trancoso, Zac.",57]
[{"$nulls":39},"Chis.","La Grandeza","La Grandeza, Chis.",36,null,"Chih.","Nuevo Casas Grandes","Nuevo Casas Grandes, Chih.",50,{"$nulls":16},"Gro.","Metlatónoc","Metlatónoc, Gro.",43,null,"Hgo.","San Agustín Metzquititlán","San Agustín Metzquititlán, Hgo.",36,null,"Jal.","Jocotepec","Jocotepec, Jal.",50,null,"Mex.","Joquicingo","Joquicingo, Mex.",49,null,"Mich.","La Piedad","La Piedad, Mich.",69,{"$nulls":11},"NL","Vallecillo","Vallecillo, NL",50,null,"Oax.","Loma Bonita","Loma Bonita, Oax.",44,null,"Pue.","Coronango","Coronango, Pue.",34,{"$nulls":11},"SLP","Villa de Arriaga","Villa de Arriaga, SLP",46,{"$nulls":6},"Son.","Puerto Peñasco","Puerto Peñasco, Son.",48,{"$nulls":11},"Tlax.","Tlaxcala","Tlaxcala, Tlax.",33,null,"Ver.","Coatzacoalcos","Coatzacoalcos, Ver.",39,null,"Yuc.","Mérida","Mérida, Yuc.",50,null,"Zac.","Trinidad García de la Cadena","Trinidad García de la Cadena, Zac.",11]
[{"$nulls":39},"Chis.","La Independencia","La Independencia, Chis.",41,null,"Chih.","Ocampo","Ocampo, Chih.",51,{"$nulls":16},"Gro.","Mochitlán","Mochitlán, Gro.",44,null,"Hgo.","San Agustín Tlaxiaca","San Agustín Tlaxiaca, Hgo.",52,null,"Jal.","Juanacatlán","Juanacatlán, Jal.",51,null,"Mex.","Juchitepec","Juchitepec, Mex.",50,null,"Mich.","Lagunillas","Lagunillas, Mich.",48,{"$nulls":11},"NL","Villaldama","Villaldama, NL",51,null,"Oax.","Magdalena Apasco","Magdalena Apasco, Oax.",45,null,"Pue.","Coxcatlán","Coxcatlán, Pue.",35,{"$nulls":11},"SLP","Villa de Guadalupe","Villa de Guadalupe, SLP",47,{"$nulls":6},"Son.","Quiriego","Quiriego, Son.",49,{"$nulls":11},"Tlax.","Tlaxco","Tlaxco, Tlax.",34,null,"Ver.","Coatzintla","Coatzintla, Ver.",40,null,"Yuc.","Mocochá","Mocochá, Yuc.",51,null,"Zac.","Valparaíso","Valparaíso, Zac.",49]
[{"$nulls":39},"Chis.","La Libertad","La Libertad, Chis.",50,null,"Chih.","Ojinaga","Ojinaga, Chih.",52,{"$nulls":16},"Gro.","Olinalá","Olinalá, Gro.",45,null,"Hgo.","San Bartolo Tutotepec","San Bartolo Tutotepec, Hgo.",53,null,"Jal.","Juchitlán","Juchitlán, Jal.",52,null,"Mex.","La Paz","La Paz, Mex.",70,null,"Mich.","Lázaro Cárdenas","Lázaro Cárdenas, Mich.",52,{"$nulls":16},"Oax.","Magdalena Jaltepec","Magdalena Jaltepec, Oax.",46,null,"Pue.","Coyomeapan","Coyomeapan, Pue.",36,{"$nulls":11},"SLP","Villa de la Paz","Villa de la Paz, SLP",48,{"$nulls":6},"Son.","Rayón","Rayón, Son.",50,{"$nulls":11},"Tlax.","Tocatlán","Tocatlán, Tlax.",35,null,"Ver.","Coetzala","Coetzala, Ver.",41,null,"Yuc.","Motul","Motul, Yuc.",52,null,"Zac.","Vetagrande","Vetagrande, Zac.",50]
[{"$nulls":39},"Chis.","La Trinitaria","La Trinitaria, Chis.",99,null,"Chih.","Praxedis G. Guerrero","Praxedis G. Guerrero, Chih.",53,{"$nulls":16},"Gro.","Ometepec","Ometepec, Gro.",46,null,"Hgo.","San Felipe Orizatlán","San Felipe Orizatlán, Hgo.",46,null,"Jal.","La Barca","La Barca, Jal.",18,null,"Mex.","Lerma","Lerma, Mex.",51,null,"Mich.","Los Reyes","Los Reyes, Mich.",75,{"$nulls":16},"Oax.","Magdalena Mixtepec","Magdalena Mixtepec, Oax.",48,null,"Pue.","Coyotepec","Coyotepec, Pue.",37,{"$nulls":11},"SLP","Villa de Ramos","Villa de Ramos, SLP",49,{"$nulls":6},"Son.","Rosario","Rosario, Son.",51,{"$nulls":11},"Tlax.","Totolac","Totolac, Tlax.",36,null,"Ver.","Colipa","Colipa, Ver.",42,null,"Yuc.","Muna","Muna, Yuc.",53,null,"Zac.","Villa de Cos","Villa de Cos, Zac.",51]
[{"$nulls":39},"Chis.","Larráinzar","Larráinzar, Chis.",49,null,"Chih.","Riva Palacio","Riva Palacio, Chih.",54,{"$nulls":16},"Gro.","Pedro Ascencio Alquisiras","Pedro Ascencio Alquisiras, Gro.",47,null,"Hgo.","San Salvador","San Salvador, Hgo.",54,null,"Jal.","La Huerta","La Huerta, Jal.",43,null,"Mex.","Luvianos","Luvianos, Mex.",123,null,"Mich.","Madero","Madero, Mich.",49,{"$nulls":16},"Oax.","Magdalena Ocotlán","Magdalena Ocotlán, Oax.",49,null,"Pue.","Cuapiaxtla de Madero","Cuapiaxtla de Madero, Pue.",38,{"$nulls":11},"SLP","Villa de Reyes","Villa de Reyes, SLP",50,{"$nulls":6},"Son.","Sahuaripa","Sahuaripa, Son.",52,{"$nulls":11},"Tlax.","Tzompantepec","Tzompantepec, Tlax.",38,null,"Ver.","Comapa","Comapa, Ver.",43,null,"Yuc.","Muxupip","Muxupip, Yuc.",54,null,"Zac.","Villa García","Villa García, Zac.",52]
[{"$nulls":39},"Chis.","Las Margaritas","Las Margaritas, Chis.",52,null,"Chih.","Rosales","Rosales, Chih.",55,{"$nulls":16},"Gro.","Petatlán","Petatlán, Gro.",48,null,"Hgo.","Santiago de Anaya","Santiago de Anaya, Hgo.",55,null,"Jal.","La Manzanilla de la Paz","La Manzanilla de la Paz, Jal.",57,null,"Mex.","Malinalco","Malinalco, Mex.",52,null,"Mich.","Maravatío","Maravatío, Mich.",50,{"$nulls":16},"Oax.","Magdalena Peñasco","Magdalena Peñasco, Oax.",50,null,"Pue.","Cuautempan","Cuautempan, Pue.",39,{"$nulls":11},"SLP","Villa Hidalgo","Villa Hidalgo, SLP",51,{"$nulls":6},"Son.","San Felipe de Jesús","San Felipe de Jesús, Son.",53,{"$nulls":11},"Tlax.","Xaloztoc","Xaloztoc, Tlax.",39,null,"Ver.","Córdoba","Córdoba, Ver.",44,null,"Yuc.","Opichén","Opichén, Yuc.",55,null,"Zac.","Villa González Ortega","Villa González Ortega, Zac.",53]
[{"$nulls":39},"Chis.","Las Rosas","Las Rosas, Chis.",75,null,"Chih.","Rosario","Rosario, Chih.",56,{"$nulls":16},"Gro.","Pilcaya","Pilcaya, Gro.",49,null,"Hgo.","Santiago Tulantepec de Lugo Guerrero","Santiago Tulantepec de Lugo Guerrero, Hgo.",56,null,"Jal.","Lagos de Moreno","Lagos de Moreno, Jal.",53,null,"Mex.","Melchor Ocampo","Melchor Ocampo, Mex.",53,null,"Mich.","Marcos Castellanos","Marcos Castellanos, Mich.",51,{"$nulls":16},"Oax.","Magdalena Teitipac","Magdalena Teitipac, Oax.",51,null,"Pue.","Cuautinchán","Cuautinchán, Pue.",40,{"$nulls":11},"SLP","Villa Juárez","Villa Juárez, SLP",52,{"$nulls":6},"Son.","San Ignacio Río Muerto","San Ignacio Río Muerto, Son.",72,{"$nulls":11},"Tlax.","Xaltocan","Xaltocan, Tlax.",40,null,"Ver.","Cosamaloapan de Carpio","Cosamaloapan de Carpio, Ver.",45,null,"Yuc.","Oxkutzcab","Oxkutzcab, Yuc.",56,null,"Zac.","Villa Hidalgo","Villa Hidalgo, Zac.",54]
[{"$nulls":39},"Chis.","Mapastepec","Mapastepec, Chis.",51,null,"Chih.","San Francisco de Borja","San Francisco de Borja, Chih.",57,{"$nulls":16},"Gro.","Pungarabato","Pungarabato, Gro.",50,null,"Hgo.","Singuilucan","Singuilucan, Hgo.",57,null,"Jal.","Magdalena","Magdalena, Jal.",55,null,"Mex.","Metepec","Metepec, Mex.",54,null,"Mich.","Morelia","Morelia, Mich.",53,{"$nulls":16},"Oax.","Magdalena Tequisistlán","Magdalena Tequisistlán, Oax.",52,null,"Pue.","Cuautlancingo","Cuautlancingo, Pue.",41,{"$nulls":11},"SLP","Xilitla","Xilitla, SLP",54,{"$nulls":6},"Son.","San Javier","San Javier, Son.",54,{"$nulls":11},"Tlax.","Xicohtzinco","Xicohtzinco, Tlax.",42,null,"Ver.","Cosautlán de Carvajal","Cosautlán de Carvajal, Ver.",46,null,"Yuc.","Panabá","Panabá, Yuc.",57,null,"Zac.","Villanueva","Villanueva, Zac.",55]
[{"$nulls":39},"Chis.","Maravilla Tenejapa","Maravilla Tenejapa, Chis.",115,null,"Chih.","San Francisco de Conchos","San Francisco de Conchos, Chih.",58,{"$nulls":16},"Gro.","Quechultenango","Quechultenango, Gro.",51,null,"Hgo.","Tasquillo","Tasquillo, Hgo.",58,null,"Jal.","Mascota","Mascota, Jal.",58,null,"Mex.","Mexicaltzingo","Mexicaltzingo, Mex.",55,null,"Mich.","Morelos","Morelos, Mich.",54,{"$nulls":16},"Oax.","Magdalena Tlacotepec","Magdalena Tlacotepec, Oax.",53,null,"Pue.","Cuayuca de Andrade","Cuayuca de Andrade, Pue.",42,{"$nulls":11},"SLP","Zaragoza","Zaragoza, SLP",55,{"$nulls":6},"Son.","San Luis Río Colorado","San Luis Río Colorado, Son.",55,{"$nulls":11},"Tlax.","Yauhquemehcan","Yauhquemehcan, Tlax.",43,null,"Ver.","Coscomatepec","Coscomatepec, Ver.",47,null,"Yuc.","Peto","Peto, Yuc.",58,null,"Zac.","Zacatecas","Zacatecas, Zac.",56]
[{"$nulls":39},"Chis.","Marqués de Comillas","Marqués de Comillas, Chis.",116,null,"Chih.","San Francisco del Oro","San Francisco del Oro, Chih.",59,{"$nulls":16},"Gro.","San Luis Acatlán","San Luis Acatlán, Gro.",52,null,"Hgo.","Tecozautla","Tecozautla, Hgo.",59,null,"Jal.","Mazamitla","Mazamitla, Jal.",59,null,"Mex.","Morelos","Morelos, Mex.",56,null,"Mich.","Múgica","Múgica, Mich.",55,{"$nulls":16},"Oax.","Magdalena Yodocono de Porfirio Díaz","Magdalena Yodocono de Porfirio Díaz, Oax.",562,null,"Pue.","Cuetzalan del Progreso","Cuetzalan del Progreso, Pue.",43,{"$nulls":21},"Son.","San Miguel de Horcasitas","San Miguel de Horcasitas, Son.",56,{"$nulls":11},"Tlax.","Zacatelco","Zacatelco, Tlax.",44,null,"Ver.","Cosoleacaque","Cosoleacaque, Ver.",48,null,"Yuc.","Progreso","Progreso, Yuc.",59]
[{"$nulls":39},"Chis.","Mazapa de Madero","Mazapa de Madero, Chis.",53,null,"Chih.","Santa Bárbara","Santa Bárbara, Chih.",60,{"$nulls":16},"Gro.","San Marcos","San Marcos, Gro.",53,null,"Hgo.","Tenango de Doria","Tenango de Doria, Hgo.",60,null,"Jal.","Mexticacán","Mexticacán, Jal.",60,null,"Mex.","Naucalpan de Juárez","Naucalpan de Juárez, Mex.",57,null,"Mich.","Nahuatzen","Nahuatzen, Mich.",56,{"$nulls":16},"Oax.","Magdalena Zahuatlán","Magdalena Zahuatlán, Oax.",54,null,"Pue.","Cuyoaco","Cuyoaco, Pue.",44,{"$nulls":21},"Son.","San Pedro de la Cueva","San Pedro de la Cueva, Son.",57,{"$nulls":11},"Tlax.","Ziltlaltépec de Trinidad Sánchez Santos","Ziltlaltépec de Trinidad Sánchez Santos, Tlax.",37,null,"Ver.","Cotaxtla","Cotaxtla, Ver.",49,null,"Yuc.","Quintana Roo","Quintana Roo, Yuc.",60]
[{"$nulls":39},"Chis.","Mazatán","Mazatán, Chis.",54,null,"Chih.","Santa Isabel","Santa Isabel, Chih.",24,{"$nulls":16},"Gro.","San Miguel Totolapan","San Miguel Totolapan, Gro.",54,null,"Hgo.","Tepeapulco","Tepeapulco, Hgo.",61,null,"Jal.","Mezquitic","Mezquitic, Jal.",61,null,"Mex.","Nextlalpan","Nextlalpan, Mex.",59,null,"Mich.","Nocupétaro","Nocupétaro, Mich.",57,{"$nulls":16},"Oax.","Mariscala de Juárez","Mariscala de Juárez, Oax.",55,null,"Pue.","Domingo Arenas","Domingo Arenas, Pue.",60,{"$nulls":21},"Son.","Santa Ana","Santa Ana, Son.",58,{"$nulls":16},"Ver.","Coxquihui","Coxquihui, Ver.",50,null,"Yuc.","Río Lagartos","Río Lagartos, Yuc.",61]
[{"$nulls":39},"Chis.","Metapa","Metapa, Chis.",55,null,"Chih.","Satevó","Satevó, Chih.",61,{"$nulls":16},"Gro.","Taxco de Alarcón","Taxco de Alarcón, Gro.",55,null,"Hgo.","Tepehuacán de Guerrero","Tepehuacán de Guerrero, Hgo.",62,null,"Jal.","Mixtlán","Mixtlán, Jal.",62,null,"Mex.","Nezahualcóyotl","Nezahualcóyotl, Mex.",58,null,"Mich.","Nuevo Parangaricutiro","Nuevo Parangaricutiro, Mich.",58,{"$nulls":16},"Oax.","Mártires de Tacubaya","Mártires de Tacubaya, Oax.",56,null,"Pue.","Eloxochitlán","Eloxochitlán, Pue.",61,{"$nulls":21},"Son.","Santa Cruz","Santa Cruz, Son.",59,{"$nulls":16},"Ver.","Coyutla","Coyutla, Ver.",51,null,"Yuc.","Sacalum","Sacalum, Yuc.",62]
[{"$nulls":39},"Chis.","Mitontic","Mitontic, Chis.",56,null,"Chih.","Saucillo","Saucillo, Chih.",62,{"$nulls":16},"Gro.","Tecoanapa","Tecoanapa, Gro.",56,null,"Hgo.","Tepeji del Río de Ocampo","Tepeji del Río de Ocampo, Hgo.",63,null,"Jal.","Ocotlán","Ocotlán, Jal.",63,null,"Mex.","Nicolás Romero","Nicolás Romero, Mex.",60,null,"Mich.","Nuevo Urecho","Nuevo Urecho, Mich.",59,{"$nulls":16},"Oax.","Matías Romero Avendaño","Matías Romero Avendaño, Oax.",57,null,"Pue.","Epatlán","Epatlán, Pue.",62,{"$nulls":21},"Son.","Sáric","Sáric, Son.",60,{"$nulls":16},"Ver.","Cuichapa","Cuichapa, Ver.",52,null,"Yuc.","Samahil","Samahil, Yuc.",63]
[{"$nulls":39},"Chis.","Montecristo de Guerrero","Montecristo de Guerrero, Chis.",117,null,"Chih.","Temósachic","Temósachic, Chih.",63,{"$nulls":16},"Gro.","Técpan de Galeana","Técpan de Galeana, Gro.",57,null,"Hgo.","Tepetitlán","Tepetitlán, Hgo.",64,null,"Jal.","Ojuelos de Jalisco","Ojuelos de Jalisco, Jal.",64,null,"Mex.","Nopaltepec","Nopaltepec, Mex.",61,null,"Mich.","Numarán","Numarán, Mich.",60,{"$nulls":16},"Oax.","Mazatlán Villa de Flores","Mazatlán Villa de Flores, Oax.",58,null,"Pue.","Esperanza","Esperanza, Pue.",63,{"$nulls":21},"Son.","Soyopa","Soyopa, Son.",61,{"$nulls":16},"Ver.","Cuitláhuac","Cuitláhuac, Ver.",53,null,"Yuc.","San Felipe","San Felipe, Yuc.",65]
[{"$nulls":39},"Chis.","Motozintla",{"$f":"AO68&\", \"&AN68","v":"Motozintla, Chis."},57,null,"Chih.","Urique",{"$f":"AT68&\", \"&AS68","v":"Urique, Chih."},65,{"$nulls":16},"Gro.","Teloloapan",{"$f":"BN68&\", \"&BM68","v":"Teloloapan, Gro."},58,null,"Hgo.","Tetepango",{"$f":"BS68&\", \"&BR68","v":"Tetepango, Hgo."},65,null,"Jal.","Pihuamo",{"$f":"BX68&\", \"&BW68","v":"Pihuamo, Jal."},65,null,"Mex.","Ocoyoacac",{"$f":"CC68&\", \"&CB68","v":"Ocoyoacac, Mex."},62,null,"Mich.","Ocampo",{"$f":"CH68&\", \"&CG68","v":"Ocampo, Mich."},61,{"$nulls":16},"Oax.","Mesones Hidalgo",{"$f":"DB68&\", \"&DA68","v":"Mesones Hidalgo, Oax."},37,null,"Pue.","Francisco Z. Mena",{"$f":"DG68&\", \"&DF68","v":"Francisco Z. Mena, Pue."},64,{"$nulls":21},"Son.","Suaqui Grande",{"$f":"EF68&\", \"&EE68","v":"Suaqui Grande, Son."},62,{"$nulls":16},"Ver.","El Higo",{"$f":"EZ68&\", \"&EY68","v":"El Higo, Ver."},205,null,"Yuc.","Sanahcat",{"$f":"FE68&\", \"&FD68","v":"Sanahcat, Yuc."},64]
[{"$nulls":39},"Chis.","Nicolás Ruíz","Nicolás Ruíz, Chis.",58,null,"Chih.","Uruachi","Uruachi, Chih.",66,{"$nulls":16},"Gro.","Tepecoacuilco de Trujano","Tepecoacuilco de Trujano, Gro.",59,null,"Hgo.","Tezontepec de Aldama","Tezontepec de Aldama, Hgo.",67,null,"Jal.","Poncitlán","Poncitlán, Jal.",66,null,"Mex.","Ocuilan","Ocuilan, Mex.",63,null,"Mich.","Pajacuarán","Pajacuarán, Mich.",62,{"$nulls":16},"Oax.","Miahuatlán de Porfirio Díaz","Miahuatlán de Porfirio Díaz, Oax.",59,null,"Pue.","General Felipe Angeles","General Felipe Angeles, Pue.",65,{"$nulls":21},"Son.","Tepache","Tepache, Son.",63,{"$nulls":16},"Ver.","Emiliano Zapata","Emiliano Zapata, Ver.",65,null,"Yuc.","Santa Elena","Santa Elena, Yuc.",66]
[{"$nulls":39},"Chis.","Ocosingo","Ocosingo, Chis.",59,null,"Chih.","Valle de Zaragoza","Valle de Zaragoza, Chih.",67,{"$nulls":16},"Gro.","Tetipac","Tetipac, Gro.",60,null,"Hgo.","Tianguistengo","Tianguistengo, Hgo.",68,null,"Jal.","Puerto Vallarta","Puerto Vallarta, Jal.",67,null,"Mex.","Otumba","Otumba, Mex.",65,null,"Mich.","Panindícuaro","Panindícuaro, Mich.",63,{"$nulls":16},"Oax.","Mixistlán de la Reforma","Mixistlán de la Reforma, Oax.",60,null,"Pue.","Guadalupe Victoria","Guadalupe Victoria, Pue.",67,{"$nulls":21},"Son.","Trincheras","Trincheras, Son.",64,{"$nulls":16},"Ver.","Espinal","Espinal, Ver.",66,null,"Yuc.","Seyé","Seyé, Yuc.",67]
[{"$nulls":39},"Chis.","Ocotepec","Ocotepec, Chis.",60,{"$nulls":21},"Gro.","Tixtla de Guerrero","Tixtla de Guerrero, Gro.",61,null,"Hgo.","Tizayuca","Tizayuca, Hgo.",69,null,"Jal.","Quitupan","Quitupan, Jal.",69,null,"Mex.","Otzoloapan","Otzoloapan, Mex.",66,null,"Mich.","Paracho","Paracho, Mich.",65,{"$nulls":16},"Oax.","Monjas","Monjas, Oax.",61,null,"Pue.","Guadalupe","Guadalupe, Pue.",66,{"$nulls":21},"Son.","Tubutama","Tubutama, Son.",65,{"$nulls":16},"Ver.","Filomeno Mata","Filomeno Mata, Ver.",67,null,"Yuc.","Sinanché","Sinanché, Yuc.",68]
[{"$nulls":39},"Chis.","Ocozocoautla de Espinosa","Ocozocoautla de Espinosa, Chis.",61,{"$nulls":21},"Gro.","Tlacoachistlahuaca","Tlacoachistlahuaca, Gro.",62,null,"Hgo.","Tlahuelilpan","Tlahuelilpan, Hgo.",70,null,"Jal.","San Cristóbal de la Barranca","San Cristóbal de la Barranca, Jal.",71,null,"Mex.","Otzolotepec","Otzolotepec, Mex.",67,null,"Mich.","Parácuaro","Parácuaro, Mich.",64,{"$nulls":16},"Oax.","Natividad","Natividad, Oax.",62,null,"Pue.","Hermenegildo Galeana","Hermenegildo Galeana, Pue.",68,{"$nulls":21},"Son.","Ures","Ures, Son.",66,{"$nulls":16},"Ver.","Fortín","Fortín, Ver.",68,null,"Yuc.","Sotuta","Sotuta, Yuc.",69]
[{"$nulls":39},"Chis.","Ostuacán","Ostuacán, Chis.",62,{"$nulls":21},"Gro.","Tlacoapa","Tlacoapa, Gro.",63,null,"Hgo.","Tlahuiltepa","Tlahuiltepa, Hgo.",71,null,"Jal.","San Diego de Alejandría","San Diego de Alejandría, Jal.",72,null,"Mex.","Ozumba","Ozumba, Mex.",68,null,"Mich.","Pátzcuaro","Pátzcuaro, Mich.",66,{"$nulls":16},"Oax.","Nazareno Etla","Nazareno Etla, Oax.",63,null,"Pue.","Honey","Honey, Pue.",57,{"$nulls":21},"Son.","Villa Hidalgo","Villa Hidalgo, Son.",67,{"$nulls":16},"Ver.","Gutiérrez Zamora","Gutiérrez Zamora, Ver.",69,null,"Yuc.","Sucilá","Sucilá, Yuc.",70]
[{"$nulls":39},"Chis.","Osumacinta","Osumacinta, Chis.",63,{"$nulls":21},"Gro.","Tlalchapa","Tlalchapa, Gro.",64,null,"Hgo.","Tlanalapa","Tlanalapa, Hgo.",72,null,"Jal.","San Gabriel","San Gabriel, Jal.",113,null,"Mex.","Papalotla","Papalotla, Mex.",69,null,"Mich.","Penjamillo","Penjamillo, Mich.",67,{"$nulls":16},"Oax.","Nejapa de Madero","Nejapa de Madero, Oax.",64,null,"Pue.","Huaquechula","Huaquechula, Pue.",69,{"$nulls":21},"Son.","Villa Pesqueira","Villa Pesqueira, Son.",68,{"$nulls":16},"Ver.","Hidalgotitlán","Hidalgotitlán, Ver.",70,null,"Yuc.","Sudzal","Sudzal, Yuc.",71]
[{"$nulls":39},"Chis.","Oxchuc","Oxchuc, Chis.",64,{"$nulls":21},"Gro.","Tlalixtaquilla de Maldonado","Tlalixtaquilla de Maldonado, Gro.",65,null,"Hgo.","Tlanchinol","Tlanchinol, Hgo.",73,null,"Jal.","San Ignacio Cerro Gordo","San Ignacio Cerro Gordo, Jal.",125,null,"Mex.","Polotitlán","Polotitlán, Mex.",71,null,"Mich.","Peribán","Peribán, Mich.",68,{"$nulls":16},"Oax.","Nuevo Zoquiápam","Nuevo Zoquiápam, Oax.",504,null,"Pue.","Huatlatlauca","Huatlatlauca, Pue.",70,{"$nulls":21},"Son.","Yécora","Yécora, Son.",69,{"$nulls":16},"Ver.","Huatusco","Huatusco, Ver.",71,null,"Yuc.","Suma","Suma, Yuc.",72]
[{"$nulls":39},"Chis.","Palenque","Palenque, Chis.",65,{"$nulls":21},"Gro.","Tlapa de Comonfort","Tlapa de Comonfort, Gro.",66,null,"Hgo.","Tlaxcoapan","Tlaxcoapan, Hgo.",74,null,"Jal.","San Juan de los Lagos","San Juan de los Lagos, Jal.",73,null,"Mex.","Rayón","Rayón, Mex.",72,null,"Mich.","Purépero","Purépero, Mich.",70,{"$nulls":16},"Oax.","Oaxaca de Juárez","Oaxaca de Juárez, Oax.",67,null,"Pue.","Huauchinango","Huauchinango, Pue.",71,{"$nulls":41},"Ver.","Huayacocotla","Huayacocotla, Ver.",72,null,"Yuc.","Tahdziú","Tahdziú, Yuc.",73]
[{"$nulls":39},"Chis.","Pantelhó","Pantelhó, Chis.",66,{"$nulls":21},"Gro.","Tlapehuala","Tlapehuala, Gro.",67,null,"Hgo.","Tolcayuca","Tolcayuca, Hgo.",75,null,"Jal.","San Juanito de Escobedo","San Juanito de Escobedo, Jal.",7,null,"Mex.","San Antonio la Isla","San Antonio la Isla, Mex.",73,null,"Mich.","Puruándiro","Puruándiro, Mich.",71,{"$nulls":16},"Oax.","Ocotlán de Morelos","Ocotlán de Morelos, Oax.",68,null,"Pue.","Huehuetla","Huehuetla, Pue.",72,{"$nulls":41},"Ver.","Hueyapan de Ocampo","Hueyapan de Ocampo, Ver.",73,null,"Yuc.","Tahmek","Tahmek, Yuc.",74]
[{"$nulls":39},"Chis.","Pantepec","Pantepec, Chis.",67,{"$nulls":21},"Gro.","Xalpatláhuac","Xalpatláhuac, Gro.",69,null,"Hgo.","Tula de Allende","Tula de Allende, Hgo.",76,null,"Jal.","San Julián","San Julián, Jal.",74,null,"Mex.","San Felipe del Progreso","San Felipe del Progreso, Mex.",74,null,"Mich.","Queréndaro","Queréndaro, Mich.",72,{"$nulls":16},"Oax.","Pinotepa de Don Luis","Pinotepa de Don Luis, Oax.",70,null,"Pue.","Huehuetlán el Chico","Huehuetlán el Chico, Pue.",73,{"$nulls":41},"Ver.","Huiloapan de Cuauhtémoc","Huiloapan de Cuauhtémoc, Ver.",74,null,"Yuc.","Teabo","Teabo, Yuc.",75]
[{"$nulls":39},"Chis.","Pichucalco","Pichucalco, Chis.",68,{"$nulls":21},"Gro.","Xochihuehuetlán","Xochihuehuetlán, Gro.",70,null,"Hgo.","Tulancingo de Bravo","Tulancingo de Bravo, Hgo.",77,null,"Jal.","San Marcos","San Marcos, Jal.",75,null,"Mex.","San José del Rincón","San José del Rincón, Mex.",124,null,"Mich.","Quiroga","Quiroga, Mich.",73,{"$nulls":16},"Oax.","Pluma Hidalgo","Pluma Hidalgo, Oax.",71,null,"Pue.","Huehuetlán el Grande","Huehuetlán el Grande, Pue.",150,{"$nulls":41},"Ver.","Ignacio de la Llave","Ignacio de la Llave, Ver.",75,null,"Yuc.","Tecoh","Tecoh, Yuc.",76]
[{"$nulls":39},"Chis.","Pijijiapan","Pijijiapan, Chis.",69,{"$nulls":21},"Gro.","Xochistlahuaca","Xochistlahuaca, Gro.",71,null,"Hgo.","Villa de Tezontepec","Villa de Tezontepec, Hgo.",66,null,"Jal.","San Martín de Bolaños","San Martín de Bolaños, Jal.",76,null,"Mex.","San Martín de las Pirámides","San Martín de las Pirámides, Mex.",75,null,"Mich.","Sahuayo","Sahuayo, Mich.",76,{"$nulls":16},"Oax.","Putla Villa de Guerrero","Putla Villa de Guerrero, Oax.",73,null,"Pue.","Huejotzingo","Huejotzingo, Pue.",74,{"$nulls":41},"Ver.","Ilamatlán","Ilamatlán, Ver.",76,null,"Yuc.","Tekal de Venegas","Tekal de Venegas, Yuc.",77]
[{"$nulls":39},"Chis.","Pueblo Nuevo Solistahuacán","Pueblo Nuevo Solistahuacán, Chis.",72,{"$nulls":21},"Gro.","Zapotitlán Tablas","Zapotitlán Tablas, Gro.",72,null,"Hgo.","Xochiatipan","Xochiatipan, Hgo.",78,null,"Jal.","San Martín Hidalgo","San Martín Hidalgo, Jal.",77,null,"Mex.","San Mateo Atenco","San Mateo Atenco, Mex.",76,null,"Mich.","Salvador Escalante","Salvador Escalante, Mich.",79,{"$nulls":16},"Oax.","Reforma de Pineda","Reforma de Pineda, Oax.",75,null,"Pue.","Hueyapan","Hueyapan, Pue.",75,{"$nulls":41},"Ver.","Isla","Isla, Ver.",77,null,"Yuc.","Tekantó","Tekantó, Yuc.",78]
[{"$nulls":39},"Chis.","Rayón","Rayón, Chis.",73,{"$nulls":21},"Gro.","Zihuatanejo de Azueta","Zihuatanejo de Azueta, Gro.",38,null,"Hgo.","Xochicoatlán","Xochicoatlán, Hgo.",79,null,"Jal.","San Miguel el Alto","San Miguel el Alto, Jal.",78,null,"Mex.","San Simón de Guerrero","San Simón de Guerrero, Mex.",77,null,"Mich.","San Lucas","San Lucas, Mich.",77,{"$nulls":16},"Oax.","Reyes Etla","Reyes Etla, Oax.",77,null,"Pue.","Hueytamalco","Hueytamalco, Pue.",76,{"$nulls":41},"Ver.","Ixcatepec","Ixcatepec, Ver.",78,null,"Yuc.","Tekax","Tekax, Yuc.",79]
[{"$nulls":39},"Chis.","Reforma","Reforma, Chis.",74,{"$nulls":21},"Gro.","Zirándaro","Zirándaro, Gro.",73,null,"Hgo.","Yahualica","Yahualica, Hgo.",80,null,"Jal.","San Pedro Tlaquepaque","San Pedro Tlaquepaque, Jal.",98,null,"Mex.","Santo Tomás","Santo Tomás, Mex.",78,null,"Mich.","Santa Ana Maya","Santa Ana Maya, Mich.",78,{"$nulls":16},"Oax.","Rojas de Cuauhtémoc","Rojas de Cuauhtémoc, Oax.",78,null,"Pue.","Hueytlalpan","Hueytlalpan, Pue.",77,{"$nulls":41},"Ver.","Ixhuacán de los Reyes","Ixhuacán de los Reyes, Ver.",79,null,"Yuc.","Tekit","Tekit, Yuc.",80]
[{"$nulls":39},"Chis.","Sabanilla","Sabanilla, Chis.",76,{"$nulls":21},"Gro.","Zitlala","Zitlala, Gro.",74,null,"Hgo.","Zacualtipán de Angeles","Zacualtipán de Angeles, Hgo.",81,null,"Jal.","San Sebastián del Oeste","San Sebastián del Oeste, Jal.",80,null,"Mex.","Soyaniquilpan de Juárez","Soyaniquilpan de Juárez, Mex.",79,null,"Mich.","Senguio","Senguio, Mich.",80,{"$nulls":16},"Oax.","Salina Cruz","Salina Cruz, Oax.",79,null,"Pue.","Huitzilan de Serdán","Huitzilan de Serdán, Pue.",78,{"$nulls":41},"Ver.","Ixhuatlán de Madero","Ixhuatlán de Madero, Ver.",83,null,"Yuc.","Tekom","Tekom, Yuc.",81]
[{"$nulls":39},"Chis.","Salto de Agua","Salto de Agua, Chis.",77,{"$nulls":26},"Hgo.","Zapotlán de Juárez","Zapotlán de Juárez, Hgo.",82,null,"Jal.","Santa María de los Angeles","Santa María de los Angeles, Jal.",81,null,"Mex.","Sultepec","Sultepec, Mex.",80,null,"Mich.","Susupuato","Susupuato, Mich.",81,{"$nulls":16},"Oax.","San Agustín Amatengo","San Agustín Amatengo, Oax.",80,null,"Pue.","Huitziltepec","Huitziltepec, Pue.",79,{"$nulls":41},"Ver.","Ixhuatlán del Café","Ixhuatlán del Café, Ver.",80,null,"Yuc.","Telchac Pueblo","Telchac Pueblo, Yuc.",82]
[{"$nulls":39},"Chis.","San Andrés Duraznal","San Andrés Duraznal, Chis.",118,{"$nulls":26},"Hgo.","Zempoala","Zempoala, Hgo.",83,null,"Jal.","Santa María del Oro","Santa María del Oro, Jal.",56,null,"Mex.","Tecámac","Tecámac, Mex.",81,null,"Mich.","Tacámbaro","Tacámbaro, Mich.",82,{"$nulls":16},"Oax.","San Agustín Atenango","San Agustín Atenango, Oax.",81,null,"Pue.","Ixcamilpa de Guerrero","Ixcamilpa de Guerrero, Pue.",81,{"$nulls":41},"Ver.","Ixhuatlán del Sureste","Ixhuatlán del Sureste, Ver.",82,null,"Yuc.","Telchac Puerto","Telchac Puerto, Yuc.",83]
[{"$nulls":39},"Chis.","San Cristóbal de las Casas","San Cristóbal de las Casas, Chis.",78,{"$nulls":26},"Hgo.","Zimapán","Zimapán, Hgo.",84,null,"Jal.","Sayula","Sayula, Jal.",82,null,"Mex.","Tejupilco","Tejupilco, Mex.",82,null,"Mich.","Tancítaro","Tancítaro, Mich.",83,{"$nulls":16},"Oax.","San Agustín Chayuco","San Agustín Chayuco, Oax.",82,null,"Pue.","Ixcaquixtla","Ixcaquixtla, Pue.",82,{"$nulls":41},"Ver.","Ixhuatlancillo","Ixhuatlancillo, Ver.",81,null,"Yuc.","Temax","Temax, Yuc.",84]
[{"$nulls":39},"Chis.","San Fernando","San Fernando, Chis.",79,{"$nulls":31},"Jal.","Tala","Tala, Jal.",83,null,"Mex.","Temamatla","Temamatla, Mex.",83,null,"Mich.","Tangamandapio","Tangamandapio, Mich.",84,{"$nulls":16},"Oax.","San Agustín de las Juntas","San Agustín de las Juntas, Oax.",83,null,"Pue.","Ixtacamaxtitlán","Ixtacamaxtitlán, Pue.",83,{"$nulls":41},"Ver.","Ixmatlahuacan","Ixmatlahuacan, Ver.",84,null,"Yuc.","Temozón","Temozón, Yuc.",85]
[{"$nulls":39},"Chis.","San Juan Cancuc","San Juan Cancuc, Chis.",112,{"$nulls":31},"Jal.","Talpa de Allende","Talpa de Allende, Jal.",84,null,"Mex.","Temascalapa","Temascalapa, Mex.",84,null,"Mich.","Tangancícuaro","Tangancícuaro, Mich.",85,{"$nulls":16},"Oax.","San Agustín Etla","San Agustín Etla, Oax.",84,null,"Pue.","Ixtepec","Ixtepec, Pue.",84,{"$nulls":41},"Ver.","Ixtaczoquitlán","Ixtaczoquitlán, Ver.",85,null,"Yuc.","Tepakán","Tepakán, Yuc.",86]
[{"$nulls":39},"Chis.","San Lucas","San Lucas, Chis.",110,{"$nulls":31},"Jal.","Tamazula de Gordiano","Tamazula de Gordiano, Jal.",85,null,"Mex.","Temascalcingo","Temascalcingo, Mex.",85,null,"Mich.","Tanhuato","Tanhuato, Mich.",86,{"$nulls":16},"Oax.","San Agustín Loxicha","San Agustín Loxicha, Oax.",85,null,"Pue.","Izúcar de Matamoros","Izúcar de Matamoros, Pue.",85,{"$nulls":41},"Ver.","Jalacingo","Jalacingo, Ver.",86,null,"Yuc.","Tetiz","Tetiz, Yuc.",87]
[{"$nulls":39},"Chis.","Santiago el Pinar","Santiago el Pinar, Chis.",119,{"$nulls":31},"Jal.","Tapalpa","Tapalpa, Jal.",86,null,"Mex.","Temascaltepec","Temascaltepec, Mex.",86,null,"Mich.","Taretan","Taretan, Mich.",87,{"$nulls":16},"Oax.","San Agustín Tlacotepec","San Agustín Tlacotepec, Oax.",86,null,"Pue.","Jalpan","Jalpan, Pue.",86,{"$nulls":41},"Ver.","Jalcomulco","Jalcomulco, Ver.",88,null,"Yuc.","Teya","Teya, Yuc.",88]
[{"$nulls":39},"Chis.","Siltepec","Siltepec, Chis.",80,{"$nulls":31},"Jal.","Tecalitlán","Tecalitlán, Jal.",87,null,"Mex.","Temoaya","Temoaya, Mex.",87,null,"Mich.","Tarímbaro","Tarímbaro, Mich.",88,{"$nulls":16},"Oax.","San Agustín Yatareni","San Agustín Yatareni, Oax.",87,null,"Pue.","Jolalpan","Jolalpan, Pue.",87,{"$nulls":41},"Ver.","Jáltipan","Jáltipan, Ver.",89,null,"Yuc.","Ticul","Ticul, Yuc.",89]
[{"$nulls":39},"Chis.","Simojovel","Simojovel, Chis.",81,{"$nulls":31},"Jal.","Techaluta de Montenegro","Techaluta de Montenegro, Jal.",89,null,"Mex.","Tenancingo","Tenancingo, Mex.",88,null,"Mich.","Tepalcatepec","Tepalcatepec, Mich.",89,{"$nulls":16},"Oax.","San Andrés Cabecera Nueva","San Andrés Cabecera Nueva, Oax.",88,null,"Pue.","Jonotla","Jonotla, Pue.",88,{"$nulls":41},"Ver.","Jamapa","Jamapa, Ver.",90,null,"Yuc.","Timucuy","Timucuy, Yuc.",90]
[{"$nulls":39},"Chis.","Sitalá","Sitalá, Chis.",82,{"$nulls":31},"Jal.","Tecolotlán","Tecolotlán, Jal.",88,null,"Mex.","Tenango del Aire","Tenango del Aire, Mex.",89,null,"Mich.","Tingambato","Tingambato, Mich.",90,{"$nulls":16},"Oax.","San Andrés Dinicuiti","San Andrés Dinicuiti, Oax.",89,null,"Pue.","Jopala","Jopala, Pue.",89,{"$nulls":41},"Ver.","Jesús Carranza","Jesús Carranza, Ver.",91,null,"Yuc.","Tinum","Tinum, Yuc.",91]
[{"$nulls":39},"Chis.","Socoltenango","Socoltenango, Chis.",83,{"$nulls":31},"Jal.","Tenamaxtlán","Tenamaxtlán, Jal.",90,null,"Mex.","Tenango del Valle","Tenango del Valle, Mex.",90,null,"Mich.","Tingüindín","Tingüindín, Mich.",91,{"$nulls":16},"Oax.","San Andrés Huaxpaltepec","San Andrés Huaxpaltepec, Oax.",90,null,"Pue.","Juan C. Bonilla","Juan C. Bonilla, Pue.",90,{"$nulls":41},"Ver.","Jilotepec","Jilotepec, Ver.",93,null,"Yuc.","Tixcacalcupul","Tixcacalcupul, Yuc.",92]
[{"$nulls":39},"Chis.","Solosuchiapa","Solosuchiapa, Chis.",84,{"$nulls":31},"Jal.","Teocaltiche","Teocaltiche, Jal.",91,null,"Mex.","Teoloyucan","Teoloyucan, Mex.",91,null,"Mich.","Tiquicheo de Nicolás Romero","Tiquicheo de Nicolás Romero, Mich.",92,{"$nulls":16},"Oax.","San Andrés Huayápam","San Andrés Huayápam, Oax.",91,null,"Pue.","Juan Galindo","Juan Galindo, Pue.",91,{"$nulls":41},"Ver.","José Azueta","José Azueta, Ver.",169,null,"Yuc.","Tixkokob","Tixkokob, Yuc.",93]
[{"$nulls":39},"Chis.","Soyaló","Soyaló, Chis.",85,{"$nulls":31},"Jal.","Teocuitatlán de Corona","Teocuitatlán de Corona, Jal.",92,null,"Mex.","Teotihuacán","Teotihuacán, Mex.",92,null,"Mich.","Tlalpujahua","Tlalpujahua, Mich.",93,{"$nulls":16},"Oax.","San Andrés Ixtlahuaca","San Andrés Ixtlahuaca, Oax.",92,null,"Pue.","Juan N. Méndez","Juan N. Méndez, Pue.",92,{"$nulls":41},"Ver.","Juan Rodríguez Clara","Juan Rodríguez Clara, Ver.",94,null,"Yuc.","Tixmehuac","Tixmehuac, Yuc.",94]
[{"$nulls":39},"Chis.","Suchiapa","Suchiapa, Chis.",86,{"$nulls":31},"Jal.","Tepatitlán de Morelos","Tepatitlán de Morelos, Jal.",93,null,"Mex.","Tepetlaoxtoc","Tepetlaoxtoc, Mex.",93,null,"Mich.","Tlazazalca","Tlazazalca, Mich.",94,{"$nulls":16},"Oax.","San Andrés Lagunas","San Andrés Lagunas, Oax.",93,null,"Pue.","La Magdalena Tlatlauquitepec","La Magdalena Tlatlauquitepec, Pue.",95,{"$nulls":41},"Ver.","Juchique de Ferrer","Juchique de Ferrer, Ver.",95,null,"Yuc.","Tixpéhual","Tixpéhual, Yuc.",95]
[{"$nulls":39},"Chis.","Suchiate","Suchiate, Chis.",87,{"$nulls":31},"Jal.","Tequila","Tequila, Jal.",94,null,"Mex.","Tepetlixpa","Tepetlixpa, Mex.",94,null,"Mich.","Tocumbo","Tocumbo, Mich.",95,{"$nulls":16},"Oax.","San Andrés Nuxiño","San Andrés Nuxiño, Oax.",94,null,"Pue.","Lafragua","Lafragua, Pue.",93,{"$nulls":41},"Ver.","La Antigua","La Antigua, Ver.",16,null,"Yuc.","Tizimín","Tizimín, Yuc.",96]
[{"$nulls":39},"Chis.","Sunuapa","Sunuapa, Chis.",88,{"$nulls":31},"Jal.","Teuchitlán","Teuchitlán, Jal.",95,null,"Mex.","Tepotzotlán","Tepotzotlán, Mex.",95,null,"Mich.","Tumbiscatío","Tumbiscatío, Mich.",96,{"$nulls":16},"Oax.","San Andrés Paxtlán","San Andrés Paxtlán, Oax.",95,null,"Pue.","Libres","Libres, Pue.",94,{"$nulls":41},"Ver.","La Perla","La Perla, Ver.",127,null,"Yuc.","Tunkás","Tunkás, Yuc.",97]
[{"$nulls":39},"Chis.","Tapachula","Tapachula, Chis.",89,{"$nulls":31},"Jal.","Tizapán el Alto","Tizapán el Alto, Jal.",96,null,"Mex.","Tequixquiac","Tequixquiac, Mex.",96,null,"Mich.","Turicato","Turicato, Mich.",97,{"$nulls":16},"Oax.","San Andrés Sinaxtla","San Andrés Sinaxtla, Oax.",96,null,"Pue.","Los Reyes de Juárez","Los Reyes de Juárez, Pue.",118,{"$nulls":41},"Ver.","Landero y Coss","Landero y Coss, Ver.",96,null,"Yuc.","Tzucacab","Tzucacab, Yuc.",98]
[{"$nulls":39},"Chis.","Tapalapa","Tapalapa, Chis.",90,{"$nulls":31},"Jal.","Tlajomulco de Zúñiga","Tlajomulco de Zúñiga, Jal.",97,null,"Mex.","Texcaltitlán","Texcaltitlán, Mex.",97,null,"Mich.","Tuxpan","Tuxpan, Mich.",98,{"$nulls":16},"Oax.","San Andrés Solaga","San Andrés Solaga, Oax.",97,null,"Pue.","Mazapiltepec de Juárez","Mazapiltepec de Juárez, Pue.",96,{"$nulls":41},"Ver.","Las Choapas","Las Choapas, Ver.",61,null,"Yuc.","Uayma","Uayma, Yuc.",99]
[{"$nulls":39},"Chis.","Tapilula","Tapilula, Chis.",91,{"$nulls":31},"Jal.","Tolimán","Tolimán, Jal.",99,null,"Mex.","Texcalyacac","Texcalyacac, Mex.",98,null,"Mich.","Tuzantla","Tuzantla, Mich.",99,{"$nulls":16},"Oax.","San Andrés Teotilálpam","San Andrés Teotilálpam, Oax.",98,null,"Pue.","Mixtla","Mixtla, Pue.",97,{"$nulls":41},"Ver.","Las Minas","Las Minas, Ver.",107,null,"Yuc.","Ucú","Ucú, Yuc.",100]
[{"$nulls":39},"Chis.","Tecpatán","Tecpatán, Chis.",92,{"$nulls":31},"Jal.","Tomatlán","Tomatlán, Jal.",100,null,"Mex.","Texcoco","Texcoco, Mex.",99,null,"Mich.","Tzintzuntzan","Tzintzuntzan, Mich.",100,{"$nulls":16},"Oax.","San Andrés Tepetlapa","San Andrés Tepetlapa, Oax.",99,null,"Pue.","Molcaxac","Molcaxac, Pue.",98,{"$nulls":41},"Ver.","Las Vigas de Ramírez","Las Vigas de Ramírez, Ver.",132,null,"Yuc.","Umán","Umán, Yuc.",101]
[{"$nulls":39},"Chis.","Tenejapa","Tenejapa, Chis.",93,{"$nulls":31},"Jal.","Tonalá","Tonalá, Jal.",101,null,"Mex.","Tezoyuca","Tezoyuca, Mex.",100,null,"Mich.","Tzitzio","Tzitzio, Mich.",101,{"$nulls":16},"Oax.","San Andrés Yaá","San Andrés Yaá, Oax.",100,null,"Pue.","Naupan","Naupan, Pue.",100,{"$nulls":41},"Ver.","Lerdo de Tejada","Lerdo de Tejada, Ver.",97,null,"Yuc.","Valladolid","Valladolid, Yuc.",102]
[{"$nulls":39},"Chis.","Teopisca","Teopisca, Chis.",94,{"$nulls":31},"Jal.","Tonaya","Tonaya, Jal.",102,null,"Mex.","Tianguistenco","Tianguistenco, Mex.",101,null,"Mich.","Uruapan","Uruapan, Mich.",102,{"$nulls":16},"Oax.","San Andrés Zabache","San Andrés Zabache, Oax.",101,null,"Pue.","Nauzontla","Nauzontla, Pue.",101,{"$nulls":41},"Ver.","Los Reyes","Los Reyes, Ver.",137,null,"Yuc.","Xocchel","Xocchel, Yuc.",103]
[{"$nulls":39},"Chis.","Tila","Tila, Chis.",96,{"$nulls":31},"Jal.","Tonila","Tonila, Jal.",103,null,"Mex.","Timilpan","Timilpan, Mex.",102,null,"Mich.","Venustiano Carranza","Venustiano Carranza, Mich.",103,{"$nulls":16},"Oax.","San Andrés Zautla","San Andrés Zautla, Oax.",102,null,"Pue.","Nealtican","Nealtican, Pue.",102,{"$nulls":41},"Ver.","Magdalena","Magdalena, Ver.",98,null,"Yuc.","Yaxcabá","Yaxcabá, Yuc.",104]
[{"$nulls":39},"Chis.","Tonalá","Tonalá, Chis.",97,{"$nulls":31},"Jal.","Totatiche","Totatiche, Jal.",104,null,"Mex.","Tlalmanalco","Tlalmanalco, Mex.",103,null,"Mich.","Villamar","Villamar, Mich.",104,{"$nulls":16},"Oax.","San Antonino Castillo Velasco","San Antonino Castillo Velasco, Oax.",103,null,"Pue.","Nicolás Bravo","Nicolás Bravo, Pue.",103,{"$nulls":41},"Ver.","Maltrata","Maltrata, Ver.",99,null,"Yuc.","Yaxkukul","Yaxkukul, Yuc.",105]
[{"$nulls":39},"Chis.","Totolapa","Totolapa, Chis.",98,{"$nulls":31},"Jal.","Tototlán","Tototlán, Jal.",105,null,"Mex.","Tlalnepantla de Baz","Tlalnepantla de Baz, Mex.",104,null,"Mich.","Vista Hermosa","Vista Hermosa, Mich.",105,{"$nulls":16},"Oax.","San Antonino el Alto","San Antonino el Alto, Oax.",104,null,"Pue.","Nopalucan","Nopalucan, Pue.",104,{"$nulls":41},"Ver.","Manlio Fabio Altamirano","Manlio Fabio Altamirano, Ver.",100,null,"Yuc.","Yobaín","Yobaín, Yuc.",106]
[{"$nulls":39},"Chis.","Tumbalá","Tumbalá, Chis.",100,{"$nulls":31},"Jal.","Tuxcacuesco","Tuxcacuesco, Jal.",106,null,"Mex.","Tlatlaya","Tlatlaya, Mex.",105,null,"Mich.","Yurécuaro","Yurécuaro, Mich.",106,{"$nulls":16},"Oax.","San Antonino Monte Verde","San Antonino Monte Verde, Oax.",105,null,"Pue.","Ocotepec","Ocotepec, Pue.",105,{"$nulls":41},"Ver.","Mariano Escobedo","Mariano Escobedo, Ver.",101]
[{"$nulls":39},"Chis.","Tuxtla Chico","Tuxtla Chico, Chis.",102,{"$nulls":31},"Jal.","Tuxcueca","Tuxcueca, Jal.",107,null,"Mex.","Toluca","Toluca, Mex.",106,null,"Mich.","Zacapu","Zacapu, Mich.",107,{"$nulls":16},"Oax.","San Antonio Acutla","San Antonio Acutla, Oax.",106,null,"Pue.","Ocoyucan","Ocoyucan, Pue.",106,{"$nulls":41},"Ver.","Martínez de la Torre","Martínez de la Torre, Ver.",102]
[{"$nulls":39},"Chis.","Tuxtla Gutiérrez","Tuxtla Gutiérrez, Chis.",101,{"$nulls":31},"Jal.","Tuxpan","Tuxpan, Jal.",108,null,"Mex.","Tonanitla","Tonanitla, Mex.",125,null,"Mich.","Zamora","Zamora, Mich.",108,{"$nulls":16},"Oax.","San Antonio de la Cal","San Antonio de la Cal, Oax.",107,null,"Pue.","Olintla","Olintla, Pue.",107,{"$nulls":41},"Ver.","Mecatlán","Mecatlán, Ver.",103]
[{"$nulls":39},"Chis.","Tuzantán","Tuzantán, Chis.",103,{"$nulls":31},"Jal.","Unión de San Antonio","Unión de San Antonio, Jal.",109,null,"Mex.","Tonatico","Tonatico, Mex.",107,null,"Mich.","Zináparo","Zináparo, Mich.",109,{"$nulls":16},"Oax.","San Antonio Huitepec","San Antonio Huitepec, Oax.",108,null,"Pue.","Oriental","Oriental, Pue.",108,{"$nulls":41},"Ver.","Mecayapan","Mecayapan, Ver.",104]
[{"$nulls":39},"Chis.","Tzimol","Tzimol, Chis.",104,{"$nulls":31},"Jal.","Unión de Tula","Unión de Tula, Jal.",110,null,"Mex.","Tultepec","Tultepec, Mex.",108,null,"Mich.","Zinapécuaro","Zinapécuaro, Mich.",110,{"$nulls":16},"Oax.","San Antonio Nanahuatípam","San Antonio Nanahuatípam, Oax.",109,null,"Pue.","Pahuatlán","Pahuatlán, Pue.",109,{"$nulls":41},"Ver.","Medellín","Medellín, Ver.",105]
[{"$nulls":39},"Chis.","Unión Juárez","Unión Juárez, Chis.",105,{"$nulls":31},"Jal.","Valle de Guadalupe","Valle de Guadalupe, Jal.",111,null,"Mex.","Tultitlán","Tultitlán, Mex.",109,null,"Mich.","Ziracuaretiro","Ziracuaretiro, Mich.",111,{"$nulls":16},"Oax.","San Antonio Sinicahua","San Antonio Sinicahua, Oax.",110,null,"Pue.","Palmar de Bravo","Palmar de Bravo, Pue.",110,{"$nulls":41},"Ver.","Miahuatlán","Miahuatlán, Ver.",106]
[{"$nulls":39},"Chis.","Venustiano Carranza","Venustiano Carranza, Chis.",106,{"$nulls":31},"Jal.","Valle de Juárez","Valle de Juárez, Jal.",112,null,"Mex.","Valle de Bravo","Valle de Bravo, Mex.",110,null,"Mich.","Zitácuaro","Zitácuaro, Mich.",112,{"$nulls":16},"Oax.","San Antonio Tepetlapa","San Antonio Tepetlapa, Oax.",111,null,"Pue.","Pantepec","Pantepec, Pue.",111,{"$nulls":41},"Ver.","Minatitlán","Minatitlán, Ver.",108]
[{"$nulls":39},"Chis.","Villa Comaltitlán","Villa Comaltitlán, Chis.",71,{"$nulls":31},"Jal.","Villa Corona","Villa Corona, Jal.",114,null,"Mex.","Valle de Chalco Solidaridad","Valle de Chalco Solidaridad, Mex.",122,{"$nulls":21},"Oax.","San Baltazar Chichicápam","San Baltazar Chichicápam, Oax.",112,null,"Pue.","Petlalcingo","Petlalcingo, Pue.",112,{"$nulls":41},"Ver.","Misantla","Misantla, Ver.",109]
[{"$nulls":39},"Chis.","Villa Corzo","Villa Corzo, Chis.",107,{"$nulls":31},"Jal.","Villa Guerrero","Villa Guerrero, Jal.",115,null,"Mex.","Villa de Allende","Villa de Allende, Mex.",111,{"$nulls":21},"Oax.","San Baltazar Loxicha","San Baltazar Loxicha, Oax.",113,null,"Pue.","Piaxtla","Piaxtla, Pue.",113,{"$nulls":41},"Ver.","Mixtla de Altamirano","Mixtla de Altamirano, Ver.",110]
[{"$nulls":39},"Chis.","Villaflores","Villaflores, Chis.",108,{"$nulls":31},"Jal.","Villa Hidalgo","Villa Hidalgo, Jal.",116,null,"Mex.","Villa del Carbón","Villa del Carbón, Mex.",112,{"$nulls":21},"Oax.","San Baltazar Yatzachi el Bajo","San Baltazar Yatzachi el Bajo, Oax.",114,null,"Pue.","Puebla","Puebla, Pue.",114,{"$nulls":41},"Ver.","Moloacán","Moloacán, Ver.",111]
[{"$nulls":39},"Chis.","Yajalón","Yajalón, Chis.",109,{"$nulls":31},"Jal.","Villa Purificación","Villa Purificación, Jal.",68,null,"Mex.","Villa Guerrero","Villa Guerrero, Mex.",113,{"$nulls":21},"Oax.","San Bartolo Coyotepec","San Bartolo Coyotepec, Oax.",115,null,"Pue.","Quecholac","Quecholac, Pue.",115,{"$nulls":41},"Ver.","Nanchital de Lázaro Cárdenas del Río","Nanchital de Lázaro Cárdenas del Río, Ver.",206]
[{"$nulls":39},"Chis.","Zinacantán","Zinacantán, Chis.",111,{"$nulls":31},"Jal.","Yahualica de González Gallo","Yahualica de González Gallo, Jal.",118,null,"Mex.","Villa Victoria","Villa Victoria, Mex.",114,{"$nulls":21},"Oax.","San Bartolo Soyaltepec","San Bartolo Soyaltepec, Oax.",121,null,"Pue.","Quimixtlán","Quimixtlán, Pue.",116,{"$nulls":41},"Ver.","Naolinco","Naolinco, Ver.",112]
[{"$nulls":74},"Jal.","Zacoalco de Torres","Zacoalco de Torres, Jal.",119,null,"Mex.","Xalatlaco","Xalatlaco, Mex.",43,{"$nulls":21},"Oax.","San Bartolo Yautepec","San Bartolo Yautepec, Oax.",122,null,"Pue.","Rafael Lara Grajales","Rafael Lara Grajales, Pue.",117,{"$nulls":41},"Ver.","Naranjal","Naranjal, Ver.",113]
[{"$nulls":74},"Jal.","Zapopan","Zapopan, Jal.",120,null,"Mex.","Xonacatlán","Xonacatlán, Mex.",115,{"$nulls":21},"Oax.","San Bartolomé Ayautla","San Bartolomé Ayautla, Oax.",116,null,"Pue.","San Andrés Cholula","San Andrés Cholula, Pue.",119,{"$nulls":41},"Ver.","Naranjos Amatlán","Naranjos Amatlán, Ver.",13]
[{"$nulls":74},"Jal.","Zapotiltic","Zapotiltic, Jal.",121,null,"Mex.","Zacazonapan","Zacazonapan, Mex.",116,{"$nulls":21},"Oax.","San Bartolomé Loxicha","San Bartolomé Loxicha, Oax.",117,null,"Pue.","San Antonio Cañada","San Antonio Cañada, Pue.",120,{"$nulls":41},"Ver.","Nautla","Nautla, Ver.",114]
[{"$nulls":74},"Jal.","Zapotitlán de Vadillo","Zapotitlán de Vadillo, Jal.",122,null,"Mex.","Zacualpan","Zacualpan, Mex.",117,{"$nulls":21},"Oax.","San Bartolomé Quialana","San Bartolomé Quialana, Oax.",118,null,"Pue.","San Diego la Mesa Tochimiltzingo","San Diego la Mesa Tochimiltzingo, Pue.",121,{"$nulls":41},"Ver.","Nogales","Nogales, Ver.",115]
[{"$nulls":74},"Jal.","Zapotlán del Rey","Zapotlán del Rey, Jal.",123,null,"Mex.","Zinacantepec","Zinacantepec, Mex.",118,{"$nulls":21},"Oax.","San Bartolomé Yucuañe","San Bartolomé Yucuañe, Oax.",119,null,"Pue.","San Felipe Teotlalcingo","San Felipe Teotlalcingo, Pue.",122,{"$nulls":41},"Ver.","Oluta","Oluta, Ver.",116]
[{"$nulls":74},"Jal.","Zapotlán el Grande","Zapotlán el Grande, Jal.",23,null,"Mex.","Zumpahuacán","Zumpahuacán, Mex.",119,{"$nulls":21},"Oax.","San Bartolomé Zoogocho","San Bartolomé Zoogocho, Oax.",120,null,"Pue.","San Felipe Tepatlán","San Felipe Tepatlán, Pue.",123,{"$nulls":41},"Ver.","Omealca","Omealca, Ver.",117]
[{"$nulls":74},"Jal.","Zapotlanejo","Zapotlanejo, Jal.",124,null,"Mex.","Zumpango","Zumpango, Mex.",120,{"$nulls":21},"Oax.","San Bernardo Mixtepec","San Bernardo Mixtepec, Oax.",123,null,"Pue.","San Gabriel Chilac","San Gabriel Chilac, Pue.",124,{"$nulls":41},"Ver.","Orizaba","Orizaba, Ver.",118]
[{"$nulls":104},"Oax.","San Blas Atempa","San Blas Atempa, Oax.",124,null,"Pue.","San Gregorio Atzompa","San Gregorio Atzompa, Pue.",125,{"$nulls":41},"Ver.","Otatitlán","Otatitlán, Ver.",119]
[{"$nulls":104},"Oax.","San Carlos Yautepec","San Carlos Yautepec, Oax.",125,null,"Pue.","San Jerónimo Tecuanipan","San Jerónimo Tecuanipan, Pue.",126,{"$nulls":41},"Ver.","Oteapan","Oteapan, Ver.",120]
[{"$nulls":104},"Oax.","San Cristóbal Amatlán","San Cristóbal Amatlán, Oax.",126,null,"Pue.","San Jerónimo Xayacatlán","San Jerónimo Xayacatlán, Pue.",127,{"$nulls":41},"Ver.","Ozuluama de Mascareñas","Ozuluama de Mascareñas, Ver.",121]
[{"$nulls":104},"Oax.","San Cristóbal Amoltepec",{"$f":"DB132&\", \"&DA132","v":"San Cristóbal Amoltepec, Oax."},127,null,"Pue.","San José Chiapa",{"$f":"DG132&\", \"&DF132","v":"San José Chiapa, Pue."},128,{"$nulls":41},"Ver.","Pajapan",{"$f":"EZ132&\", \"&EY132","v":"Pajapan, Ver."},122]
[{"$nulls":104},"Oax.","San Cristóbal Lachirioag","San Cristóbal Lachirioag, Oax.",128,null,"Pue.","San José Miahuatlán","San José Miahuatlán, Pue.",129,{"$nulls":41},"Ver.","Pánuco","Pánuco, Ver.",123]
[{"$nulls":104},"Oax.","San Cristóbal Suchixtlahuaca","San Cristóbal Suchixtlahuaca, Oax.",129,null,"Pue.","San Juan Atenco","San Juan Atenco, Pue.",130,{"$nulls":41},"Ver.","Papantla","Papantla, Ver.",124]
[{"$nulls":104},"Oax.","San Dionisio del Mar","San Dionisio del Mar, Oax.",130,null,"Pue.","San Juan Atzompa","San Juan Atzompa, Pue.",131,{"$nulls":41},"Ver.","Paso de Ovejas","Paso de Ovejas, Ver.",126]
[{"$nulls":104},"Oax.","San Dionisio Ocotepec","San Dionisio Ocotepec, Oax.",131,null,"Pue.","San Martín Texmelucan","San Martín Texmelucan, Pue.",132,{"$nulls":41},"Ver.","Paso del Macho","Paso del Macho, Ver.",125]
[{"$nulls":104},"Oax.","San Dionisio Ocotlán","San Dionisio Ocotlán, Oax.",132,null,"Pue.","San Martín Totoltepec","San Martín Totoltepec, Pue.",133,{"$nulls":41},"Ver.","Perote","Perote, Ver.",128]
[{"$nulls":104},"Oax.","San Esteban Atatlahuca","San Esteban Atatlahuca, Oax.",133,null,"Pue.","San Matías Tlalancaleca","San Matías Tlalancaleca, Pue.",134,{"$nulls":41},"Ver.","Platón Sánchez","Platón Sánchez, Ver.",129]
[{"$nulls":104},"Oax.","San Felipe Jalapa de Díaz","San Felipe Jalapa de Díaz, Oax.",134,null,"Pue.","San Miguel Ixitlán","San Miguel Ixitlán, Pue.",135,{"$nulls":41},"Ver.","Playa Vicente","Playa Vicente, Ver.",130]
[{"$nulls":104},"Oax.","San Felipe Tejalápam","San Felipe Tejalápam, Oax.",135,null,"Pue.","San Miguel Xoxtla","San Miguel Xoxtla, Pue.",136,{"$nulls":41},"Ver.","Poza Rica de Hidalgo","Poza Rica de Hidalgo, Ver.",131]
[{"$nulls":104},"Oax.","San Felipe Usila","San Felipe Usila, Oax.",136,null,"Pue.","San Nicolás Buenos Aires","San Nicolás Buenos Aires, Pue.",137,{"$nulls":41},"Ver.","Pueblo Viejo","Pueblo Viejo, Ver.",133]
[{"$nulls":104},"Oax.","San Francisco Cahuacuá","San Francisco Cahuacuá, Oax.",137,null,"Pue.","San Nicolás de los Ranchos","San Nicolás de los Ranchos, Pue.",138,{"$nulls":41},"Ver.","Puente Nacional","Puente Nacional, Ver.",134]
[{"$nulls":104},"Oax.","San Francisco Cajonos","San Francisco Cajonos, Oax.",138,null,"Pue.","San Pablo Anicano","San Pablo Anicano, Pue.",139,{"$nulls":41},"Ver.","Rafael Delgado","Rafael Delgado, Ver.",135]
[{"$nulls":104},"Oax.","San Francisco Chapulapa","San Francisco Chapulapa, Oax.",139,null,"Pue.","San Pedro Cholula","San Pedro Cholula, Pue.",140,{"$nulls":41},"Ver.","Rafael Lucio","Rafael Lucio, Ver.",136]
[{"$nulls":104},"Oax.","San Francisco Chindúa","San Francisco Chindúa, Oax.",140,null,"Pue.","San Pedro Yeloixtlahuaca","San Pedro Yeloixtlahuaca, Pue.",141,{"$nulls":41},"Ver.","Río Blanco","Río Blanco, Ver.",138]
[{"$nulls":104},"Oax.","San Francisco del Mar","San Francisco del Mar, Oax.",141,null,"Pue.","San Salvador el Seco","San Salvador el Seco, Pue.",142,{"$nulls":41},"Ver.","Saltabarranca","Saltabarranca, Ver.",139]
[{"$nulls":104},"Oax.","San Francisco Huehuetlán","San Francisco Huehuetlán, Oax.",142,null,"Pue.","San Salvador el Verde","San Salvador el Verde, Pue.",143,{"$nulls":41},"Ver.","San Andrés Tenejapan","San Andrés Tenejapan, Ver.",140]
[{"$nulls":104},"Oax.","San Francisco Ixhuatán","San Francisco Ixhuatán, Oax.",143,null,"Pue.","San Salvador Huixcolotla","San Salvador Huixcolotla, Pue.",144,{"$nulls":41},"Ver.","San Andrés Tuxtla","San Andrés Tuxtla, Ver.",141]
[{"$nulls":104},"Oax.","San Francisco Jaltepetongo","San Francisco Jaltepetongo, Oax.",144,null,"Pue.","San Sebastián Tlacotepec","San Sebastián Tlacotepec, Pue.",145,{"$nulls":41},"Ver.","San Juan Evangelista","San Juan Evangelista, Ver.",142]
[{"$nulls":104},"Oax.","San Francisco Lachigoló","San Francisco Lachigoló, Oax.",145,null,"Pue.","Santa Catarina Tlaltempan","Santa Catarina Tlaltempan, Pue.",146,{"$nulls":41},"Ver.","San Rafael","San Rafael, Ver.",211]
[{"$nulls":104},"Oax.","San Francisco Logueche","San Francisco Logueche, Oax.",146,null,"Pue.","Santa Inés Ahuatempan","Santa Inés Ahuatempan, Pue.",147,{"$nulls":41},"Ver.","Santiago Sochiapan","Santiago Sochiapan, Ver.",212]
[{"$nulls":104},"Oax.","San Francisco Nuxaño","San Francisco Nuxaño, Oax.",147,null,"Pue.","Santa Isabel Cholula","Santa Isabel Cholula, Pue.",148,{"$nulls":41},"Ver.","Santiago Tuxtla","Santiago Tuxtla, Ver.",143]
[{"$nulls":104},"Oax.","San Francisco Ozolotepec","San Francisco Ozolotepec, Oax.",148,null,"Pue.","Santiago Miahuatlán","Santiago Miahuatlán, Pue.",149,{"$nulls":41},"Ver.","Sayula de Alemán","Sayula de Alemán, Ver.",144]
[{"$nulls":104},"Oax.","San Francisco Sola","San Francisco Sola, Oax.",149,null,"Pue.","Santo Tomás Hueyotlipan","Santo Tomás Hueyotlipan, Pue.",151,{"$nulls":41},"Ver.","Sochiapa","Sochiapa, Ver.",146]
[{"$nulls":104},"Oax.","San Francisco Telixtlahuaca","San Francisco Telixtlahuaca, Oax.",150,null,"Pue.","Soltepec","Soltepec, Pue.",152,{"$nulls":41},"Ver.","Soconusco","Soconusco, Ver.",145]
[{"$nulls":104},"Oax.","San Francisco Teopan","San Francisco Teopan, Oax.",151,null,"Pue.","Tecali de Herrera","Tecali de Herrera, Pue.",153,{"$nulls":41},"Ver.","Soledad Atzompa","Soledad Atzompa, Ver.",147]
[{"$nulls":104},"Oax.","San Francisco Tlapancingo","San Francisco Tlapancingo, Oax.",152,null,"Pue.","Tecamachalco","Tecamachalco, Pue.",154,{"$nulls":41},"Ver.","Soledad de Doblado","Soledad de Doblado, Ver.",148]
[{"$nulls":104},"Oax.","San Gabriel Mixtepec","San Gabriel Mixtepec, Oax.",153,null,"Pue.","Tecomatlán","Tecomatlán, Pue.",155,{"$nulls":41},"Ver.","Soteapan","Soteapan, Ver.",149]
[{"$nulls":104},"Oax.","San Ildefonso Amatlán","San Ildefonso Amatlán, Oax.",154,null,"Pue.","Tehuacán","Tehuacán, Pue.",156,{"$nulls":41},"Ver.","Tamalín","Tamalín, Ver.",150]
[{"$nulls":104},"Oax.","San Ildefonso Sola","San Ildefonso Sola, Oax.",155,null,"Pue.","Tehuitzingo","Tehuitzingo, Pue.",157,{"$nulls":41},"Ver.","Tamiahua","Tamiahua, Ver.",151]
[{"$nulls":104},"Oax.","San Ildefonso Villa Alta","San Ildefonso Villa Alta, Oax.",156,null,"Pue.","Tenampulco","Tenampulco, Pue.",158,{"$nulls":41},"Ver.","Tampico Alto","Tampico Alto, Ver.",152]
[{"$nulls":104},"Oax.","San Jacinto Amilpas","San Jacinto Amilpas, Oax.",157,null,"Pue.","Teopantlán","Teopantlán, Pue.",159,{"$nulls":41},"Ver.","Tancoco","Tancoco, Ver.",153]
[{"$nulls":104},"Oax.","San Jacinto Tlacotepec","San Jacinto Tlacotepec, Oax.",158,null,"Pue.","Teotlalco","Teotlalco, Pue.",160,{"$nulls":41},"Ver.","Tantima","Tantima, Ver.",154]
[{"$nulls":104},"Oax.","San Jerónimo Coatlán","San Jerónimo Coatlán, Oax.",159,null,"Pue.","Tepanco de López","Tepanco de López, Pue.",161,{"$nulls":41},"Ver.","Tantoyuca","Tantoyuca, Ver.",155]
[{"$nulls":104},"Oax.","San Jerónimo Silacayoapilla","San Jerónimo Silacayoapilla, Oax.",160,null,"Pue.","Tepango de Rodríguez","Tepango de Rodríguez, Pue.",162,{"$nulls":41},"Ver.","Tatahuicapan de Juárez","Tatahuicapan de Juárez, Ver.",209]
[{"$nulls":104},"Oax.","San Jerónimo Sosola","San Jerónimo Sosola, Oax.",161,null,"Pue.","Tepatlaxco de Hidalgo","Tepatlaxco de Hidalgo, Pue.",163,{"$nulls":41},"Ver.","Tatatila","Tatatila, Ver.",156]
[{"$nulls":104},"Oax.","San Jerónimo Taviche","San Jerónimo Taviche, Oax.",162,null,"Pue.","Tepeaca","Tepeaca, Pue.",164,{"$nulls":41},"Ver.","Tecolutla","Tecolutla, Ver.",158]
[{"$nulls":104},"Oax.","San Jerónimo Tecóatl","San Jerónimo Tecóatl, Oax.",163,null,"Pue.","Tepemaxalco","Tepemaxalco, Pue.",165,{"$nulls":41},"Ver.","Tehuipango","Tehuipango, Ver.",159]
[{"$nulls":104},"Oax.","San Jerónimo Tlacochahuaya","San Jerónimo Tlacochahuaya, Oax.",550,null,"Pue.","Tepeojuma","Tepeojuma, Pue.",166,{"$nulls":41},"Ver.","Tempoal","Tempoal, Ver.",161]
[{"$nulls":104},"Oax.","San Jorge Nuchita","San Jorge Nuchita, Oax.",164,null,"Pue.","Tepetzintla","Tepetzintla, Pue.",167,{"$nulls":41},"Ver.","Tenampa","Tenampa, Ver.",162]
[{"$nulls":104},"Oax.","San José Ayuquila","San José Ayuquila, Oax.",165,null,"Pue.","Tepexco","Tepexco, Pue.",168,{"$nulls":41},"Ver.","Tenochtitlán","Tenochtitlán, Ver.",163]
[{"$nulls":104},"Oax.","San José Chiltepec","San José Chiltepec, Oax.",166,null,"Pue.","Tepexi de Rodríguez","Tepexi de Rodríguez, Pue.",169,{"$nulls":41},"Ver.","Teocelo","Teocelo, Ver.",164]
[{"$nulls":104},"Oax.","San José del Peñasco","San José del Peñasco, Oax.",167,null,"Pue.","Tepeyahualco de Cuauhtémoc","Tepeyahualco de Cuauhtémoc, Pue.",171,{"$nulls":41},"Ver.","Tepatlaxco","Tepatlaxco, Ver.",165]
[{"$nulls":104},"Oax.","San José del Progreso","San José del Progreso, Oax.",72,null,"Pue.","Tepeyahualco","Tepeyahualco, Pue.",170,{"$nulls":41},"Ver.","Tepetlán","Tepetlán, Ver.",166]
[{"$nulls":104},"Oax.","San José Estancia Grande","San José Estancia Grande, Oax.",168,null,"Pue.","Tetela de Ocampo","Tetela de Ocampo, Pue.",172,{"$nulls":41},"Ver.","Tepetzintla","Tepetzintla, Ver.",167]
[{"$nulls":104},"Oax.","San José Independencia","San José Independencia, Oax.",169,null,"Pue.","Teteles de Avila Castillo","Teteles de Avila Castillo, Pue.",173,{"$nulls":41},"Ver.","Tequila","Tequila, Ver.",168]
[{"$nulls":104},"Oax.","San José Lachiguiri","San José Lachiguiri, Oax.",170,null,"Pue.","Teziutlán","Teziutlán, Pue.",174,{"$nulls":41},"Ver.","Texcatepec","Texcatepec, Ver.",170]
[{"$nulls":104},"Oax.","San José Tenango","San José Tenango, Oax.",171,null,"Pue.","Tianguismanalco","Tianguismanalco, Pue.",175,{"$nulls":41},"Ver.","Texhuacán","Texhuacán, Ver.",171]
[{"$nulls":104},"Oax.","San Juan Achiutla","San Juan Achiutla, Oax.",172,null,"Pue.","Tilapa","Tilapa, Pue.",176,{"$nulls":41},"Ver.","Texistepec","Texistepec, Ver.",172]
[{"$nulls":104},"Oax.","San Juan Atepec","San Juan Atepec, Oax.",173,null,"Pue.","Tlachichuca","Tlachichuca, Pue.",179,{"$nulls":41},"Ver.","Tezonapa","Tezonapa, Ver.",173]
[{"$nulls":104},"Oax.","San Juan Bautista Atatlahuca","San Juan Bautista Atatlahuca, Oax.",175,null,"Pue.","Tlacotepec de Benito Juárez","Tlacotepec de Benito Juárez, Pue.",177,{"$nulls":41},"Ver.","Tierra Blanca","Tierra Blanca, Ver.",174]
[{"$nulls":104},"Oax.","San Juan Bautista Coixtlahuaca","San Juan Bautista Coixtlahuaca, Oax.",176,null,"Pue.","Tlacuilotepec","Tlacuilotepec, Pue.",178,{"$nulls":41},"Ver.","Tihuatlán","Tihuatlán, Ver.",175]
[{"$nulls":104},"Oax.","San Juan Bautista Cuicatlán","San Juan Bautista Cuicatlán, Oax.",177,null,"Pue.","Tlahuapan","Tlahuapan, Pue.",180,{"$nulls":41},"Ver.","Tlachichilco","Tlachichilco, Ver.",180]
[{"$nulls":104},"Oax.","San Juan Bautista Guelache","San Juan Bautista Guelache, Oax.",178,null,"Pue.","Tlaltenango","Tlaltenango, Pue.",181,{"$nulls":41},"Ver.","Tlacojalpan","Tlacojalpan, Ver.",176]
[{"$nulls":104},"Oax.","San Juan Bautista Jayacatlán","San Juan Bautista Jayacatlán, Oax.",179,null,"Pue.","Tlanepantla","Tlanepantla, Pue.",182,{"$nulls":41},"Ver.","Tlacolulan","Tlacolulan, Ver.",177]
[{"$nulls":104},"Oax.","San Juan Bautista Lo de Soto","San Juan Bautista Lo de Soto, Oax.",180,null,"Pue.","Tlaola","Tlaola, Pue.",183,{"$nulls":41},"Ver.","Tlacotalpan","Tlacotalpan, Ver.",178]
[{"$nulls":104},"Oax.","San Juan Bautista Suchitepec","San Juan Bautista Suchitepec, Oax.",181,null,"Pue.","Tlapacoya","Tlapacoya, Pue.",184,{"$nulls":41},"Ver.","Tlacotepec de Mejía","Tlacotepec de Mejía, Ver.",179]
[{"$nulls":104},"Oax.","San Juan Bautista Tlachichilco","San Juan Bautista Tlachichilco, Oax.",183,null,"Pue.","Tlapanalá","Tlapanalá, Pue.",185,{"$nulls":41},"Ver.","Tlalixcoyan","Tlalixcoyan, Ver.",181]
[{"$nulls":104},"Oax.","San Juan Bautista Tlacoatzintepec","San Juan Bautista Tlacoatzintepec, Oax.",182,null,"Pue.","Tlatlauquitepec","Tlatlauquitepec, Pue.",186,{"$nulls":41},"Ver.","Tlalnelhuayocan","Tlalnelhuayocan, Ver.",182]
[{"$nulls":104},"Oax.","San Juan Bautista Tuxtepec","San Juan Bautista Tuxtepec, Oax.",184,null,"Pue.","Tlaxco","Tlaxco, Pue.",187,{"$nulls":41},"Ver.","Tlaltetela","Tlaltetela, Ver.",24]
[{"$nulls":104},"Oax.","San Juan Bautista Valle Nacional","San Juan Bautista Valle Nacional, Oax.",559,null,"Pue.","Tochimilco","Tochimilco, Pue.",188,{"$nulls":41},"Ver.","Tlapacoyan","Tlapacoyan, Ver.",183]
[{"$nulls":104},"Oax.","San Juan Cacahuatepec","San Juan Cacahuatepec, Oax.",185,null,"Pue.","Tochtepec","Tochtepec, Pue.",189,{"$nulls":41},"Ver.","Tlaquilpa","Tlaquilpa, Ver.",184]
[{"$nulls":104},"Oax.","San Juan Chicomezúchil","San Juan Chicomezúchil, Oax.",191,null,"Pue.","Totoltepec de Guerrero","Totoltepec de Guerrero, Pue.",190,{"$nulls":41},"Ver.","Tlilapan","Tlilapan, Ver.",185]
[{"$nulls":104},"Oax.","San Juan Chilateca","San Juan Chilateca, Oax.",192,null,"Pue.","Tulcingo","Tulcingo, Pue.",191,{"$nulls":41},"Ver.","Tomatlán","Tomatlán, Ver.",186]
[{"$nulls":104},"Oax.","San Juan Cieneguilla","San Juan Cieneguilla, Oax.",186,null,"Pue.","Tuzamapan de Galeana","Tuzamapan de Galeana, Pue.",192,{"$nulls":41},"Ver.","Tonayán","Tonayán, Ver.",187]
[{"$nulls":104},"Oax.","San Juan Coatzóspam",{"$f":"DB196&\", \"&DA196","v":"San Juan Coatzóspam, Oax."},187,null,"Pue.","Tzicatlacoyan",{"$f":"DG196&\", \"&DF196","v":"Tzicatlacoyan, Pue."},193,{"$nulls":41},"Ver.","Totutla",{"$f":"EZ196&\", \"&EY196","v":"Totutla, Ver."},188]
[{"$nulls":104},"Oax.","San Juan Colorado","San Juan Colorado, Oax.",188,null,"Pue.","Venustiano Carranza","Venustiano Carranza, Pue.",194,{"$nulls":41},"Ver.","Tres Valles","Tres Valles, Ver.",207]
[{"$nulls":104},"Oax.","San Juan Comaltepec","San Juan Comaltepec, Oax.",189,null,"Pue.","Vicente Guerrero","Vicente Guerrero, Pue.",195,{"$nulls":41},"Ver.","Tuxpan","Tuxpan, Ver.",189]
[{"$nulls":104},"Oax.","San Juan Cotzocón","San Juan Cotzocón, Oax.",190,null,"Pue.","Xayacatlán de Bravo","Xayacatlán de Bravo, Pue.",196,{"$nulls":41},"Ver.","Tuxtilla","Tuxtilla, Ver.",190]
[{"$nulls":104},"Oax.","San Juan de los Cués","San Juan de los Cués, Oax.",206,null,"Pue.","Xicotepec","Xicotepec, Pue.",197,{"$nulls":41},"Ver.","Ursulo Galván","Ursulo Galván, Ver.",191]
[{"$nulls":104},"Oax.","San Juan del Estado","San Juan del Estado, Oax.",193,null,"Pue.","Xicotlán","Xicotlán, Pue.",198,{"$nulls":41},"Ver.","Uxpanapa","Uxpanapa, Ver.",210]
[{"$nulls":104},"Oax.","San Juan del Río","San Juan del Río, Oax.",194,null,"Pue.","Xiutetelco","Xiutetelco, Pue.",199,{"$nulls":41},"Ver.","Vega de Alatorre","Vega de Alatorre, Ver.",192]
[{"$nulls":104},"Oax.","San Juan Diuxi","San Juan Diuxi, Oax.",195,null,"Pue.","Xochiapulco","Xochiapulco, Pue.",200,{"$nulls":41},"Ver.","Veracruz","Veracruz, Ver.",193]
[{"$nulls":104},"Oax.","San Juan Ðumí","San Juan Ðumí, Oax.",210,null,"Pue.","Xochiltepec","Xochiltepec, Pue.",201,{"$nulls":41},"Ver.","Villa Aldama","Villa Aldama, Ver.",194]
[{"$nulls":104},"Oax.","San Juan Evangelista Analco","San Juan Evangelista Analco, Oax.",196,null,"Pue.","Xochitlán de Vicente Suárez","Xochitlán de Vicente Suárez, Pue.",202,{"$nulls":41},"Ver.","Xalapa","Xalapa, Ver.",87]
[{"$nulls":104},"Oax.","San Juan Guelavía","San Juan Guelavía, Oax.",197,null,"Pue.","Xochitlán Todos Santos","Xochitlán Todos Santos, Pue.",203,{"$nulls":41},"Ver.","Xico","Xico, Ver.",92]
[{"$nulls":104},"Oax.","San Juan Guichicovi","San Juan Guichicovi, Oax.",198,null,"Pue.","Yaonáhuac","Yaonáhuac, Pue.",204,{"$nulls":41},"Ver.","Xoxocotla","Xoxocotla, Ver.",195]
[{"$nulls":104},"Oax.","San Juan Ihualtepec","San Juan Ihualtepec, Oax.",199,null,"Pue.","Yehualtepec","Yehualtepec, Pue.",205,{"$nulls":41},"Ver.","Yanga","Yanga, Ver.",196]
[{"$nulls":104},"Oax.","San Juan Juquila Mixes","San Juan Juquila Mixes, Oax.",200,null,"Pue.","Zacapala","Zacapala, Pue.",206,{"$nulls":41},"Ver.","Yecuatla","Yecuatla, Ver.",197]
[{"$nulls":104},"Oax.","San Juan Juquila Vijanos","San Juan Juquila Vijanos, Oax.",201,null,"Pue.","Zacapoaxtla","Zacapoaxtla, Pue.",207,{"$nulls":41},"Ver.","Zacualpan","Zacualpan, Ver.",198]
[{"$nulls":104},"Oax.","San Juan Lachao","San Juan Lachao, Oax.",202,null,"Pue.","Zacatlán","Zacatlán, Pue.",208,{"$nulls":41},"Ver.","Zaragoza","Zaragoza, Ver.",199]
[{"$nulls":104},"Oax.","San Juan Lachigalla","San Juan Lachigalla, Oax.",203,null,"Pue.","Zapotitlán de Méndez","Zapotitlán de Méndez, Pue.",210,{"$nulls":41},"Ver.","Zentla","Zentla, Ver.",200]
[{"$nulls":104},"Oax.","San Juan Lajarcia","San Juan Lajarcia, Oax.",204,null,"Pue.","Zapotitlán","Zapotitlán, Pue.",209,{"$nulls":41},"Ver.","Zongolica","Zongolica, Ver.",201]
[{"$nulls":104},"Oax.","San Juan Lalana","San Juan Lalana, Oax.",205,null,"Pue.","Zaragoza","Zaragoza, Pue.",211,{"$nulls":41},"Ver.","Zontecomatlán de López y Fuentes","Zontecomatlán de López y Fuentes, Ver.",202]
[{"$nulls":104},"Oax.","San Juan Mazatlán","San Juan Mazatlán, Oax.",207,null,"Pue.","Zautla","Zautla, Pue.",212,{"$nulls":41},"Ver.","Zozocolco de Hidalgo","Zozocolco de Hidalgo, Ver.",203]
[{"$nulls":104},"Oax.","San Juan Mixtepec -Dto. 08 -","San Juan Mixtepec -Dto. 08 -, Oax.",208,null,"Pue.","Zihuateutla","Zihuateutla, Pue.",213]
[{"$nulls":104},"Oax.","San Juan Mixtepec -Dto. 26 -","San Juan Mixtepec -Dto. 26 -, Oax.",209,null,"Pue.","Zinacatepec","Zinacatepec, Pue.",214]
[{"$nulls":104},"Oax.","San Juan Ozolotepec","San Juan Ozolotepec, Oax.",211,null,"Pue.","Zongozotla","Zongozotla, Pue.",215]
[{"$nulls":104},"Oax.","San Juan Petlapa","San Juan Petlapa, Oax.",212,null,"Pue.","Zoquiapan","Zoquiapan, Pue.",216]
[{"$nulls":104},"Oax.","San Juan Quiahije","San Juan Quiahije, Oax.",213,null,"Pue.","Zoquitlán","Zoquitlán, Pue.",217]
[{"$nulls":104},"Oax.","San Juan Quiotepec","San Juan Quiotepec, Oax.",214]
[{"$nulls":104},"Oax.","San Juan Sayultepec","San Juan Sayultepec, Oax.",215]
[{"$nulls":104},"Oax.","San Juan Tabaá","San Juan Tabaá, Oax.",216]
[{"$nulls":104},"Oax.","San Juan Tamazola","San Juan Tamazola, Oax.",217]
[{"$nulls":104},"Oax.","San Juan Teita","San Juan Teita, Oax.",218]
[{"$nulls":104},"Oax.","San Juan Teitipac","San Juan Teitipac, Oax.",219]
[{"$nulls":104},"Oax.","San Juan Tepeuxila","San Juan Tepeuxila, Oax.",220]
[{"$nulls":104},"Oax.","San Juan Teposcolula","San Juan Teposcolula, Oax.",221]
[{"$nulls":104},"Oax.","San Juan Yaeé","San Juan Yaeé, Oax.",222]
[{"$nulls":104},"Oax.","San Juan Yatzona","San Juan Yatzona, Oax.",223]
[{"$nulls":104},"Oax.","San Juan Yucuita","San Juan Yucuita, Oax.",224]
[{"$nulls":104},"Oax.","San Lorenzo Albarradas","San Lorenzo Albarradas, Oax.",226]
[{"$nulls":104},"Oax.","San Lorenzo Cacaotepec","San Lorenzo Cacaotepec, Oax.",227]
[{"$nulls":104},"Oax.","San Lorenzo Cuaunecuiltitla","San Lorenzo Cuaunecuiltitla, Oax.",228]
[{"$nulls":104},"Oax.","San Lorenzo Texmelúcan","San Lorenzo Texmelúcan, Oax.",229]
[{"$nulls":104},"Oax.","San Lorenzo Victoria","San Lorenzo Victoria, Oax.",230]
[{"$nulls":104},"Oax.","San Lorenzo","San Lorenzo, Oax.",225]
[{"$nulls":104},"Oax.","San Lucas Camotlán","San Lucas Camotlán, Oax.",231]
[{"$nulls":104},"Oax.","San Lucas Ojitlán","San Lucas Ojitlán, Oax.",232]
[{"$nulls":104},"Oax.","San Lucas Quiaviní","San Lucas Quiaviní, Oax.",233]
[{"$nulls":104},"Oax.","San Lucas Zoquiápam","San Lucas Zoquiápam, Oax.",234]
[{"$nulls":104},"Oax.","San Luis Amatlán","San Luis Amatlán, Oax.",235]
[{"$nulls":104},"Oax.","San Marcial Ozolotepec","San Marcial Ozolotepec, Oax.",236]
[{"$nulls":104},"Oax.","San Marcos Arteaga","San Marcos Arteaga, Oax.",237]
[{"$nulls":104},"Oax.","San Martín de los Cansecos","San Martín de los Cansecos, Oax.",238]
[{"$nulls":104},"Oax.","San Martín Huamelúlpam","San Martín Huamelúlpam, Oax.",239]
[{"$nulls":104},"Oax.","San Martín Itunyoso","San Martín Itunyoso, Oax.",240]
[{"$nulls":104},"Oax.","San Martín Lachilá","San Martín Lachilá, Oax.",241]
[{"$nulls":104},"Oax.","San Martín Peras","San Martín Peras, Oax.",242]
[{"$nulls":104},"Oax.","San Martín Tilcajete","San Martín Tilcajete, Oax.",243]
[{"$nulls":104},"Oax.","San Martín Toxpalan","San Martín Toxpalan, Oax.",244]
[{"$nulls":104},"Oax.","San Martín Zacatepec","San Martín Zacatepec, Oax.",245]
[{"$nulls":104},"Oax.","San Mateo Cajonos","San Mateo Cajonos, Oax.",246]
[{"$nulls":104},"Oax.","San Mateo del Mar","San Mateo del Mar, Oax.",248]
[{"$nulls":104},"Oax.","San Mateo Etlatongo","San Mateo Etlatongo, Oax.",250]
[{"$nulls":104},"Oax.","San Mateo Nejápam","San Mateo Nejápam, Oax.",251]
[{"$nulls":104},"Oax.","San Mateo Peñasco","San Mateo Peñasco, Oax.",252]
[{"$nulls":104},"Oax.","San Mateo Piñas","San Mateo Piñas, Oax.",253]
[{"$nulls":104},"Oax.","San Mateo Río Hondo","San Mateo Río Hondo, Oax.",254]
[{"$nulls":104},"Oax.","San Mateo Sindihui",{"$f":"DB260&\", \"&DA260","v":"San Mateo Sindihui, Oax."},255]
[{"$nulls":104},"Oax.","San Mateo Tlapiltepec","San Mateo Tlapiltepec, Oax.",256]
[{"$nulls":104},"Oax.","San Mateo Yoloxochitlán","San Mateo Yoloxochitlán, Oax.",249]
[{"$nulls":104},"Oax.","San Mateo Yucutindoo","San Mateo Yucutindoo, Oax.",566]
[{"$nulls":104},"Oax.","San Melchor Betaza","San Melchor Betaza, Oax.",257]
[{"$nulls":104},"Oax.","San Miguel Achiutla","San Miguel Achiutla, Oax.",258]
[{"$nulls":104},"Oax.","San Miguel Ahuehuetitlán","San Miguel Ahuehuetitlán, Oax.",259]
[{"$nulls":104},"Oax.","San Miguel Aloápam","San Miguel Aloápam, Oax.",260]
[{"$nulls":104},"Oax.","San Miguel Amatitlán","San Miguel Amatitlán, Oax.",261]
[{"$nulls":104},"Oax.","San Miguel Amatlán","San Miguel Amatlán, Oax.",262]
[{"$nulls":104},"Oax.","San Miguel Chicahua","San Miguel Chicahua, Oax.",264]
[{"$nulls":104},"Oax.","San Miguel Chimalapa","San Miguel Chimalapa, Oax.",265]
[{"$nulls":104},"Oax.","San Miguel Coatlán","San Miguel Coatlán, Oax.",263]
[{"$nulls":104},"Oax.","San Miguel del Puerto","San Miguel del Puerto, Oax.",266]
[{"$nulls":104},"Oax.","San Miguel del Río","San Miguel del Río, Oax.",267]
[{"$nulls":104},"Oax.","San Miguel Ejutla","San Miguel Ejutla, Oax.",268]
[{"$nulls":104},"Oax.","San Miguel el Grande","San Miguel el Grande, Oax.",269]
[{"$nulls":104},"Oax.","San Miguel Huautla","San Miguel Huautla, Oax.",270]
[{"$nulls":104},"Oax.","San Miguel Mixtepec","San Miguel Mixtepec, Oax.",271]
[{"$nulls":104},"Oax.","San Miguel Panixtlahuaca","San Miguel Panixtlahuaca, Oax.",272]
[{"$nulls":104},"Oax.","San Miguel Peras","San Miguel Peras, Oax.",273]
[{"$nulls":104},"Oax.","San Miguel Piedras","San Miguel Piedras, Oax.",274]
[{"$nulls":104},"Oax.","San Miguel Quetzaltepec","San Miguel Quetzaltepec, Oax.",275]
[{"$nulls":104},"Oax.","San Miguel Santa Flor","San Miguel Santa Flor, Oax.",276]
[{"$nulls":104},"Oax.","San Miguel Soyaltepec","San Miguel Soyaltepec, Oax.",278]
[{"$nulls":104},"Oax.","San Miguel Suchixtepec","San Miguel Suchixtepec, Oax.",279]
[{"$nulls":104},"Oax.","San Miguel Tecomatlán","San Miguel Tecomatlán, Oax.",281]
[{"$nulls":104},"Oax.","San Miguel Tenango","San Miguel Tenango, Oax.",282]
[{"$nulls":104},"Oax.","San Miguel Tequixtepec","San Miguel Tequixtepec, Oax.",283]
[{"$nulls":104},"Oax.","San Miguel Tilquiápam","San Miguel Tilquiápam, Oax.",284]
[{"$nulls":104},"Oax.","San Miguel Tlacamama","San Miguel Tlacamama, Oax.",285]
[{"$nulls":104},"Oax.","San Miguel Tlacotepec","San Miguel Tlacotepec, Oax.",286]
[{"$nulls":104},"Oax.","San Miguel Tulancingo","San Miguel Tulancingo, Oax.",287]
[{"$nulls":104},"Oax.","San Miguel Yotao","San Miguel Yotao, Oax.",288]
[{"$nulls":104},"Oax.","San Nicolás Hidalgo","San Nicolás Hidalgo, Oax.",290]
[{"$nulls":104},"Oax.","San Nicolás","San Nicolás, Oax.",289]
[{"$nulls":104},"Oax.","San Pablo Coatlán","San Pablo Coatlán, Oax.",291]
[{"$nulls":104},"Oax.","San Pablo Cuatro Venados","San Pablo Cuatro Venados, Oax.",292]
[{"$nulls":104},"Oax.","San Pablo Etla","San Pablo Etla, Oax.",293]
[{"$nulls":104},"Oax.","San Pablo Huitzo","San Pablo Huitzo, Oax.",294]
[{"$nulls":104},"Oax.","San Pablo Huixtepec","San Pablo Huixtepec, Oax.",295]
[{"$nulls":104},"Oax.","San Pablo Macuiltianguis","San Pablo Macuiltianguis, Oax.",296]
[{"$nulls":104},"Oax.","San Pablo Tijaltepec","San Pablo Tijaltepec, Oax.",297]
[{"$nulls":104},"Oax.","San Pablo Villa de Mitla","San Pablo Villa de Mitla, Oax.",298]
[{"$nulls":104},"Oax.","San Pablo Yaganiza","San Pablo Yaganiza, Oax.",299]
[{"$nulls":104},"Oax.","San Pedro Amuzgos","San Pedro Amuzgos, Oax.",300]
[{"$nulls":104},"Oax.","San Pedro Apóstol","San Pedro Apóstol, Oax.",301]
[{"$nulls":104},"Oax.","San Pedro Atoyac","San Pedro Atoyac, Oax.",302]
[{"$nulls":104},"Oax.","San Pedro Cajonos","San Pedro Cajonos, Oax.",303]
[{"$nulls":104},"Oax.","San Pedro Comitancillo","San Pedro Comitancillo, Oax.",305]
[{"$nulls":104},"Oax.","San Pedro Coxcaltepec Cántaros","San Pedro Coxcaltepec Cántaros, Oax.",304]
[{"$nulls":104},"Oax.","San Pedro el Alto","San Pedro el Alto, Oax.",306]
[{"$nulls":104},"Oax.","San Pedro Huamelula","San Pedro Huamelula, Oax.",307]
[{"$nulls":104},"Oax.","San Pedro Huilotepec","San Pedro Huilotepec, Oax.",308]
[{"$nulls":104},"Oax.","San Pedro Ixcatlán","San Pedro Ixcatlán, Oax.",309]
[{"$nulls":104},"Oax.","San Pedro Ixtlahuaca","San Pedro Ixtlahuaca, Oax.",310]
[{"$nulls":104},"Oax.","San Pedro Jaltepetongo","San Pedro Jaltepetongo, Oax.",311]
[{"$nulls":104},"Oax.","San Pedro Jicayán","San Pedro Jicayán, Oax.",312]
[{"$nulls":104},"Oax.","San Pedro Jocotipac","San Pedro Jocotipac, Oax.",313]
[{"$nulls":104},"Oax.","San Pedro Juchatengo","San Pedro Juchatengo, Oax.",314]
[{"$nulls":104},"Oax.","San Pedro Mártir Quiechapa","San Pedro Mártir Quiechapa, Oax.",316]
[{"$nulls":104},"Oax.","San Pedro Mártir Yucuxaco","San Pedro Mártir Yucuxaco, Oax.",317]
[{"$nulls":104},"Oax.","San Pedro Mártir","San Pedro Mártir, Oax.",315]
[{"$nulls":104},"Oax.","San Pedro Mixtepec -Dto. 22 -","San Pedro Mixtepec -Dto. 22 -, Oax.",318]
[{"$nulls":104},"Oax.","San Pedro Mixtepec -Dto. 26 -",{"$f":"DB324&\", \"&DA324","v":"San Pedro Mixtepec -Dto. 26 -, Oax."},319]
[{"$nulls":104},"Oax.","San Pedro Molinos","San Pedro Molinos, Oax.",320]
[{"$nulls":104},"Oax.","San Pedro Nopala","San Pedro Nopala, Oax.",321]
[{"$nulls":104},"Oax.","San Pedro Ocopetatillo","San Pedro Ocopetatillo, Oax.",322]
[{"$nulls":104},"Oax.","San Pedro Ocotepec","San Pedro Ocotepec, Oax.",323]
[{"$nulls":104},"Oax.","San Pedro Pochutla","San Pedro Pochutla, Oax.",324]
[{"$nulls":104},"Oax.","San Pedro Quiatoni","San Pedro Quiatoni, Oax.",325]
[{"$nulls":104},"Oax.","San Pedro Sochiápam","San Pedro Sochiápam, Oax.",326]
[{"$nulls":104},"Oax.","San Pedro Tapanatepec","San Pedro Tapanatepec, Oax.",327]
[{"$nulls":104},"Oax.","San Pedro Taviche","San Pedro Taviche, Oax.",328]
[{"$nulls":104},"Oax.","San Pedro Teozacoalco","San Pedro Teozacoalco, Oax.",329]
[{"$nulls":104},"Oax.","San Pedro Teutila","San Pedro Teutila, Oax.",330]
[{"$nulls":104},"Oax.","San Pedro Tidaá","San Pedro Tidaá, Oax.",331]
[{"$nulls":104},"Oax.","San Pedro Topiltepec","San Pedro Topiltepec, Oax.",332]
[{"$nulls":104},"Oax.","San Pedro Totolápam","San Pedro Totolápam, Oax.",333]
[{"$nulls":104},"Oax.","San Pedro y San Pablo Ayutla","San Pedro y San Pablo Ayutla, Oax.",337]
[{"$nulls":104},"Oax.","San Pedro y San Pablo Teposcolula","San Pedro y San Pablo Teposcolula, Oax.",339]
[{"$nulls":104},"Oax.","San Pedro y San Pablo Tequixtepec","San Pedro y San Pablo Tequixtepec, Oax.",340]
[{"$nulls":104},"Oax.","San Pedro Yaneri","San Pedro Yaneri, Oax.",335]
[{"$nulls":104},"Oax.","San Pedro Yólox","San Pedro Yólox, Oax.",336]
[{"$nulls":104},"Oax.","San Pedro Yucunama","San Pedro Yucunama, Oax.",341]
[{"$nulls":104},"Oax.","San Raymundo Jalpan","San Raymundo Jalpan, Oax.",342]
[{"$nulls":104},"Oax.","San Sebastián Abasolo","San Sebastián Abasolo, Oax.",343]
[{"$nulls":104},"Oax.","San Sebastián Coatlán","San Sebastián Coatlán, Oax.",344]
[{"$nulls":104},"Oax.","San Sebastián Ixcapa","San Sebastián Ixcapa, Oax.",345]
[{"$nulls":104},"Oax.","San Sebastián Nicananduta","San Sebastián Nicananduta, Oax.",346]
[{"$nulls":104},"Oax.","San Sebastián Río Hondo","San Sebastián Río Hondo, Oax.",347]
[{"$nulls":104},"Oax.","San Sebastián Tecomaxtlahuaca","San Sebastián Tecomaxtlahuaca, Oax.",348]
[{"$nulls":104},"Oax.","San Sebastián Teitipac","San Sebastián Teitipac, Oax.",349]
[{"$nulls":104},"Oax.","San Sebastián Tutla","San Sebastián Tutla, Oax.",350]
[{"$nulls":104},"Oax.","San Simón Almolongas","San Simón Almolongas, Oax.",351]
[{"$nulls":104},"Oax.","San Simón Zahuatlán","San Simón Zahuatlán, Oax.",352]
[{"$nulls":104},"Oax.","San Vicente Coatlán","San Vicente Coatlán, Oax.",534]
[{"$nulls":104},"Oax.","San Vicente Lachixío","San Vicente Lachixío, Oax.",535]
[{"$nulls":104},"Oax.","San Vicente Nuñú","San Vicente Nuñú, Oax.",536]
[{"$nulls":104},"Oax.","Santa Ana Ateixtlahuaca","Santa Ana Ateixtlahuaca, Oax.",354]
[{"$nulls":104},"Oax.","Santa Ana Cuauhtémoc","Santa Ana Cuauhtémoc, Oax.",355]
[{"$nulls":104},"Oax.","Santa Ana del Valle","Santa Ana del Valle, Oax.",356]
[{"$nulls":104},"Oax.","Santa Ana Tavela","Santa Ana Tavela, Oax.",357]
[{"$nulls":104},"Oax.","Santa Ana Tlapacoyan","Santa Ana Tlapacoyan, Oax.",358]
[{"$nulls":104},"Oax.","Santa Ana Yareni","Santa Ana Yareni, Oax.",359]
[{"$nulls":104},"Oax.","Santa Ana Zegache","Santa Ana Zegache, Oax.",360]
[{"$nulls":104},"Oax.","Santa Ana","Santa Ana, Oax.",353]
[{"$nulls":104},"Oax.","Santa Catalina Quierí","Santa Catalina Quierí, Oax.",361]
[{"$nulls":104},"Oax.","Santa Catarina Cuixtla","Santa Catarina Cuixtla, Oax.",362]
[{"$nulls":104},"Oax.","Santa Catarina Ixtepeji","Santa Catarina Ixtepeji, Oax.",363]
[{"$nulls":104},"Oax.","Santa Catarina Juquila","Santa Catarina Juquila, Oax.",364]
[{"$nulls":104},"Oax.","Santa Catarina Lachatao","Santa Catarina Lachatao, Oax.",365]
[{"$nulls":104},"Oax.","Santa Catarina Loxicha","Santa Catarina Loxicha, Oax.",366]
[{"$nulls":104},"Oax.","Santa Catarina Mechoacán","Santa Catarina Mechoacán, Oax.",367]
[{"$nulls":104},"Oax.","Santa Catarina Minas","Santa Catarina Minas, Oax.",368]
[{"$nulls":104},"Oax.","Santa Catarina Quiané","Santa Catarina Quiané, Oax.",369]
[{"$nulls":104},"Oax.","Santa Catarina Quioquitani","Santa Catarina Quioquitani, Oax.",74]
[{"$nulls":104},"Oax.","Santa Catarina Tayata","Santa Catarina Tayata, Oax.",370]
[{"$nulls":104},"Oax.","Santa Catarina Ticuá","Santa Catarina Ticuá, Oax.",371]
[{"$nulls":104},"Oax.","Santa Catarina Yosonotú","Santa Catarina Yosonotú, Oax.",372]
[{"$nulls":104},"Oax.","Santa Catarina Zapoquila","Santa Catarina Zapoquila, Oax.",373]
[{"$nulls":104},"Oax.","Santa Cruz Acatepec","Santa Cruz Acatepec, Oax.",374]
[{"$nulls":104},"Oax.","Santa Cruz Amilpas","Santa Cruz Amilpas, Oax.",375]
[{"$nulls":104},"Oax.","Santa Cruz de Bravo","Santa Cruz de Bravo, Oax.",376]
[{"$nulls":104},"Oax.","Santa Cruz Itundujia","Santa Cruz Itundujia, Oax.",377]
[{"$nulls":104},"Oax.","Santa Cruz Mixtepec","Santa Cruz Mixtepec, Oax.",378]
[{"$nulls":104},"Oax.","Santa Cruz Nundaco","Santa Cruz Nundaco, Oax.",379]
[{"$nulls":104},"Oax.","Santa Cruz Papalutla","Santa Cruz Papalutla, Oax.",380]
[{"$nulls":104},"Oax.","Santa Cruz Tacache de Mina",{"$f":"DB388&\", \"&DA388","v":"Santa Cruz Tacache de Mina, Oax."},381]
[{"$nulls":104},"Oax.","Santa Cruz Tacahua","Santa Cruz Tacahua, Oax.",382]
[{"$nulls":104},"Oax.","Santa Cruz Tayata","Santa Cruz Tayata, Oax.",383]
[{"$nulls":104},"Oax.","Santa Cruz Xitla","Santa Cruz Xitla, Oax.",384]
[{"$nulls":104},"Oax.","Santa Cruz Xoxocotlán","Santa Cruz Xoxocotlán, Oax.",385]
[{"$nulls":104},"Oax.","Santa Cruz Zenzontepec","Santa Cruz Zenzontepec, Oax.",386]
[{"$nulls":104},"Oax.","Santa Gertrudis","Santa Gertrudis, Oax.",387]
[{"$nulls":104},"Oax.","Santa Inés de Zaragoza","Santa Inés de Zaragoza, Oax.",569]
[{"$nulls":104},"Oax.","Santa Inés del Monte","Santa Inés del Monte, Oax.",388]
[{"$nulls":104},"Oax.","Santa Inés Yatzeche","Santa Inés Yatzeche, Oax.",389]
[{"$nulls":104},"Oax.","Santa Lucía del Camino","Santa Lucía del Camino, Oax.",390]
[{"$nulls":104},"Oax.","Santa Lucía Miahuatlán","Santa Lucía Miahuatlán, Oax.",391]
[{"$nulls":104},"Oax.","Santa Lucía Monteverde","Santa Lucía Monteverde, Oax.",392]
[{"$nulls":104},"Oax.","Santa Lucía Ocotlán","Santa Lucía Ocotlán, Oax.",393]
[{"$nulls":104},"Oax.","Santa Magdalena Jicotlán","Santa Magdalena Jicotlán, Oax.",47]
[{"$nulls":104},"Oax.","Santa María Alotepec","Santa María Alotepec, Oax.",394]
[{"$nulls":104},"Oax.","Santa María Apazco","Santa María Apazco, Oax.",395]
[{"$nulls":104},"Oax.","Santa María Atzompa","Santa María Atzompa, Oax.",399]
[{"$nulls":104},"Oax.","Santa María Camotlán","Santa María Camotlán, Oax.",400]
[{"$nulls":104},"Oax.","Santa María Chachoápam","Santa María Chachoápam, Oax.",404]
[{"$nulls":104},"Oax.","Santa María Chilchotla","Santa María Chilchotla, Oax.",406]
[{"$nulls":104},"Oax.","Santa María Chimalapa","Santa María Chimalapa, Oax.",407]
[{"$nulls":104},"Oax.","Santa María Colotepec","Santa María Colotepec, Oax.",401]
[{"$nulls":104},"Oax.","Santa María Cortijo","Santa María Cortijo, Oax.",402]
[{"$nulls":104},"Oax.","Santa María Coyotepec","Santa María Coyotepec, Oax.",403]
[{"$nulls":104},"Oax.","Santa María del Rosario","Santa María del Rosario, Oax.",408]
[{"$nulls":104},"Oax.","Santa María del Tule","Santa María del Tule, Oax.",409]
[{"$nulls":104},"Oax.","Santa María Ecatepec","Santa María Ecatepec, Oax.",410]
[{"$nulls":104},"Oax.","Santa María Guelacé","Santa María Guelacé, Oax.",411]
[{"$nulls":104},"Oax.","Santa María Guienagati","Santa María Guienagati, Oax.",412]
[{"$nulls":104},"Oax.","Santa María Huatulco","Santa María Huatulco, Oax.",413]
[{"$nulls":104},"Oax.","Santa María Huazolotitlán","Santa María Huazolotitlán, Oax.",414]
[{"$nulls":104},"Oax.","Santa María Ipalapa","Santa María Ipalapa, Oax.",415]
[{"$nulls":104},"Oax.","Santa María Ixcatlán","Santa María Ixcatlán, Oax.",416]
[{"$nulls":104},"Oax.","Santa María Jacatepec","Santa María Jacatepec, Oax.",417]
[{"$nulls":104},"Oax.","Santa María Jalapa del Marqués","Santa María Jalapa del Marqués, Oax.",418]
[{"$nulls":104},"Oax.","Santa María Jaltianguis","Santa María Jaltianguis, Oax.",419]
[{"$nulls":104},"Oax.","Santa María la Asunción","Santa María la Asunción, Oax.",396]
[{"$nulls":104},"Oax.","Santa María Lachixío","Santa María Lachixío, Oax.",420]
[{"$nulls":104},"Oax.","Santa María Mixtequilla","Santa María Mixtequilla, Oax.",421]
[{"$nulls":104},"Oax.","Santa María Nativitas","Santa María Nativitas, Oax.",422]
[{"$nulls":104},"Oax.","Santa María Nduayaco","Santa María Nduayaco, Oax.",423]
[{"$nulls":104},"Oax.","Santa María Ozolotepec","Santa María Ozolotepec, Oax.",424]
[{"$nulls":104},"Oax.","Santa María Pápalo","Santa María Pápalo, Oax.",425]
[{"$nulls":104},"Oax.","Santa María Peñoles","Santa María Peñoles, Oax.",426]
[{"$nulls":104},"Oax.","Santa María Petapa","Santa María Petapa, Oax.",427]
[{"$nulls":104},"Oax.","Santa María Quiegolani","Santa María Quiegolani, Oax.",428]
[{"$nulls":104},"Oax.","Santa María Sola","Santa María Sola, Oax.",429]
[{"$nulls":104},"Oax.","Santa María Tataltepec","Santa María Tataltepec, Oax.",430]
[{"$nulls":104},"Oax.","Santa María Tecomavaca","Santa María Tecomavaca, Oax.",431]
[{"$nulls":104},"Oax.","Santa María Temaxcalapa","Santa María Temaxcalapa, Oax.",432]
[{"$nulls":104},"Oax.","Santa María Temaxcaltepec","Santa María Temaxcaltepec, Oax.",433]
[{"$nulls":104},"Oax.","Santa María Teopoxco","Santa María Teopoxco, Oax.",434]
[{"$nulls":104},"Oax.","Santa María Tepantlali","Santa María Tepantlali, Oax.",435]
[{"$nulls":104},"Oax.","Santa María Texcatitlán","Santa María Texcatitlán, Oax.",436]
[{"$nulls":104},"Oax.","Santa María Tlahuitoltepec","Santa María Tlahuitoltepec, Oax.",437]
[{"$nulls":104},"Oax.","Santa María Tlalixtac","Santa María Tlalixtac, Oax.",438]
[{"$nulls":104},"Oax.","Santa María Tonameca","Santa María Tonameca, Oax.",439]
[{"$nulls":104},"Oax.","Santa María Totolapilla","Santa María Totolapilla, Oax.",440]
[{"$nulls":104},"Oax.","Santa María Xadani","Santa María Xadani, Oax.",441]
[{"$nulls":104},"Oax.","Santa María Yalina","Santa María Yalina, Oax.",442]
[{"$nulls":104},"Oax.","Santa María Yavesía","Santa María Yavesía, Oax.",443]
[{"$nulls":104},"Oax.","Santa María Yolotepec","Santa María Yolotepec, Oax.",444]
[{"$nulls":104},"Oax.","Santa María Yosoyúa","Santa María Yosoyúa, Oax.",445]
[{"$nulls":104},"Oax.","Santa María Yucuhiti",{"$f":"DB452&\", \"&DA452","v":"Santa María Yucuhiti, Oax."},446]
[{"$nulls":104},"Oax.","Santa María Zacatepec","Santa María Zacatepec, Oax.",447]
[{"$nulls":104},"Oax.","Santa María Zaniza","Santa María Zaniza, Oax.",448]
[{"$nulls":104},"Oax.","Santa María Zoquitlán","Santa María Zoquitlán, Oax.",449]
[{"$nulls":104},"Oax.","Santiago Amoltepec","Santiago Amoltepec, Oax.",450]
[{"$nulls":104},"Oax.","Santiago Apoala","Santiago Apoala, Oax.",451]
[{"$nulls":104},"Oax.","Santiago Apóstol","Santiago Apóstol, Oax.",452]
[{"$nulls":104},"Oax.","Santiago Astata","Santiago Astata, Oax.",453]
[{"$nulls":104},"Oax.","Santiago Atitlán","Santiago Atitlán, Oax.",454]
[{"$nulls":104},"Oax.","Santiago Ayuquililla","Santiago Ayuquililla, Oax.",455]
[{"$nulls":104},"Oax.","Santiago Cacaloxtepec","Santiago Cacaloxtepec, Oax.",456]
[{"$nulls":104},"Oax.","Santiago Camotlán","Santiago Camotlán, Oax.",457]
[{"$nulls":104},"Oax.","Santiago Chazumba","Santiago Chazumba, Oax.",459]
[{"$nulls":104},"Oax.","Santiago Choápam","Santiago Choápam, Oax.",460]
[{"$nulls":104},"Oax.","Santiago Comaltepec","Santiago Comaltepec, Oax.",458]
[{"$nulls":104},"Oax.","Santiago del Río","Santiago del Río, Oax.",461]
[{"$nulls":104},"Oax.","Santiago Huajolotitlán","Santiago Huajolotitlán, Oax.",462]
[{"$nulls":104},"Oax.","Santiago Huauclilla","Santiago Huauclilla, Oax.",463]
[{"$nulls":104},"Oax.","Santiago Ihuitlán Plumas","Santiago Ihuitlán Plumas, Oax.",464]
[{"$nulls":104},"Oax.","Santiago Ixcuintepec","Santiago Ixcuintepec, Oax.",465]
[{"$nulls":104},"Oax.","Santiago Ixtayutla","Santiago Ixtayutla, Oax.",466]
[{"$nulls":104},"Oax.","Santiago Jamiltepec","Santiago Jamiltepec, Oax.",467]
[{"$nulls":104},"Oax.","Santiago Jocotepec","Santiago Jocotepec, Oax.",468]
[{"$nulls":104},"Oax.","Santiago Juxtlahuaca","Santiago Juxtlahuaca, Oax.",469]
[{"$nulls":104},"Oax.","Santiago Lachiguiri","Santiago Lachiguiri, Oax.",470]
[{"$nulls":104},"Oax.","Santiago Lalopa","Santiago Lalopa, Oax.",471]
[{"$nulls":104},"Oax.","Santiago Laollaga","Santiago Laollaga, Oax.",472]
[{"$nulls":104},"Oax.","Santiago Laxopa","Santiago Laxopa, Oax.",473]
[{"$nulls":104},"Oax.","Santiago Llano Grande","Santiago Llano Grande, Oax.",474]
[{"$nulls":104},"Oax.","Santiago Matatlán","Santiago Matatlán, Oax.",475]
[{"$nulls":104},"Oax.","Santiago Miltepec","Santiago Miltepec, Oax.",476]
[{"$nulls":104},"Oax.","Santiago Minas","Santiago Minas, Oax.",477]
[{"$nulls":104},"Oax.","Santiago Nacaltepec","Santiago Nacaltepec, Oax.",478]
[{"$nulls":104},"Oax.","Santiago Nejapilla","Santiago Nejapilla, Oax.",479]
[{"$nulls":104},"Oax.","Santiago Niltepec","Santiago Niltepec, Oax.",66]
[{"$nulls":104},"Oax.","Santiago Nundiche","Santiago Nundiche, Oax.",480]
[{"$nulls":104},"Oax.","Santiago Nuyoó","Santiago Nuyoó, Oax.",481]
[{"$nulls":104},"Oax.","Santiago Pinotepa Nacional","Santiago Pinotepa Nacional, Oax.",482]
[{"$nulls":104},"Oax.","Santiago Suchilquitongo","Santiago Suchilquitongo, Oax.",483]
[{"$nulls":104},"Oax.","Santiago Tamazola","Santiago Tamazola, Oax.",484]
[{"$nulls":104},"Oax.","Santiago Tapextla","Santiago Tapextla, Oax.",485]
[{"$nulls":104},"Oax.","Santiago Tenango","Santiago Tenango, Oax.",487]
[{"$nulls":104},"Oax.","Santiago Tepetlapa","Santiago Tepetlapa, Oax.",488]
[{"$nulls":104},"Oax.","Santiago Tetepec","Santiago Tetepec, Oax.",489]
[{"$nulls":104},"Oax.","Santiago Texcalcingo","Santiago Texcalcingo, Oax.",490]
[{"$nulls":104},"Oax.","Santiago Textitlán","Santiago Textitlán, Oax.",491]
[{"$nulls":104},"Oax.","Santiago Tilantongo","Santiago Tilantongo, Oax.",492]
[{"$nulls":104},"Oax.","Santiago Tillo","Santiago Tillo, Oax.",493]
[{"$nulls":104},"Oax.","Santiago Tlazoyaltepec","Santiago Tlazoyaltepec, Oax.",494]
[{"$nulls":104},"Oax.","Santiago Xanica","Santiago Xanica, Oax.",495]
[{"$nulls":104},"Oax.","Santiago Xiacuí","Santiago Xiacuí, Oax.",496]
[{"$nulls":104},"Oax.","Santiago Yaitepec","Santiago Yaitepec, Oax.",497]
[{"$nulls":104},"Oax.","Santiago Yaveo","Santiago Yaveo, Oax.",498]
[{"$nulls":104},"Oax.","Santiago Yolomécatl","Santiago Yolomécatl, Oax.",499]
[{"$nulls":104},"Oax.","Santiago Yosondúa","Santiago Yosondúa, Oax.",500]
[{"$nulls":104},"Oax.","Santiago Yucuyachi","Santiago Yucuyachi, Oax.",501]
[{"$nulls":104},"Oax.","Santiago Zacatepec","Santiago Zacatepec, Oax.",502]
[{"$nulls":104},"Oax.","Santiago Zoochila","Santiago Zoochila, Oax.",503]
[{"$nulls":104},"Oax.","Santo Domingo Albarradas","Santo Domingo Albarradas, Oax.",506]
[{"$nulls":104},"Oax.","Santo Domingo Armenta","Santo Domingo Armenta, Oax.",507]
[{"$nulls":104},"Oax.","Santo Domingo Chihuitán","Santo Domingo Chihuitán, Oax.",508]
[{"$nulls":104},"Oax.","Santo Domingo de Morelos","Santo Domingo de Morelos, Oax.",509]
[{"$nulls":104},"Oax.","Santo Domingo Ingenio","Santo Domingo Ingenio, Oax.",505]
[{"$nulls":104},"Oax.","Santo Domingo Ixcatlán","Santo Domingo Ixcatlán, Oax.",510]
[{"$nulls":104},"Oax.","Santo Domingo Nuxaá",{"$f":"DB516&\", \"&DA516","v":"Santo Domingo Nuxaá, Oax."},511]
[{"$nulls":104},"Oax.","Santo Domingo Ozolotepec","Santo Domingo Ozolotepec, Oax.",512]
[{"$nulls":104},"Oax.","Santo Domingo Petapa","Santo Domingo Petapa, Oax.",513]
[{"$nulls":104},"Oax.","Santo Domingo Roayaga","Santo Domingo Roayaga, Oax.",514]
[{"$nulls":104},"Oax.","Santo Domingo Tehuantepec","Santo Domingo Tehuantepec, Oax.",515]
[{"$nulls":104},"Oax.","Santo Domingo Teojomulco","Santo Domingo Teojomulco, Oax.",516]
[{"$nulls":104},"Oax.","Santo Domingo Tepuxtepec","Santo Domingo Tepuxtepec, Oax.",517]
[{"$nulls":104},"Oax.","Santo Domingo Tlatayápam","Santo Domingo Tlatayápam, Oax.",518]
[{"$nulls":104},"Oax.","Santo Domingo Tomaltepec","Santo Domingo Tomaltepec, Oax.",519]
[{"$nulls":104},"Oax.","Santo Domingo Tonalá","Santo Domingo Tonalá, Oax.",520]
[{"$nulls":104},"Oax.","Santo Domingo Tonaltepec","Santo Domingo Tonaltepec, Oax.",521]
[{"$nulls":104},"Oax.","Santo Domingo Xagacía","Santo Domingo Xagacía, Oax.",522]
[{"$nulls":104},"Oax.","Santo Domingo Yanhuitlán","Santo Domingo Yanhuitlán, Oax.",523]
[{"$nulls":104},"Oax.","Santo Domingo Yodohino","Santo Domingo Yodohino, Oax.",524]
[{"$nulls":104},"Oax.","Santo Domingo Zanatepec","Santo Domingo Zanatepec, Oax.",525]
[{"$nulls":104},"Oax.","Santo Tomás Jalieza","Santo Tomás Jalieza, Oax.",530]
[{"$nulls":104},"Oax.","Santo Tomás Mazaltepec","Santo Tomás Mazaltepec, Oax.",531]
[{"$nulls":104},"Oax.","Santo Tomás Ocotepec","Santo Tomás Ocotepec, Oax.",532]
[{"$nulls":104},"Oax.","Santo Tomás Tamazulapan","Santo Tomás Tamazulapan, Oax.",533]
[{"$nulls":104},"Oax.","Santos Reyes Nopala","Santos Reyes Nopala, Oax.",526]
[{"$nulls":104},"Oax.","Santos Reyes Pápalo","Santos Reyes Pápalo, Oax.",527]
[{"$nulls":104},"Oax.","Santos Reyes Tepejillo","Santos Reyes Tepejillo, Oax.",528]
[{"$nulls":104},"Oax.","Santos Reyes Yucuná","Santos Reyes Yucuná, Oax.",529]
[{"$nulls":104},"Oax.","Silacayoápam","Silacayoápam, Oax.",537]
[{"$nulls":104},"Oax.","Sitio de Xitlapehua","Sitio de Xitlapehua, Oax.",538]
[{"$nulls":104},"Oax.","Soledad Etla","Soledad Etla, Oax.",539]
[{"$nulls":104},"Oax.","Tamazulápam del Espíritu Santo","Tamazulápam del Espíritu Santo, Oax.",31]
[{"$nulls":104},"Oax.","Tanetze de Zaragoza","Tanetze de Zaragoza, Oax.",541]
[{"$nulls":104},"Oax.","Taniche","Taniche, Oax.",542]
[{"$nulls":104},"Oax.","Tataltepec de Valdés","Tataltepec de Valdés, Oax.",543]
[{"$nulls":104},"Oax.","Teococuilco de Marcos Pérez","Teococuilco de Marcos Pérez, Oax.",544]
[{"$nulls":104},"Oax.","Teotitlán de Flores Magón","Teotitlán de Flores Magón, Oax.",545]
[{"$nulls":104},"Oax.","Teotitlán del Valle","Teotitlán del Valle, Oax.",546]
[{"$nulls":104},"Oax.","Teotongo","Teotongo, Oax.",547]
[{"$nulls":104},"Oax.","Tepelmeme Villa de Morelos","Tepelmeme Villa de Morelos, Oax.",548]
[{"$nulls":104},"Oax.","Tlacolula de Matamoros","Tlacolula de Matamoros, Oax.",551]
[{"$nulls":104},"Oax.","Tlacotepec Plumas","Tlacotepec Plumas, Oax.",552]
[{"$nulls":104},"Oax.","Tlalixtac de Cabrera","Tlalixtac de Cabrera, Oax.",553]
[{"$nulls":104},"Oax.","Totontepec Villa de Morelos","Totontepec Villa de Morelos, Oax.",554]
[{"$nulls":104},"Oax.","Trinidad Zaachila","Trinidad Zaachila, Oax.",555]
[{"$nulls":104},"Oax.","Unión Hidalgo","Unión Hidalgo, Oax.",557]
[{"$nulls":104},"Oax.","Valerio Trujano","Valerio Trujano, Oax.",558]
[{"$nulls":104},"Oax.","Villa de Chilapa de Díaz","Villa de Chilapa de Díaz, Oax.",405]
[{"$nulls":104},"Oax.","Villa de Etla","Villa de Etla, Oax.",338]
[{"$nulls":104},"Oax.","Villa de Tamazulápam del Progreso","Villa de Tamazulápam del Progreso, Oax.",540]
[{"$nulls":104},"Oax.","Villa de Tututepec de Melchor Ocampo","Villa de Tututepec de Melchor Ocampo, Oax.",334]
[{"$nulls":104},"Oax.","Villa de Zaachila","Villa de Zaachila, Oax.",565]
[{"$nulls":104},"Oax.","Villa Díaz Ordaz","Villa Díaz Ordaz, Oax.",560]
[{"$nulls":104},"Oax.","Villa Hidalgo","Villa Hidalgo, Oax.",38]
[{"$nulls":104},"Oax.","Villa Sola de Vega","Villa Sola de Vega, Oax.",277]
[{"$nulls":104},"Oax.","Villa Talea de Castro","Villa Talea de Castro, Oax.",280]
[{"$nulls":104},"Oax.","Villa Tejúpam de la Unión","Villa Tejúpam de la Unión, Oax.",486]
[{"$nulls":104},"Oax.","Yaxe","Yaxe, Oax.",561]
[{"$nulls":104},"Oax.","Yogana","Yogana, Oax.",563]
[{"$nulls":104},"Oax.","Yutanduchi de Guerrero","Yutanduchi de Guerrero, Oax.",564]
[{"$nulls":104},"Oax.","Zapotitlán Lagunas","Zapotitlán Lagunas, Oax.",567]
[{"$nulls":104},"Oax.","Zapotitlán Palmas","Zapotitlán Palmas, Oax.",568]
[{"$nulls":104},"Oax.","Zimatlán de Alvarez","Zimatlán de Alvarez, Oax.",570]

{"sheet":"cat_municipio_MAY2014","index":3,"n_rows":2458,"n_cols":9,"rows_kept":2458,"hidden":true}
["NOM_ENT","CVE_ENT","NOM_ABR","NOM_MUN","nom_abr","CVE_MUN","num_mun"]
["Aguascalientes",1,"Ags.","Aguascalientes",{"$f":"D2&\", \"&C2","v":"Aguascalientes, Ags."},1,11,{"$f":"IF(E2=E3,\"mal\",\" \")","v":" "},{"$f":"IF(H2=\"mal\",1,\" \")","v":" "}]
["Aguascalientes",1,"Ags.","Asientos","Asientos, Ags.",2,11,{"$f":"IF(E3=E4,\"mal\",\" \")","v":" "},{"$f":"IF(H3=\"mal\",1,\" \")","v":" "}]
["Aguascalientes",1,"Ags.","Calvillo","Calvillo, Ags.",3,11," "," "]
["Aguascalientes",1,"Ags.","Cosío","Cosío, Ags.",4,11," "," "]
["Aguascalientes",1,"Ags.","El Llano","El Llano, Ags.",10,11," "," "]
["Aguascalientes",1,"Ags.","Jesús María","Jesús María, Ags.",5,11," "," "]
["Aguascalientes",1,"Ags.","Pabellón de Arteaga","Pabellón de Arteaga, Ags.",6,11," "," "]
["Aguascalientes",1,"Ags.","Rincón de Romos","Rincón de Romos, Ags.",7,11," "," "]
["Aguascalientes",1,"Ags.","San Francisco de los Romo","San Francisco de los Romo, Ags.",11,11," "," "]
["Aguascalientes",1,"Ags.","San José de Gracia","San José de Gracia, Ags.",8,11," "," "]
["Aguascalientes",1,"Ags.","Tepezalá","Tepezalá, Ags.",9,11," "," "]
["Baja_California",2,"BC","Ensenada","Ensenada, BC",1,5," "," "]
["Baja_California",2,"BC","Mexicali","Mexicali, BC",2,5," "," "]
["Baja_California",2,"BC","Tecate","Tecate, BC",3,5," "," "]
["Baja_California",2,"BC","Tijuana","Tijuana, BC",4,5," "," "]
["Baja_California",2,"BC","Playas de Rosarito","Playas de Rosarito, BC",5,5," "," "]
["Baja_California_Sur",3,"BCS","Comondú","Comondú, BCS",1,5," "," "]
["Baja_California_Sur",3,"BCS","Mulegé","Mulegé, BCS",2,5," "," "]
["Baja_California_Sur",3,"BCS","La Paz","La Paz, BCS",3,5," "," "]
["Baja_California_Sur",3,"BCS","Los Cabos","Los Cabos, BCS",8,5," "," "]
["Baja_California_Sur",3,"BCS","Loreto","Loreto, BCS",9,5," "," "]
["Campeche",4,"Camp.","Calakmul","Calakmul, Camp.",10,11," "," "]
["Campeche",4,"Camp.","Calkiní","Calkiní, Camp.",1,11," "," "]
["Campeche",4,"Camp.","Campeche","Campeche, Camp.",2,11," "," "]
["Campeche",4,"Camp.","Candelaria","Candelaria, Camp.",11,11," "," "]
["Campeche",4,"Camp.","Carmen","Carmen, Camp.",3,11," "," "]
["Campeche",4,"Camp.","Champotón","Champotón, Camp.",4,11," "," "]
["Campeche",4,"Camp.","Escárcega","Escárcega, Camp.",9,11," "," "]
["Campeche",4,"Camp.","Hecelchakán","Hecelchakán, Camp.",5,11," "," "]
["Campeche",4,"Camp.","Hopelchén","Hopelchén, Camp.",6,11," "," "]
["Campeche",4,"Camp.","Palizada","Palizada, Camp.",7,11," "," "]
["Campeche",4,"Camp.","Tenabo","Tenabo, Camp.",8,11," "," "]
["Coahuila_de_Zaragoza",5,"Coah.","Abasolo","Abasolo, Coah.",1,38," "," "]
["Coahuila_de_Zaragoza",5,"Coah.","Acuña","Acuña, Coah.",2,38," "," "]
["Coahuila_de_Zaragoza",5,"Coah.","Allende","Allende, Coah.",3,38," "," "]
["Coahuila_de_Zaragoza",5,"Coah.","Arteaga","Arteaga, Coah.",4,38," "," "]
["Coahuila_de_Zaragoza",5,"Coah.","Candela","Candela, Coah.",5,38," "," "]
["Coahuila_de_Zaragoza",5,"Coah.","Castaños","Castaños, Coah.",6,38," "," "]
["Coahuila_de_Zaragoza",5,"Coah.","Cuatro Ciénegas","Cuatro Ciénegas, Coah.",7,38," "," "]
["Coahuila_de_Zaragoza",5,"Coah.","Escobedo","Escobedo, Coah.",8,38," "," "]
["Coahuila_de_Zaragoza",5,"Coah.","Francisco I. Madero","Francisco I. Madero, Coah.",9,38," "," "]
["Coahuila_de_Zaragoza",5,"Coah.","Frontera","Frontera, Coah.",10,38," "," "]
["Coahuila_de_Zaragoza",5,"Coah.","General Cepeda","General Cepeda, Coah.",11,38," "," "]
["Coahuila_de_Zaragoza",5,"Coah.","Guerrero","Guerrero, Coah.",12,38," "," "]
["Coahuila_de_Zaragoza",5,"Coah.","Hidalgo","Hidalgo, Coah.",13,38," "," "]
["Coahuila_de_Zaragoza",5,"Coah.","Jiménez","Jiménez, Coah.",14,38," "," "]
["Coahuila_de_Zaragoza",5,"Coah.","Juárez","Juárez, Coah.",15,38," "," "]
["Coahuila_de_Zaragoza",5,"Coah.","Lamadrid","Lamadrid, Coah.",16,38," "," "]
["Coahuila_de_Zaragoza",5,"Coah.","Matamoros","Matamoros, Coah.",17,38," "," "]
["Coahuila_de_Zaragoza",5,"Coah.","Monclova","Monclova, Coah.",18,38," "," "]
["Coahuila_de_Zaragoza",5,"Coah.","Morelos","Morelos, Coah.",19,38," "," "]
["Coahuila_de_Zaragoza",5,"Coah.","Múzquiz","Múzquiz, Coah.",20,38," "," "]
["Coahuila_de_Zaragoza",5,"Coah.","Nadadores","Nadadores, Coah.",21,38," "," "]
["Coahuila_de_Zaragoza",5,"Coah.","Nava","Nava, Coah.",22,38," "," "]
["Coahuila_de_Zaragoza",5,"Coah.","Ocampo","Ocampo, Coah.",23,38," "," "]
["Coahuila_de_Zaragoza",5,"Coah.","Parras","Parras, Coah.",24,38," "," "]
["Coahuila_de_Zaragoza",5,"Coah.","Piedras Negras","Piedras Negras, Coah.",25,38," "," "]
["Coahuila_de_Zaragoza",5,"Coah.","Progreso","Progreso, Coah.",26,38," "," "]
["Coahuila_de_Zaragoza",5,"Coah.","Ramos Arizpe","Ramos Arizpe, Coah.",27,38," "," "]
["Coahuila_de_Zaragoza",5,"Coah.","Sabinas","Sabinas, Coah.",28,38," "," "]
["Coahuila_de_Zaragoza",5,"Coah.","Sacramento","Sacramento, Coah.",29,38," "," "]
["Coahuila_de_Zaragoza",5,"Coah.","Saltillo","Saltillo, Coah.",30,38," "," "]
["Coahuila_de_Zaragoza",5,"Coah.","San Buenaventura","San Buenaventura, Coah.",31,38," "," "]
["Coahuila_de_Zaragoza",5,"Coah.","San Juan de Sabinas","San Juan de Sabinas, Coah.",32,38," "," "]
["Coahuila_de_Zaragoza",5,"Coah.","San Pedro",{"$f":"D66&\", \"&C66","v":"San Pedro, Coah."},33,38," "," "]
["Coahuila_de_Zaragoza",5,"Coah.","Sierra Mojada","Sierra Mojada, Coah.",34,38,{"$f":"IF(E67=E68,\"mal\",\" \")","v":" "},{"$f":"IF(H67=\"mal\",1,\" \")","v":" "}]
["Coahuila_de_Zaragoza",5,"Coah.","Torreón","Torreón, Coah.",35,38," "," "]
["Coahuila_de_Zaragoza",5,"Coah.","Viesca","Viesca, Coah.",36,38," "," "]
["Coahuila_de_Zaragoza",5,"Coah.","Villa Unión","Villa Unión, Coah.",37,38," "," "]
["Coahuila_de_Zaragoza",5,"Coah.","Zaragoza","Zaragoza, Coah.",38,38," "," "]
["Colima",6,"Col.","Armería","Armería, Col.",1,10," "," "]
["Colima",6,"Col.","Colima","Colima, Col.",2,10," "," "]
["Colima",6,"Col.","Comala","Comala, Col.",3,10," "," "]
["Colima",6,"Col.","Coquimatlán","Coquimatlán, Col.",4,10," "," "]
["Colima",6,"Col.","Cuauhtémoc","Cuauhtémoc, Col.",5,10," "," "]
["Colima",6,"Col.","Ixtlahuacán","Ixtlahuacán, Col.",6,10," "," "]
["Colima",6,"Col.","Manzanillo","Manzanillo, Col.",7,10," "," "]
["Colima",6,"Col.","Minatitlán","Minatitlán, Col.",8,10," "," "]
["Colima",6,"Col.","Tecomán","Tecomán, Col.",9,10," "," "]
["Colima",6,"Col.","Villa de Alvarez","Villa de Alvarez, Col.",10,10," "," "]
["Chiapas",7,"Chis.","Acacoyagua","Acacoyagua, Chis.",1,118," "," "]
["Chiapas",7,"Chis.","Acala","Acala, Chis.",2,118," "," "]
["Chiapas",7,"Chis.","Acapetahua","Acapetahua, Chis.",3,118," "," "]
["Chiapas",7,"Chis.","Aldama","Aldama, Chis.",113,118," "," "]
["Chiapas",7,"Chis.","Altamirano","Altamirano, Chis.",4,118," "," "]
["Chiapas",7,"Chis.","Amatán","Amatán, Chis.",5,118," "," "]
["Chiapas",7,"Chis.","Amatenango de la Frontera","Amatenango de la Frontera, Chis.",6,118," "," "]
["Chiapas",7,"Chis.","Amatenango del Valle","Amatenango del Valle, Chis.",7,118," "," "]
["Chiapas",7,"Chis.","Angel Albino Corzo","Angel Albino Corzo, Chis.",8,118," "," "]
["Chiapas",7,"Chis.","Arriaga","Arriaga, Chis.",9,118," "," "]
["Chiapas",7,"Chis.","Bejucal de Ocampo","Bejucal de Ocampo, Chis.",10,118," "," "]
["Chiapas",7,"Chis.","Bella Vista","Bella Vista, Chis.",11,118," "," "]
["Chiapas",7,"Chis.","Benemérito de las Américas","Benemérito de las Américas, Chis.",114,118," "," "]
["Chiapas",7,"Chis.","Berriozábal","Berriozábal, Chis.",12,118," "," "]
["Chiapas",7,"Chis.","Bochil","Bochil, Chis.",13,118," "," "]
["Chiapas",7,"Chis.","Cacahoatán","Cacahoatán, Chis.",15,118," "," "]
["Chiapas",7,"Chis.","Catazajá","Catazajá, Chis.",16,118," "," "]
["Chiapas",7,"Chis.","Chalchihuitán","Chalchihuitán, Chis.",22,118," "," "]
["Chiapas",7,"Chis.","Chamula","Chamula, Chis.",23,118," "," "]
["Chiapas",7,"Chis.","Chanal","Chanal, Chis.",24,118," "," "]
["Chiapas",7,"Chis.","Chapultenango","Chapultenango, Chis.",25,118," "," "]
["Chiapas",7,"Chis.","Chenalhó","Chenalhó, Chis.",26,118," "," "]
["Chiapas",7,"Chis.","Chiapa de Corzo","Chiapa de Corzo, Chis.",27,118," "," "]
["Chiapas",7,"Chis.","Chiapilla","Chiapilla, Chis.",28,118," "," "]
["Chiapas",7,"Chis.","Chicoasén","Chicoasén, Chis.",29,118," "," "]
["Chiapas",7,"Chis.","Chicomuselo","Chicomuselo, Chis.",30,118," "," "]
["Chiapas",7,"Chis.","Chilón","Chilón, Chis.",31,118," "," "]
["Chiapas",7,"Chis.","Cintalapa","Cintalapa, Chis.",17,118," "," "]
["Chiapas",7,"Chis.","Coapilla","Coapilla, Chis.",18,118," "," "]
["Chiapas",7,"Chis.","Comitán de Domínguez","Comitán de Domínguez, Chis.",19,118," "," "]
["Chiapas",7,"Chis.","Copainalá","Copainalá, Chis.",21,118," "," "]
["Chiapas",7,"Chis.","El Bosque","El Bosque, Chis.",14,118," "," "]
["Chiapas",7,"Chis.","El Porvenir","El Porvenir, Chis.",70,118," "," "]
["Chiapas",7,"Chis.","Escuintla","Escuintla, Chis.",32,118," "," "]
["Chiapas",7,"Chis.","Francisco León","Francisco León, Chis.",33,118," "," "]
["Chiapas",7,"Chis.","Frontera Comalapa","Frontera Comalapa, Chis.",34,118," "," "]
["Chiapas",7,"Chis.","Frontera Hidalgo","Frontera Hidalgo, Chis.",35,118," "," "]
["Chiapas",7,"Chis.","Huehuetán","Huehuetán, Chis.",37,118," "," "]
["Chiapas",7,"Chis.","Huitiupán","Huitiupán, Chis.",39,118," "," "]
["Chiapas",7,"Chis.","Huixtán","Huixtán, Chis.",38,118," "," "]
["Chiapas",7,"Chis.","Huixtla","Huixtla, Chis.",40,118," "," "]
["Chiapas",7,"Chis.","Ixhuatán","Ixhuatán, Chis.",42,118," "," "]
["Chiapas",7,"Chis.","Ixtacomitán","Ixtacomitán, Chis.",43,118," "," "]
["Chiapas",7,"Chis.","Ixtapa","Ixtapa, Chis.",44,118," "," "]
["Chiapas",7,"Chis.","Ixtapangajoya","Ixtapangajoya, Chis.",45,118," "," "]
["Chiapas",7,"Chis.","Jiquipilas","Jiquipilas, Chis.",46,118," "," "]
["Chiapas",7,"Chis.","Jitotol","Jitotol, Chis.",47,118," "," "]
["Chiapas",7,"Chis.","Juárez","Juárez, Chis.",48,118," "," "]
["Chiapas",7,"Chis.","La Concordia",{"$f":"D130&\", \"&C130","v":"La Concordia, Chis."},20,118," "," "]
["Chiapas",7,"Chis.","La Grandeza","La Grandeza, Chis.",36,118,{"$f":"IF(E131=E132,\"mal\",\" \")","v":" "},{"$f":"IF(H131=\"mal\",1,\" \")","v":" "}]
["Chiapas",7,"Chis.","La Independencia","La Independencia, Chis.",41,118," "," "]
["Chiapas",7,"Chis.","La Libertad","La Libertad, Chis.",50,118," "," "]
["Chiapas",7,"Chis.","La Trinitaria","La Trinitaria, Chis.",99,118," "," "]
["Chiapas",7,"Chis.","Larráinzar","Larráinzar, Chis.",49,118," "," "]
["Chiapas",7,"Chis.","Las Margaritas","Las Margaritas, Chis.",52,118," "," "]
["Chiapas",7,"Chis.","Las Rosas","Las Rosas, Chis.",75,118," "," "]
["Chiapas",7,"Chis.","Mapastepec","Mapastepec, Chis.",51,118," "," "]
["Chiapas",7,"Chis.","Maravilla Tenejapa","Maravilla Tenejapa, Chis.",115,118," "," "]
["Chiapas",7,"Chis.","Marqués de Comillas","Marqués de Comillas, Chis.",116,118," "," "]
["Chiapas",7,"Chis.","Mazapa de Madero","Mazapa de Madero, Chis.",53,118," "," "]
["Chiapas",7,"Chis.","Mazatán","Mazatán, Chis.",54,118," "," "]
["Chiapas",7,"Chis.","Metapa","Metapa, Chis.",55,118," "," "]
["Chiapas",7,"Chis.","Mitontic","Mitontic, Chis.",56,118," "," "]
["Chiapas",7,"Chis.","Montecristo de Guerrero","Montecristo de Guerrero, Chis.",117,118," "," "]
["Chiapas",7,"Chis.","Motozintla","Motozintla, Chis.",57,118," "," "]
["Chiapas",7,"Chis.","Nicolás Ruíz","Nicolás Ruíz, Chis.",58,118," "," "]
["Chiapas",7,"Chis.","Ocosingo","Ocosingo, Chis.",59,118," "," "]
["Chiapas",7,"Chis.","Ocotepec","Ocotepec, Chis.",60,118," "," "]
["Chiapas",7,"Chis.","Ocozocoautla de Espinosa","Ocozocoautla de Espinosa, Chis.",61,118," "," "]
["Chiapas",7,"Chis.","Ostuacán","Ostuacán, Chis.",62,118," "," "]
["Chiapas",7,"Chis.","Osumacinta","Osumacinta, Chis.",63,118," "," "]
["Chiapas",7,"Chis.","Oxchuc","Oxchuc, Chis.",64,118," "," "]
["Chiapas",7,"Chis.","Palenque","Palenque, Chis.",65,118," "," "]
["Chiapas",7,"Chis.","Pantelhó","Pantelhó, Chis.",66,118," "," "]
["Chiapas",7,"Chis.","Pantepec","Pantepec, Chis.",67,118," "," "]
["Chiapas",7,"Chis.","Pichucalco","Pichucalco, Chis.",68,118," "," "]
["Chiapas",7,"Chis.","Pijijiapan","Pijijiapan, Chis.",69,118," "," "]
["Chiapas",7,"Chis.","Pueblo Nuevo Solistahuacán","Pueblo Nuevo Solistahuacán, Chis.",72,118," "," "]
["Chiapas",7,"Chis.","Rayón","Rayón, Chis.",73,118," "," "]
["Chiapas",7,"Chis.","Reforma","Reforma, Chis.",74,118," "," "]
["Chiapas",7,"Chis.","Sabanilla","Sabanilla, Chis.",76,118," "," "]
["Chiapas",7,"Chis.","Salto de Agua","Salto de Agua, Chis.",77,118," "," "]
["Chiapas",7,"Chis.","San Andrés Duraznal","San Andrés Duraznal, Chis.",118,118," "," "]
["Chiapas",7,"Chis.","San Cristóbal de las Casas","San Cristóbal de las Casas, Chis.",78,118," "," "]
["Chiapas",7,"Chis.","San Fernando","San Fernando, Chis.",79,118," "," "]
["Chiapas",7,"Chis.","San Juan Cancuc","San Juan Cancuc, Chis.",112,118," "," "]
["Chiapas",7,"Chis.","San Lucas","San Lucas, Chis.",110,118," "," "]
["Chiapas",7,"Chis.","Santiago el Pinar","Santiago el Pinar, Chis.",119,118," "," "]
["Chiapas",7,"Chis.","Siltepec","Siltepec, Chis.",80,118," "," "]
["Chiapas",7,"Chis.","Simojovel","Simojovel, Chis.",81,118," "," "]
["Chiapas",7,"Chis.","Sitalá","Sitalá, Chis.",82,118," "," "]
["Chiapas",7,"Chis.","Socoltenango","Socoltenango, Chis.",83,118," "," "]
["Chiapas",7,"Chis.","Solosuchiapa","Solosuchiapa, Chis.",84,118," "," "]
["Chiapas",7,"Chis.","Soyaló","Soyaló, Chis.",85,118," "," "]
["Chiapas",7,"Chis.","Suchiapa","Suchiapa, Chis.",86,118," "," "]
["Chiapas",7,"Chis.","Suchiate","Suchiate, Chis.",87,118," "," "]
["Chiapas",7,"Chis.","Sunuapa","Sunuapa, Chis.",88,118," "," "]
["Chiapas",7,"Chis.","Tapachula","Tapachula, Chis.",89,118," "," "]
["Chiapas",7,"Chis.","Tapalapa","Tapalapa, Chis.",90,118," "," "]
["Chiapas",7,"Chis.","Tapilula","Tapilula, Chis.",91,118," "," "]
["Chiapas",7,"Chis.","Tecpatán","Tecpatán, Chis.",92,118," "," "]
["Chiapas",7,"Chis.","Tenejapa","Tenejapa, Chis.",93,118," "," "]
["Chiapas",7,"Chis.","Teopisca","Teopisca, Chis.",94,118," "," "]
["Chiapas",7,"Chis.","Tila","Tila, Chis.",96,118," "," "]
["Chiapas",7,"Chis.","Tonalá","Tonalá, Chis.",97,118," "," "]
["Chiapas",7,"Chis.","Totolapa","Totolapa, Chis.",98,118," "," "]
["Chiapas",7,"Chis.","Tumbalá","Tumbalá, Chis.",100,118," "," "]
["Chiapas",7,"Chis.","Tuxtla Chico","Tuxtla Chico, Chis.",102,118," "," "]
["Chiapas",7,"Chis.","Tuxtla Gutiérrez","Tuxtla Gutiérrez, Chis.",101,118," "," "]
["Chiapas",7,"Chis.","Tuzantán","Tuzantán, Chis.",103,118," "," "]
["Chiapas",7,"Chis.","Tzimol","Tzimol, Chis.",104,118," "," "]
["Chiapas",7,"Chis.","Unión Juárez","Unión Juárez, Chis.",105,118," "," "]
["Chiapas",7,"Chis.","Venustiano Carranza",{"$f":"D194&\", \"&C194","v":"Venustiano Carranza, Chis."},106,118," "," "]
["Chiapas",7,"Chis.","Villa Comaltitlán","Villa Comaltitlán, Chis.",71,118,{"$f":"IF(E195=E196,\"mal\",\" \")","v":" "},{"$f":"IF(H195=\"mal\",1,\" \")","v":" "}]
["Chiapas",7,"Chis.","Villa Corzo","Villa Corzo, Chis.",107,118," "," "]
["Chiapas",7,"Chis.","Villaflores","Villaflores, Chis.",108,118," "," "]
["Chiapas",7,"Chis.","Yajalón","Yajalón, Chis.",109,118," "," "]
["Chiapas",7,"Chis.","Zinacantán","Zinacantán, Chis.",111,118," "," "]
["Chihuahua",8,"Chih.","Ahumada","Ahumada, Chih.",1,67," "," "]
["Chihuahua",8,"Chih.","Aldama","Aldama, Chih.",2,67," "," "]
["Chihuahua",8,"Chih.","Allende","Allende, Chih.",3,67," "," "]
["Chihuahua",8,"Chih.","Aquiles Serdán","Aquiles Serdán, Chih.",4,67," "," "]
["Chihuahua",8,"Chih.","Ascensión","Ascensión, Chih.",5,67," "," "]
["Chihuahua",8,"Chih.","Bachíniva","Bachíniva, Chih.",6,67," "," "]
["Chihuahua",8,"Chih.","Balleza","Balleza, Chih.",7,67," "," "]
["Chihuahua",8,"Chih.","Batopilas","Batopilas, Chih.",8,67," "," "]
["Chihuahua",8,"Chih.","Bocoyna","Bocoyna, Chih.",9,67," "," "]
["Chihuahua",8,"Chih.","Buenaventura","Buenaventura, Chih.",10,67," "," "]
["Chihuahua",8,"Chih.","Camargo","Camargo, Chih.",11,67," "," "]
["Chihuahua",8,"Chih.","Carichí","Carichí, Chih.",12,67," "," "]
["Chihuahua",8,"Chih.","Casas Grandes","Casas Grandes, Chih.",13,67," "," "]
["Chihuahua",8,"Chih.","Chihuahua","Chihuahua, Chih.",19,67," "," "]
["Chihuahua",8,"Chih.","Chínipas","Chínipas, Chih.",20,67," "," "]
["Chihuahua",8,"Chih.","Coronado","Coronado, Chih.",14,67," "," "]
["Chihuahua",8,"Chih.","Coyame del Sotol","Coyame del Sotol, Chih.",15,67," "," "]
["Chihuahua",8,"Chih.","Cuauhtémoc","Cuauhtémoc, Chih.",17,67," "," "]
["Chihuahua",8,"Chih.","Cusihuiriachi","Cusihuiriachi, Chih.",18,67," "," "]
["Chihuahua",8,"Chih.","Delicias","Delicias, Chih.",21,67," "," "]
["Chihuahua",8,"Chih.","Dr. Belisario Domínguez","Dr. Belisario Domínguez, Chih.",22,67," "," "]
["Chihuahua",8,"Chih.","El Tule","El Tule, Chih.",64,67," "," "]
["Chihuahua",8,"Chih.","Galeana","Galeana, Chih.",23,67," "," "]
["Chihuahua",8,"Chih.","Gómez Farías","Gómez Farías, Chih.",25,67," "," "]
["Chihuahua",8,"Chih.","Gran Morelos","Gran Morelos, Chih.",26,67," "," "]
["Chihuahua",8,"Chih.","Guachochi","Guachochi, Chih.",27,67," "," "]
["Chihuahua",8,"Chih.","Guadalupe","Guadalupe, Chih.",28,67," "," "]
["Chihuahua",8,"Chih.","Guadalupe y Calvo","Guadalupe y Calvo, Chih.",29,67," "," "]
["Chihuahua",8,"Chih.","Guazapares","Guazapares, Chih.",30,67," "," "]
["Chihuahua",8,"Chih.","Guerrero","Guerrero, Chih.",31,67," "," "]
["Chihuahua",8,"Chih.","Hidalgo del Parral","Hidalgo del Parral, Chih.",32,67," "," "]
["Chihuahua",8,"Chih.","Huejotitán","Huejotitán, Chih.",33,67," "," "]
["Chihuahua",8,"Chih.","Ignacio Zaragoza","Ignacio Zaragoza, Chih.",34,67," "," "]
["Chihuahua",8,"Chih.","Janos","Janos, Chih.",35,67," "," "]
["Chihuahua",8,"Chih.","Jiménez","Jiménez, Chih.",36,67," "," "]
["Chihuahua",8,"Chih.","Juárez","Juárez, Chih.",37,67," "," "]
["Chihuahua",8,"Chih.","Julimes","Julimes, Chih.",38,67," "," "]
["Chihuahua",8,"Chih.","La Cruz","La Cruz, Chih.",16,67," "," "]
["Chihuahua",8,"Chih.","López","López, Chih.",39,67," "," "]
["Chihuahua",8,"Chih.","Madera","Madera, Chih.",40,67," "," "]
["Chihuahua",8,"Chih.","Maguarichi","Maguarichi, Chih.",41,67," "," "]
["Chihuahua",8,"Chih.","Manuel Benavides","Manuel Benavides, Chih.",42,67," "," "]
["Chihuahua",8,"Chih.","Matachí","Matachí, Chih.",43,67," "," "]
["Chihuahua",8,"Chih.","Matamoros","Matamoros, Chih.",44,67," "," "]
["Chihuahua",8,"Chih.","Meoqui","Meoqui, Chih.",45,67," "," "]
["Chihuahua",8,"Chih.","Morelos","Morelos, Chih.",46,67," "," "]
["Chihuahua",8,"Chih.","Moris","Moris, Chih.",47,67," "," "]
["Chihuahua",8,"Chih.","Namiquipa","Namiquipa, Chih.",48,67," "," "]
["Chihuahua",8,"Chih.","Nonoava","Nonoava, Chih.",49,67," "," "]
["Chihuahua",8,"Chih.","Nuevo Casas Grandes","Nuevo Casas Grandes, Chih.",50,67," "," "]
["Chihuahua",8,"Chih.","Ocampo","Ocampo, Chih.",51,67," "," "]
["Chihuahua",8,"Chih.","Ojinaga","Ojinaga, Chih.",52,67," "," "]
["Chihuahua",8,"Chih.","Praxedis G. Guerrero","Praxedis G. Guerrero, Chih.",53,67," "," "]
["Chihuahua",8,"Chih.","Riva Palacio","Riva Palacio, Chih.",54,67," "," "]
["Chihuahua",8,"Chih.","Rosales","Rosales, Chih.",55,67," "," "]
["Chihuahua",8,"Chih.","Rosario","Rosario, Chih.",56,67," "," "]
["Chihuahua",8,"Chih.","San Francisco de Borja","San Francisco de Borja, Chih.",57,67," "," "]
["Chihuahua",8,"Chih.","San Francisco de Conchos","San Francisco de Conchos, Chih.",58,67," "," "]
["Chihuahua",8,"Chih.","San Francisco del Oro",{"$f":"D258&\", \"&C258","v":"San Francisco del Oro, Chih."},59,67," "," "]
["Chihuahua",8,"Chih.","Santa Bárbara","Santa Bárbara, Chih.",60,67,{"$f":"IF(E259=E260,\"mal\",\" \")","v":" "},{"$f":"IF(H259=\"mal\",1,\" \")","v":" "}]
["Chihuahua",8,"Chih.","Santa Isabel","Santa Isabel, Chih.",24,67," "," "]
["Chihuahua",8,"Chih.","Satevó","Satevó, Chih.",61,67," "," "]
["Chihuahua",8,"Chih.","Saucillo","Saucillo, Chih.",62,67," "," "]
["Chihuahua",8,"Chih.","Temósachic","Temósachic, Chih.",63,67," "," "]
["Chihuahua",8,"Chih.","Urique","Urique, Chih.",65,67," "," "]
["Chihuahua",8,"Chih.","Uruachi","Uruachi, Chih.",66,67," "," "]
["Chihuahua",8,"Chih.","Valle de Zaragoza","Valle de Zaragoza, Chih.",67,67," "," "]
["Distrito_Federal",9,"DF","Alvaro Obregón","Alvaro Obregón, DF",10,16," "," "]
["Distrito_Federal",9,"DF","Azcapotzalco","Azcapotzalco, DF",2,16," "," "]
["Distrito_Federal",9,"DF","Benito Juárez","Benito Juárez, DF",14,16," "," "]
["Distrito_Federal",9,"DF","Coyoacán","Coyoacán, DF",3,16," "," "]
["Distrito_Federal",9,"DF","Cuajimalpa de Morelos","Cuajimalpa de Morelos, DF",4,16," "," "]
["Distrito_Federal",9,"DF","Cuauhtémoc","Cuauhtémoc, DF",15,16," "," "]
["Distrito_Federal",9,"DF","Gustavo A. Madero","Gustavo A. Madero, DF",5,16," "," "]
["Distrito_Federal",9,"DF","Iztacalco","Iztacalco, DF",6,16," "," "]
["Distrito_Federal",9,"DF","Iztapalapa","Iztapalapa, DF",7,16," "," "]
["Distrito_Federal",9,"DF","La Magdalena Contreras","La Magdalena Contreras, DF",8,16," "," "]
["Distrito_Federal",9,"DF","Miguel Hidalgo","Miguel Hidalgo, DF",16,16," "," "]
["Distrito_Federal",9,"DF","Milpa Alta","Milpa Alta, DF",9,16," "," "]
["Distrito_Federal",9,"DF","Tláhuac","Tláhuac, DF",11,16," "," "]
["Distrito_Federal",9,"DF","Tlalpan","Tlalpan, DF",12,16," "," "]
["Distrito_Federal",9,"DF","Venustiano Carranza","Venustiano Carranza, DF",17,16," "," "]
["Distrito_Federal",9,"DF","Xochimilco","Xochimilco, DF",13,16," "," "]
["Durango",10,"Dgo.","Canatlán","Canatlán, Dgo.",1,39," "," "]
["Durango",10,"Dgo.","Canelas","Canelas, Dgo.",2,39," "," "]
["Durango",10,"Dgo.","Coneto de Comonfort","Coneto de Comonfort, Dgo.",3,39," "," "]
["Durango",10,"Dgo.","Cuencamé","Cuencamé, Dgo.",4,39," "," "]
["Durango",10,"Dgo.","Durango","Durango, Dgo.",5,39," "," "]
["Durango",10,"Dgo.","El Oro","El Oro, Dgo.",18,39," "," "]
["Durango",10,"Dgo.","General Simón Bolívar","General Simón Bolívar, Dgo.",6,39," "," "]
["Durango",10,"Dgo.","Gómez Palacio","Gómez Palacio, Dgo.",7,39," "," "]
["Durango",10,"Dgo.","Guadalupe Victoria","Guadalupe Victoria, Dgo.",8,39," "," "]
["Durango",10,"Dgo.","Guanaceví","Guanaceví, Dgo.",9,39," "," "]
["Durango",10,"Dgo.","Hidalgo","Hidalgo, Dgo.",10,39," "," "]
["Durango",10,"Dgo.","Indé","Indé, Dgo.",11,39," "," "]
["Durango",10,"Dgo.","Lerdo","Lerdo, Dgo.",12,39," "," "]
["Durango",10,"Dgo.","Mapimí","Mapimí, Dgo.",13,39," "," "]
["Durango",10,"Dgo.","Mezquital","Mezquital, Dgo.",14,39," "," "]
["Durango",10,"Dgo.","Nazas","Nazas, Dgo.",15,39," "," "]
["Durango",10,"Dgo.","Nombre de Dios","Nombre de Dios, Dgo.",16,39," "," "]
["Durango",10,"Dgo.","Nuevo Ideal","Nuevo Ideal, Dgo.",39,39," "," "]
["Durango",10,"Dgo.","Ocampo","Ocampo, Dgo.",17,39," "," "]
["Durango",10,"Dgo.","Otáez","Otáez, Dgo.",19,39," "," "]
["Durango",10,"Dgo.","Pánuco de Coronado","Pánuco de Coronado, Dgo.",20,39," "," "]
["Durango",10,"Dgo.","Peñón Blanco","Peñón Blanco, Dgo.",21,39," "," "]
["Durango",10,"Dgo.","Poanas","Poanas, Dgo.",22,39," "," "]
["Durango",10,"Dgo.","Pueblo Nuevo","Pueblo Nuevo, Dgo.",23,39," "," "]
["Durango",10,"Dgo.","Rodeo","Rodeo, Dgo.",24,39," "," "]
["Durango",10,"Dgo.","San Bernardo","San Bernardo, Dgo.",25,39," "," "]
["Durango",10,"Dgo.","San Dimas","San Dimas, Dgo.",26,39," "," "]
["Durango",10,"Dgo.","San Juan de Guadalupe","San Juan de Guadalupe, Dgo.",27,39," "," "]
["Durango",10,"Dgo.","San Juan del Río","San Juan del Río, Dgo.",28,39," "," "]
["Durango",10,"Dgo.","San Luis del Cordero","San Luis del Cordero, Dgo.",29,39," "," "]
["Durango",10,"Dgo.","San Pedro del Gallo","San Pedro del Gallo, Dgo.",30,39," "," "]
["Durango",10,"Dgo.","Santa Clara","Santa Clara, Dgo.",31,39," "," "]
["Durango",10,"Dgo.","Santiago Papasquiaro","Santiago Papasquiaro, Dgo.",32,39," "," "]
["Durango",10,"Dgo.","Súchil","Súchil, Dgo.",33,39," "," "]
["Durango",10,"Dgo.","Tamazula","Tamazula, Dgo.",34,39," "," "]
["Durango",10,"Dgo.","Tepehuanes","Tepehuanes, Dgo.",35,39," "," "]
["Durango",10,"Dgo.","Tlahualilo","Tlahualilo, Dgo.",36,39," "," "]
["Durango",10,"Dgo.","Topia","Topia, Dgo.",37,39," "," "]
["Durango",10,"Dgo.","Vicente Guerrero","Vicente Guerrero, Dgo.",38,39," "," "]
["Guanajuato",11,"Gto.","Abasolo",{"$f":"D322&\", \"&C322","v":"Abasolo, Gto."},1,46," "," "]
["Guanajuato",11,"Gto.","Acámbaro","Acámbaro, Gto.",2,46,{"$f":"IF(E323=E324,\"mal\",\" \")","v":" "},{"$f":"IF(H323=\"mal\",1,\" \")","v":" "}]
["Guanajuato",11,"Gto.","Apaseo el Alto","Apaseo el Alto, Gto.",4,46," "," "]
["Guanajuato",11,"Gto.","Apaseo el Grande","Apaseo el Grande, Gto.",5,46," "," "]
["Guanajuato",11,"Gto.","Atarjea","Atarjea, Gto.",6,46," "," "]
["Guanajuato",11,"Gto.","Celaya","Celaya, Gto.",7,46," "," "]
["Guanajuato",11,"Gto.","Comonfort","Comonfort, Gto.",9,46," "," "]
["Guanajuato",11,"Gto.","Coroneo","Coroneo, Gto.",10,46," "," "]
["Guanajuato",11,"Gto.","Cortazar","Cortazar, Gto.",11,46," "," "]
["Guanajuato",11,"Gto.","Cuerámaro","Cuerámaro, Gto.",12,46," "," "]
["Guanajuato",11,"Gto.","Doctor Mora","Doctor Mora, Gto.",13,46," "," "]
["Guanajuato",11,"Gto.","Dolores Hidalgo Cuna de la Independencia Nacional","Dolores Hidalgo Cuna de la Independencia Nacional, Gto.",14,46," "," "]
["Guanajuato",11,"Gto.","Guanajuato","Guanajuato, Gto.",15,46," "," "]
["Guanajuato",11,"Gto.","Huanímaro","Huanímaro, Gto.",16,46," "," "]
["Guanajuato",11,"Gto.","Irapuato","Irapuato, Gto.",17,46," "," "]
["Guanajuato",11,"Gto.","Jaral del Progreso","Jaral del Progreso, Gto.",18,46," "," "]
["Guanajuato",11,"Gto.","Jerécuaro","Jerécuaro, Gto.",19,46," "," "]
["Guanajuato",11,"Gto.","León","León, Gto.",20,46," "," "]
["Guanajuato",11,"Gto.","Manuel Doblado","Manuel Doblado, Gto.",8,46," "," "]
["Guanajuato",11,"Gto.","Moroleón","Moroleón, Gto.",21,46," "," "]
["Guanajuato",11,"Gto.","Ocampo","Ocampo, Gto.",22,46," "," "]
["Guanajuato",11,"Gto.","Pénjamo","Pénjamo, Gto.",23,46," "," "]
["Guanajuato",11,"Gto.","Pueblo Nuevo","Pueblo Nuevo, Gto.",24,46," "," "]
["Guanajuato",11,"Gto.","Purísima del Rincón","Purísima del Rincón, Gto.",25,46," "," "]
["Guanajuato",11,"Gto.","Romita","Romita, Gto.",26,46," "," "]
["Guanajuato",11,"Gto.","Salamanca","Salamanca, Gto.",27,46," "," "]
["Guanajuato",11,"Gto.","Salvatierra","Salvatierra, Gto.",28,46," "," "]
["Guanajuato",11,"Gto.","San Diego de la Unión","San Diego de la Unión, Gto.",29,46," "," "]
["Guanajuato",11,"Gto.","San Felipe","San Felipe, Gto.",30,46," "," "]
["Guanajuato",11,"Gto.","San Francisco del Rincón","San Francisco del Rincón, Gto.",31,46," "," "]
["Guanajuato",11,"Gto.","San José Iturbide","San José Iturbide, Gto.",32,46," "," "]
["Guanajuato",11,"Gto.","San Luis de la Paz","San Luis de la Paz, Gto.",33,46," "," "]
["Guanajuato",11,"Gto.","San Miguel de Allende","San Miguel de Allende, Gto.",3,46," "," "]
["Guanajuato",11,"Gto.","Santa Catarina","Santa Catarina, Gto.",34,46," "," "]
["Guanajuato",11,"Gto.","Santa Cruz de Juventino Rosas","Santa Cruz de Juventino Rosas, Gto.",35,46," "," "]
["Guanajuato",11,"Gto.","Santiago Maravatío","Santiago Maravatío, Gto.",36,46," "," "]
["Guanajuato",11,"Gto.","Silao de la Victoria","Silao de la Victoria, Gto.",37,46," "," "]
["Guanajuato",11,"Gto.","Tarandacuao","Tarandacuao, Gto.",38,46," "," "]
["Guanajuato",11,"Gto.","Tarimoro","Tarimoro, Gto.",39,46," "," "]
["Guanajuato",11,"Gto.","Tierra Blanca","Tierra Blanca, Gto.",40,46," "," "]
["Guanajuato",11,"Gto.","Uriangato","Uriangato, Gto.",41,46," "," "]
["Guanajuato",11,"Gto.","Valle de Santiago","Valle de Santiago, Gto.",42,46," "," "]
["Guanajuato",11,"Gto.","Victoria","Victoria, Gto.",43,46," "," "]
["Guanajuato",11,"Gto.","Villagrán","Villagrán, Gto.",44,46," "," "]
["Guanajuato",11,"Gto.","Xichú","Xichú, Gto.",45,46," "," "]
["Guanajuato",11,"Gto.","Yuriria","Yuriria, Gto.",46,46," "," "]
["Guerrero",12,"Gro.","Acapulco de Juárez","Acapulco de Juárez, Gro.",1,81," "," "]
["Guerrero",12,"Gro.","Acatepec","Acatepec, Gro.",76,81," "," "]
["Guerrero",12,"Gro.","Ahuacuotzingo","Ahuacuotzingo, Gro.",2,81," "," "]
["Guerrero",12,"Gro.","Ajuchitlán del Progreso","Ajuchitlán del Progreso, Gro.",3,81," "," "]
["Guerrero",12,"Gro.","Alcozauca de Guerrero","Alcozauca de Guerrero, Gro.",4,81," "," "]
["Guerrero",12,"Gro.","Alpoyeca","Alpoyeca, Gro.",5,81," "," "]
["Guerrero",12,"Gro.","Apaxtla","Apaxtla, Gro.",6,81," "," "]
["Guerrero",12,"Gro.","Arcelia","Arcelia, Gro.",7,81," "," "]
["Guerrero",12,"Gro.","Atenango del Río","Atenango del Río, Gro.",8,81," "," "]
["Guerrero",12,"Gro.","Atlamajalcingo del Monte","Atlamajalcingo del Monte, Gro.",9,81," "," "]
["Guerrero",12,"Gro.","Atlixtac","Atlixtac, Gro.",10,81," "," "]
["Guerrero",12,"Gro.","Atoyac de Alvarez","Atoyac de Alvarez, Gro.",11,81," "," "]
["Guerrero",12,"Gro.","Ayutla de los Libres","Ayutla de los Libres, Gro.",12,81," "," "]
["Guerrero",12,"Gro.","Azoyú","Azoyú, Gro.",13,81," "," "]
["Guerrero",12,"Gro.","Benito Juárez","Benito Juárez, Gro.",14,81," "," "]
["Guerrero",12,"Gro.","Buenavista de Cuéllar","Buenavista de Cuéllar, Gro.",15,81," "," "]
["Guerrero",12,"Gro.","Chilapa de Alvarez","Chilapa de Alvarez, Gro.",28,81," "," "]
["Guerrero",12,"Gro.","Chilpancingo de los Bravo","Chilpancingo de los Bravo, Gro.",29,81," "," "]
["Guerrero",12,"Gro.","Coahuayutla de José María Izazaga",{"$f":"D386&\", \"&C386","v":"Coahuayutla de José María Izazaga, Gro."},16,81," "," "]
["Guerrero",12,"Gro.","Cochoapa el Grande","Cochoapa el Grande, Gro.",78,81,{"$f":"IF(E387=E388,\"mal\",\" \")","v":" "},{"$f":"IF(H387=\"mal\",1,\" \")","v":" "}]
["Guerrero",12,"Gro.","Cocula","Cocula, Gro.",17,81," "," "]
["Guerrero",12,"Gro.","Copala","Copala, Gro.",18,81," "," "]
["Guerrero",12,"Gro.","Copalillo","Copalillo, Gro.",19,81," "," "]
["Guerrero",12,"Gro.","Copanatoyac","Copanatoyac, Gro.",20,81," "," "]
["Guerrero",12,"Gro.","Coyuca de Benítez","Coyuca de Benítez, Gro.",21,81," "," "]
["Guerrero",12,"Gro.","Coyuca de Catalán","Coyuca de Catalán, Gro.",22,81," "," "]
["Guerrero",12,"Gro.","Cuajinicuilapa","Cuajinicuilapa, Gro.",23,81," "," "]
["Guerrero",12,"Gro.","Cualác","Cualác, Gro.",24,81," "," "]
["Guerrero",12,"Gro.","Cuautepec","Cuautepec, Gro.",25,81," "," "]
["Guerrero",12,"Gro.","Cuetzala del Progreso","Cuetzala del Progreso, Gro.",26,81," "," "]
["Guerrero",12,"Gro.","Cutzamala de Pinzón","Cutzamala de Pinzón, Gro.",27,81," "," "]
["Guerrero",12,"Gro.","Eduardo Neri","Eduardo Neri, Gro.",75,81," "," "]
["Guerrero",12,"Gro.","Florencio Villarreal","Florencio Villarreal, Gro.",30,81," "," "]
["Guerrero",12,"Gro.","General Canuto A. Neri","General Canuto A. Neri, Gro.",31,81," "," "]
["Guerrero",12,"Gro.","General Heliodoro Castillo","General Heliodoro Castillo, Gro.",32,81," "," "]
["Guerrero",12,"Gro.","Huamuxtitlán","Huamuxtitlán, Gro.",33,81," "," "]
["Guerrero",12,"Gro.","Huitzuco de los Figueroa","Huitzuco de los Figueroa, Gro.",34,81," "," "]
["Guerrero",12,"Gro.","Iguala de la Independencia","Iguala de la Independencia, Gro.",35,81," "," "]
["Guerrero",12,"Gro.","Igualapa","Igualapa, Gro.",36,81," "," "]
["Guerrero",12,"Gro.","Iliatenco","Iliatenco, Gro.",81,81," "," "]
["Guerrero",12,"Gro.","Ixcateopan de Cuauhtémoc","Ixcateopan de Cuauhtémoc, Gro.",37,81," "," "]
["Guerrero",12,"Gro.","José Joaquín de Herrera","José Joaquín de Herrera, Gro.",79,81," "," "]
["Guerrero",12,"Gro.","Juan R. Escudero","Juan R. Escudero, Gro.",39,81," "," "]
["Guerrero",12,"Gro.","Juchitán","Juchitán, Gro.",80,81," "," "]
["Guerrero",12,"Gro.","La Unión de Isidoro Montes de Oca","La Unión de Isidoro Montes de Oca, Gro.",68,81," "," "]
["Guerrero",12,"Gro.","Leonardo Bravo","Leonardo Bravo, Gro.",40,81," "," "]
["Guerrero",12,"Gro.","Malinaltepec","Malinaltepec, Gro.",41,81," "," "]
["Guerrero",12,"Gro.","Marquelia","Marquelia, Gro.",77,81," "," "]
["Guerrero",12,"Gro.","Mártir de Cuilapan","Mártir de Cuilapan, Gro.",42,81," "," "]
["Guerrero",12,"Gro.","Metlatónoc","Metlatónoc, Gro.",43,81," "," "]
["Guerrero",12,"Gro.","Mochitlán","Mochitlán, Gro.",44,81," "," "]
["Guerrero",12,"Gro.","Olinalá","Olinalá, Gro.",45,81," "," "]
["Guerrero",12,"Gro.","Ometepec","Ometepec, Gro.",46,81," "," "]
["Guerrero",12,"Gro.","Pedro Ascencio Alquisiras","Pedro Ascencio Alquisiras, Gro.",47,81," "," "]
["Guerrero",12,"Gro.","Petatlán","Petatlán, Gro.",48,81," "," "]
["Guerrero",12,"Gro.","Pilcaya","Pilcaya, Gro.",49,81," "," "]
["Guerrero",12,"Gro.","Pungarabato","Pungarabato, Gro.",50,81," "," "]
["Guerrero",12,"Gro.","Quechultenango","Quechultenango, Gro.",51,81," "," "]
["Guerrero",12,"Gro.","San Luis Acatlán","San Luis Acatlán, Gro.",52,81," "," "]
["Guerrero",12,"Gro.","San Marcos","San Marcos, Gro.",53,81," "," "]
["Guerrero",12,"Gro.","San Miguel Totolapan","San Miguel Totolapan, Gro.",54,81," "," "]
["Guerrero",12,"Gro.","Taxco de Alarcón","Taxco de Alarcón, Gro.",55,81," "," "]
["Guerrero",12,"Gro.","Tecoanapa","Tecoanapa, Gro.",56,81," "," "]
["Guerrero",12,"Gro.","Técpan de Galeana","Técpan de Galeana, Gro.",57,81," "," "]
["Guerrero",12,"Gro.","Teloloapan","Teloloapan, Gro.",58,81," "," "]
["Guerrero",12,"Gro.","Tepecoacuilco de Trujano","Tepecoacuilco de Trujano, Gro.",59,81," "," "]
["Guerrero",12,"Gro.","Tetipac","Tetipac, Gro.",60,81," "," "]
["Guerrero",12,"Gro.","Tixtla de Guerrero","Tixtla de Guerrero, Gro.",61,81," "," "]
["Guerrero",12,"Gro.","Tlacoachistlahuaca","Tlacoachistlahuaca, Gro.",62,81," "," "]
["Guerrero",12,"Gro.","Tlacoapa","Tlacoapa, Gro.",63,81," "," "]
["Guerrero",12,"Gro.","Tlalchapa","Tlalchapa, Gro.",64,81," "," "]
["Guerrero",12,"Gro.","Tlalixtaquilla de Maldonado","Tlalixtaquilla de Maldonado, Gro.",65,81," "," "]
["Guerrero",12,"Gro.","Tlapa de Comonfort","Tlapa de Comonfort, Gro.",66,81," "," "]
["Guerrero",12,"Gro.","Tlapehuala","Tlapehuala, Gro.",67,81," "," "]
["Guerrero",12,"Gro.","Xalpatláhuac","Xalpatláhuac, Gro.",69,81," "," "]
["Guerrero",12,"Gro.","Xochihuehuetlán","Xochihuehuetlán, Gro.",70,81," "," "]
["Guerrero",12,"Gro.","Xochistlahuaca","Xochistlahuaca, Gro.",71,81," "," "]
["Guerrero",12,"Gro.","Zapotitlán Tablas","Zapotitlán Tablas, Gro.",72,81," "," "]
["Guerrero",12,"Gro.","Zihuatanejo de Azueta","Zihuatanejo de Azueta, Gro.",38,81," "," "]
["Guerrero",12,"Gro.","Zirándaro","Zirándaro, Gro.",73,81," "," "]
["Guerrero",12,"Gro.","Zitlala","Zitlala, Gro.",74,81," "," "]
["Hidalgo",13,"Hgo.","Acatlán","Acatlán, Hgo.",1,84," "," "]
["Hidalgo",13,"Hgo.","Acaxochitlán",{"$f":"D450&\", \"&C450","v":"Acaxochitlán, Hgo."},2,84," "," "]
["Hidalgo",13,"Hgo.","Actopan","Actopan, Hgo.",3,84,{"$f":"IF(E451=E452,\"mal\",\" \")","v":" "},{"$f":"IF(H451=\"mal\",1,\" \")","v":" "}]
["Hidalgo",13,"Hgo.","Agua Blanca de Iturbide","Agua Blanca de Iturbide, Hgo.",4,84," "," "]
["Hidalgo",13,"Hgo.","Ajacuba","Ajacuba, Hgo.",5,84," "," "]
["Hidalgo",13,"Hgo.","Alfajayucan","Alfajayucan, Hgo.",6,84," "," "]
["Hidalgo",13,"Hgo.","Almoloya","Almoloya, Hgo.",7,84," "," "]
["Hidalgo",13,"Hgo.","Apan","Apan, Hgo.",8,84," "," "]
["Hidalgo",13,"Hgo.","Atitalaquia","Atitalaquia, Hgo.",10,84," "," "]
["Hidalgo",13,"Hgo.","Atlapexco","Atlapexco, Hgo.",11,84," "," "]
["Hidalgo",13,"Hgo.","Atotonilco de Tula","Atotonilco de Tula, Hgo.",13,84," "," "]
["Hidalgo",13,"Hgo.","Atotonilco el Grande","Atotonilco el Grande, Hgo.",12,84," "," "]
["Hidalgo",13,"Hgo.","Calnali","Calnali, Hgo.",14,84," "," "]
["Hidalgo",13,"Hgo.","Cardonal","Cardonal, Hgo.",15,84," "," "]
["Hidalgo",13,"Hgo.","Chapantongo","Chapantongo, Hgo.",17,84," "," "]
["Hidalgo",13,"Hgo.","Chapulhuacán","Chapulhuacán, Hgo.",18,84," "," "]
["Hidalgo",13,"Hgo.","Chilcuautla","Chilcuautla, Hgo.",19,84," "," "]
["Hidalgo",13,"Hgo.","Cuautepec de Hinojosa","Cuautepec de Hinojosa, Hgo.",16,84," "," "]
["Hidalgo",13,"Hgo.","El Arenal","El Arenal, Hgo.",9,84," "," "]
["Hidalgo",13,"Hgo.","Eloxochitlán","Eloxochitlán, Hgo.",20,84," "," "]
["Hidalgo",13,"Hgo.","Emiliano Zapata","Emiliano Zapata, Hgo.",21,84," "," "]
["Hidalgo",13,"Hgo.","Epazoyucan","Epazoyucan, Hgo.",22,84," "," "]
["Hidalgo",13,"Hgo.","Francisco I. Madero","Francisco I. Madero, Hgo.",23,84," "," "]
["Hidalgo",13,"Hgo.","Huasca de Ocampo","Huasca de Ocampo, Hgo.",24,84," "," "]
["Hidalgo",13,"Hgo.","Huautla","Huautla, Hgo.",25,84," "," "]
["Hidalgo",13,"Hgo.","Huazalingo","Huazalingo, Hgo.",26,84," "," "]
["Hidalgo",13,"Hgo.","Huehuetla","Huehuetla, Hgo.",27,84," "," "]
["Hidalgo",13,"Hgo.","Huejutla de Reyes","Huejutla de Reyes, Hgo.",28,84," "," "]
["Hidalgo",13,"Hgo.","Huichapan","Huichapan, Hgo.",29,84," "," "]
["Hidalgo",13,"Hgo.","Ixmiquilpan","Ixmiquilpan, Hgo.",30,84," "," "]
["Hidalgo",13,"Hgo.","Jacala de Ledezma","Jacala de Ledezma, Hgo.",31,84," "," "]
["Hidalgo",13,"Hgo.","Jaltocán","Jaltocán, Hgo.",32,84," "," "]
["Hidalgo",13,"Hgo.","Juárez Hidalgo","Juárez Hidalgo, Hgo.",33,84," "," "]
["Hidalgo",13,"Hgo.","La Misión","La Misión, Hgo.",40,84," "," "]
["Hidalgo",13,"Hgo.","Lolotla","Lolotla, Hgo.",34,84," "," "]
["Hidalgo",13,"Hgo.","Metepec","Metepec, Hgo.",35,84," "," "]
["Hidalgo",13,"Hgo.","Metztitlán","Metztitlán, Hgo.",37,84," "," "]
["Hidalgo",13,"Hgo.","Mineral de la Reforma","Mineral de la Reforma, Hgo.",51,84," "," "]
["Hidalgo",13,"Hgo.","Mineral del Chico","Mineral del Chico, Hgo.",38,84," "," "]
["Hidalgo",13,"Hgo.","Mineral del Monte","Mineral del Monte, Hgo.",39,84," "," "]
["Hidalgo",13,"Hgo.","Mixquiahuala de Juárez","Mixquiahuala de Juárez, Hgo.",41,84," "," "]
["Hidalgo",13,"Hgo.","Molango de Escamilla","Molango de Escamilla, Hgo.",42,84," "," "]
["Hidalgo",13,"Hgo.","Nicolás Flores","Nicolás Flores, Hgo.",43,84," "," "]
["Hidalgo",13,"Hgo.","Nopala de Villagrán","Nopala de Villagrán, Hgo.",44,84," "," "]
["Hidalgo",13,"Hgo.","Omitlán de Juárez","Omitlán de Juárez, Hgo.",45,84," "," "]
["Hidalgo",13,"Hgo.","Pachuca de Soto","Pachuca de Soto, Hgo.",48,84," "," "]
["Hidalgo",13,"Hgo.","Pacula","Pacula, Hgo.",47,84," "," "]
["Hidalgo",13,"Hgo.","Pisaflores","Pisaflores, Hgo.",49,84," "," "]
["Hidalgo",13,"Hgo.","Progreso de Obregón","Progreso de Obregón, Hgo.",50,84," "," "]
["Hidalgo",13,"Hgo.","San Agustín Metzquititlán","San Agustín Metzquititlán, Hgo.",36,84," "," "]
["Hidalgo",13,"Hgo.","San Agustín Tlaxiaca","San Agustín Tlaxiaca, Hgo.",52,84," "," "]
["Hidalgo",13,"Hgo.","San Bartolo Tutotepec","San Bartolo Tutotepec, Hgo.",53,84," "," "]
["Hidalgo",13,"Hgo.","San Felipe Orizatlán","San Felipe Orizatlán, Hgo.",46,84," "," "]
["Hidalgo",13,"Hgo.","San Salvador","San Salvador, Hgo.",54,84," "," "]
["Hidalgo",13,"Hgo.","Santiago de Anaya","Santiago de Anaya, Hgo.",55,84," "," "]
["Hidalgo",13,"Hgo.","Santiago Tulantepec de Lugo Guerrero","Santiago Tulantepec de Lugo Guerrero, Hgo.",56,84," "," "]
["Hidalgo",13,"Hgo.","Singuilucan","Singuilucan, Hgo.",57,84," "," "]
["Hidalgo",13,"Hgo.","Tasquillo","Tasquillo, Hgo.",58,84," "," "]
["Hidalgo",13,"Hgo.","Tecozautla","Tecozautla, Hgo.",59,84," "," "]
["Hidalgo",13,"Hgo.","Tenango de Doria","Tenango de Doria, Hgo.",60,84," "," "]
["Hidalgo",13,"Hgo.","Tepeapulco","Tepeapulco, Hgo.",61,84," "," "]
["Hidalgo",13,"Hgo.","Tepehuacán de Guerrero","Tepehuacán de Guerrero, Hgo.",62,84," "," "]
["Hidalgo",13,"Hgo.","Tepeji del Río de Ocampo","Tepeji del Río de Ocampo, Hgo.",63,84," "," "]
["Hidalgo",13,"Hgo.","Tepetitlán","Tepetitlán, Hgo.",64,84," "," "]
["Hidalgo",13,"Hgo.","Tetepango","Tetepango, Hgo.",65,84," "," "]
["Hidalgo",13,"Hgo.","Tezontepec de Aldama",{"$f":"D514&\", \"&C514","v":"Tezontepec de Aldama, Hgo."},67,84," "," "]
["Hidalgo",13,"Hgo.","Tianguistengo","Tianguistengo, Hgo.",68,84,{"$f":"IF(E515=E516,\"mal\",\" \")","v":" "},{"$f":"IF(H515=\"mal\",1,\" \")","v":" "}]
["Hidalgo",13,"Hgo.","Tizayuca","Tizayuca, Hgo.",69,84," "," "]
["Hidalgo",13,"Hgo.","Tlahuelilpan","Tlahuelilpan, Hgo.",70,84," "," "]
["Hidalgo",13,"Hgo.","Tlahuiltepa","Tlahuiltepa, Hgo.",71,84," "," "]
["Hidalgo",13,"Hgo.","Tlanalapa","Tlanalapa, Hgo.",72,84," "," "]
["Hidalgo",13,"Hgo.","Tlanchinol","Tlanchinol, Hgo.",73,84," "," "]
["Hidalgo",13,"Hgo.","Tlaxcoapan","Tlaxcoapan, Hgo.",74,84," "," "]
["Hidalgo",13,"Hgo.","Tolcayuca","Tolcayuca, Hgo.",75,84," "," "]
["Hidalgo",13,"Hgo.","Tula de Allende","Tula de Allende, Hgo.",76,84," "," "]
["Hidalgo",13,"Hgo.","Tulancingo de Bravo","Tulancingo de Bravo, Hgo.",77,84," "," "]
["Hidalgo",13,"Hgo.","Villa de Tezontepec","Villa de Tezontepec, Hgo.",66,84," "," "]
["Hidalgo",13,"Hgo.","Xochiatipan","Xochiatipan, Hgo.",78,84," "," "]
["Hidalgo",13,"Hgo.","Xochicoatlán","Xochicoatlán, Hgo.",79,84," "," "]
["Hidalgo",13,"Hgo.","Yahualica","Yahualica, Hgo.",80,84," "," "]
["Hidalgo",13,"Hgo.","Zacualtipán de Angeles","Zacualtipán de Angeles, Hgo.",81,84," "," "]
["Hidalgo",13,"Hgo.","Zapotlán de Juárez","Zapotlán de Juárez, Hgo.",82,84," "," "]
["Hidalgo",13,"Hgo.","Zempoala","Zempoala, Hgo.",83,84," "," "]
["Hidalgo",13,"Hgo.","Zimapán","Zimapán, Hgo.",84,84," "," "]
["Jalisco",14,"Jal.","Acatic","Acatic, Jal.",1,125," "," "]
["Jalisco",14,"Jal.","Acatlán de Juárez","Acatlán de Juárez, Jal.",2,125," "," "]
["Jalisco",14,"Jal.","Ahualulco de Mercado","Ahualulco de Mercado, Jal.",3,125," "," "]
["Jalisco",14,"Jal.","Amacueca","Amacueca, Jal.",4,125," "," "]
["Jalisco",14,"Jal.","Amatitán","Amatitán, Jal.",5,125," "," "]
["Jalisco",14,"Jal.","Ameca","Ameca, Jal.",6,125," "," "]
["Jalisco",14,"Jal.","Arandas","Arandas, Jal.",8,125," "," "]
["Jalisco",14,"Jal.","Atemajac de Brizuela","Atemajac de Brizuela, Jal.",10,125," "," "]
["Jalisco",14,"Jal.","Atengo","Atengo, Jal.",11,125," "," "]
["Jalisco",14,"Jal.","Atenguillo","Atenguillo, Jal.",12,125," "," "]
["Jalisco",14,"Jal.","Atotonilco el Alto","Atotonilco el Alto, Jal.",13,125," "," "]
["Jalisco",14,"Jal.","Atoyac","Atoyac, Jal.",14,125," "," "]
["Jalisco",14,"Jal.","Autlán de Navarro","Autlán de Navarro, Jal.",15,125," "," "]
["Jalisco",14,"Jal.","Ayotlán","Ayotlán, Jal.",16,125," "," "]
["Jalisco",14,"Jal.","Ayutla","Ayutla, Jal.",17,125," "," "]
["Jalisco",14,"Jal.","Bolaños","Bolaños, Jal.",19,125," "," "]
["Jalisco",14,"Jal.","Cabo Corrientes","Cabo Corrientes, Jal.",20,125," "," "]
["Jalisco",14,"Jal.","Cañadas de Obregón","Cañadas de Obregón, Jal.",117,125," "," "]
["Jalisco",14,"Jal.","Casimiro Castillo","Casimiro Castillo, Jal.",21,125," "," "]
["Jalisco",14,"Jal.","Chapala","Chapala, Jal.",30,125," "," "]
["Jalisco",14,"Jal.","Chimaltitán","Chimaltitán, Jal.",31,125," "," "]
["Jalisco",14,"Jal.","Chiquilistlán","Chiquilistlán, Jal.",32,125," "," "]
["Jalisco",14,"Jal.","Cihuatlán","Cihuatlán, Jal.",22,125," "," "]
["Jalisco",14,"Jal.","Cocula","Cocula, Jal.",24,125," "," "]
["Jalisco",14,"Jal.","Colotlán","Colotlán, Jal.",25,125," "," "]
["Jalisco",14,"Jal.","Concepción de Buenos Aires","Concepción de Buenos Aires, Jal.",26,125," "," "]
["Jalisco",14,"Jal.","Cuautitlán de García Barragán","Cuautitlán de García Barragán, Jal.",27,125," "," "]
["Jalisco",14,"Jal.","Cuautla","Cuautla, Jal.",28,125," "," "]
["Jalisco",14,"Jal.","Cuquío","Cuquío, Jal.",29,125," "," "]
["Jalisco",14,"Jal.","Degollado","Degollado, Jal.",33,125," "," "]
["Jalisco",14,"Jal.","Ejutla","Ejutla, Jal.",34,125," "," "]
["Jalisco",14,"Jal.","El Arenal","El Arenal, Jal.",9,125," "," "]
["Jalisco",14,"Jal.","El Grullo","El Grullo, Jal.",37,125," "," "]
["Jalisco",14,"Jal.","El Limón","El Limón, Jal.",54,125," "," "]
["Jalisco",14,"Jal.","El Salto","El Salto, Jal.",70,125," "," "]
["Jalisco",14,"Jal.","Encarnación de Díaz","Encarnación de Díaz, Jal.",35,125," "," "]
["Jalisco",14,"Jal.","Etzatlán","Etzatlán, Jal.",36,125," "," "]
["Jalisco",14,"Jal.","Gómez Farías","Gómez Farías, Jal.",79,125," "," "]
["Jalisco",14,"Jal.","Guachinango","Guachinango, Jal.",38,125," "," "]
["Jalisco",14,"Jal.","Guadalajara","Guadalajara, Jal.",39,125," "," "]
["Jalisco",14,"Jal.","Hostotipaquillo","Hostotipaquillo, Jal.",40,125," "," "]
["Jalisco",14,"Jal.","Huejúcar","Huejúcar, Jal.",41,125," "," "]
["Jalisco",14,"Jal.","Huejuquilla el Alto","Huejuquilla el Alto, Jal.",42,125," "," "]
["Jalisco",14,"Jal.","Ixtlahuacán de los Membrillos","Ixtlahuacán de los Membrillos, Jal.",44,125," "," "]
["Jalisco",14,"Jal.","Ixtlahuacán del Río","Ixtlahuacán del Río, Jal.",45,125," "," "]
["Jalisco",14,"Jal.","Jalostotitlán",{"$f":"D578&\", \"&C578","v":"Jalostotitlán, Jal."},46,125," "," "]
["Jalisco",14,"Jal.","Jamay","Jamay, Jal.",47,125,{"$f":"IF(E579=E580,\"mal\",\" \")","v":" "},{"$f":"IF(H579=\"mal\",1,\" \")","v":" "}]
["Jalisco",14,"Jal.","Jesús María","Jesús María, Jal.",48,125," "," "]
["Jalisco",14,"Jal.","Jilotlán de los Dolores","Jilotlán de los Dolores, Jal.",49,125," "," "]
["Jalisco",14,"Jal.","Jocotepec","Jocotepec, Jal.",50,125," "," "]
["Jalisco",14,"Jal.","Juanacatlán","Juanacatlán, Jal.",51,125," "," "]
["Jalisco",14,"Jal.","Juchitlán","Juchitlán, Jal.",52,125," "," "]
["Jalisco",14,"Jal.","La Barca","La Barca, Jal.",18,125," "," "]
["Jalisco",14,"Jal.","La Huerta","La Huerta, Jal.",43,125," "," "]
["Jalisco",14,"Jal.","La Manzanilla de la Paz","La Manzanilla de la Paz, Jal.",57,125," "," "]
["Jalisco",14,"Jal.","Lagos de Moreno","Lagos de Moreno, Jal.",53,125," "," "]
["Jalisco",14,"Jal.","Magdalena","Magdalena, Jal.",55,125," "," "]
["Jalisco",14,"Jal.","Mascota","Mascota, Jal.",58,125," "," "]
["Jalisco",14,"Jal.","Mazamitla","Mazamitla, Jal.",59,125," "," "]
["Jalisco",14,"Jal.","Mexticacán","Mexticacán, Jal.",60,125," "," "]
["Jalisco",14,"Jal.","Mezquitic","Mezquitic, Jal.",61,125," "," "]
["Jalisco",14,"Jal.","Mixtlán","Mixtlán, Jal.",62,125," "," "]
["Jalisco",14,"Jal.","Ocotlán","Ocotlán, Jal.",63,125," "," "]
["Jalisco",14,"Jal.","Ojuelos de Jalisco","Ojuelos de Jalisco, Jal.",64,125," "," "]
["Jalisco",14,"Jal.","Pihuamo","Pihuamo, Jal.",65,125," "," "]
["Jalisco",14,"Jal.","Poncitlán","Poncitlán, Jal.",66,125," "," "]
["Jalisco",14,"Jal.","Puerto Vallarta","Puerto Vallarta, Jal.",67,125," "," "]
["Jalisco",14,"Jal.","Quitupan","Quitupan, Jal.",69,125," "," "]
["Jalisco",14,"Jal.","San Cristóbal de la Barranca","San Cristóbal de la Barranca, Jal.",71,125," "," "]
["Jalisco",14,"Jal.","San Diego de Alejandría","San Diego de Alejandría, Jal.",72,125," "," "]
["Jalisco",14,"Jal.","San Gabriel","San Gabriel, Jal.",113,125," "," "]
["Jalisco",14,"Jal.","San Ignacio Cerro Gordo","San Ignacio Cerro Gordo, Jal.",125,125," "," "]
["Jalisco",14,"Jal.","San Juan de los Lagos","San Juan de los Lagos, Jal.",73,125," "," "]
["Jalisco",14,"Jal.","San Juanito de Escobedo","San Juanito de Escobedo, Jal.",7,125," "," "]
["Jalisco",14,"Jal.","San Julián","San Julián, Jal.",74,125," "," "]
["Jalisco",14,"Jal.","San Marcos","San Marcos, Jal.",75,125," "," "]
["Jalisco",14,"Jal.","San Martín de Bolaños","San Martín de Bolaños, Jal.",76,125," "," "]
["Jalisco",14,"Jal.","San Martín Hidalgo","San Martín Hidalgo, Jal.",77,125," "," "]
["Jalisco",14,"Jal.","San Miguel el Alto","San Miguel el Alto, Jal.",78,125," "," "]
["Jalisco",14,"Jal.","San Pedro Tlaquepaque","San Pedro Tlaquepaque, Jal.",98,125," "," "]
["Jalisco",14,"Jal.","San Sebastián del Oeste","San Sebastián del Oeste, Jal.",80,125," "," "]
["Jalisco",14,"Jal.","Santa María de los Angeles","Santa María de los Angeles, Jal.",81,125," "," "]
["Jalisco",14,"Jal.","Santa María del Oro","Santa María del Oro, Jal.",56,125," "," "]
["Jalisco",14,"Jal.","Sayula","Sayula, Jal.",82,125," "," "]
["Jalisco",14,"Jal.","Tala","Tala, Jal.",83,125," "," "]
["Jalisco",14,"Jal.","Talpa de Allende","Talpa de Allende, Jal.",84,125," "," "]
["Jalisco",14,"Jal.","Tamazula de Gordiano","Tamazula de Gordiano, Jal.",85,125," "," "]
["Jalisco",14,"Jal.","Tapalpa","Tapalpa, Jal.",86,125," "," "]
["Jalisco",14,"Jal.","Tecalitlán","Tecalitlán, Jal.",87,125," "," "]
["Jalisco",14,"Jal.","Techaluta de Montenegro","Techaluta de Montenegro, Jal.",89,125," "," "]
["Jalisco",14,"Jal.","Tecolotlán","Tecolotlán, Jal.",88,125," "," "]
["Jalisco",14,"Jal.","Tenamaxtlán","Tenamaxtlán, Jal.",90,125," "," "]
["Jalisco",14,"Jal.","Teocaltiche","Teocaltiche, Jal.",91,125," "," "]
["Jalisco",14,"Jal.","Teocuitatlán de Corona","Teocuitatlán de Corona, Jal.",92,125," "," "]
["Jalisco",14,"Jal.","Tepatitlán de Morelos","Tepatitlán de Morelos, Jal.",93,125," "," "]
["Jalisco",14,"Jal.","Tequila","Tequila, Jal.",94,125," "," "]
["Jalisco",14,"Jal.","Teuchitlán","Teuchitlán, Jal.",95,125," "," "]
["Jalisco",14,"Jal.","Tizapán el Alto","Tizapán el Alto, Jal.",96,125," "," "]
["Jalisco",14,"Jal.","Tlajomulco de Zúñiga","Tlajomulco de Zúñiga, Jal.",97,125," "," "]
["Jalisco",14,"Jal.","Tolimán","Tolimán, Jal.",99,125," "," "]
["Jalisco",14,"Jal.","Tomatlán","Tomatlán, Jal.",100,125," "," "]
["Jalisco",14,"Jal.","Tonalá","Tonalá, Jal.",101,125," "," "]
["Jalisco",14,"Jal.","Tonaya","Tonaya, Jal.",102,125," "," "]
["Jalisco",14,"Jal.","Tonila","Tonila, Jal.",103,125," "," "]
["Jalisco",14,"Jal.","Totatiche","Totatiche, Jal.",104,125," "," "]
["Jalisco",14,"Jal.","Tototlán","Tototlán, Jal.",105,125," "," "]
["Jalisco",14,"Jal.","Tuxcacuesco","Tuxcacuesco, Jal.",106,125," "," "]
["Jalisco",14,"Jal.","Tuxcueca","Tuxcueca, Jal.",107,125," "," "]
["Jalisco",14,"Jal.","Tuxpan","Tuxpan, Jal.",108,125," "," "]
["Jalisco",14,"Jal.","Unión de San Antonio",{"$f":"D642&\", \"&C642","v":"Unión de San Antonio, Jal."},109,125," "," "]
["Jalisco",14,"Jal.","Unión de Tula","Unión de Tula, Jal.",110,125,{"$f":"IF(E643=E644,\"mal\",\" \")","v":" "},{"$f":"IF(H643=\"mal\",1,\" \")","v":" "}]
["Jalisco",14,"Jal.","Valle de Guadalupe","Valle de Guadalupe, Jal.",111,125," "," "]
["Jalisco",14,"Jal.","Valle de Juárez","Valle de Juárez, Jal.",112,125," "," "]
["Jalisco",14,"Jal.","Villa Corona","Villa Corona, Jal.",114,125," "," "]
["Jalisco",14,"Jal.","Villa Guerrero","Villa Guerrero, Jal.",115,125," "," "]
["Jalisco",14,"Jal.","Villa Hidalgo","Villa Hidalgo, Jal.",116,125," "," "]
["Jalisco",14,"Jal.","Villa Purificación","Villa Purificación, Jal.",68,125," "," "]
["Jalisco",14,"Jal.","Yahualica de González Gallo","Yahualica de González Gallo, Jal.",118,125," "," "]
["Jalisco",14,"Jal.","Zacoalco de Torres","Zacoalco de Torres, Jal.",119,125," "," "]
["Jalisco",14,"Jal.","Zapopan","Zapopan, Jal.",120,125," "," "]
["Jalisco",14,"Jal.","Zapotiltic","Zapotiltic, Jal.",121,125," "," "]
["Jalisco",14,"Jal.","Zapotitlán de Vadillo","Zapotitlán de Vadillo, Jal.",122,125," "," "]
["Jalisco",14,"Jal.","Zapotlán del Rey","Zapotlán del Rey, Jal.",123,125," "," "]
["Jalisco",14,"Jal.","Zapotlán el Grande","Zapotlán el Grande, Jal.",23,125," "," "]
["Jalisco",14,"Jal.","Zapotlanejo","Zapotlanejo, Jal.",124,125," "," "]
["México",15,"Mex.","Acambay de Ruíz Castañeda","Acambay de Ruíz Castañeda, Mex.",1,125," "," "]
["México",15,"Mex.","Acolman","Acolman, Mex.",2,125," "," "]
["México",15,"Mex.","Aculco","Aculco, Mex.",3,125," "," "]
["México",15,"Mex.","Almoloya de Alquisiras","Almoloya de Alquisiras, Mex.",4,125," "," "]
["México",15,"Mex.","Almoloya de Juárez","Almoloya de Juárez, Mex.",5,125," "," "]
["México",15,"Mex.","Almoloya del Río","Almoloya del Río, Mex.",6,125," "," "]
["México",15,"Mex.","Amanalco","Amanalco, Mex.",7,125," "," "]
["México",15,"Mex.","Amatepec","Amatepec, Mex.",8,125," "," "]
["México",15,"Mex.","Amecameca","Amecameca, Mex.",9,125," "," "]
["México",15,"Mex.","Apaxco","Apaxco, Mex.",10,125," "," "]
["México",15,"Mex.","Atenco","Atenco, Mex.",11,125," "," "]
["México",15,"Mex.","Atizapán","Atizapán, Mex.",12,125," "," "]
["México",15,"Mex.","Atizapán de Zaragoza","Atizapán de Zaragoza, Mex.",13,125," "," "]
["México",15,"Mex.","Atlacomulco","Atlacomulco, Mex.",14,125," "," "]
["México",15,"Mex.","Atlautla","Atlautla, Mex.",15,125," "," "]
["México",15,"Mex.","Axapusco","Axapusco, Mex.",16,125," "," "]
["México",15,"Mex.","Ayapango","Ayapango, Mex.",17,125," "," "]
["México",15,"Mex.","Calimaya","Calimaya, Mex.",18,125," "," "]
["México",15,"Mex.","Capulhuac","Capulhuac, Mex.",19,125," "," "]
["México",15,"Mex.","Chalco","Chalco, Mex.",25,125," "," "]
["México",15,"Mex.","Chapa de Mota","Chapa de Mota, Mex.",26,125," "," "]
["México",15,"Mex.","Chapultepec","Chapultepec, Mex.",27,125," "," "]
["México",15,"Mex.","Chiautla","Chiautla, Mex.",28,125," "," "]
["México",15,"Mex.","Chicoloapan","Chicoloapan, Mex.",29,125," "," "]
["México",15,"Mex.","Chiconcuac","Chiconcuac, Mex.",30,125," "," "]
["México",15,"Mex.","Chimalhuacán","Chimalhuacán, Mex.",31,125," "," "]
["México",15,"Mex.","Coacalco de Berriozábal","Coacalco de Berriozábal, Mex.",20,125," "," "]
["México",15,"Mex.","Coatepec Harinas","Coatepec Harinas, Mex.",21,125," "," "]
["México",15,"Mex.","Cocotitlán","Cocotitlán, Mex.",22,125," "," "]
["México",15,"Mex.","Coyotepec","Coyotepec, Mex.",23,125," "," "]
["México",15,"Mex.","Cuautitlán","Cuautitlán, Mex.",24,125," "," "]
["México",15,"Mex.","Cuautitlán Izcalli","Cuautitlán Izcalli, Mex.",121,125," "," "]
["México",15,"Mex.","Donato Guerra","Donato Guerra, Mex.",32,125," "," "]
["México",15,"Mex.","Ecatepec de Morelos","Ecatepec de Morelos, Mex.",33,125," "," "]
["México",15,"Mex.","Ecatzingo","Ecatzingo, Mex.",34,125," "," "]
["México",15,"Mex.","El Oro","El Oro, Mex.",64,125," "," "]
["México",15,"Mex.","Huehuetoca","Huehuetoca, Mex.",35,125," "," "]
["México",15,"Mex.","Hueypoxtla","Hueypoxtla, Mex.",36,125," "," "]
["México",15,"Mex.","Huixquilucan","Huixquilucan, Mex.",37,125," "," "]
["México",15,"Mex.","Isidro Fabela","Isidro Fabela, Mex.",38,125," "," "]
["México",15,"Mex.","Ixtapaluca","Ixtapaluca, Mex.",39,125," "," "]
["México",15,"Mex.","Ixtapan de la Sal","Ixtapan de la Sal, Mex.",40,125," "," "]
["México",15,"Mex.","Ixtapan del Oro","Ixtapan del Oro, Mex.",41,125," "," "]
["México",15,"Mex.","Ixtlahuaca","Ixtlahuaca, Mex.",42,125," "," "]
["México",15,"Mex.","Jaltenco","Jaltenco, Mex.",44,125," "," "]
["México",15,"Mex.","Jilotepec","Jilotepec, Mex.",45,125," "," "]
["México",15,"Mex.","Jilotzingo","Jilotzingo, Mex.",46,125," "," "]
["México",15,"Mex.","Jiquipilco","Jiquipilco, Mex.",47,125," "," "]
["México",15,"Mex.","Jocotitlán",{"$f":"D706&\", \"&C706","v":"Jocotitlán, Mex."},48,125," "," "]
["México",15,"Mex.","Joquicingo","Joquicingo, Mex.",49,125,{"$f":"IF(E707=E708,\"mal\",\" \")","v":" "},{"$f":"IF(H707=\"mal\",1,\" \")","v":" "}]
["México",15,"Mex.","Juchitepec","Juchitepec, Mex.",50,125," "," "]
["México",15,"Mex.","La Paz","La Paz, Mex.",70,125," "," "]
["México",15,"Mex.","Lerma","Lerma, Mex.",51,125," "," "]
["México",15,"Mex.","Luvianos","Luvianos, Mex.",123,125," "," "]
["México",15,"Mex.","Malinalco","Malinalco, Mex.",52,125," "," "]
["México",15,"Mex.","Melchor Ocampo","Melchor Ocampo, Mex.",53,125," "," "]
["México",15,"Mex.","Metepec","Metepec, Mex.",54,125," "," "]
["México",15,"Mex.","Mexicaltzingo","Mexicaltzingo, Mex.",55,125," "," "]
["México",15,"Mex.","Morelos","Morelos, Mex.",56,125," "," "]
["México",15,"Mex.","Naucalpan de Juárez","Naucalpan de Juárez, Mex.",57,125," "," "]
["México",15,"Mex.","Nextlalpan","Nextlalpan, Mex.",59,125," "," "]
["México",15,"Mex.","Nezahualcóyotl","Nezahualcóyotl, Mex.",58,125," "," "]
["México",15,"Mex.","Nicolás Romero","Nicolás Romero, Mex.",60,125," "," "]
["México",15,"Mex.","Nopaltepec","Nopaltepec, Mex.",61,125," "," "]
["México",15,"Mex.","Ocoyoacac","Ocoyoacac, Mex.",62,125," "," "]
["México",15,"Mex.","Ocuilan","Ocuilan, Mex.",63,125," "," "]
["México",15,"Mex.","Otumba","Otumba, Mex.",65,125," "," "]
["México",15,"Mex.","Otzoloapan","Otzoloapan, Mex.",66,125," "," "]
["México",15,"Mex.","Otzolotepec","Otzolotepec, Mex.",67,125," "," "]
["México",15,"Mex.","Ozumba","Ozumba, Mex.",68,125," "," "]
["México",15,"Mex.","Papalotla","Papalotla, Mex.",69,125," "," "]
["México",15,"Mex.","Polotitlán","Polotitlán, Mex.",71,125," "," "]
["México",15,"Mex.","Rayón","Rayón, Mex.",72,125," "," "]
["México",15,"Mex.","San Antonio la Isla","San Antonio la Isla, Mex.",73,125," "," "]
["México",15,"Mex.","San Felipe del Progreso","San Felipe del Progreso, Mex.",74,125," "," "]
["México",15,"Mex.","San José del Rincón","San José del Rincón, Mex.",124,125," "," "]
["México",15,"Mex.","San Martín de las Pirámides","San Martín de las Pirámides, Mex.",75,125," "," "]
["México",15,"Mex.","San Mateo Atenco","San Mateo Atenco, Mex.",76,125," "," "]
["México",15,"Mex.","San Simón de Guerrero","San Simón de Guerrero, Mex.",77,125," "," "]
["México",15,"Mex.","Santo Tomás","Santo Tomás, Mex.",78,125," "," "]
["México",15,"Mex.","Soyaniquilpan de Juárez","Soyaniquilpan de Juárez, Mex.",79,125," "," "]
["México",15,"Mex.","Sultepec","Sultepec, Mex.",80,125," "," "]
["México",15,"Mex.","Tecámac","Tecámac, Mex.",81,125," "," "]
["México",15,"Mex.","Tejupilco","Tejupilco, Mex.",82,125," "," "]
["México",15,"Mex.","Temamatla","Temamatla, Mex.",83,125," "," "]
["México",15,"Mex.","Temascalapa","Temascalapa, Mex.",84,125," "," "]
["México",15,"Mex.","Temascalcingo","Temascalcingo, Mex.",85,125," "," "]
["México",15,"Mex.","Temascaltepec","Temascaltepec, Mex.",86,125," "," "]
["México",15,"Mex.","Temoaya","Temoaya, Mex.",87,125," "," "]
["México",15,"Mex.","Tenancingo","Tenancingo, Mex.",88,125," "," "]
["México",15,"Mex.","Tenango del Aire","Tenango del Aire, Mex.",89,125," "," "]
["México",15,"Mex.","Tenango del Valle","Tenango del Valle, Mex.",90,125," "," "]
["México",15,"Mex.","Teoloyucan","Teoloyucan, Mex.",91,125," "," "]
["México",15,"Mex.","Teotihuacán","Teotihuacán, Mex.",92,125," "," "]
["México",15,"Mex.","Tepetlaoxtoc","Tepetlaoxtoc, Mex.",93,125," "," "]
["México",15,"Mex.","Tepetlixpa","Tepetlixpa, Mex.",94,125," "," "]
["México",15,"Mex.","Tepotzotlán","Tepotzotlán, Mex.",95,125," "," "]
["México",15,"Mex.","Tequixquiac","Tequixquiac, Mex.",96,125," "," "]
["México",15,"Mex.","Texcaltitlán","Texcaltitlán, Mex.",97,125," "," "]
["México",15,"Mex.","Texcalyacac","Texcalyacac, Mex.",98,125," "," "]
["México",15,"Mex.","Texcoco","Texcoco, Mex.",99,125," "," "]
["México",15,"Mex.","Tezoyuca","Tezoyuca, Mex.",100,125," "," "]
["México",15,"Mex.","Tianguistenco","Tianguistenco, Mex.",101,125," "," "]
["México",15,"Mex.","Timilpan","Timilpan, Mex.",102,125," "," "]
["México",15,"Mex.","Tlalmanalco","Tlalmanalco, Mex.",103,125," "," "]
["México",15,"Mex.","Tlalnepantla de Baz","Tlalnepantla de Baz, Mex.",104,125," "," "]
["México",15,"Mex.","Tlatlaya","Tlatlaya, Mex.",105,125," "," "]
["México",15,"Mex.","Toluca","Toluca, Mex.",106,125," "," "]
["México",15,"Mex.","Tonanitla","Tonanitla, Mex.",125,125," "," "]
["México",15,"Mex.","Tonatico","Tonatico, Mex.",107,125," "," "]
["México",15,"Mex.","Tultepec","Tultepec, Mex.",108,125," "," "]
["México",15,"Mex.","Tultitlán","Tultitlán, Mex.",109,125," "," "]
["México",15,"Mex.","Valle de Bravo",{"$f":"D770&\", \"&C770","v":"Valle de Bravo, Mex."},110,125," "," "]
["México",15,"Mex.","Valle de Chalco Solidaridad","Valle de Chalco Solidaridad, Mex.",122,125,{"$f":"IF(E771=E772,\"mal\",\" \")","v":" "},{"$f":"IF(H771=\"mal\",1,\" \")","v":" "}]
["México",15,"Mex.","Villa de Allende","Villa de Allende, Mex.",111,125," "," "]
["México",15,"Mex.","Villa del Carbón","Villa del Carbón, Mex.",112,125," "," "]
["México",15,"Mex.","Villa Guerrero","Villa Guerrero, Mex.",113,125," "," "]
["México",15,"Mex.","Villa Victoria","Villa Victoria, Mex.",114,125," "," "]
["México",15,"Mex.","Xalatlaco","Xalatlaco, Mex.",43,125," "," "]
["México",15,"Mex.","Xonacatlán","Xonacatlán, Mex.",115,125," "," "]
["México",15,"Mex.","Zacazonapan","Zacazonapan, Mex.",116,125," "," "]
["México",15,"Mex.","Zacualpan","Zacualpan, Mex.",117,125," "," "]
["México",15,"Mex.","Zinacantepec","Zinacantepec, Mex.",118,125," "," "]
["México",15,"Mex.","Zumpahuacán","Zumpahuacán, Mex.",119,125," "," "]
["México",15,"Mex.","Zumpango","Zumpango, Mex.",120,125," "," "]
["Michoacán_de_Ocampo",16,"Mich.","Acuitzio","Acuitzio, Mich.",1,113," "," "]
["Michoacán_de_Ocampo",16,"Mich.","Aguililla","Aguililla, Mich.",2,113," "," "]
["Michoacán_de_Ocampo",16,"Mich.","Alvaro Obregón","Alvaro Obregón, Mich.",3,113," "," "]
["Michoacán_de_Ocampo",16,"Mich.","Angamacutiro","Angamacutiro, Mich.",4,113," "," "]
["Michoacán_de_Ocampo",16,"Mich.","Angangueo","Angangueo, Mich.",5,113," "," "]
["Michoacán_de_Ocampo",16,"Mich.","Apatzingán","Apatzingán, Mich.",6,113," "," "]
["Michoacán_de_Ocampo",16,"Mich.","Aporo","Aporo, Mich.",7,113," "," "]
["Michoacán_de_Ocampo",16,"Mich.","Aquila","Aquila, Mich.",8,113," "," "]
["Michoacán_de_Ocampo",16,"Mich.","Ario","Ario, Mich.",9,113," "," "]
["Michoacán_de_Ocampo",16,"Mich.","Arteaga","Arteaga, Mich.",10,113," "," "]
["Michoacán_de_Ocampo",16,"Mich.","Briseñas","Briseñas, Mich.",11,113," "," "]
["Michoacán_de_Ocampo",16,"Mich.","Buenavista","Buenavista, Mich.",12,113," "," "]
["Michoacán_de_Ocampo",16,"Mich.","Carácuaro","Carácuaro, Mich.",13,113," "," "]
["Michoacán_de_Ocampo",16,"Mich.","Charapan","Charapan, Mich.",21,113," "," "]
["Michoacán_de_Ocampo",16,"Mich.","Charo","Charo, Mich.",22,113," "," "]
["Michoacán_de_Ocampo",16,"Mich.","Chavinda","Chavinda, Mich.",23,113," "," "]
["Michoacán_de_Ocampo",16,"Mich.","Cherán","Cherán, Mich.",24,113," "," "]
["Michoacán_de_Ocampo",16,"Mich.","Chilchota","Chilchota, Mich.",25,113," "," "]
["Michoacán_de_Ocampo",16,"Mich.","Chinicuila","Chinicuila, Mich.",26,113," "," "]
["Michoacán_de_Ocampo",16,"Mich.","Chucándiro","Chucándiro, Mich.",27,113," "," "]
["Michoacán_de_Ocampo",16,"Mich.","Churintzio","Churintzio, Mich.",28,113," "," "]
["Michoacán_de_Ocampo",16,"Mich.","Churumuco","Churumuco, Mich.",29,113," "," "]
["Michoacán_de_Ocampo",16,"Mich.","Coahuayana","Coahuayana, Mich.",14,113," "," "]
["Michoacán_de_Ocampo",16,"Mich.","Coalcomán de Vázquez Pallares","Coalcomán de Vázquez Pallares, Mich.",15,113," "," "]
["Michoacán_de_Ocampo",16,"Mich.","Coeneo","Coeneo, Mich.",16,113," "," "]
["Michoacán_de_Ocampo",16,"Mich.","Cojumatlán de Régules","Cojumatlán de Régules, Mich.",74,113," "," "]
["Michoacán_de_Ocampo",16,"Mich.","Contepec","Contepec, Mich.",17,113," "," "]
["Michoacán_de_Ocampo",16,"Mich.","Copándaro","Copándaro, Mich.",18,113," "," "]
["Michoacán_de_Ocampo",16,"Mich.","Cotija","Cotija, Mich.",19,113," "," "]
["Michoacán_de_Ocampo",16,"Mich.","Cuitzeo","Cuitzeo, Mich.",20,113," "," "]
["Michoacán_de_Ocampo",16,"Mich.","Ecuandureo","Ecuandureo, Mich.",30,113," "," "]
["Michoacán_de_Ocampo",16,"Mich.","Epitacio Huerta","Epitacio Huerta, Mich.",31,113," "," "]
["Michoacán_de_Ocampo",16,"Mich.","Erongarícuaro","Erongarícuaro, Mich.",32,113," "," "]
["Michoacán_de_Ocampo",16,"Mich.","Gabriel Zamora","Gabriel Zamora, Mich.",33,113," "," "]
["Michoacán_de_Ocampo",16,"Mich.","Hidalgo","Hidalgo, Mich.",34,113," "," "]
["Michoacán_de_Ocampo",16,"Mich.","Huandacareo","Huandacareo, Mich.",36,113," "," "]
["Michoacán_de_Ocampo",16,"Mich.","Huaniqueo","Huaniqueo, Mich.",37,113," "," "]
["Michoacán_de_Ocampo",16,"Mich.","Huetamo","Huetamo, Mich.",38,113," "," "]
["Michoacán_de_Ocampo",16,"Mich.","Huiramba","Huiramba, Mich.",39,113," "," "]
["Michoacán_de_Ocampo",16,"Mich.","Indaparapeo","Indaparapeo, Mich.",40,113," "," "]
["Michoacán_de_Ocampo",16,"Mich.","Irimbo","Irimbo, Mich.",41,113," "," "]
["Michoacán_de_Ocampo",16,"Mich.","Ixtlán","Ixtlán, Mich.",42,113," "," "]
["Michoacán_de_Ocampo",16,"Mich.","Jacona","Jacona, Mich.",43,113," "," "]
["Michoacán_de_Ocampo",16,"Mich.","Jiménez","Jiménez, Mich.",44,113," "," "]
["Michoacán_de_Ocampo",16,"Mich.","Jiquilpan","Jiquilpan, Mich.",45,113," "," "]
["Michoacán_de_Ocampo",16,"Mich.","José Sixto Verduzco","José Sixto Verduzco, Mich.",113,113," "," "]
["Michoacán_de_Ocampo",16,"Mich.","Juárez","Juárez, Mich.",46,113," "," "]
["Michoacán_de_Ocampo",16,"Mich.","Jungapeo","Jungapeo, Mich.",47,113," "," "]
["Michoacán_de_Ocampo",16,"Mich.","La Huacana","La Huacana, Mich.",35,113," "," "]
["Michoacán_de_Ocampo",16,"Mich.","La Piedad","La Piedad, Mich.",69,113," "," "]
["Michoacán_de_Ocampo",16,"Mich.","Lagunillas","Lagunillas, Mich.",48,113," "," "]
["Michoacán_de_Ocampo",16,"Mich.","Lázaro Cárdenas",{"$f":"D834&\", \"&C834","v":"Lázaro Cárdenas, Mich."},52,113," "," "]
["Michoacán_de_Ocampo",16,"Mich.","Los Reyes","Los Reyes, Mich.",75,113,{"$f":"IF(E835=E836,\"mal\",\" \")","v":" "},{"$f":"IF(H835=\"mal\",1,\" \")","v":" "}]
["Michoacán_de_Ocampo",16,"Mich.","Madero","Madero, Mich.",49,113," "," "]
["Michoacán_de_Ocampo",16,"Mich.","Maravatío","Maravatío, Mich.",50,113," "," "]
["Michoacán_de_Ocampo",16,"Mich.","Marcos Castellanos","Marcos Castellanos, Mich.",51,113," "," "]
["Michoacán_de_Ocampo",16,"Mich.","Morelia","Morelia, Mich.",53,113," "," "]
["Michoacán_de_Ocampo",16,"Mich.","Morelos","Morelos, Mich.",54,113," "," "]
["Michoacán_de_Ocampo",16,"Mich.","Múgica","Múgica, Mich.",55,113," "," "]
["Michoacán_de_Ocampo",16,"Mich.","Nahuatzen","Nahuatzen, Mich.",56,113," "," "]
["Michoacán_de_Ocampo",16,"Mich.","Nocupétaro","Nocupétaro, Mich.",57,113," "," "]
["Michoacán_de_Ocampo",16,"Mich.","Nuevo Parangaricutiro","Nuevo Parangaricutiro, Mich.",58,113," "," "]
["Michoacán_de_Ocampo",16,"Mich.","Nuevo Urecho","Nuevo Urecho, Mich.",59,113," "," "]
["Michoacán_de_Ocampo",16,"Mich.","Numarán","Numarán, Mich.",60,113," "," "]
["Michoacán_de_Ocampo",16,"Mich.","Ocampo","Ocampo, Mich.",61,113," "," "]
["Michoacán_de_Ocampo",16,"Mich.","Pajacuarán","Pajacuarán, Mich.",62,113," "," "]
["Michoacán_de_Ocampo",16,"Mich.","Panindícuaro","Panindícuaro, Mich.",63,113," "," "]
["Michoacán_de_Ocampo",16,"Mich.","Paracho","Paracho, Mich.",65,113," "," "]
["Michoacán_de_Ocampo",16,"Mich.","Parácuaro","Parácuaro, Mich.",64,113," "," "]
["Michoacán_de_Ocampo",16,"Mich.","Pátzcuaro","Pátzcuaro, Mich.",66,113," "," "]
["Michoacán_de_Ocampo",16,"Mich.","Penjamillo","Penjamillo, Mich.",67,113," "," "]
["Michoacán_de_Ocampo",16,"Mich.","Peribán","Peribán, Mich.",68,113," "," "]
["Michoacán_de_Ocampo",16,"Mich.","Purépero","Purépero, Mich.",70,113," "," "]
["Michoacán_de_Ocampo",16,"Mich.","Puruándiro","Puruándiro, Mich.",71,113," "," "]
["Michoacán_de_Ocampo",16,"Mich.","Queréndaro","Queréndaro, Mich.",72,113," "," "]
["Michoacán_de_Ocampo",16,"Mich.","Quiroga","Quiroga, Mich.",73,113," "," "]
["Michoacán_de_Ocampo",16,"Mich.","Sahuayo","Sahuayo, Mich.",76,113," "," "]
["Michoacán_de_Ocampo",16,"Mich.","Salvador Escalante","Salvador Escalante, Mich.",79,113," "," "]
["Michoacán_de_Ocampo",16,"Mich.","San Lucas","San Lucas, Mich.",77,113," "," "]
["Michoacán_de_Ocampo",16,"Mich.","Santa Ana Maya","Santa Ana Maya, Mich.",78,113," "," "]
["Michoacán_de_Ocampo",16,"Mich.","Senguio","Senguio, Mich.",80,113," "," "]
["Michoacán_de_Ocampo",16,"Mich.","Susupuato","Susupuato, Mich.",81,113," "," "]
["Michoacán_de_Ocampo",16,"Mich.","Tacámbaro","Tacámbaro, Mich.",82,113," "," "]
["Michoacán_de_Ocampo",16,"Mich.","Tancítaro","Tancítaro, Mich.",83,113," "," "]
["Michoacán_de_Ocampo",16,"Mich.","Tangamandapio","Tangamandapio, Mich.",84,113," "," "]
["Michoacán_de_Ocampo",16,"Mich.","Tangancícuaro","Tangancícuaro, Mich.",85,113," "," "]
["Michoacán_de_Ocampo",16,"Mich.","Tanhuato","Tanhuato, Mich.",86,113," "," "]
["Michoacán_de_Ocampo",16,"Mich.","Taretan","Taretan, Mich.",87,113," "," "]
["Michoacán_de_Ocampo",16,"Mich.","Tarímbaro","Tarímbaro, Mich.",88,113," "," "]
["Michoacán_de_Ocampo",16,"Mich.","Tepalcatepec","Tepalcatepec, Mich.",89,113," "," "]
["Michoacán_de_Ocampo",16,"Mich.","Tingambato","Tingambato, Mich.",90,113," "," "]
["Michoacán_de_Ocampo",16,"Mich.","Tingüindín","Tingüindín, Mich.",91,113," "," "]
["Michoacán_de_Ocampo",16,"Mich.","Tiquicheo de Nicolás Romero","Tiquicheo de Nicolás Romero, Mich.",92,113," "," "]
["Michoacán_de_Ocampo",16,"Mich.","Tlalpujahua","Tlalpujahua, Mich.",93,113," "," "]
["Michoacán_de_Ocampo",16,"Mich.","Tlazazalca","Tlazazalca, Mich.",94,113," "," "]
["Michoacán_de_Ocampo",16,"Mich.","Tocumbo","Tocumbo, Mich.",95,113," "," "]
["Michoacán_de_Ocampo",16,"Mich.","Tumbiscatío","Tumbiscatío, Mich.",96,113," "," "]
["Michoacán_de_Ocampo",16,"Mich.","Turicato","Turicato, Mich.",97,113," "," "]
["Michoacán_de_Ocampo",16,"Mich.","Tuxpan","Tuxpan, Mich.",98,113," "," "]
["Michoacán_de_Ocampo",16,"Mich.","Tuzantla","Tuzantla, Mich.",99,113," "," "]
["Michoacán_de_Ocampo",16,"Mich.","Tzintzuntzan","Tzintzuntzan, Mich.",100,113," "," "]
["Michoacán_de_Ocampo",16,"Mich.","Tzitzio","Tzitzio, Mich.",101,113," "," "]
["Michoacán_de_Ocampo",16,"Mich.","Uruapan","Uruapan, Mich.",102,113," "," "]
["Michoacán_de_Ocampo",16,"Mich.","Venustiano Carranza","Venustiano Carranza, Mich.",103,113," "," "]
["Michoacán_de_Ocampo",16,"Mich.","Villamar","Villamar, Mich.",104,113," "," "]
["Michoacán_de_Ocampo",16,"Mich.","Vista Hermosa","Vista Hermosa, Mich.",105,113," "," "]
["Michoacán_de_Ocampo",16,"Mich.","Yurécuaro","Yurécuaro, Mich.",106,113," "," "]
["Michoacán_de_Ocampo",16,"Mich.","Zacapu","Zacapu, Mich.",107,113," "," "]
["Michoacán_de_Ocampo",16,"Mich.","Zamora","Zamora, Mich.",108,113," "," "]
["Michoacán_de_Ocampo",16,"Mich.","Zináparo","Zináparo, Mich.",109,113," "," "]
["Michoacán_de_Ocampo",16,"Mich.","Zinapécuaro","Zinapécuaro, Mich.",110,113," "," "]
["Michoacán_de_Ocampo",16,"Mich.","Ziracuaretiro","Ziracuaretiro, Mich.",111,113," "," "]
["Michoacán_de_Ocampo",16,"Mich.","Zitácuaro","Zitácuaro, Mich.",112,113," "," "]
["Morelos",17,"Mor.","Amacuzac","Amacuzac, Mor.",1,33," "," "]
["Morelos",17,"Mor.","Atlatlahucan","Atlatlahucan, Mor.",2,33," "," "]
["Morelos",17,"Mor.","Axochiapan",{"$f":"D898&\", \"&C898","v":"Axochiapan, Mor."},3,33," "," "]
["Morelos",17,"Mor.","Ayala","Ayala, Mor.",4,33,{"$f":"IF(E899=E900,\"mal\",\" \")","v":" "},{"$f":"IF(H899=\"mal\",1,\" \")","v":" "}]
["Morelos",17,"Mor.","Coatlán del Río","Coatlán del Río, Mor.",5,33," "," "]
["Morelos",17,"Mor.","Cuautla","Cuautla, Mor.",6,33," "," "]
["Morelos",17,"Mor.","Cuernavaca","Cuernavaca, Mor.",7,33," "," "]
["Morelos",17,"Mor.","Emiliano Zapata","Emiliano Zapata, Mor.",8,33," "," "]
["Morelos",17,"Mor.","Huitzilac","Huitzilac, Mor.",9,33," "," "]
["Morelos",17,"Mor.","Jantetelco","Jantetelco, Mor.",10,33," "," "]
["Morelos",17,"Mor.","Jiutepec","Jiutepec, Mor.",11,33," "," "]
["Morelos",17,"Mor.","Jojutla","Jojutla, Mor.",12,33," "," "]
["Morelos",17,"Mor.","Jonacatepec","Jonacatepec, Mor.",13,33," "," "]
["Morelos",17,"Mor.","Mazatepec","Mazatepec, Mor.",14,33," "," "]
["Morelos",17,"Mor.","Miacatlán","Miacatlán, Mor.",15,33," "," "]
["Morelos",17,"Mor.","Ocuituco","Ocuituco, Mor.",16,33," "," "]
["Morelos",17,"Mor.","Puente de Ixtla","Puente de Ixtla, Mor.",17,33," "," "]
["Morelos",17,"Mor.","Temixco","Temixco, Mor.",18,33," "," "]
["Morelos",17,"Mor.","Temoac","Temoac, Mor.",33,33," "," "]
["Morelos",17,"Mor.","Tepalcingo","Tepalcingo, Mor.",19,33," "," "]
["Morelos",17,"Mor.","Tepoztlán","Tepoztlán, Mor.",20,33," "," "]
["Morelos",17,"Mor.","Tetecala","Tetecala, Mor.",21,33," "," "]
["Morelos",17,"Mor.","Tetela del Volcán","Tetela del Volcán, Mor.",22,33," "," "]
["Morelos",17,"Mor.","Tlalnepantla","Tlalnepantla, Mor.",23,33," "," "]
["Morelos",17,"Mor.","Tlaltizapán de Zapata","Tlaltizapán de Zapata, Mor.",24,33," "," "]
["Morelos",17,"Mor.","Tlaquiltenango","Tlaquiltenango, Mor.",25,33," "," "]
["Morelos",17,"Mor.","Tlayacapan","Tlayacapan, Mor.",26,33," "," "]
["Morelos",17,"Mor.","Totolapan","Totolapan, Mor.",27,33," "," "]
["Morelos",17,"Mor.","Xochitepec","Xochitepec, Mor.",28,33," "," "]
["Morelos",17,"Mor.","Yautepec","Yautepec, Mor.",29,33," "," "]
["Morelos",17,"Mor.","Yecapixtla","Yecapixtla, Mor.",30,33," "," "]
["Morelos",17,"Mor.","Zacatepec","Zacatepec, Mor.",31,33," "," "]
["Morelos",17,"Mor.","Zacualpan","Zacualpan, Mor.",32,33," "," "]
["Nayarit",18,"Nay.","Acaponeta","Acaponeta, Nay.",1,20," "," "]
["Nayarit",18,"Nay.","Ahuacatlán","Ahuacatlán, Nay.",2,20," "," "]
["Nayarit",18,"Nay.","Amatlán de Cañas","Amatlán de Cañas, Nay.",3,20," "," "]
["Nayarit",18,"Nay.","Bahía de Banderas","Bahía de Banderas, Nay.",20,20," "," "]
["Nayarit",18,"Nay.","Compostela","Compostela, Nay.",4,20," "," "]
["Nayarit",18,"Nay.","Del Nayar","Del Nayar, Nay.",9,20," "," "]
["Nayarit",18,"Nay.","Huajicori","Huajicori, Nay.",5,20," "," "]
["Nayarit",18,"Nay.","Ixtlán del Río","Ixtlán del Río, Nay.",6,20," "," "]
["Nayarit",18,"Nay.","Jala","Jala, Nay.",7,20," "," "]
["Nayarit",18,"Nay.","La Yesca","La Yesca, Nay.",19,20," "," "]
["Nayarit",18,"Nay.","Rosamorada","Rosamorada, Nay.",10,20," "," "]
["Nayarit",18,"Nay.","Ruíz","Ruíz, Nay.",11,20," "," "]
["Nayarit",18,"Nay.","San Blas","San Blas, Nay.",12,20," "," "]
["Nayarit",18,"Nay.","San Pedro Lagunillas","San Pedro Lagunillas, Nay.",13,20," "," "]
["Nayarit",18,"Nay.","Santa María del Oro","Santa María del Oro, Nay.",14,20," "," "]
["Nayarit",18,"Nay.","Santiago Ixcuintla","Santiago Ixcuintla, Nay.",15,20," "," "]
["Nayarit",18,"Nay.","Tecuala","Tecuala, Nay.",16,20," "," "]
["Nayarit",18,"Nay.","Tepic","Tepic, Nay.",17,20," "," "]
["Nayarit",18,"Nay.","Tuxpan","Tuxpan, Nay.",18,20," "," "]
["Nayarit",18,"Nay.","Xalisco","Xalisco, Nay.",8,20," "," "]
["Nuevo_León",19,"NL","Abasolo","Abasolo, NL",1,51," "," "]
["Nuevo_León",19,"NL","Agualeguas","Agualeguas, NL",2,51," "," "]
["Nuevo_León",19,"NL","Allende","Allende, NL",4,51," "," "]
["Nuevo_León",19,"NL","Anáhuac","Anáhuac, NL",5,51," "," "]
["Nuevo_León",19,"NL","Apodaca","Apodaca, NL",6,51," "," "]
["Nuevo_León",19,"NL","Aramberri","Aramberri, NL",7,51," "," "]
["Nuevo_León",19,"NL","Bustamante","Bustamante, NL",8,51," "," "]
["Nuevo_León",19,"NL","Cadereyta Jiménez","Cadereyta Jiménez, NL",9,51," "," "]
["Nuevo_León",19,"NL","Cerralvo","Cerralvo, NL",11,51," "," "]
["Nuevo_León",19,"NL","China","China, NL",13,51," "," "]
["Nuevo_León",19,"NL","Ciénega de Flores","Ciénega de Flores, NL",12,51," "," "]
["Nuevo_León",19,"NL","Doctor Arroyo","Doctor Arroyo, NL",14,51," "," "]
["Nuevo_León",19,"NL","Doctor Coss","Doctor Coss, NL",15,51," "," "]
["Nuevo_León",19,"NL","Doctor González",{"$f":"D962&\", \"&C962","v":"Doctor González, NL"},16,51," "," "]
["Nuevo_León",19,"NL","El Carmen","El Carmen, NL",10,51,{"$f":"IF(E963=E964,\"mal\",\" \")","v":" "},{"$f":"IF(H963=\"mal\",1,\" \")","v":" "}]
["Nuevo_León",19,"NL","Galeana","Galeana, NL",17,51," "," "]
["Nuevo_León",19,"NL","García","García, NL",18,51," "," "]
["Nuevo_León",19,"NL","General Bravo","General Bravo, NL",20,51," "," "]
["Nuevo_León",19,"NL","General Escobedo","General Escobedo, NL",21,51," "," "]
["Nuevo_León",19,"NL","General Terán","General Terán, NL",22,51," "," "]
["Nuevo_León",19,"NL","General Treviño","General Treviño, NL",23,51," "," "]
["Nuevo_León",19,"NL","General Zaragoza","General Zaragoza, NL",24,51," "," "]
["Nuevo_León",19,"NL","General Zuazua","General Zuazua, NL",25,51," "," "]
["Nuevo_León",19,"NL","Guadalupe","Guadalupe, NL",26,51," "," "]
["Nuevo_León",19,"NL","Hidalgo","Hidalgo, NL",47,51," "," "]
["Nuevo_León",19,"NL","Higueras","Higueras, NL",28,51," "," "]
["Nuevo_León",19,"NL","Hualahuises","Hualahuises, NL",29,51," "," "]
["Nuevo_León",19,"NL","Iturbide","Iturbide, NL",30,51," "," "]
["Nuevo_León",19,"NL","Juárez","Juárez, NL",31,51," "," "]
["Nuevo_León",19,"NL","Lampazos de Naranjo","Lampazos de Naranjo, NL",32,51," "," "]
["Nuevo_León",19,"NL","Linares","Linares, NL",33,51," "," "]
["Nuevo_León",19,"NL","Los Aldamas","Los Aldamas, NL",3,51," "," "]
["Nuevo_León",19,"NL","Los Herreras","Los Herreras, NL",27,51," "," "]
["Nuevo_León",19,"NL","Los Ramones","Los Ramones, NL",42,51," "," "]
["Nuevo_León",19,"NL","Marín","Marín, NL",34,51," "," "]
["Nuevo_León",19,"NL","Melchor Ocampo","Melchor Ocampo, NL",35,51," "," "]
["Nuevo_León",19,"NL","Mier y Noriega","Mier y Noriega, NL",36,51," "," "]
["Nuevo_León",19,"NL","Mina","Mina, NL",37,51," "," "]
["Nuevo_León",19,"NL","Montemorelos","Montemorelos, NL",38,51," "," "]
["Nuevo_León",19,"NL","Monterrey","Monterrey, NL",39,51," "," "]
["Nuevo_León",19,"NL","Parás","Parás, NL",40,51," "," "]
["Nuevo_León",19,"NL","Pesquería","Pesquería, NL",41,51," "," "]
["Nuevo_León",19,"NL","Rayones","Rayones, NL",43,51," "," "]
["Nuevo_León",19,"NL","Sabinas Hidalgo","Sabinas Hidalgo, NL",44,51," "," "]
["Nuevo_León",19,"NL","Salinas Victoria","Salinas Victoria, NL",45,51," "," "]
["Nuevo_León",19,"NL","San Nicolás de los Garza","San Nicolás de los Garza, NL",46,51," "," "]
["Nuevo_León",19,"NL","San Pedro Garza García","San Pedro Garza García, NL",19,51," "," "]
["Nuevo_León",19,"NL","Santa Catarina","Santa Catarina, NL",48,51," "," "]
["Nuevo_León",19,"NL","Santiago","Santiago, NL",49,51," "," "]
["Nuevo_León",19,"NL","Vallecillo","Vallecillo, NL",50,51," "," "]
["Nuevo_León",19,"NL","Villaldama","Villaldama, NL",51,51," "," "]
["Oaxaca",20,"Oax.","Abejones","Abejones, Oax.",1,570," "," "]
["Oaxaca",20,"Oax.","Acatlán de Pérez Figueroa","Acatlán de Pérez Figueroa, Oax.",2,570," "," "]
["Oaxaca",20,"Oax.","Animas Trujano","Animas Trujano, Oax.",174,570," "," "]
["Oaxaca",20,"Oax.","Asunción Cacalotepec","Asunción Cacalotepec, Oax.",3,570," "," "]
["Oaxaca",20,"Oax.","Asunción Cuyotepeji","Asunción Cuyotepeji, Oax.",4,570," "," "]
["Oaxaca",20,"Oax.","Asunción Ixtaltepec","Asunción Ixtaltepec, Oax.",5,570," "," "]
["Oaxaca",20,"Oax.","Asunción Nochixtlán","Asunción Nochixtlán, Oax.",6,570," "," "]
["Oaxaca",20,"Oax.","Asunción Ocotlán","Asunción Ocotlán, Oax.",7,570," "," "]
["Oaxaca",20,"Oax.","Asunción Tlacolulita","Asunción Tlacolulita, Oax.",8,570," "," "]
["Oaxaca",20,"Oax.","Ayoquezco de Aldama","Ayoquezco de Aldama, Oax.",398,570," "," "]
["Oaxaca",20,"Oax.","Ayotzintepec","Ayotzintepec, Oax.",9,570," "," "]
["Oaxaca",20,"Oax.","Calihualá","Calihualá, Oax.",11,570," "," "]
["Oaxaca",20,"Oax.","Candelaria Loxicha","Candelaria Loxicha, Oax.",12,570," "," "]
["Oaxaca",20,"Oax.","Capulálpam de Méndez","Capulálpam de Méndez, Oax.",247,570," "," "]
["Oaxaca",20,"Oax.","Chahuites","Chahuites, Oax.",25,570," "," "]
["Oaxaca",20,"Oax.","Chalcatongo de Hidalgo","Chalcatongo de Hidalgo, Oax.",26,570," "," "]
["Oaxaca",20,"Oax.","Chiquihuitlán de Benito Juárez","Chiquihuitlán de Benito Juárez, Oax.",27,570," "," "]
["Oaxaca",20,"Oax.","Ciénega de Zimatlán","Ciénega de Zimatlán, Oax.",13,570," "," "]
["Oaxaca",20,"Oax.","Ciudad Ixtepec","Ciudad Ixtepec, Oax.",14,570," "," "]
["Oaxaca",20,"Oax.","Coatecas Altas","Coatecas Altas, Oax.",15,570," "," "]
["Oaxaca",20,"Oax.","Coicoyán de las Flores","Coicoyán de las Flores, Oax.",16,570," "," "]
["Oaxaca",20,"Oax.","Concepción Buenavista","Concepción Buenavista, Oax.",18,570," "," "]
["Oaxaca",20,"Oax.","Concepción Pápalo","Concepción Pápalo, Oax.",19,570," "," "]
["Oaxaca",20,"Oax.","Constancia del Rosario","Constancia del Rosario, Oax.",20,570," "," "]
["Oaxaca",20,"Oax.","Cosolapa","Cosolapa, Oax.",21,570," "," "]
["Oaxaca",20,"Oax.","Cosoltepec","Cosoltepec, Oax.",22,570," "," "]
["Oaxaca",20,"Oax.","Cuilápam de Guerrero",{"$f":"D1026&\", \"&C1026","v":"Cuilápam de Guerrero, Oax."},23,570," "," "]
["Oaxaca",20,"Oax.","Cuyamecalco Villa de Zaragoza","Cuyamecalco Villa de Zaragoza, Oax.",24,570,{"$f":"IF(E1027=E1028,\"mal\",\" \")","v":" "},{"$f":"IF(H1027=\"mal\",1,\" \")","v":" "}]
["Oaxaca",20,"Oax.","El Barrio de la Soledad","El Barrio de la Soledad, Oax.",10,570," "," "]
["Oaxaca",20,"Oax.","El Espinal","El Espinal, Oax.",30,570," "," "]
["Oaxaca",20,"Oax.","Eloxochitlán de Flores Magón","Eloxochitlán de Flores Magón, Oax.",29,570," "," "]
["Oaxaca",20,"Oax.","Fresnillo de Trujano","Fresnillo de Trujano, Oax.",32,570," "," "]
["Oaxaca",20,"Oax.","Guadalupe de Ramírez","Guadalupe de Ramírez, Oax.",34,570," "," "]
["Oaxaca",20,"Oax.","Guadalupe Etla","Guadalupe Etla, Oax.",33,570," "," "]
["Oaxaca",20,"Oax.","Guelatao de Juárez","Guelatao de Juárez, Oax.",35,570," "," "]
["Oaxaca",20,"Oax.","Guevea de Humboldt","Guevea de Humboldt, Oax.",36,570," "," "]
["Oaxaca",20,"Oax.","Heroica Ciudad de Ejutla de Crespo","Heroica Ciudad de Ejutla de Crespo, Oax.",28,570," "," "]
["Oaxaca",20,"Oax.","Heroica Ciudad de Huajuapan de León","Heroica Ciudad de Huajuapan de León, Oax.",39,570," "," "]
["Oaxaca",20,"Oax.","Heroica Ciudad de Juchitán de Zaragoza","Heroica Ciudad de Juchitán de Zaragoza, Oax.",43,570," "," "]
["Oaxaca",20,"Oax.","Heroica Ciudad de Tlaxiaco","Heroica Ciudad de Tlaxiaco, Oax.",397,570," "," "]
["Oaxaca",20,"Oax.","Heroica Villa Tezoatlán de Segura y Luna, Cuna de la Independencia de Oaxaca","Heroica Villa Tezoatlán de Segura y Luna, Cuna de la Independencia de Oaxaca, Oax.",549,570," "," "]
["Oaxaca",20,"Oax.","Huautepec","Huautepec, Oax.",40,570," "," "]
["Oaxaca",20,"Oax.","Huautla de Jiménez","Huautla de Jiménez, Oax.",41,570," "," "]
["Oaxaca",20,"Oax.","Ixpantepec Nieves","Ixpantepec Nieves, Oax.",65,570," "," "]
["Oaxaca",20,"Oax.","Ixtlán de Juárez","Ixtlán de Juárez, Oax.",42,570," "," "]
["Oaxaca",20,"Oax.","La Compañía","La Compañía, Oax.",17,570," "," "]
["Oaxaca",20,"Oax.","La Pe","La Pe, Oax.",69,570," "," "]
["Oaxaca",20,"Oax.","La Reforma","La Reforma, Oax.",76,570," "," "]
["Oaxaca",20,"Oax.","La Trinidad Vista Hermosa","La Trinidad Vista Hermosa, Oax.",556,570," "," "]
["Oaxaca",20,"Oax.","Loma Bonita","Loma Bonita, Oax.",44,570," "," "]
["Oaxaca",20,"Oax.","Magdalena Apasco","Magdalena Apasco, Oax.",45,570," "," "]
["Oaxaca",20,"Oax.","Magdalena Jaltepec","Magdalena Jaltepec, Oax.",46,570," "," "]
["Oaxaca",20,"Oax.","Magdalena Mixtepec","Magdalena Mixtepec, Oax.",48,570," "," "]
["Oaxaca",20,"Oax.","Magdalena Ocotlán","Magdalena Ocotlán, Oax.",49,570," "," "]
["Oaxaca",20,"Oax.","Magdalena Peñasco","Magdalena Peñasco, Oax.",50,570," "," "]
["Oaxaca",20,"Oax.","Magdalena Teitipac","Magdalena Teitipac, Oax.",51,570," "," "]
["Oaxaca",20,"Oax.","Magdalena Tequisistlán","Magdalena Tequisistlán, Oax.",52,570," "," "]
["Oaxaca",20,"Oax.","Magdalena Tlacotepec","Magdalena Tlacotepec, Oax.",53,570," "," "]
["Oaxaca",20,"Oax.","Magdalena Yodocono de Porfirio Díaz","Magdalena Yodocono de Porfirio Díaz, Oax.",562,570," "," "]
["Oaxaca",20,"Oax.","Magdalena Zahuatlán","Magdalena Zahuatlán, Oax.",54,570," "," "]
["Oaxaca",20,"Oax.","Mariscala de Juárez","Mariscala de Juárez, Oax.",55,570," "," "]
["Oaxaca",20,"Oax.","Mártires de Tacubaya","Mártires de Tacubaya, Oax.",56,570," "," "]
["Oaxaca",20,"Oax.","Matías Romero Avendaño","Matías Romero Avendaño, Oax.",57,570," "," "]
["Oaxaca",20,"Oax.","Mazatlán Villa de Flores","Mazatlán Villa de Flores, Oax.",58,570," "," "]
["Oaxaca",20,"Oax.","Mesones Hidalgo","Mesones Hidalgo, Oax.",37,570," "," "]
["Oaxaca",20,"Oax.","Miahuatlán de Porfirio Díaz","Miahuatlán de Porfirio Díaz, Oax.",59,570," "," "]
["Oaxaca",20,"Oax.","Mixistlán de la Reforma","Mixistlán de la Reforma, Oax.",60,570," "," "]
["Oaxaca",20,"Oax.","Monjas","Monjas, Oax.",61,570," "," "]
["Oaxaca",20,"Oax.","Natividad","Natividad, Oax.",62,570," "," "]
["Oaxaca",20,"Oax.","Nazareno Etla","Nazareno Etla, Oax.",63,570," "," "]
["Oaxaca",20,"Oax.","Nejapa de Madero","Nejapa de Madero, Oax.",64,570," "," "]
["Oaxaca",20,"Oax.","Nuevo Zoquiápam","Nuevo Zoquiápam, Oax.",504,570," "," "]
["Oaxaca",20,"Oax.","Oaxaca de Juárez","Oaxaca de Juárez, Oax.",67,570," "," "]
["Oaxaca",20,"Oax.","Ocotlán de Morelos","Ocotlán de Morelos, Oax.",68,570," "," "]
["Oaxaca",20,"Oax.","Pinotepa de Don Luis","Pinotepa de Don Luis, Oax.",70,570," "," "]
["Oaxaca",20,"Oax.","Pluma Hidalgo","Pluma Hidalgo, Oax.",71,570," "," "]
["Oaxaca",20,"Oax.","Putla Villa de Guerrero","Putla Villa de Guerrero, Oax.",73,570," "," "]
["Oaxaca",20,"Oax.","Reforma de Pineda","Reforma de Pineda, Oax.",75,570," "," "]
["Oaxaca",20,"Oax.","Reyes Etla","Reyes Etla, Oax.",77,570," "," "]
["Oaxaca",20,"Oax.","Rojas de Cuauhtémoc","Rojas de Cuauhtémoc, Oax.",78,570," "," "]
["Oaxaca",20,"Oax.","Salina Cruz","Salina Cruz, Oax.",79,570," "," "]
["Oaxaca",20,"Oax.","San Agustín Amatengo","San Agustín Amatengo, Oax.",80,570," "," "]
["Oaxaca",20,"Oax.","San Agustín Atenango","San Agustín Atenango, Oax.",81,570," "," "]
["Oaxaca",20,"Oax.","San Agustín Chayuco","San Agustín Chayuco, Oax.",82,570," "," "]
["Oaxaca",20,"Oax.","San Agustín de las Juntas","San Agustín de las Juntas, Oax.",83,570," "," "]
["Oaxaca",20,"Oax.","San Agustín Etla","San Agustín Etla, Oax.",84,570," "," "]
["Oaxaca",20,"Oax.","San Agustín Loxicha","San Agustín Loxicha, Oax.",85,570," "," "]
["Oaxaca",20,"Oax.","San Agustín Tlacotepec","San Agustín Tlacotepec, Oax.",86,570," "," "]
["Oaxaca",20,"Oax.","San Agustín Yatareni","San Agustín Yatareni, Oax.",87,570," "," "]
["Oaxaca",20,"Oax.","San Andrés Cabecera Nueva","San Andrés Cabecera Nueva, Oax.",88,570," "," "]
["Oaxaca",20,"Oax.","San Andrés Dinicuiti",{"$f":"D1090&\", \"&C1090","v":"San Andrés Dinicuiti, Oax."},89,570," "," "]
["Oaxaca",20,"Oax.","San Andrés Huaxpaltepec","San Andrés Huaxpaltepec, Oax.",90,570,{"$f":"IF(E1091=E1092,\"mal\",\" \")","v":" "},{"$f":"IF(H1091=\"mal\",1,\" \")","v":" "}]
["Oaxaca",20,"Oax.","San Andrés Huayápam","San Andrés Huayápam, Oax.",91,570," "," "]
["Oaxaca",20,"Oax.","San Andrés Ixtlahuaca","San Andrés Ixtlahuaca, Oax.",92,570," "," "]
["Oaxaca",20,"Oax.","San Andrés Lagunas","San Andrés Lagunas, Oax.",93,570," "," "]
["Oaxaca",20,"Oax.","San Andrés Nuxiño","San Andrés Nuxiño, Oax.",94,570," "," "]
["Oaxaca",20,"Oax.","San Andrés Paxtlán","San Andrés Paxtlán, Oax.",95,570," "," "]
["Oaxaca",20,"Oax.","San Andrés Sinaxtla","San Andrés Sinaxtla, Oax.",96,570," "," "]
["Oaxaca",20,"Oax.","San Andrés Solaga","San Andrés Solaga, Oax.",97,570," "," "]
["Oaxaca",20,"Oax.","San Andrés Teotilálpam","San Andrés Teotilálpam, Oax.",98,570," "," "]
["Oaxaca",20,"Oax.","San Andrés Tepetlapa","San Andrés Tepetlapa, Oax.",99,570," "," "]
["Oaxaca",20,"Oax.","San Andrés Yaá","San Andrés Yaá, Oax.",100,570," "," "]
["Oaxaca",20,"Oax.","San Andrés Zabache","San Andrés Zabache, Oax.",101,570," "," "]
["Oaxaca",20,"Oax.","San Andrés Zautla","San Andrés Zautla, Oax.",102,570," "," "]
["Oaxaca",20,"Oax.","San Antonino Castillo Velasco","San Antonino Castillo Velasco, Oax.",103,570," "," "]
["Oaxaca",20,"Oax.","San Antonino el Alto","San Antonino el Alto, Oax.",104,570," "," "]
["Oaxaca",20,"Oax.","San Antonino Monte Verde","San Antonino Monte Verde, Oax.",105,570," "," "]
["Oaxaca",20,"Oax.","San Antonio Acutla","San Antonio Acutla, Oax.",106,570," "," "]
["Oaxaca",20,"Oax.","San Antonio de la Cal","San Antonio de la Cal, Oax.",107,570," "," "]
["Oaxaca",20,"Oax.","San Antonio Huitepec","San Antonio Huitepec, Oax.",108,570," "," "]
["Oaxaca",20,"Oax.","San Antonio Nanahuatípam","San Antonio Nanahuatípam, Oax.",109,570," "," "]
["Oaxaca",20,"Oax.","San Antonio Sinicahua","San Antonio Sinicahua, Oax.",110,570," "," "]
["Oaxaca",20,"Oax.","San Antonio Tepetlapa","San Antonio Tepetlapa, Oax.",111,570," "," "]
["Oaxaca",20,"Oax.","San Baltazar Chichicápam","San Baltazar Chichicápam, Oax.",112,570," "," "]
["Oaxaca",20,"Oax.","San Baltazar Loxicha","San Baltazar Loxicha, Oax.",113,570," "," "]
["Oaxaca",20,"Oax.","San Baltazar Yatzachi el Bajo","San Baltazar Yatzachi el Bajo, Oax.",114,570," "," "]
["Oaxaca",20,"Oax.","San Bartolo Coyotepec","San Bartolo Coyotepec, Oax.",115,570," "," "]
["Oaxaca",20,"Oax.","San Bartolo Soyaltepec","San Bartolo Soyaltepec, Oax.",121,570," "," "]
["Oaxaca",20,"Oax.","San Bartolo Yautepec","San Bartolo Yautepec, Oax.",122,570," "," "]
["Oaxaca",20,"Oax.","San Bartolomé Ayautla","San Bartolomé Ayautla, Oax.",116,570," "," "]
["Oaxaca",20,"Oax.","San Bartolomé Loxicha","San Bartolomé Loxicha, Oax.",117,570," "," "]
["Oaxaca",20,"Oax.","San Bartolomé Quialana","San Bartolomé Quialana, Oax.",118,570," "," "]
["Oaxaca",20,"Oax.","San Bartolomé Yucuañe","San Bartolomé Yucuañe, Oax.",119,570," "," "]
["Oaxaca",20,"Oax.","San Bartolomé Zoogocho","San Bartolomé Zoogocho, Oax.",120,570," "," "]
["Oaxaca",20,"Oax.","San Bernardo Mixtepec","San Bernardo Mixtepec, Oax.",123,570," "," "]
["Oaxaca",20,"Oax.","San Blas Atempa","San Blas Atempa, Oax.",124,570," "," "]
["Oaxaca",20,"Oax.","San Carlos Yautepec","San Carlos Yautepec, Oax.",125,570," "," "]
["Oaxaca",20,"Oax.","San Cristóbal Amatlán","San Cristóbal Amatlán, Oax.",126,570," "," "]
["Oaxaca",20,"Oax.","San Cristóbal Amoltepec","San Cristóbal Amoltepec, Oax.",127,570," "," "]
["Oaxaca",20,"Oax.","San Cristóbal Lachirioag","San Cristóbal Lachirioag, Oax.",128,570," "," "]
["Oaxaca",20,"Oax.","San Cristóbal Suchixtlahuaca","San Cristóbal Suchixtlahuaca, Oax.",129,570," "," "]
["Oaxaca",20,"Oax.","San Dionisio del Mar","San Dionisio del Mar, Oax.",130,570," "," "]
["Oaxaca",20,"Oax.","San Dionisio Ocotepec","San Dionisio Ocotepec, Oax.",131,570," "," "]
["Oaxaca",20,"Oax.","San Dionisio Ocotlán","San Dionisio Ocotlán, Oax.",132,570," "," "]
["Oaxaca",20,"Oax.","San Esteban Atatlahuca","San Esteban Atatlahuca, Oax.",133,570," "," "]
["Oaxaca",20,"Oax.","San Felipe Jalapa de Díaz","San Felipe Jalapa de Díaz, Oax.",134,570," "," "]
["Oaxaca",20,"Oax.","San Felipe Tejalápam","San Felipe Tejalápam, Oax.",135,570," "," "]
["Oaxaca",20,"Oax.","San Felipe Usila","San Felipe Usila, Oax.",136,570," "," "]
["Oaxaca",20,"Oax.","San Francisco Cahuacuá","San Francisco Cahuacuá, Oax.",137,570," "," "]
["Oaxaca",20,"Oax.","San Francisco Cajonos","San Francisco Cajonos, Oax.",138,570," "," "]
["Oaxaca",20,"Oax.","San Francisco Chapulapa","San Francisco Chapulapa, Oax.",139,570," "," "]
["Oaxaca",20,"Oax.","San Francisco Chindúa","San Francisco Chindúa, Oax.",140,570," "," "]
["Oaxaca",20,"Oax.","San Francisco del Mar","San Francisco del Mar, Oax.",141,570," "," "]
["Oaxaca",20,"Oax.","San Francisco Huehuetlán","San Francisco Huehuetlán, Oax.",142,570," "," "]
["Oaxaca",20,"Oax.","San Francisco Ixhuatán","San Francisco Ixhuatán, Oax.",143,570," "," "]
["Oaxaca",20,"Oax.","San Francisco Jaltepetongo","San Francisco Jaltepetongo, Oax.",144,570," "," "]
["Oaxaca",20,"Oax.","San Francisco Lachigoló","San Francisco Lachigoló, Oax.",145,570," "," "]
["Oaxaca",20,"Oax.","San Francisco Logueche","San Francisco Logueche, Oax.",146,570," "," "]
["Oaxaca",20,"Oax.","San Francisco Nuxaño","San Francisco Nuxaño, Oax.",147,570," "," "]
["Oaxaca",20,"Oax.","San Francisco Ozolotepec","San Francisco Ozolotepec, Oax.",148,570," "," "]
["Oaxaca",20,"Oax.","San Francisco Sola","San Francisco Sola, Oax.",149,570," "," "]
["Oaxaca",20,"Oax.","San Francisco Telixtlahuaca","San Francisco Telixtlahuaca, Oax.",150,570," "," "]
["Oaxaca",20,"Oax.","San Francisco Teopan","San Francisco Teopan, Oax.",151,570," "," "]
["Oaxaca",20,"Oax.","San Francisco Tlapancingo","San Francisco Tlapancingo, Oax.",152,570," "," "]
["Oaxaca",20,"Oax.","San Gabriel Mixtepec",{"$f":"D1154&\", \"&C1154","v":"San Gabriel Mixtepec, Oax."},153,570," "," "]
["Oaxaca",20,"Oax.","San Ildefonso Amatlán","San Ildefonso Amatlán, Oax.",154,570,{"$f":"IF(E1155=E1156,\"mal\",\" \")","v":" "},{"$f":"IF(H1155=\"mal\",1,\" \")","v":" "}]
["Oaxaca",20,"Oax.","San Ildefonso Sola","San Ildefonso Sola, Oax.",155,570," "," "]
["Oaxaca",20,"Oax.","San Ildefonso Villa Alta","San Ildefonso Villa Alta, Oax.",156,570," "," "]
["Oaxaca",20,"Oax.","San Jacinto Amilpas","San Jacinto Amilpas, Oax.",157,570," "," "]
["Oaxaca",20,"Oax.","San Jacinto Tlacotepec","San Jacinto Tlacotepec, Oax.",158,570," "," "]
["Oaxaca",20,"Oax.","San Jerónimo Coatlán","San Jerónimo Coatlán, Oax.",159,570," "," "]
["Oaxaca",20,"Oax.","San Jerónimo Silacayoapilla","San Jerónimo Silacayoapilla, Oax.",160,570," "," "]
["Oaxaca",20,"Oax.","San Jerónimo Sosola","San Jerónimo Sosola, Oax.",161,570," "," "]
["Oaxaca",20,"Oax.","San Jerónimo Taviche","San Jerónimo Taviche, Oax.",162,570," "," "]
["Oaxaca",20,"Oax.","San Jerónimo Tecóatl","San Jerónimo Tecóatl, Oax.",163,570," "," "]
["Oaxaca",20,"Oax.","San Jerónimo Tlacochahuaya","San Jerónimo Tlacochahuaya, Oax.",550,570," "," "]
["Oaxaca",20,"Oax.","San Jorge Nuchita","San Jorge Nuchita, Oax.",164,570," "," "]
["Oaxaca",20,"Oax.","San José Ayuquila","San José Ayuquila, Oax.",165,570," "," "]
["Oaxaca",20,"Oax.","San José Chiltepec","San José Chiltepec, Oax.",166,570," "," "]
["Oaxaca",20,"Oax.","San José del Peñasco","San José del Peñasco, Oax.",167,570," "," "]
["Oaxaca",20,"Oax.","San José del Progreso","San José del Progreso, Oax.",72,570," "," "]
["Oaxaca",20,"Oax.","San José Estancia Grande","San José Estancia Grande, Oax.",168,570," "," "]
["Oaxaca",20,"Oax.","San José Independencia","San José Independencia, Oax.",169,570," "," "]
["Oaxaca",20,"Oax.","San José Lachiguiri","San José Lachiguiri, Oax.",170,570," "," "]
["Oaxaca",20,"Oax.","San José Tenango","San José Tenango, Oax.",171,570," "," "]
["Oaxaca",20,"Oax.","San Juan Achiutla","San Juan Achiutla, Oax.",172,570," "," "]
["Oaxaca",20,"Oax.","San Juan Atepec","San Juan Atepec, Oax.",173,570," "," "]
["Oaxaca",20,"Oax.","San Juan Bautista Atatlahuca","San Juan Bautista Atatlahuca, Oax.",175,570," "," "]
["Oaxaca",20,"Oax.","San Juan Bautista Coixtlahuaca","San Juan Bautista Coixtlahuaca, Oax.",176,570," "," "]
["Oaxaca",20,"Oax.","San Juan Bautista Cuicatlán","San Juan Bautista Cuicatlán, Oax.",177,570," "," "]
["Oaxaca",20,"Oax.","San Juan Bautista Guelache","San Juan Bautista Guelache, Oax.",178,570," "," "]
["Oaxaca",20,"Oax.","San Juan Bautista Jayacatlán","San Juan Bautista Jayacatlán, Oax.",179,570," "," "]
["Oaxaca",20,"Oax.","San Juan Bautista Lo de Soto","San Juan Bautista Lo de Soto, Oax.",180,570," "," "]
["Oaxaca",20,"Oax.","San Juan Bautista Suchitepec","San Juan Bautista Suchitepec, Oax.",181,570," "," "]
["Oaxaca",20,"Oax.","San Juan Bautista Tlachichilco","San Juan Bautista Tlachichilco, Oax.",183,570," "," "]
["Oaxaca",20,"Oax.","San Juan Bautista Tlacoatzintepec","San Juan Bautista Tlacoatzintepec, Oax.",182,570," "," "]
["Oaxaca",20,"Oax.","San Juan Bautista Tuxtepec","San Juan Bautista Tuxtepec, Oax.",184,570," "," "]
["Oaxaca",20,"Oax.","San Juan Bautista Valle Nacional","San Juan Bautista Valle Nacional, Oax.",559,570," "," "]
["Oaxaca",20,"Oax.","San Juan Cacahuatepec","San Juan Cacahuatepec, Oax.",185,570," "," "]
["Oaxaca",20,"Oax.","San Juan Chicomezúchil","San Juan Chicomezúchil, Oax.",191,570," "," "]
["Oaxaca",20,"Oax.","San Juan Chilateca","San Juan Chilateca, Oax.",192,570," "," "]
["Oaxaca",20,"Oax.","San Juan Cieneguilla","San Juan Cieneguilla, Oax.",186,570," "," "]
["Oaxaca",20,"Oax.","San Juan Coatzóspam","San Juan Coatzóspam, Oax.",187,570," "," "]
["Oaxaca",20,"Oax.","San Juan Colorado","San Juan Colorado, Oax.",188,570," "," "]
["Oaxaca",20,"Oax.","San Juan Comaltepec","San Juan Comaltepec, Oax.",189,570," "," "]
["Oaxaca",20,"Oax.","San Juan Cotzocón","San Juan Cotzocón, Oax.",190,570," "," "]
["Oaxaca",20,"Oax.","San Juan de los Cués","San Juan de los Cués, Oax.",206,570," "," "]
["Oaxaca",20,"Oax.","San Juan del Estado","San Juan del Estado, Oax.",193,570," "," "]
["Oaxaca",20,"Oax.","San Juan del Río","San Juan del Río, Oax.",194,570," "," "]
["Oaxaca",20,"Oax.","San Juan Diuxi","San Juan Diuxi, Oax.",195,570," "," "]
["Oaxaca",20,"Oax.","San Juan Ðumí","San Juan Ðumí, Oax.",210,570," "," "]
["Oaxaca",20,"Oax.","San Juan Evangelista Analco","San Juan Evangelista Analco, Oax.",196,570," "," "]
["Oaxaca",20,"Oax.","San Juan Guelavía","San Juan Guelavía, Oax.",197,570," "," "]
["Oaxaca",20,"Oax.","San Juan Guichicovi","San Juan Guichicovi, Oax.",198,570," "," "]
["Oaxaca",20,"Oax.","San Juan Ihualtepec","San Juan Ihualtepec, Oax.",199,570," "," "]
["Oaxaca",20,"Oax.","San Juan Juquila Mixes","San Juan Juquila Mixes, Oax.",200,570," "," "]
["Oaxaca",20,"Oax.","San Juan Juquila Vijanos","San Juan Juquila Vijanos, Oax.",201,570," "," "]
["Oaxaca",20,"Oax.","San Juan Lachao","San Juan Lachao, Oax.",202,570," "," "]
["Oaxaca",20,"Oax.","San Juan Lachigalla","San Juan Lachigalla, Oax.",203,570," "," "]
["Oaxaca",20,"Oax.","San Juan Lajarcia","San Juan Lajarcia, Oax.",204,570," "," "]
["Oaxaca",20,"Oax.","San Juan Lalana","San Juan Lalana, Oax.",205,570," "," "]
["Oaxaca",20,"Oax.","San Juan Mazatlán","San Juan Mazatlán, Oax.",207,570," "," "]
["Oaxaca",20,"Oax.","San Juan Mixtepec -Dto. 08 -","San Juan Mixtepec -Dto. 08 -, Oax.",208,570," "," "]
["Oaxaca",20,"Oax.","San Juan Mixtepec -Dto. 26 -","San Juan Mixtepec -Dto. 26 -, Oax.",209,570," "," "]
["Oaxaca",20,"Oax.","San Juan Ozolotepec","San Juan Ozolotepec, Oax.",211,570," "," "]
["Oaxaca",20,"Oax.","San Juan Petlapa","San Juan Petlapa, Oax.",212,570," "," "]
["Oaxaca",20,"Oax.","San Juan Quiahije","San Juan Quiahije, Oax.",213,570," "," "]
["Oaxaca",20,"Oax.","San Juan Quiotepec","San Juan Quiotepec, Oax.",214,570," "," "]
["Oaxaca",20,"Oax.","San Juan Sayultepec",{"$f":"D1218&\", \"&C1218","v":"San Juan Sayultepec, Oax."},215,570," "," "]
["Oaxaca",20,"Oax.","San Juan Tabaá","San Juan Tabaá, Oax.",216,570,{"$f":"IF(E1219=E1220,\"mal\",\" \")","v":" "},{"$f":"IF(H1219=\"mal\",1,\" \")","v":" "}]
["Oaxaca",20,"Oax.","San Juan Tamazola","San Juan Tamazola, Oax.",217,570," "," "]
["Oaxaca",20,"Oax.","San Juan Teita","San Juan Teita, Oax.",218,570," "," "]
["Oaxaca",20,"Oax.","San Juan Teitipac","San Juan Teitipac, Oax.",219,570," "," "]
["Oaxaca",20,"Oax.","San Juan Tepeuxila","San Juan Tepeuxila, Oax.",220,570," "," "]
["Oaxaca",20,"Oax.","San Juan Teposcolula","San Juan Teposcolula, Oax.",221,570," "," "]
["Oaxaca",20,"Oax.","San Juan Yaeé","San Juan Yaeé, Oax.",222,570," "," "]
["Oaxaca",20,"Oax.","San Juan Yatzona","San Juan Yatzona, Oax.",223,570," "," "]
["Oaxaca",20,"Oax.","San Juan Yucuita","San Juan Yucuita, Oax.",224,570," "," "]
["Oaxaca",20,"Oax.","San Lorenzo","San Lorenzo, Oax.",225,570," "," "]
["Oaxaca",20,"Oax.","San Lorenzo Albarradas","San Lorenzo Albarradas, Oax.",226,570," "," "]
["Oaxaca",20,"Oax.","San Lorenzo Cacaotepec","San Lorenzo Cacaotepec, Oax.",227,570," "," "]
["Oaxaca",20,"Oax.","San Lorenzo Cuaunecuiltitla","San Lorenzo Cuaunecuiltitla, Oax.",228,570," "," "]
["Oaxaca",20,"Oax.","San Lorenzo Texmelúcan","San Lorenzo Texmelúcan, Oax.",229,570," "," "]
["Oaxaca",20,"Oax.","San Lorenzo Victoria","San Lorenzo Victoria, Oax.",230,570," "," "]
["Oaxaca",20,"Oax.","San Lucas Camotlán","San Lucas Camotlán, Oax.",231,570," "," "]
["Oaxaca",20,"Oax.","San Lucas Ojitlán","San Lucas Ojitlán, Oax.",232,570," "," "]
["Oaxaca",20,"Oax.","San Lucas Quiaviní","San Lucas Quiaviní, Oax.",233,570," "," "]
["Oaxaca",20,"Oax.","San Lucas Zoquiápam","San Lucas Zoquiápam, Oax.",234,570," "," "]
["Oaxaca",20,"Oax.","San Luis Amatlán","San Luis Amatlán, Oax.",235,570," "," "]
["Oaxaca",20,"Oax.","San Marcial Ozolotepec","San Marcial Ozolotepec, Oax.",236,570," "," "]
["Oaxaca",20,"Oax.","San Marcos Arteaga","San Marcos Arteaga, Oax.",237,570," "," "]
["Oaxaca",20,"Oax.","San Martín de los Cansecos","San Martín de los Cansecos, Oax.",238,570," "," "]
["Oaxaca",20,"Oax.","San Martín Huamelúlpam","San Martín Huamelúlpam, Oax.",239,570," "," "]
["Oaxaca",20,"Oax.","San Martín Itunyoso","San Martín Itunyoso, Oax.",240,570," "," "]
["Oaxaca",20,"Oax.","San Martín Lachilá","San Martín Lachilá, Oax.",241,570," "," "]
["Oaxaca",20,"Oax.","San Martín Peras","San Martín Peras, Oax.",242,570," "," "]
["Oaxaca",20,"Oax.","San Martín Tilcajete","San Martín Tilcajete, Oax.",243,570," "," "]
["Oaxaca",20,"Oax.","San Martín Toxpalan","San Martín Toxpalan, Oax.",244,570," "," "]
["Oaxaca",20,"Oax.","San Martín Zacatepec","San Martín Zacatepec, Oax.",245,570," "," "]
["Oaxaca",20,"Oax.","San Mateo Cajonos","San Mateo Cajonos, Oax.",246,570," "," "]
["Oaxaca",20,"Oax.","San Mateo del Mar","San Mateo del Mar, Oax.",248,570," "," "]
["Oaxaca",20,"Oax.","San Mateo Etlatongo","San Mateo Etlatongo, Oax.",250,570," "," "]
["Oaxaca",20,"Oax.","San Mateo Nejápam","San Mateo Nejápam, Oax.",251,570," "," "]
["Oaxaca",20,"Oax.","San Mateo Peñasco","San Mateo Peñasco, Oax.",252,570," "," "]
["Oaxaca",20,"Oax.","San Mateo Piñas","San Mateo Piñas, Oax.",253,570," "," "]
["Oaxaca",20,"Oax.","San Mateo Río Hondo","San Mateo Río Hondo, Oax.",254,570," "," "]
["Oaxaca",20,"Oax.","San Mateo Sindihui","San Mateo Sindihui, Oax.",255,570," "," "]
["Oaxaca",20,"Oax.","San Mateo Tlapiltepec","San Mateo Tlapiltepec, Oax.",256,570," "," "]
["Oaxaca",20,"Oax.","San Mateo Yoloxochitlán","San Mateo Yoloxochitlán, Oax.",249,570," "," "]
["Oaxaca",20,"Oax.","San Mateo Yucutindoo","San Mateo Yucutindoo, Oax.",566,570," "," "]
["Oaxaca",20,"Oax.","San Melchor Betaza","San Melchor Betaza, Oax.",257,570," "," "]
["Oaxaca",20,"Oax.","San Miguel Achiutla","San Miguel Achiutla, Oax.",258,570," "," "]
["Oaxaca",20,"Oax.","San Miguel Ahuehuetitlán","San Miguel Ahuehuetitlán, Oax.",259,570," "," "]
["Oaxaca",20,"Oax.","San Miguel Aloápam","San Miguel Aloápam, Oax.",260,570," "," "]
["Oaxaca",20,"Oax.","San Miguel Amatitlán","San Miguel Amatitlán, Oax.",261,570," "," "]
["Oaxaca",20,"Oax.","San Miguel Amatlán","San Miguel Amatlán, Oax.",262,570," "," "]
["Oaxaca",20,"Oax.","San Miguel Chicahua","San Miguel Chicahua, Oax.",264,570," "," "]
["Oaxaca",20,"Oax.","San Miguel Chimalapa","San Miguel Chimalapa, Oax.",265,570," "," "]
["Oaxaca",20,"Oax.","San Miguel Coatlán","San Miguel Coatlán, Oax.",263,570," "," "]
["Oaxaca",20,"Oax.","San Miguel del Puerto","San Miguel del Puerto, Oax.",266,570," "," "]
["Oaxaca",20,"Oax.","San Miguel del Río","San Miguel del Río, Oax.",267,570," "," "]
["Oaxaca",20,"Oax.","San Miguel Ejutla","San Miguel Ejutla, Oax.",268,570," "," "]
["Oaxaca",20,"Oax.","San Miguel el Grande","San Miguel el Grande, Oax.",269,570," "," "]
["Oaxaca",20,"Oax.","San Miguel Huautla","San Miguel Huautla, Oax.",270,570," "," "]
["Oaxaca",20,"Oax.","San Miguel Mixtepec","San Miguel Mixtepec, Oax.",271,570," "," "]
["Oaxaca",20,"Oax.","San Miguel Panixtlahuaca","San Miguel Panixtlahuaca, Oax.",272,570," "," "]
["Oaxaca",20,"Oax.","San Miguel Peras","San Miguel Peras, Oax.",273,570," "," "]
["Oaxaca",20,"Oax.","San Miguel Piedras","San Miguel Piedras, Oax.",274,570," "," "]
["Oaxaca",20,"Oax.","San Miguel Quetzaltepec","San Miguel Quetzaltepec, Oax.",275,570," "," "]
["Oaxaca",20,"Oax.","San Miguel Santa Flor","San Miguel Santa Flor, Oax.",276,570," "," "]
["Oaxaca",20,"Oax.","San Miguel Soyaltepec","San Miguel Soyaltepec, Oax.",278,570," "," "]
["Oaxaca",20,"Oax.","San Miguel Suchixtepec","San Miguel Suchixtepec, Oax.",279,570," "," "]
["Oaxaca",20,"Oax.","San Miguel Tecomatlán",{"$f":"D1282&\", \"&C1282","v":"San Miguel Tecomatlán, Oax."},281,570," "," "]
["Oaxaca",20,"Oax.","San Miguel Tenango","San Miguel Tenango, Oax.",282,570,{"$f":"IF(E1283=E1284,\"mal\",\" \")","v":" "},{"$f":"IF(H1283=\"mal\",1,\" \")","v":" "}]
["Oaxaca",20,"Oax.","San Miguel Tequixtepec","San Miguel Tequixtepec, Oax.",283,570," "," "]
["Oaxaca",20,"Oax.","San Miguel Tilquiápam","San Miguel Tilquiápam, Oax.",284,570," "," "]
["Oaxaca",20,"Oax.","San Miguel Tlacamama","San Miguel Tlacamama, Oax.",285,570," "," "]
["Oaxaca",20,"Oax.","San Miguel Tlacotepec","San Miguel Tlacotepec, Oax.",286,570," "," "]
["Oaxaca",20,"Oax.","San Miguel Tulancingo","San Miguel Tulancingo, Oax.",287,570," "," "]
["Oaxaca",20,"Oax.","San Miguel Yotao","San Miguel Yotao, Oax.",288,570," "," "]
["Oaxaca",20,"Oax.","San Nicolás","San Nicolás, Oax.",289,570," "," "]
["Oaxaca",20,"Oax.","San Nicolás Hidalgo","San Nicolás Hidalgo, Oax.",290,570," "," "]
["Oaxaca",20,"Oax.","San Pablo Coatlán","San Pablo Coatlán, Oax.",291,570," "," "]
["Oaxaca",20,"Oax.","San Pablo Cuatro Venados","San Pablo Cuatro Venados, Oax.",292,570," "," "]
["Oaxaca",20,"Oax.","San Pablo Etla","San Pablo Etla, Oax.",293,570," "," "]
["Oaxaca",20,"Oax.","San Pablo Huitzo","San Pablo Huitzo, Oax.",294,570," "," "]
["Oaxaca",20,"Oax.","San Pablo Huixtepec","San Pablo Huixtepec, Oax.",295,570," "," "]
["Oaxaca",20,"Oax.","San Pablo Macuiltianguis","San Pablo Macuiltianguis, Oax.",296,570," "," "]
["Oaxaca",20,"Oax.","San Pablo Tijaltepec","San Pablo Tijaltepec, Oax.",297,570," "," "]
["Oaxaca",20,"Oax.","San Pablo Villa de Mitla","San Pablo Villa de Mitla, Oax.",298,570," "," "]
["Oaxaca",20,"Oax.","San Pablo Yaganiza","San Pablo Yaganiza, Oax.",299,570," "," "]
["Oaxaca",20,"Oax.","San Pedro Amuzgos","San Pedro Amuzgos, Oax.",300,570," "," "]
["Oaxaca",20,"Oax.","San Pedro Apóstol","San Pedro Apóstol, Oax.",301,570," "," "]
["Oaxaca",20,"Oax.","San Pedro Atoyac","San Pedro Atoyac, Oax.",302,570," "," "]
["Oaxaca",20,"Oax.","San Pedro Cajonos","San Pedro Cajonos, Oax.",303,570," "," "]
["Oaxaca",20,"Oax.","San Pedro Comitancillo","San Pedro Comitancillo, Oax.",305,570," "," "]
["Oaxaca",20,"Oax.","San Pedro Coxcaltepec Cántaros","San Pedro Coxcaltepec Cántaros, Oax.",304,570," "," "]
["Oaxaca",20,"Oax.","San Pedro el Alto","San Pedro el Alto, Oax.",306,570," "," "]
["Oaxaca",20,"Oax.","San Pedro Huamelula","San Pedro Huamelula, Oax.",307,570," "," "]
["Oaxaca",20,"Oax.","San Pedro Huilotepec","San Pedro Huilotepec, Oax.",308,570," "," "]
["Oaxaca",20,"Oax.","San Pedro Ixcatlán","San Pedro Ixcatlán, Oax.",309,570," "," "]
["Oaxaca",20,"Oax.","San Pedro Ixtlahuaca","San Pedro Ixtlahuaca, Oax.",310,570," "," "]
["Oaxaca",20,"Oax.","San Pedro Jaltepetongo","San Pedro Jaltepetongo, Oax.",311,570," "," "]
["Oaxaca",20,"Oax.","San Pedro Jicayán","San Pedro Jicayán, Oax.",312,570," "," "]
["Oaxaca",20,"Oax.","San Pedro Jocotipac","San Pedro Jocotipac, Oax.",313,570," "," "]
["Oaxaca",20,"Oax.","San Pedro Juchatengo","San Pedro Juchatengo, Oax.",314,570," "," "]
["Oaxaca",20,"Oax.","San Pedro Mártir","San Pedro Mártir, Oax.",315,570," "," "]
["Oaxaca",20,"Oax.","San Pedro Mártir Quiechapa","San Pedro Mártir Quiechapa, Oax.",316,570," "," "]
["Oaxaca",20,"Oax.","San Pedro Mártir Yucuxaco","San Pedro Mártir Yucuxaco, Oax.",317,570," "," "]
["Oaxaca",20,"Oax.","San Pedro Mixtepec -Dto. 22 -","San Pedro Mixtepec -Dto. 22 -, Oax.",318,570," "," "]
["Oaxaca",20,"Oax.","San Pedro Mixtepec -Dto. 26 -","San Pedro Mixtepec -Dto. 26 -, Oax.",319,570," "," "]
["Oaxaca",20,"Oax.","San Pedro Molinos","San Pedro Molinos, Oax.",320,570," "," "]
["Oaxaca",20,"Oax.","San Pedro Nopala","San Pedro Nopala, Oax.",321,570," "," "]
["Oaxaca",20,"Oax.","San Pedro Ocopetatillo","San Pedro Ocopetatillo, Oax.",322,570," "," "]
["Oaxaca",20,"Oax.","San Pedro Ocotepec","San Pedro Ocotepec, Oax.",323,570," "," "]
["Oaxaca",20,"Oax.","San Pedro Pochutla","San Pedro Pochutla, Oax.",324,570," "," "]
["Oaxaca",20,"Oax.","San Pedro Quiatoni","San Pedro Quiatoni, Oax.",325,570," "," "]
["Oaxaca",20,"Oax.","San Pedro Sochiápam","San Pedro Sochiápam, Oax.",326,570," "," "]
["Oaxaca",20,"Oax.","San Pedro Tapanatepec","San Pedro Tapanatepec, Oax.",327,570," "," "]
["Oaxaca",20,"Oax.","San Pedro Taviche","San Pedro Taviche, Oax.",328,570," "," "]
["Oaxaca",20,"Oax.","San Pedro Teozacoalco","San Pedro Teozacoalco, Oax.",329,570," "," "]
["Oaxaca",20,"Oax.","San Pedro Teutila","San Pedro Teutila, Oax.",330,570," "," "]
["Oaxaca",20,"Oax.","San Pedro Tidaá","San Pedro Tidaá, Oax.",331,570," "," "]
["Oaxaca",20,"Oax.","San Pedro Topiltepec","San Pedro Topiltepec, Oax.",332,570," "," "]
["Oaxaca",20,"Oax.","San Pedro Totolápam","San Pedro Totolápam, Oax.",333,570," "," "]
["Oaxaca",20,"Oax.","San Pedro y San Pablo Ayutla","San Pedro y San Pablo Ayutla, Oax.",337,570," "," "]
["Oaxaca",20,"Oax.","San Pedro y San Pablo Teposcolula","San Pedro y San Pablo Teposcolula, Oax.",339,570," "," "]
["Oaxaca",20,"Oax.","San Pedro y San Pablo Tequixtepec","San Pedro y San Pablo Tequixtepec, Oax.",340,570," "," "]
["Oaxaca",20,"Oax.","San Pedro Yaneri","San Pedro Yaneri, Oax.",335,570," "," "]
["Oaxaca",20,"Oax.","San Pedro Yólox","San Pedro Yólox, Oax.",336,570," "," "]
["Oaxaca",20,"Oax.","San Pedro Yucunama","San Pedro Yucunama, Oax.",341,570," "," "]
["Oaxaca",20,"Oax.","San Raymundo Jalpan","San Raymundo Jalpan, Oax.",342,570," "," "]
["Oaxaca",20,"Oax.","San Sebastián Abasolo","San Sebastián Abasolo, Oax.",343,570," "," "]
["Oaxaca",20,"Oax.","San Sebastián Coatlán","San Sebastián Coatlán, Oax.",344,570," "," "]
["Oaxaca",20,"Oax.","San Sebastián Ixcapa","San Sebastián Ixcapa, Oax.",345,570," "," "]
["Oaxaca",20,"Oax.","San Sebastián Nicananduta","San Sebastián Nicananduta, Oax.",346,570," "," "]
["Oaxaca",20,"Oax.","San Sebastián Río Hondo",{"$f":"D1346&\", \"&C1346","v":"San Sebastián Río Hondo, Oax."},347,570," "," "]
["Oaxaca",20,"Oax.","San Sebastián Tecomaxtlahuaca","San Sebastián Tecomaxtlahuaca, Oax.",348,570,{"$f":"IF(E1347=E1348,\"mal\",\" \")","v":" "},{"$f":"IF(H1347=\"mal\",1,\" \")","v":" "}]
["Oaxaca",20,"Oax.","San Sebastián Teitipac","San Sebastián Teitipac, Oax.",349,570," "," "]
["Oaxaca",20,"Oax.","San Sebastián Tutla","San Sebastián Tutla, Oax.",350,570," "," "]
["Oaxaca",20,"Oax.","San Simón Almolongas","San Simón Almolongas, Oax.",351,570," "," "]
["Oaxaca",20,"Oax.","San Simón Zahuatlán","San Simón Zahuatlán, Oax.",352,570," "," "]
["Oaxaca",20,"Oax.","San Vicente Coatlán","San Vicente Coatlán, Oax.",534,570," "," "]
["Oaxaca",20,"Oax.","San Vicente Lachixío","San Vicente Lachixío, Oax.",535,570," "," "]
["Oaxaca",20,"Oax.","San Vicente Nuñú","San Vicente Nuñú, Oax.",536,570," "," "]
["Oaxaca",20,"Oax.","Santa Ana","Santa Ana, Oax.",353,570," "," "]
["Oaxaca",20,"Oax.","Santa Ana Ateixtlahuaca","Santa Ana Ateixtlahuaca, Oax.",354,570," "," "]
["Oaxaca",20,"Oax.","Santa Ana Cuauhtémoc","Santa Ana Cuauhtémoc, Oax.",355,570," "," "]
["Oaxaca",20,"Oax.","Santa Ana del Valle","Santa Ana del Valle, Oax.",356,570," "," "]
["Oaxaca",20,"Oax.","Santa Ana Tavela","Santa Ana Tavela, Oax.",357,570," "," "]
["Oaxaca",20,"Oax.","Santa Ana Tlapacoyan","Santa Ana Tlapacoyan, Oax.",358,570," "," "]
["Oaxaca",20,"Oax.","Santa Ana Yareni","Santa Ana Yareni, Oax.",359,570," "," "]
["Oaxaca",20,"Oax.","Santa Ana Zegache","Santa Ana Zegache, Oax.",360,570," "," "]
["Oaxaca",20,"Oax.","Santa Catalina Quierí","Santa Catalina Quierí, Oax.",361,570," "," "]
["Oaxaca",20,"Oax.","Santa Catarina Cuixtla","Santa Catarina Cuixtla, Oax.",362,570," "," "]
["Oaxaca",20,"Oax.","Santa Catarina Ixtepeji","Santa Catarina Ixtepeji, Oax.",363,570," "," "]
["Oaxaca",20,"Oax.","Santa Catarina Juquila","Santa Catarina Juquila, Oax.",364,570," "," "]
["Oaxaca",20,"Oax.","Santa Catarina Lachatao","Santa Catarina Lachatao, Oax.",365,570," "," "]
["Oaxaca",20,"Oax.","Santa Catarina Loxicha","Santa Catarina Loxicha, Oax.",366,570," "," "]
["Oaxaca",20,"Oax.","Santa Catarina Mechoacán","Santa Catarina Mechoacán, Oax.",367,570," "," "]
["Oaxaca",20,"Oax.","Santa Catarina Minas","Santa Catarina Minas, Oax.",368,570," "," "]
["Oaxaca",20,"Oax.","Santa Catarina Quiané","Santa Catarina Quiané, Oax.",369,570," "," "]
["Oaxaca",20,"Oax.","Santa Catarina Quioquitani","Santa Catarina Quioquitani, Oax.",74,570," "," "]
["Oaxaca",20,"Oax.","Santa Catarina Tayata","Santa Catarina Tayata, Oax.",370,570," "," "]
["Oaxaca",20,"Oax.","Santa Catarina Ticuá","Santa Catarina Ticuá, Oax.",371,570," "," "]
["Oaxaca",20,"Oax.","Santa Catarina Yosonotú","Santa Catarina Yosonotú, Oax.",372,570," "," "]
["Oaxaca",20,"Oax.","Santa Catarina Zapoquila","Santa Catarina Zapoquila, Oax.",373,570," "," "]
["Oaxaca",20,"Oax.","Santa Cruz Acatepec","Santa Cruz Acatepec, Oax.",374,570," "," "]
["Oaxaca",20,"Oax.","Santa Cruz Amilpas","Santa Cruz Amilpas, Oax.",375,570," "," "]
["Oaxaca",20,"Oax.","Santa Cruz de Bravo","Santa Cruz de Bravo, Oax.",376,570," "," "]
["Oaxaca",20,"Oax.","Santa Cruz Itundujia","Santa Cruz Itundujia, Oax.",377,570," "," "]
["Oaxaca",20,"Oax.","Santa Cruz Mixtepec","Santa Cruz Mixtepec, Oax.",378,570," "," "]
["Oaxaca",20,"Oax.","Santa Cruz Nundaco","Santa Cruz Nundaco, Oax.",379,570," "," "]
["Oaxaca",20,"Oax.","Santa Cruz Papalutla","Santa Cruz Papalutla, Oax.",380,570," "," "]
["Oaxaca",20,"Oax.","Santa Cruz Tacache de Mina","Santa Cruz Tacache de Mina, Oax.",381,570," "," "]
["Oaxaca",20,"Oax.","Santa Cruz Tacahua","Santa Cruz Tacahua, Oax.",382,570," "," "]
["Oaxaca",20,"Oax.","Santa Cruz Tayata","Santa Cruz Tayata, Oax.",383,570," "," "]
["Oaxaca",20,"Oax.","Santa Cruz Xitla","Santa Cruz Xitla, Oax.",384,570," "," "]
["Oaxaca",20,"Oax.","Santa Cruz Xoxocotlán","Santa Cruz Xoxocotlán, Oax.",385,570," "," "]
["Oaxaca",20,"Oax.","Santa Cruz Zenzontepec","Santa Cruz Zenzontepec, Oax.",386,570," "," "]
["Oaxaca",20,"Oax.","Santa Gertrudis","Santa Gertrudis, Oax.",387,570," "," "]
["Oaxaca",20,"Oax.","Santa Inés de Zaragoza","Santa Inés de Zaragoza, Oax.",569,570," "," "]
["Oaxaca",20,"Oax.","Santa Inés del Monte","Santa Inés del Monte, Oax.",388,570," "," "]
["Oaxaca",20,"Oax.","Santa Inés Yatzeche","Santa Inés Yatzeche, Oax.",389,570," "," "]
["Oaxaca",20,"Oax.","Santa Lucía del Camino","Santa Lucía del Camino, Oax.",390,570," "," "]
["Oaxaca",20,"Oax.","Santa Lucía Miahuatlán","Santa Lucía Miahuatlán, Oax.",391,570," "," "]
["Oaxaca",20,"Oax.","Santa Lucía Monteverde","Santa Lucía Monteverde, Oax.",392,570," "," "]
["Oaxaca",20,"Oax.","Santa Lucía Ocotlán","Santa Lucía Ocotlán, Oax.",393,570," "," "]
["Oaxaca",20,"Oax.","Santa Magdalena Jicotlán","Santa Magdalena Jicotlán, Oax.",47,570," "," "]
["Oaxaca",20,"Oax.","Santa María Alotepec","Santa María Alotepec, Oax.",394,570," "," "]
["Oaxaca",20,"Oax.","Santa María Apazco","Santa María Apazco, Oax.",395,570," "," "]
["Oaxaca",20,"Oax.","Santa María Atzompa","Santa María Atzompa, Oax.",399,570," "," "]
["Oaxaca",20,"Oax.","Santa María Camotlán","Santa María Camotlán, Oax.",400,570," "," "]
["Oaxaca",20,"Oax.","Santa María Chachoápam","Santa María Chachoápam, Oax.",404,570," "," "]
["Oaxaca",20,"Oax.","Santa María Chilchotla","Santa María Chilchotla, Oax.",406,570," "," "]
["Oaxaca",20,"Oax.","Santa María Chimalapa","Santa María Chimalapa, Oax.",407,570," "," "]
["Oaxaca",20,"Oax.","Santa María Colotepec","Santa María Colotepec, Oax.",401,570," "," "]
["Oaxaca",20,"Oax.","Santa María Cortijo","Santa María Cortijo, Oax.",402,570," "," "]
["Oaxaca",20,"Oax.","Santa María Coyotepec","Santa María Coyotepec, Oax.",403,570," "," "]
["Oaxaca",20,"Oax.","Santa María del Rosario","Santa María del Rosario, Oax.",408,570," "," "]
["Oaxaca",20,"Oax.","Santa María del Tule",{"$f":"D1410&\", \"&C1410","v":"Santa María del Tule, Oax."},409,570," "," "]
["Oaxaca",20,"Oax.","Santa María Ecatepec","Santa María Ecatepec, Oax.",410,570,{"$f":"IF(E1411=E1412,\"mal\",\" \")","v":" "},{"$f":"IF(H1411=\"mal\",1,\" \")","v":" "}]
["Oaxaca",20,"Oax.","Santa María Guelacé","Santa María Guelacé, Oax.",411,570," "," "]
["Oaxaca",20,"Oax.","Santa María Guienagati","Santa María Guienagati, Oax.",412,570," "," "]
["Oaxaca",20,"Oax.","Santa María Huatulco","Santa María Huatulco, Oax.",413,570," "," "]
["Oaxaca",20,"Oax.","Santa María Huazolotitlán","Santa María Huazolotitlán, Oax.",414,570," "," "]
["Oaxaca",20,"Oax.","Santa María Ipalapa","Santa María Ipalapa, Oax.",415,570," "," "]
["Oaxaca",20,"Oax.","Santa María Ixcatlán","Santa María Ixcatlán, Oax.",416,570," "," "]
["Oaxaca",20,"Oax.","Santa María Jacatepec","Santa María Jacatepec, Oax.",417,570," "," "]
["Oaxaca",20,"Oax.","Santa María Jalapa del Marqués","Santa María Jalapa del Marqués, Oax.",418,570," "," "]
["Oaxaca",20,"Oax.","Santa María Jaltianguis","Santa María Jaltianguis, Oax.",419,570," "," "]
["Oaxaca",20,"Oax.","Santa María la Asunción","Santa María la Asunción, Oax.",396,570," "," "]
["Oaxaca",20,"Oax.","Santa María Lachixío","Santa María Lachixío, Oax.",420,570," "," "]
["Oaxaca",20,"Oax.","Santa María Mixtequilla","Santa María Mixtequilla, Oax.",421,570," "," "]
["Oaxaca",20,"Oax.","Santa María Nativitas","Santa María Nativitas, Oax.",422,570," "," "]
["Oaxaca",20,"Oax.","Santa María Nduayaco","Santa María Nduayaco, Oax.",423,570," "," "]
["Oaxaca",20,"Oax.","Santa María Ozolotepec","Santa María Ozolotepec, Oax.",424,570," "," "]
["Oaxaca",20,"Oax.","Santa María Pápalo","Santa María Pápalo, Oax.",425,570," "," "]
["Oaxaca",20,"Oax.","Santa María Peñoles","Santa María Peñoles, Oax.",426,570," "," "]
["Oaxaca",20,"Oax.","Santa María Petapa","Santa María Petapa, Oax.",427,570," "," "]
["Oaxaca",20,"Oax.","Santa María Quiegolani","Santa María Quiegolani, Oax.",428,570," "," "]
["Oaxaca",20,"Oax.","Santa María Sola","Santa María Sola, Oax.",429,570," "," "]
["Oaxaca",20,"Oax.","Santa María Tataltepec","Santa María Tataltepec, Oax.",430,570," "," "]
["Oaxaca",20,"Oax.","Santa María Tecomavaca","Santa María Tecomavaca, Oax.",431,570," "," "]
["Oaxaca",20,"Oax.","Santa María Temaxcalapa","Santa María Temaxcalapa, Oax.",432,570," "," "]
["Oaxaca",20,"Oax.","Santa María Temaxcaltepec","Santa María Temaxcaltepec, Oax.",433,570," "," "]
["Oaxaca",20,"Oax.","Santa María Teopoxco","Santa María Teopoxco, Oax.",434,570," "," "]
["Oaxaca",20,"Oax.","Santa María Tepantlali","Santa María Tepantlali, Oax.",435,570," "," "]
["Oaxaca",20,"Oax.","Santa María Texcatitlán","Santa María Texcatitlán, Oax.",436,570," "," "]
["Oaxaca",20,"Oax.","Santa María Tlahuitoltepec","Santa María Tlahuitoltepec, Oax.",437,570," "," "]
["Oaxaca",20,"Oax.","Santa María Tlalixtac","Santa María Tlalixtac, Oax.",438,570," "," "]
["Oaxaca",20,"Oax.","Santa María Tonameca","Santa María Tonameca, Oax.",439,570," "," "]
["Oaxaca",20,"Oax.","Santa María Totolapilla","Santa María Totolapilla, Oax.",440,570," "," "]
["Oaxaca",20,"Oax.","Santa María Xadani","Santa María Xadani, Oax.",441,570," "," "]
["Oaxaca",20,"Oax.","Santa María Yalina","Santa María Yalina, Oax.",442,570," "," "]
["Oaxaca",20,"Oax.","Santa María Yavesía","Santa María Yavesía, Oax.",443,570," "," "]
["Oaxaca",20,"Oax.","Santa María Yolotepec","Santa María Yolotepec, Oax.",444,570," "," "]
["Oaxaca",20,"Oax.","Santa María Yosoyúa","Santa María Yosoyúa, Oax.",445,570," "," "]
["Oaxaca",20,"Oax.","Santa María Yucuhiti","Santa María Yucuhiti, Oax.",446,570," "," "]
["Oaxaca",20,"Oax.","Santa María Zacatepec","Santa María Zacatepec, Oax.",447,570," "," "]
["Oaxaca",20,"Oax.","Santa María Zaniza","Santa María Zaniza, Oax.",448,570," "," "]
["Oaxaca",20,"Oax.","Santa María Zoquitlán","Santa María Zoquitlán, Oax.",449,570," "," "]
["Oaxaca",20,"Oax.","Santiago Amoltepec","Santiago Amoltepec, Oax.",450,570," "," "]
["Oaxaca",20,"Oax.","Santiago Apoala","Santiago Apoala, Oax.",451,570," "," "]
["Oaxaca",20,"Oax.","Santiago Apóstol","Santiago Apóstol, Oax.",452,570," "," "]
["Oaxaca",20,"Oax.","Santiago Astata","Santiago Astata, Oax.",453,570," "," "]
["Oaxaca",20,"Oax.","Santiago Atitlán","Santiago Atitlán, Oax.",454,570," "," "]
["Oaxaca",20,"Oax.","Santiago Ayuquililla","Santiago Ayuquililla, Oax.",455,570," "," "]
["Oaxaca",20,"Oax.","Santiago Cacaloxtepec","Santiago Cacaloxtepec, Oax.",456,570," "," "]
["Oaxaca",20,"Oax.","Santiago Camotlán","Santiago Camotlán, Oax.",457,570," "," "]
["Oaxaca",20,"Oax.","Santiago Chazumba","Santiago Chazumba, Oax.",459,570," "," "]
["Oaxaca",20,"Oax.","Santiago Choápam","Santiago Choápam, Oax.",460,570," "," "]
["Oaxaca",20,"Oax.","Santiago Comaltepec","Santiago Comaltepec, Oax.",458,570," "," "]
["Oaxaca",20,"Oax.","Santiago del Río","Santiago del Río, Oax.",461,570," "," "]
["Oaxaca",20,"Oax.","Santiago Huajolotitlán","Santiago Huajolotitlán, Oax.",462,570," "," "]
["Oaxaca",20,"Oax.","Santiago Huauclilla","Santiago Huauclilla, Oax.",463,570," "," "]
["Oaxaca",20,"Oax.","Santiago Ihuitlán Plumas","Santiago Ihuitlán Plumas, Oax.",464,570," "," "]
["Oaxaca",20,"Oax.","Santiago Ixcuintepec","Santiago Ixcuintepec, Oax.",465,570," "," "]
["Oaxaca",20,"Oax.","Santiago Ixtayutla","Santiago Ixtayutla, Oax.",466,570," "," "]
["Oaxaca",20,"Oax.","Santiago Jamiltepec","Santiago Jamiltepec, Oax.",467,570," "," "]
["Oaxaca",20,"Oax.","Santiago Jocotepec","Santiago Jocotepec, Oax.",468,570," "," "]
["Oaxaca",20,"Oax.","Santiago Juxtlahuaca","Santiago Juxtlahuaca, Oax.",469,570," "," "]
["Oaxaca",20,"Oax.","Santiago Lachiguiri","Santiago Lachiguiri, Oax.",470,570," "," "]
["Oaxaca",20,"Oax.","Santiago Lalopa","Santiago Lalopa, Oax.",471,570," "," "]
["Oaxaca",20,"Oax.","Santiago Laollaga",{"$f":"D1474&\", \"&C1474","v":"Santiago Laollaga, Oax."},472,570," "," "]
["Oaxaca",20,"Oax.","Santiago Laxopa","Santiago Laxopa, Oax.",473,570,{"$f":"IF(E1475=E1476,\"mal\",\" \")","v":" "},{"$f":"IF(H1475=\"mal\",1,\" \")","v":" "}]
["Oaxaca",20,"Oax.","Santiago Llano Grande","Santiago Llano Grande, Oax.",474,570," "," "]
["Oaxaca",20,"Oax.","Santiago Matatlán","Santiago Matatlán, Oax.",475,570," "," "]
["Oaxaca",20,"Oax.","Santiago Miltepec","Santiago Miltepec, Oax.",476,570," "," "]
["Oaxaca",20,"Oax.","Santiago Minas","Santiago Minas, Oax.",477,570," "," "]
["Oaxaca",20,"Oax.","Santiago Nacaltepec","Santiago Nacaltepec, Oax.",478,570," "," "]
["Oaxaca",20,"Oax.","Santiago Nejapilla","Santiago Nejapilla, Oax.",479,570," "," "]
["Oaxaca",20,"Oax.","Santiago Niltepec","Santiago Niltepec, Oax.",66,570," "," "]
["Oaxaca",20,"Oax.","Santiago Nundiche","Santiago Nundiche, Oax.",480,570," "," "]
["Oaxaca",20,"Oax.","Santiago Nuyoó","Santiago Nuyoó, Oax.",481,570," "," "]
["Oaxaca",20,"Oax.","Santiago Pinotepa Nacional","Santiago Pinotepa Nacional, Oax.",482,570," "," "]
["Oaxaca",20,"Oax.","Santiago Suchilquitongo","Santiago Suchilquitongo, Oax.",483,570," "," "]
["Oaxaca",20,"Oax.","Santiago Tamazola","Santiago Tamazola, Oax.",484,570," "," "]
["Oaxaca",20,"Oax.","Santiago Tapextla","Santiago Tapextla, Oax.",485,570," "," "]
["Oaxaca",20,"Oax.","Santiago Tenango","Santiago Tenango, Oax.",487,570," "," "]
["Oaxaca",20,"Oax.","Santiago Tepetlapa","Santiago Tepetlapa, Oax.",488,570," "," "]
["Oaxaca",20,"Oax.","Santiago Tetepec","Santiago Tetepec, Oax.",489,570," "," "]
["Oaxaca",20,"Oax.","Santiago Texcalcingo","Santiago Texcalcingo, Oax.",490,570," "," "]
["Oaxaca",20,"Oax.","Santiago Textitlán","Santiago Textitlán, Oax.",491,570," "," "]
["Oaxaca",20,"Oax.","Santiago Tilantongo","Santiago Tilantongo, Oax.",492,570," "," "]
["Oaxaca",20,"Oax.","Santiago Tillo","Santiago Tillo, Oax.",493,570," "," "]
["Oaxaca",20,"Oax.","Santiago Tlazoyaltepec","Santiago Tlazoyaltepec, Oax.",494,570," "," "]
["Oaxaca",20,"Oax.","Santiago Xanica","Santiago Xanica, Oax.",495,570," "," "]
["Oaxaca",20,"Oax.","Santiago Xiacuí","Santiago Xiacuí, Oax.",496,570," "," "]
["Oaxaca",20,"Oax.","Santiago Yaitepec","Santiago Yaitepec, Oax.",497,570," "," "]
["Oaxaca",20,"Oax.","Santiago Yaveo","Santiago Yaveo, Oax.",498,570," "," "]
["Oaxaca",20,"Oax.","Santiago Yolomécatl","Santiago Yolomécatl, Oax.",499,570," "," "]
["Oaxaca",20,"Oax.","Santiago Yosondúa","Santiago Yosondúa, Oax.",500,570," "," "]
["Oaxaca",20,"Oax.","Santiago Yucuyachi","Santiago Yucuyachi, Oax.",501,570," "," "]
["Oaxaca",20,"Oax.","Santiago Zacatepec","Santiago Zacatepec, Oax.",502,570," "," "]
["Oaxaca",20,"Oax.","Santiago Zoochila","Santiago Zoochila, Oax.",503,570," "," "]
["Oaxaca",20,"Oax.","Santo Domingo Albarradas","Santo Domingo Albarradas, Oax.",506,570," "," "]
["Oaxaca",20,"Oax.","Santo Domingo Armenta","Santo Domingo Armenta, Oax.",507,570," "," "]
["Oaxaca",20,"Oax.","Santo Domingo Chihuitán","Santo Domingo Chihuitán, Oax.",508,570," "," "]
["Oaxaca",20,"Oax.","Santo Domingo de Morelos","Santo Domingo de Morelos, Oax.",509,570," "," "]
["Oaxaca",20,"Oax.","Santo Domingo Ingenio","Santo Domingo Ingenio, Oax.",505,570," "," "]
["Oaxaca",20,"Oax.","Santo Domingo Ixcatlán","Santo Domingo Ixcatlán, Oax.",510,570," "," "]
["Oaxaca",20,"Oax.","Santo Domingo Nuxaá","Santo Domingo Nuxaá, Oax.",511,570," "," "]
["Oaxaca",20,"Oax.","Santo Domingo Ozolotepec","Santo Domingo Ozolotepec, Oax.",512,570," "," "]
["Oaxaca",20,"Oax.","Santo Domingo Petapa","Santo Domingo Petapa, Oax.",513,570," "," "]
["Oaxaca",20,"Oax.","Santo Domingo Roayaga","Santo Domingo Roayaga, Oax.",514,570," "," "]
["Oaxaca",20,"Oax.","Santo Domingo Tehuantepec","Santo Domingo Tehuantepec, Oax.",515,570," "," "]
["Oaxaca",20,"Oax.","Santo Domingo Teojomulco","Santo Domingo Teojomulco, Oax.",516,570," "," "]
["Oaxaca",20,"Oax.","Santo Domingo Tepuxtepec","Santo Domingo Tepuxtepec, Oax.",517,570," "," "]
["Oaxaca",20,"Oax.","Santo Domingo Tlatayápam","Santo Domingo Tlatayápam, Oax.",518,570," "," "]
["Oaxaca",20,"Oax.","Santo Domingo Tomaltepec","Santo Domingo Tomaltepec, Oax.",519,570," "," "]
["Oaxaca",20,"Oax.","Santo Domingo Tonalá","Santo Domingo Tonalá, Oax.",520,570," "," "]
["Oaxaca",20,"Oax.","Santo Domingo Tonaltepec","Santo Domingo Tonaltepec, Oax.",521,570," "," "]
["Oaxaca",20,"Oax.","Santo Domingo Xagacía","Santo Domingo Xagacía, Oax.",522,570," "," "]
["Oaxaca",20,"Oax.","Santo Domingo Yanhuitlán","Santo Domingo Yanhuitlán, Oax.",523,570," "," "]
["Oaxaca",20,"Oax.","Santo Domingo Yodohino","Santo Domingo Yodohino, Oax.",524,570," "," "]
["Oaxaca",20,"Oax.","Santo Domingo Zanatepec","Santo Domingo Zanatepec, Oax.",525,570," "," "]
["Oaxaca",20,"Oax.","Santo Tomás Jalieza","Santo Tomás Jalieza, Oax.",530,570," "," "]
["Oaxaca",20,"Oax.","Santo Tomás Mazaltepec","Santo Tomás Mazaltepec, Oax.",531,570," "," "]
["Oaxaca",20,"Oax.","Santo Tomás Ocotepec","Santo Tomás Ocotepec, Oax.",532,570," "," "]
["Oaxaca",20,"Oax.","Santo Tomás Tamazulapan","Santo Tomás Tamazulapan, Oax.",533,570," "," "]
["Oaxaca",20,"Oax.","Santos Reyes Nopala","Santos Reyes Nopala, Oax.",526,570," "," "]
["Oaxaca",20,"Oax.","Santos Reyes Pápalo","Santos Reyes Pápalo, Oax.",527,570," "," "]
["Oaxaca",20,"Oax.","Santos Reyes Tepejillo","Santos Reyes Tepejillo, Oax.",528,570," "," "]
["Oaxaca",20,"Oax.","Santos Reyes Yucuná","Santos Reyes Yucuná, Oax.",529,570," "," "]
["Oaxaca",20,"Oax.","Silacayoápam","Silacayoápam, Oax.",537,570," "," "]
["Oaxaca",20,"Oax.","Sitio de Xitlapehua","Sitio de Xitlapehua, Oax.",538,570," "," "]
["Oaxaca",20,"Oax.","Soledad Etla","Soledad Etla, Oax.",539,570," "," "]
["Oaxaca",20,"Oax.","Tamazulápam del Espíritu Santo",{"$f":"D1538&\", \"&C1538","v":"Tamazulápam del Espíritu Santo, Oax."},31,570," "," "]
["Oaxaca",20,"Oax.","Tanetze de Zaragoza","Tanetze de Zaragoza, Oax.",541,570,{"$f":"IF(E1539=E1540,\"mal\",\" \")","v":" "},{"$f":"IF(H1539=\"mal\",1,\" \")","v":" "}]
["Oaxaca",20,"Oax.","Taniche","Taniche, Oax.",542,570," "," "]
["Oaxaca",20,"Oax.","Tataltepec de Valdés","Tataltepec de Valdés, Oax.",543,570," "," "]
["Oaxaca",20,"Oax.","Teococuilco de Marcos Pérez","Teococuilco de Marcos Pérez, Oax.",544,570," "," "]
["Oaxaca",20,"Oax.","Teotitlán de Flores Magón","Teotitlán de Flores Magón, Oax.",545,570," "," "]
["Oaxaca",20,"Oax.","Teotitlán del Valle","Teotitlán del Valle, Oax.",546,570," "," "]
["Oaxaca",20,"Oax.","Teotongo","Teotongo, Oax.",547,570," "," "]
["Oaxaca",20,"Oax.","Tepelmeme Villa de Morelos","Tepelmeme Villa de Morelos, Oax.",548,570," "," "]
["Oaxaca",20,"Oax.","Tlacolula de Matamoros","Tlacolula de Matamoros, Oax.",551,570," "," "]
["Oaxaca",20,"Oax.","Tlacotepec Plumas","Tlacotepec Plumas, Oax.",552,570," "," "]
["Oaxaca",20,"Oax.","Tlalixtac de Cabrera","Tlalixtac de Cabrera, Oax.",553,570," "," "]
["Oaxaca",20,"Oax.","Totontepec Villa de Morelos","Totontepec Villa de Morelos, Oax.",554,570," "," "]
["Oaxaca",20,"Oax.","Trinidad Zaachila","Trinidad Zaachila, Oax.",555,570," "," "]
["Oaxaca",20,"Oax.","Unión Hidalgo","Unión Hidalgo, Oax.",557,570," "," "]
["Oaxaca",20,"Oax.","Valerio Trujano","Valerio Trujano, Oax.",558,570," "," "]
["Oaxaca",20,"Oax.","Villa de Chilapa de Díaz","Villa de Chilapa de Díaz, Oax.",405,570," "," "]
["Oaxaca",20,"Oax.","Villa de Etla","Villa de Etla, Oax.",338,570," "," "]
["Oaxaca",20,"Oax.","Villa de Tamazulápam del Progreso","Villa de Tamazulápam del Progreso, Oax.",540,570," "," "]
["Oaxaca",20,"Oax.","Villa de Tututepec de Melchor Ocampo","Villa de Tututepec de Melchor Ocampo, Oax.",334,570," "," "]
["Oaxaca",20,"Oax.","Villa de Zaachila","Villa de Zaachila, Oax.",565,570," "," "]
["Oaxaca",20,"Oax.","Villa Díaz Ordaz","Villa Díaz Ordaz, Oax.",560,570," "," "]
["Oaxaca",20,"Oax.","Villa Hidalgo","Villa Hidalgo, Oax.",38,570," "," "]
["Oaxaca",20,"Oax.","Villa Sola de Vega","Villa Sola de Vega, Oax.",277,570," "," "]
["Oaxaca",20,"Oax.","Villa Talea de Castro","Villa Talea de Castro, Oax.",280,570," "," "]
["Oaxaca",20,"Oax.","Villa Tejúpam de la Unión","Villa Tejúpam de la Unión, Oax.",486,570," "," "]
["Oaxaca",20,"Oax.","Yaxe","Yaxe, Oax.",561,570," "," "]
["Oaxaca",20,"Oax.","Yogana","Yogana, Oax.",563,570," "," "]
["Oaxaca",20,"Oax.","Yutanduchi de Guerrero","Yutanduchi de Guerrero, Oax.",564,570," "," "]
["Oaxaca",20,"Oax.","Zapotitlán Lagunas","Zapotitlán Lagunas, Oax.",567,570," "," "]
["Oaxaca",20,"Oax.","Zapotitlán Palmas","Zapotitlán Palmas, Oax.",568,570," "," "]
["Oaxaca",20,"Oax.","Zimatlán de Alvarez","Zimatlán de Alvarez, Oax.",570,570," "," "]
["Puebla",21,"Pue.","Acajete","Acajete, Pue.",1,217," "," "]
["Puebla",21,"Pue.","Acateno","Acateno, Pue.",2,217," "," "]
["Puebla",21,"Pue.","Acatlán","Acatlán, Pue.",3,217," "," "]
["Puebla",21,"Pue.","Acatzingo","Acatzingo, Pue.",4,217," "," "]
["Puebla",21,"Pue.","Acteopan","Acteopan, Pue.",5,217," "," "]
["Puebla",21,"Pue.","Ahuacatlán","Ahuacatlán, Pue.",6,217," "," "]
["Puebla",21,"Pue.","Ahuatlán","Ahuatlán, Pue.",7,217," "," "]
["Puebla",21,"Pue.","Ahuazotepec","Ahuazotepec, Pue.",8,217," "," "]
["Puebla",21,"Pue.","Ahuehuetitla","Ahuehuetitla, Pue.",9,217," "," "]
["Puebla",21,"Pue.","Ajalpan","Ajalpan, Pue.",10,217," "," "]
["Puebla",21,"Pue.","Albino Zertuche","Albino Zertuche, Pue.",11,217," "," "]
["Puebla",21,"Pue.","Aljojuca","Aljojuca, Pue.",12,217," "," "]
["Puebla",21,"Pue.","Altepexi","Altepexi, Pue.",13,217," "," "]
["Puebla",21,"Pue.","Amixtlán","Amixtlán, Pue.",14,217," "," "]
["Puebla",21,"Pue.","Amozoc","Amozoc, Pue.",15,217," "," "]
["Puebla",21,"Pue.","Aquixtla","Aquixtla, Pue.",16,217," "," "]
["Puebla",21,"Pue.","Atempan","Atempan, Pue.",17,217," "," "]
["Puebla",21,"Pue.","Atexcal","Atexcal, Pue.",18,217," "," "]
["Puebla",21,"Pue.","Atlequizayan","Atlequizayan, Pue.",80,217," "," "]
["Puebla",21,"Pue.","Atlixco","Atlixco, Pue.",19,217," "," "]
["Puebla",21,"Pue.","Atoyatempan","Atoyatempan, Pue.",20,217," "," "]
["Puebla",21,"Pue.","Atzala","Atzala, Pue.",21,217," "," "]
["Puebla",21,"Pue.","Atzitzihuacán","Atzitzihuacán, Pue.",22,217," "," "]
["Puebla",21,"Pue.","Atzitzintla","Atzitzintla, Pue.",23,217," "," "]
["Puebla",21,"Pue.","Axutla","Axutla, Pue.",24,217," "," "]
["Puebla",21,"Pue.","Ayotoxco de Guerrero","Ayotoxco de Guerrero, Pue.",25,217," "," "]
["Puebla",21,"Pue.","Calpan","Calpan, Pue.",26,217," "," "]
["Puebla",21,"Pue.","Caltepec","Caltepec, Pue.",27,217," "," "]
["Puebla",21,"Pue.","Camocuautla","Camocuautla, Pue.",28,217," "," "]
["Puebla",21,"Pue.","Cañada Morelos","Cañada Morelos, Pue.",99,217," "," "]
["Puebla",21,"Pue.","Caxhuacan","Caxhuacan, Pue.",29,217," "," "]
["Puebla",21,"Pue.","Chalchicomula de Sesma","Chalchicomula de Sesma, Pue.",45,217," "," "]
["Puebla",21,"Pue.","Chapulco",{"$f":"D1602&\", \"&C1602","v":"Chapulco, Pue."},46,217," "," "]
["Puebla",21,"Pue.","Chiautla","Chiautla, Pue.",47,217,{"$f":"IF(E1603=E1604,\"mal\",\" \")","v":" "},{"$f":"IF(H1603=\"mal\",1,\" \")","v":" "}]
["Puebla",21,"Pue.","Chiautzingo","Chiautzingo, Pue.",48,217," "," "]
["Puebla",21,"Pue.","Chichiquila","Chichiquila, Pue.",50,217," "," "]
["Puebla",21,"Pue.","Chiconcuautla","Chiconcuautla, Pue.",49,217," "," "]
["Puebla",21,"Pue.","Chietla","Chietla, Pue.",51,217," "," "]
["Puebla",21,"Pue.","Chigmecatitlán","Chigmecatitlán, Pue.",52,217," "," "]
["Puebla",21,"Pue.","Chignahuapan","Chignahuapan, Pue.",53,217," "," "]
["Puebla",21,"Pue.","Chignautla","Chignautla, Pue.",54,217," "," "]
["Puebla",21,"Pue.","Chila","Chila, Pue.",55,217," "," "]
["Puebla",21,"Pue.","Chila de la Sal","Chila de la Sal, Pue.",56,217," "," "]
["Puebla",21,"Pue.","Chilchotla","Chilchotla, Pue.",58,217," "," "]
["Puebla",21,"Pue.","Chinantla","Chinantla, Pue.",59,217," "," "]
["Puebla",21,"Pue.","Coatepec","Coatepec, Pue.",30,217," "," "]
["Puebla",21,"Pue.","Coatzingo","Coatzingo, Pue.",31,217," "," "]
["Puebla",21,"Pue.","Cohetzala","Cohetzala, Pue.",32,217," "," "]
["Puebla",21,"Pue.","Cohuecan","Cohuecan, Pue.",33,217," "," "]
["Puebla",21,"Pue.","Coronango","Coronango, Pue.",34,217," "," "]
["Puebla",21,"Pue.","Coxcatlán","Coxcatlán, Pue.",35,217," "," "]
["Puebla",21,"Pue.","Coyomeapan","Coyomeapan, Pue.",36,217," "," "]
["Puebla",21,"Pue.","Coyotepec","Coyotepec, Pue.",37,217," "," "]
["Puebla",21,"Pue.","Cuapiaxtla de Madero","Cuapiaxtla de Madero, Pue.",38,217," "," "]
["Puebla",21,"Pue.","Cuautempan","Cuautempan, Pue.",39,217," "," "]
["Puebla",21,"Pue.","Cuautinchán","Cuautinchán, Pue.",40,217," "," "]
["Puebla",21,"Pue.","Cuautlancingo","Cuautlancingo, Pue.",41,217," "," "]
["Puebla",21,"Pue.","Cuayuca de Andrade","Cuayuca de Andrade, Pue.",42,217," "," "]
["Puebla",21,"Pue.","Cuetzalan del Progreso","Cuetzalan del Progreso, Pue.",43,217," "," "]
["Puebla",21,"Pue.","Cuyoaco","Cuyoaco, Pue.",44,217," "," "]
["Puebla",21,"Pue.","Domingo Arenas","Domingo Arenas, Pue.",60,217," "," "]
["Puebla",21,"Pue.","Eloxochitlán","Eloxochitlán, Pue.",61,217," "," "]
["Puebla",21,"Pue.","Epatlán","Epatlán, Pue.",62,217," "," "]
["Puebla",21,"Pue.","Esperanza","Esperanza, Pue.",63,217," "," "]
["Puebla",21,"Pue.","Francisco Z. Mena","Francisco Z. Mena, Pue.",64,217," "," "]
["Puebla",21,"Pue.","General Felipe Angeles","General Felipe Angeles, Pue.",65,217," "," "]
["Puebla",21,"Pue.","Guadalupe","Guadalupe, Pue.",66,217," "," "]
["Puebla",21,"Pue.","Guadalupe Victoria","Guadalupe Victoria, Pue.",67,217," "," "]
["Puebla",21,"Pue.","Hermenegildo Galeana","Hermenegildo Galeana, Pue.",68,217," "," "]
["Puebla",21,"Pue.","Honey","Honey, Pue.",57,217," "," "]
["Puebla",21,"Pue.","Huaquechula","Huaquechula, Pue.",69,217," "," "]
["Puebla",21,"Pue.","Huatlatlauca","Huatlatlauca, Pue.",70,217," "," "]
["Puebla",21,"Pue.","Huauchinango","Huauchinango, Pue.",71,217," "," "]
["Puebla",21,"Pue.","Huehuetla","Huehuetla, Pue.",72,217," "," "]
["Puebla",21,"Pue.","Huehuetlán el Chico","Huehuetlán el Chico, Pue.",73,217," "," "]
["Puebla",21,"Pue.","Huehuetlán el Grande","Huehuetlán el Grande, Pue.",150,217," "," "]
["Puebla",21,"Pue.","Huejotzingo","Huejotzingo, Pue.",74,217," "," "]
["Puebla",21,"Pue.","Hueyapan","Hueyapan, Pue.",75,217," "," "]
["Puebla",21,"Pue.","Hueytamalco","Hueytamalco, Pue.",76,217," "," "]
["Puebla",21,"Pue.","Hueytlalpan","Hueytlalpan, Pue.",77,217," "," "]
["Puebla",21,"Pue.","Huitzilan de Serdán","Huitzilan de Serdán, Pue.",78,217," "," "]
["Puebla",21,"Pue.","Huitziltepec","Huitziltepec, Pue.",79,217," "," "]
["Puebla",21,"Pue.","Ixcamilpa de Guerrero","Ixcamilpa de Guerrero, Pue.",81,217," "," "]
["Puebla",21,"Pue.","Ixcaquixtla","Ixcaquixtla, Pue.",82,217," "," "]
["Puebla",21,"Pue.","Ixtacamaxtitlán","Ixtacamaxtitlán, Pue.",83,217," "," "]
["Puebla",21,"Pue.","Ixtepec","Ixtepec, Pue.",84,217," "," "]
["Puebla",21,"Pue.","Izúcar de Matamoros","Izúcar de Matamoros, Pue.",85,217," "," "]
["Puebla",21,"Pue.","Jalpan","Jalpan, Pue.",86,217," "," "]
["Puebla",21,"Pue.","Jolalpan","Jolalpan, Pue.",87,217," "," "]
["Puebla",21,"Pue.","Jonotla","Jonotla, Pue.",88,217," "," "]
["Puebla",21,"Pue.","Jopala","Jopala, Pue.",89,217," "," "]
["Puebla",21,"Pue.","Juan C. Bonilla","Juan C. Bonilla, Pue.",90,217," "," "]
["Puebla",21,"Pue.","Juan Galindo","Juan Galindo, Pue.",91,217," "," "]
["Puebla",21,"Pue.","Juan N. Méndez","Juan N. Méndez, Pue.",92,217," "," "]
["Puebla",21,"Pue.","La Magdalena Tlatlauquitepec","La Magdalena Tlatlauquitepec, Pue.",95,217," "," "]
["Puebla",21,"Pue.","Lafragua","Lafragua, Pue.",93,217," "," "]
["Puebla",21,"Pue.","Libres",{"$f":"D1666&\", \"&C1666","v":"Libres, Pue."},94,217," "," "]
["Puebla",21,"Pue.","Los Reyes de Juárez","Los Reyes de Juárez, Pue.",118,217,{"$f":"IF(E1667=E1668,\"mal\",\" \")","v":" "},{"$f":"IF(H1667=\"mal\",1,\" \")","v":" "}]
["Puebla",21,"Pue.","Mazapiltepec de Juárez","Mazapiltepec de Juárez, Pue.",96,217," "," "]
["Puebla",21,"Pue.","Mixtla","Mixtla, Pue.",97,217," "," "]
["Puebla",21,"Pue.","Molcaxac","Molcaxac, Pue.",98,217," "," "]
["Puebla",21,"Pue.","Naupan","Naupan, Pue.",100,217," "," "]
["Puebla",21,"Pue.","Nauzontla","Nauzontla, Pue.",101,217," "," "]
["Puebla",21,"Pue.","Nealtican","Nealtican, Pue.",102,217," "," "]
["Puebla",21,"Pue.","Nicolás Bravo","Nicolás Bravo, Pue.",103,217," "," "]
["Puebla",21,"Pue.","Nopalucan","Nopalucan, Pue.",104,217," "," "]
["Puebla",21,"Pue.","Ocotepec","Ocotepec, Pue.",105,217," "," "]
["Puebla",21,"Pue.","Ocoyucan","Ocoyucan, Pue.",106,217," "," "]
["Puebla",21,"Pue.","Olintla","Olintla, Pue.",107,217," "," "]
["Puebla",21,"Pue.","Oriental","Oriental, Pue.",108,217," "," "]
["Puebla",21,"Pue.","Pahuatlán","Pahuatlán, Pue.",109,217," "," "]
["Puebla",21,"Pue.","Palmar de Bravo","Palmar de Bravo, Pue.",110,217," "," "]
["Puebla",21,"Pue.","Pantepec","Pantepec, Pue.",111,217," "," "]
["Puebla",21,"Pue.","Petlalcingo","Petlalcingo, Pue.",112,217," "," "]
["Puebla",21,"Pue.","Piaxtla","Piaxtla, Pue.",113,217," "," "]
["Puebla",21,"Pue.","Puebla","Puebla, Pue.",114,217," "," "]
["Puebla",21,"Pue.","Quecholac","Quecholac, Pue.",115,217," "," "]
["Puebla",21,"Pue.","Quimixtlán","Quimixtlán, Pue.",116,217," "," "]
["Puebla",21,"Pue.","Rafael Lara Grajales","Rafael Lara Grajales, Pue.",117,217," "," "]
["Puebla",21,"Pue.","San Andrés Cholula","San Andrés Cholula, Pue.",119,217," "," "]
["Puebla",21,"Pue.","San Antonio Cañada","San Antonio Cañada, Pue.",120,217," "," "]
["Puebla",21,"Pue.","San Diego la Mesa Tochimiltzingo","San Diego la Mesa Tochimiltzingo, Pue.",121,217," "," "]
["Puebla",21,"Pue.","San Felipe Teotlalcingo","San Felipe Teotlalcingo, Pue.",122,217," "," "]
["Puebla",21,"Pue.","San Felipe Tepatlán","San Felipe Tepatlán, Pue.",123,217," "," "]
["Puebla",21,"Pue.","San Gabriel Chilac","San Gabriel Chilac, Pue.",124,217," "," "]
["Puebla",21,"Pue.","San Gregorio Atzompa","San Gregorio Atzompa, Pue.",125,217," "," "]
["Puebla",21,"Pue.","San Jerónimo Tecuanipan","San Jerónimo Tecuanipan, Pue.",126,217," "," "]
["Puebla",21,"Pue.","San Jerónimo Xayacatlán","San Jerónimo Xayacatlán, Pue.",127,217," "," "]
["Puebla",21,"Pue.","San José Chiapa","San José Chiapa, Pue.",128,217," "," "]
["Puebla",21,"Pue.","San José Miahuatlán","San José Miahuatlán, Pue.",129,217," "," "]
["Puebla",21,"Pue.","San Juan Atenco","San Juan Atenco, Pue.",130,217," "," "]
["Puebla",21,"Pue.","San Juan Atzompa","San Juan Atzompa, Pue.",131,217," "," "]
["Puebla",21,"Pue.","San Martín Texmelucan","San Martín Texmelucan, Pue.",132,217," "," "]
["Puebla",21,"Pue.","San Martín Totoltepec","San Martín Totoltepec, Pue.",133,217," "," "]
["Puebla",21,"Pue.","San Matías Tlalancaleca","San Matías Tlalancaleca, Pue.",134,217," "," "]
["Puebla",21,"Pue.","San Miguel Ixitlán","San Miguel Ixitlán, Pue.",135,217," "," "]
["Puebla",21,"Pue.","San Miguel Xoxtla","San Miguel Xoxtla, Pue.",136,217," "," "]
["Puebla",21,"Pue.","San Nicolás Buenos Aires","San Nicolás Buenos Aires, Pue.",137,217," "," "]
["Puebla",21,"Pue.","San Nicolás de los Ranchos","San Nicolás de los Ranchos, Pue.",138,217," "," "]
["Puebla",21,"Pue.","San Pablo Anicano","San Pablo Anicano, Pue.",139,217," "," "]
["Puebla",21,"Pue.","San Pedro Cholula","San Pedro Cholula, Pue.",140,217," "," "]
["Puebla",21,"Pue.","San Pedro Yeloixtlahuaca","San Pedro Yeloixtlahuaca, Pue.",141,217," "," "]
["Puebla",21,"Pue.","San Salvador el Seco","San Salvador el Seco, Pue.",142,217," "," "]
["Puebla",21,"Pue.","San Salvador el Verde","San Salvador el Verde, Pue.",143,217," "," "]
["Puebla",21,"Pue.","San Salvador Huixcolotla","San Salvador Huixcolotla, Pue.",144,217," "," "]
["Puebla",21,"Pue.","San Sebastián Tlacotepec","San Sebastián Tlacotepec, Pue.",145,217," "," "]
["Puebla",21,"Pue.","Santa Catarina Tlaltempan","Santa Catarina Tlaltempan, Pue.",146,217," "," "]
["Puebla",21,"Pue.","Santa Inés Ahuatempan","Santa Inés Ahuatempan, Pue.",147,217," "," "]
["Puebla",21,"Pue.","Santa Isabel Cholula","Santa Isabel Cholula, Pue.",148,217," "," "]
["Puebla",21,"Pue.","Santiago Miahuatlán","Santiago Miahuatlán, Pue.",149,217," "," "]
["Puebla",21,"Pue.","Santo Tomás Hueyotlipan","Santo Tomás Hueyotlipan, Pue.",151,217," "," "]
["Puebla",21,"Pue.","Soltepec","Soltepec, Pue.",152,217," "," "]
["Puebla",21,"Pue.","Tecali de Herrera","Tecali de Herrera, Pue.",153,217," "," "]
["Puebla",21,"Pue.","Tecamachalco","Tecamachalco, Pue.",154,217," "," "]
["Puebla",21,"Pue.","Tecomatlán","Tecomatlán, Pue.",155,217," "," "]
["Puebla",21,"Pue.","Tehuacán","Tehuacán, Pue.",156,217," "," "]
["Puebla",21,"Pue.","Tehuitzingo","Tehuitzingo, Pue.",157,217," "," "]
["Puebla",21,"Pue.","Tenampulco","Tenampulco, Pue.",158,217," "," "]
["Puebla",21,"Pue.","Teopantlán","Teopantlán, Pue.",159,217," "," "]
["Puebla",21,"Pue.","Teotlalco","Teotlalco, Pue.",160,217," "," "]
["Puebla",21,"Pue.","Tepanco de López",{"$f":"D1730&\", \"&C1730","v":"Tepanco de López, Pue."},161,217," "," "]
["Puebla",21,"Pue.","Tepango de Rodríguez","Tepango de Rodríguez, Pue.",162,217,{"$f":"IF(E1731=E1732,\"mal\",\" \")","v":" "},{"$f":"IF(H1731=\"mal\",1,\" \")","v":" "}]
["Puebla",21,"Pue.","Tepatlaxco de Hidalgo","Tepatlaxco de Hidalgo, Pue.",163,217," "," "]
["Puebla",21,"Pue.","Tepeaca","Tepeaca, Pue.",164,217," "," "]
["Puebla",21,"Pue.","Tepemaxalco","Tepemaxalco, Pue.",165,217," "," "]
["Puebla",21,"Pue.","Tepeojuma","Tepeojuma, Pue.",166,217," "," "]
["Puebla",21,"Pue.","Tepetzintla","Tepetzintla, Pue.",167,217," "," "]
["Puebla",21,"Pue.","Tepexco","Tepexco, Pue.",168,217," "," "]
["Puebla",21,"Pue.","Tepexi de Rodríguez","Tepexi de Rodríguez, Pue.",169,217," "," "]
["Puebla",21,"Pue.","Tepeyahualco","Tepeyahualco, Pue.",170,217," "," "]
["Puebla",21,"Pue.","Tepeyahualco de Cuauhtémoc","Tepeyahualco de Cuauhtémoc, Pue.",171,217," "," "]
["Puebla",21,"Pue.","Tetela de Ocampo","Tetela de Ocampo, Pue.",172,217," "," "]
["Puebla",21,"Pue.","Teteles de Avila Castillo","Teteles de Avila Castillo, Pue.",173,217," "," "]
["Puebla",21,"Pue.","Teziutlán","Teziutlán, Pue.",174,217," "," "]
["Puebla",21,"Pue.","Tianguismanalco","Tianguismanalco, Pue.",175,217," "," "]
["Puebla",21,"Pue.","Tilapa","Tilapa, Pue.",176,217," "," "]
["Puebla",21,"Pue.","Tlachichuca","Tlachichuca, Pue.",179,217," "," "]
["Puebla",21,"Pue.","Tlacotepec de Benito Juárez","Tlacotepec de Benito Juárez, Pue.",177,217," "," "]
["Puebla",21,"Pue.","Tlacuilotepec","Tlacuilotepec, Pue.",178,217," "," "]
["Puebla",21,"Pue.","Tlahuapan","Tlahuapan, Pue.",180,217," "," "]
["Puebla",21,"Pue.","Tlaltenango","Tlaltenango, Pue.",181,217," "," "]
["Puebla",21,"Pue.","Tlanepantla","Tlanepantla, Pue.",182,217," "," "]
["Puebla",21,"Pue.","Tlaola","Tlaola, Pue.",183,217," "," "]
["Puebla",21,"Pue.","Tlapacoya","Tlapacoya, Pue.",184,217," "," "]
["Puebla",21,"Pue.","Tlapanalá","Tlapanalá, Pue.",185,217," "," "]
["Puebla",21,"Pue.","Tlatlauquitepec","Tlatlauquitepec, Pue.",186,217," "," "]
["Puebla",21,"Pue.","Tlaxco","Tlaxco, Pue.",187,217," "," "]
["Puebla",21,"Pue.","Tochimilco","Tochimilco, Pue.",188,217," "," "]
["Puebla",21,"Pue.","Tochtepec","Tochtepec, Pue.",189,217," "," "]
["Puebla",21,"Pue.","Totoltepec de Guerrero","Totoltepec de Guerrero, Pue.",190,217," "," "]
["Puebla",21,"Pue.","Tulcingo","Tulcingo, Pue.",191,217," "," "]
["Puebla",21,"Pue.","Tuzamapan de Galeana","Tuzamapan de Galeana, Pue.",192,217," "," "]
["Puebla",21,"Pue.","Tzicatlacoyan","Tzicatlacoyan, Pue.",193,217," "," "]
["Puebla",21,"Pue.","Venustiano Carranza","Venustiano Carranza, Pue.",194,217," "," "]
["Puebla",21,"Pue.","Vicente Guerrero","Vicente Guerrero, Pue.",195,217," "," "]
["Puebla",21,"Pue.","Xayacatlán de Bravo","Xayacatlán de Bravo, Pue.",196,217," "," "]
["Puebla",21,"Pue.","Xicotepec","Xicotepec, Pue.",197,217," "," "]
["Puebla",21,"Pue.","Xicotlán","Xicotlán, Pue.",198,217," "," "]
["Puebla",21,"Pue.","Xiutetelco","Xiutetelco, Pue.",199,217," "," "]
["Puebla",21,"Pue.","Xochiapulco","Xochiapulco, Pue.",200,217," "," "]
["Puebla",21,"Pue.","Xochiltepec","Xochiltepec, Pue.",201,217," "," "]
["Puebla",21,"Pue.","Xochitlán de Vicente Suárez","Xochitlán de Vicente Suárez, Pue.",202,217," "," "]
["Puebla",21,"Pue.","Xochitlán Todos Santos","Xochitlán Todos Santos, Pue.",203,217," "," "]
["Puebla",21,"Pue.","Yaonáhuac","Yaonáhuac, Pue.",204,217," "," "]
["Puebla",21,"Pue.","Yehualtepec","Yehualtepec, Pue.",205,217," "," "]
["Puebla",21,"Pue.","Zacapala","Zacapala, Pue.",206,217," "," "]
["Puebla",21,"Pue.","Zacapoaxtla","Zacapoaxtla, Pue.",207,217," "," "]
["Puebla",21,"Pue.","Zacatlán","Zacatlán, Pue.",208,217," "," "]
["Puebla",21,"Pue.","Zapotitlán","Zapotitlán, Pue.",209,217," "," "]
["Puebla",21,"Pue.","Zapotitlán de Méndez","Zapotitlán de Méndez, Pue.",210,217," "," "]
["Puebla",21,"Pue.","Zaragoza","Zaragoza, Pue.",211,217," "," "]
["Puebla",21,"Pue.","Zautla","Zautla, Pue.",212,217," "," "]
["Puebla",21,"Pue.","Zihuateutla","Zihuateutla, Pue.",213,217," "," "]
["Puebla",21,"Pue.","Zinacatepec","Zinacatepec, Pue.",214,217," "," "]
["Puebla",21,"Pue.","Zongozotla","Zongozotla, Pue.",215,217," "," "]
["Puebla",21,"Pue.","Zoquiapan","Zoquiapan, Pue.",216,217," "," "]
["Puebla",21,"Pue.","Zoquitlán","Zoquitlán, Pue.",217,217," "," "]
["Querétaro",22,"Qro.","Amealco de Bonfil","Amealco de Bonfil, Qro.",1,18," "," "]
["Querétaro",22,"Qro.","Arroyo Seco","Arroyo Seco, Qro.",3,18," "," "]
["Querétaro",22,"Qro.","Cadereyta de Montes","Cadereyta de Montes, Qro.",4,18," "," "]
["Querétaro",22,"Qro.","Colón","Colón, Qro.",5,18," "," "]
["Querétaro",22,"Qro.","Corregidora","Corregidora, Qro.",6,18," "," "]
["Querétaro",22,"Qro.","El Marqués","El Marqués, Qro.",11,18," "," "]
["Querétaro",22,"Qro.","Ezequiel Montes","Ezequiel Montes, Qro.",7,18," "," "]
["Querétaro",22,"Qro.","Huimilpan",{"$f":"D1794&\", \"&C1794","v":"Huimilpan, Qro."},8,18," "," "]
["Querétaro",22,"Qro.","Jalpan de Serra","Jalpan de Serra, Qro.",9,18,{"$f":"IF(E1795=E1796,\"mal\",\" \")","v":" "},{"$f":"IF(H1795=\"mal\",1,\" \")","v":" "}]
["Querétaro",22,"Qro.","Landa de Matamoros","Landa de Matamoros, Qro.",10,18," "," "]
["Querétaro",22,"Qro.","Pedro Escobedo","Pedro Escobedo, Qro.",12,18," "," "]
["Querétaro",22,"Qro.","Peñamiller","Peñamiller, Qro.",13,18," "," "]
["Querétaro",22,"Qro.","Pinal de Amoles","Pinal de Amoles, Qro.",2,18," "," "]
["Querétaro",22,"Qro.","Querétaro","Querétaro, Qro.",14,18," "," "]
["Querétaro",22,"Qro.","San Joaquín","San Joaquín, Qro.",15,18," "," "]
["Querétaro",22,"Qro.","San Juan del Río","San Juan del Río, Qro.",16,18," "," "]
["Querétaro",22,"Qro.","Tequisquiapan","Tequisquiapan, Qro.",17,18," "," "]
["Querétaro",22,"Qro.","Tolimán","Tolimán, Qro.",18,18," "," "]
["Quintana_Roo",23,"Q. Roo","Bacalar","Bacalar, Q. Roo",10,10," "," "]
["Quintana_Roo",23,"Q. Roo","Benito Juárez","Benito Juárez, Q. Roo",5,10," "," "]
["Quintana_Roo",23,"Q. Roo","Cozumel","Cozumel, Q. Roo",1,10," "," "]
["Quintana_Roo",23,"Q. Roo","Felipe Carrillo Puerto","Felipe Carrillo Puerto, Q. Roo",2,10," "," "]
["Quintana_Roo",23,"Q. Roo","Isla Mujeres","Isla Mujeres, Q. Roo",3,10," "," "]
["Quintana_Roo",23,"Q. Roo","José María Morelos","José María Morelos, Q. Roo",6,10," "," "]
["Quintana_Roo",23,"Q. Roo","Lázaro Cárdenas","Lázaro Cárdenas, Q. Roo",7,10," "," "]
["Quintana_Roo",23,"Q. Roo","Othón P. Blanco","Othón P. Blanco, Q. Roo",4,10," "," "]
["Quintana_Roo",23,"Q. Roo","Solidaridad","Solidaridad, Q. Roo",8,10," "," "]
["Quintana_Roo",23,"Q. Roo","Tulum","Tulum, Q. Roo",9,10," "," "]
["San_Luis_Potosí",24,"SLP","Ahualulco","Ahualulco, SLP",1,58," "," "]
["San_Luis_Potosí",24,"SLP","Alaquines","Alaquines, SLP",2,58," "," "]
["San_Luis_Potosí",24,"SLP","Aquismón","Aquismón, SLP",3,58," "," "]
["San_Luis_Potosí",24,"SLP","Armadillo de los Infante","Armadillo de los Infante, SLP",4,58," "," "]
["San_Luis_Potosí",24,"SLP","Axtla de Terrazas","Axtla de Terrazas, SLP",53,58," "," "]
["San_Luis_Potosí",24,"SLP","Cárdenas","Cárdenas, SLP",5,58," "," "]
["San_Luis_Potosí",24,"SLP","Catorce","Catorce, SLP",6,58," "," "]
["San_Luis_Potosí",24,"SLP","Cedral","Cedral, SLP",7,58," "," "]
["San_Luis_Potosí",24,"SLP","Cerritos","Cerritos, SLP",8,58," "," "]
["San_Luis_Potosí",24,"SLP","Cerro de San Pedro","Cerro de San Pedro, SLP",9,58," "," "]
["San_Luis_Potosí",24,"SLP","Charcas","Charcas, SLP",15,58," "," "]
["San_Luis_Potosí",24,"SLP","Ciudad del Maíz","Ciudad del Maíz, SLP",10,58," "," "]
["San_Luis_Potosí",24,"SLP","Ciudad Fernández","Ciudad Fernández, SLP",11,58," "," "]
["San_Luis_Potosí",24,"SLP","Ciudad Valles","Ciudad Valles, SLP",13,58," "," "]
["San_Luis_Potosí",24,"SLP","Coxcatlán","Coxcatlán, SLP",14,58," "," "]
["San_Luis_Potosí",24,"SLP","Ebano","Ebano, SLP",16,58," "," "]
["San_Luis_Potosí",24,"SLP","El Naranjo","El Naranjo, SLP",58,58," "," "]
["San_Luis_Potosí",24,"SLP","Guadalcázar","Guadalcázar, SLP",17,58," "," "]
["San_Luis_Potosí",24,"SLP","Huehuetlán","Huehuetlán, SLP",18,58," "," "]
["San_Luis_Potosí",24,"SLP","Lagunillas","Lagunillas, SLP",19,58," "," "]
["San_Luis_Potosí",24,"SLP","Matehuala","Matehuala, SLP",20,58," "," "]
["San_Luis_Potosí",24,"SLP","Matlapa","Matlapa, SLP",57,58," "," "]
["San_Luis_Potosí",24,"SLP","Mexquitic de Carmona","Mexquitic de Carmona, SLP",21,58," "," "]
["San_Luis_Potosí",24,"SLP","Moctezuma","Moctezuma, SLP",22,58," "," "]
["San_Luis_Potosí",24,"SLP","Rayón","Rayón, SLP",23,58," "," "]
["San_Luis_Potosí",24,"SLP","Rioverde","Rioverde, SLP",24,58," "," "]
["San_Luis_Potosí",24,"SLP","Salinas","Salinas, SLP",25,58," "," "]
["San_Luis_Potosí",24,"SLP","San Antonio","San Antonio, SLP",26,58," "," "]
["San_Luis_Potosí",24,"SLP","San Ciro de Acosta","San Ciro de Acosta, SLP",27,58," "," "]
["San_Luis_Potosí",24,"SLP","San Luis Potosí","San Luis Potosí, SLP",28,58," "," "]
["San_Luis_Potosí",24,"SLP","San Martín Chalchicuautla","San Martín Chalchicuautla, SLP",29,58," "," "]
["San_Luis_Potosí",24,"SLP","San Nicolás Tolentino","San Nicolás Tolentino, SLP",30,58," "," "]
["San_Luis_Potosí",24,"SLP","San Vicente Tancuayalab","San Vicente Tancuayalab, SLP",34,58," "," "]
["San_Luis_Potosí",24,"SLP","Santa Catarina","Santa Catarina, SLP",31,58," "," "]
["San_Luis_Potosí",24,"SLP","Santa María del Río","Santa María del Río, SLP",32,58," "," "]
["San_Luis_Potosí",24,"SLP","Santo Domingo","Santo Domingo, SLP",33,58," "," "]
["San_Luis_Potosí",24,"SLP","Soledad de Graciano Sánchez","Soledad de Graciano Sánchez, SLP",35,58," "," "]
["San_Luis_Potosí",24,"SLP","Tamasopo","Tamasopo, SLP",36,58," "," "]
["San_Luis_Potosí",24,"SLP","Tamazunchale","Tamazunchale, SLP",37,58," "," "]
["San_Luis_Potosí",24,"SLP","Tampacán","Tampacán, SLP",38,58," "," "]
["San_Luis_Potosí",24,"SLP","Tampamolón Corona","Tampamolón Corona, SLP",39,58," "," "]
["San_Luis_Potosí",24,"SLP","Tamuín","Tamuín, SLP",40,58," "," "]
["San_Luis_Potosí",24,"SLP","Tancanhuitz","Tancanhuitz, SLP",12,58," "," "]
["San_Luis_Potosí",24,"SLP","Tanlajás",{"$f":"D1858&\", \"&C1858","v":"Tanlajás, SLP"},41,58," "," "]
["San_Luis_Potosí",24,"SLP","Tanquián de Escobedo","Tanquián de Escobedo, SLP",42,58,{"$f":"IF(E1859=E1860,\"mal\",\" \")","v":" "},{"$f":"IF(H1859=\"mal\",1,\" \")","v":" "}]
["San_Luis_Potosí",24,"SLP","Tierra Nueva","Tierra Nueva, SLP",43,58," "," "]
["San_Luis_Potosí",24,"SLP","Vanegas","Vanegas, SLP",44,58," "," "]
["San_Luis_Potosí",24,"SLP","Venado","Venado, SLP",45,58," "," "]
["San_Luis_Potosí",24,"SLP","Villa de Arista","Villa de Arista, SLP",56,58," "," "]
["San_Luis_Potosí",24,"SLP","Villa de Arriaga","Villa de Arriaga, SLP",46,58," "," "]
["San_Luis_Potosí",24,"SLP","Villa de Guadalupe","Villa de Guadalupe, SLP",47,58," "," "]
["San_Luis_Potosí",24,"SLP","Villa de la Paz","Villa de la Paz, SLP",48,58," "," "]
["San_Luis_Potosí",24,"SLP","Villa de Ramos","Villa de Ramos, SLP",49,58," "," "]
["San_Luis_Potosí",24,"SLP","Villa de Reyes","Villa de Reyes, SLP",50,58," "," "]
["San_Luis_Potosí",24,"SLP","Villa Hidalgo","Villa Hidalgo, SLP",51,58," "," "]
["San_Luis_Potosí",24,"SLP","Villa Juárez","Villa Juárez, SLP",52,58," "," "]
["San_Luis_Potosí",24,"SLP","Xilitla","Xilitla, SLP",54,58," "," "]
["San_Luis_Potosí",24,"SLP","Zaragoza","Zaragoza, SLP",55,58," "," "]
["Sinaloa",25,"Sin.","Ahome","Ahome, Sin.",1,18," "," "]
["Sinaloa",25,"Sin.","Angostura","Angostura, Sin.",2,18," "," "]
["Sinaloa",25,"Sin.","Badiraguato","Badiraguato, Sin.",3,18," "," "]
["Sinaloa",25,"Sin.","Choix","Choix, Sin.",7,18," "," "]
["Sinaloa",25,"Sin.","Concordia","Concordia, Sin.",4,18," "," "]
["Sinaloa",25,"Sin.","Cosalá","Cosalá, Sin.",5,18," "," "]
["Sinaloa",25,"Sin.","Culiacán","Culiacán, Sin.",6,18," "," "]
["Sinaloa",25,"Sin.","El Fuerte","El Fuerte, Sin.",10,18," "," "]
["Sinaloa",25,"Sin.","Elota","Elota, Sin.",8,18," "," "]
["Sinaloa",25,"Sin.","Escuinapa","Escuinapa, Sin.",9,18," "," "]
["Sinaloa",25,"Sin.","Guasave","Guasave, Sin.",11,18," "," "]
["Sinaloa",25,"Sin.","Mazatlán","Mazatlán, Sin.",12,18," "," "]
["Sinaloa",25,"Sin.","Mocorito","Mocorito, Sin.",13,18," "," "]
["Sinaloa",25,"Sin.","Navolato","Navolato, Sin.",18,18," "," "]
["Sinaloa",25,"Sin.","Rosario","Rosario, Sin.",14,18," "," "]
["Sinaloa",25,"Sin.","Salvador Alvarado","Salvador Alvarado, Sin.",15,18," "," "]
["Sinaloa",25,"Sin.","San Ignacio","San Ignacio, Sin.",16,18," "," "]
["Sinaloa",25,"Sin.","Sinaloa","Sinaloa, Sin.",17,18," "," "]
["Sonora",26,"Son.","Aconchi","Aconchi, Son.",1,72," "," "]
["Sonora",26,"Son.","Agua Prieta","Agua Prieta, Son.",2,72," "," "]
["Sonora",26,"Son.","Alamos","Alamos, Son.",3,72," "," "]
["Sonora",26,"Son.","Altar","Altar, Son.",4,72," "," "]
["Sonora",26,"Son.","Arivechi","Arivechi, Son.",5,72," "," "]
["Sonora",26,"Son.","Arizpe","Arizpe, Son.",6,72," "," "]
["Sonora",26,"Son.","Atil","Atil, Son.",7,72," "," "]
["Sonora",26,"Son.","Bacadéhuachi","Bacadéhuachi, Son.",8,72," "," "]
["Sonora",26,"Son.","Bacanora","Bacanora, Son.",9,72," "," "]
["Sonora",26,"Son.","Bacerac","Bacerac, Son.",10,72," "," "]
["Sonora",26,"Son.","Bacoachi","Bacoachi, Son.",11,72," "," "]
["Sonora",26,"Son.","Bácum","Bácum, Son.",12,72," "," "]
["Sonora",26,"Son.","Banámichi","Banámichi, Son.",13,72," "," "]
["Sonora",26,"Son.","Baviácora","Baviácora, Son.",14,72," "," "]
["Sonora",26,"Son.","Bavispe","Bavispe, Son.",15,72," "," "]
["Sonora",26,"Son.","Benito Juárez","Benito Juárez, Son.",71,72," "," "]
["Sonora",26,"Son.","Benjamín Hill","Benjamín Hill, Son.",16,72," "," "]
["Sonora",26,"Son.","Caborca","Caborca, Son.",17,72," "," "]
["Sonora",26,"Son.","Cajeme","Cajeme, Son.",18,72," "," "]
["Sonora",26,"Son.","Cananea","Cananea, Son.",19,72," "," "]
["Sonora",26,"Son.","Carbó","Carbó, Son.",20,72," "," "]
["Sonora",26,"Son.","Cucurpe","Cucurpe, Son.",22,72," "," "]
["Sonora",26,"Son.","Cumpas","Cumpas, Son.",23,72," "," "]
["Sonora",26,"Son.","Divisaderos","Divisaderos, Son.",24,72," "," "]
["Sonora",26,"Son.","Empalme","Empalme, Son.",25,72," "," "]
["Sonora",26,"Son.","Etchojoa","Etchojoa, Son.",26,72," "," "]
["Sonora",26,"Son.","Fronteras","Fronteras, Son.",27,72," "," "]
["Sonora",26,"Son.","General Plutarco Elías Calles","General Plutarco Elías Calles, Son.",70,72," "," "]
["Sonora",26,"Son.","Granados","Granados, Son.",28,72," "," "]
["Sonora",26,"Son.","Guaymas","Guaymas, Son.",29,72," "," "]
["Sonora",26,"Son.","Hermosillo","Hermosillo, Son.",30,72," "," "]
["Sonora",26,"Son.","Huachinera",{"$f":"D1922&\", \"&C1922","v":"Huachinera, Son."},31,72," "," "]
["Sonora",26,"Son.","Huásabas","Huásabas, Son.",32,72,{"$f":"IF(E1923=E1924,\"mal\",\" \")","v":" "},{"$f":"IF(H1923=\"mal\",1,\" \")","v":" "}]
["Sonora",26,"Son.","Huatabampo","Huatabampo, Son.",33,72," "," "]
["Sonora",26,"Son.","Huépac","Huépac, Son.",34,72," "," "]
["Sonora",26,"Son.","Imuris","Imuris, Son.",35,72," "," "]
["Sonora",26,"Son.","La Colorada","La Colorada, Son.",21,72," "," "]
["Sonora",26,"Son.","Magdalena","Magdalena, Son.",36,72," "," "]
["Sonora",26,"Son.","Mazatán","Mazatán, Son.",37,72," "," "]
["Sonora",26,"Son.","Moctezuma","Moctezuma, Son.",38,72," "," "]
["Sonora",26,"Son.","Naco","Naco, Son.",39,72," "," "]
["Sonora",26,"Son.","Nácori Chico","Nácori Chico, Son.",40,72," "," "]
["Sonora",26,"Son.","Nacozari de García","Nacozari de García, Son.",41,72," "," "]
["Sonora",26,"Son.","Navojoa","Navojoa, Son.",42,72," "," "]
["Sonora",26,"Son.","Nogales","Nogales, Son.",43,72," "," "]
["Sonora",26,"Son.","Onavas","Onavas, Son.",44,72," "," "]
["Sonora",26,"Son.","Opodepe","Opodepe, Son.",45,72," "," "]
["Sonora",26,"Son.","Oquitoa","Oquitoa, Son.",46,72," "," "]
["Sonora",26,"Son.","Pitiquito","Pitiquito, Son.",47,72," "," "]
["Sonora",26,"Son.","Puerto Peñasco","Puerto Peñasco, Son.",48,72," "," "]
["Sonora",26,"Son.","Quiriego","Quiriego, Son.",49,72," "," "]
["Sonora",26,"Son.","Rayón","Rayón, Son.",50,72," "," "]
["Sonora",26,"Son.","Rosario","Rosario, Son.",51,72," "," "]
["Sonora",26,"Son.","Sahuaripa","Sahuaripa, Son.",52,72," "," "]
["Sonora",26,"Son.","San Felipe de Jesús","San Felipe de Jesús, Son.",53,72," "," "]
["Sonora",26,"Son.","San Ignacio Río Muerto","San Ignacio Río Muerto, Son.",72,72," "," "]
["Sonora",26,"Son.","San Javier","San Javier, Son.",54,72," "," "]
["Sonora",26,"Son.","San Luis Río Colorado","San Luis Río Colorado, Son.",55,72," "," "]
["Sonora",26,"Son.","San Miguel de Horcasitas","San Miguel de Horcasitas, Son.",56,72," "," "]
["Sonora",26,"Son.","San Pedro de la Cueva","San Pedro de la Cueva, Son.",57,72," "," "]
["Sonora",26,"Son.","Santa Ana","Santa Ana, Son.",58,72," "," "]
["Sonora",26,"Son.","Santa Cruz","Santa Cruz, Son.",59,72," "," "]
["Sonora",26,"Son.","Sáric","Sáric, Son.",60,72," "," "]
["Sonora",26,"Son.","Soyopa","Soyopa, Son.",61,72," "," "]
["Sonora",26,"Son.","Suaqui Grande","Suaqui Grande, Son.",62,72," "," "]
["Sonora",26,"Son.","Tepache","Tepache, Son.",63,72," "," "]
["Sonora",26,"Son.","Trincheras","Trincheras, Son.",64,72," "," "]
["Sonora",26,"Son.","Tubutama","Tubutama, Son.",65,72," "," "]
["Sonora",26,"Son.","Ures","Ures, Son.",66,72," "," "]
["Sonora",26,"Son.","Villa Hidalgo","Villa Hidalgo, Son.",67,72," "," "]
["Sonora",26,"Son.","Villa Pesqueira","Villa Pesqueira, Son.",68,72," "," "]
["Sonora",26,"Son.","Yécora","Yécora, Son.",69,72," "," "]
["Tabasco",27,"Tab.","Balancán","Balancán, Tab.",1,17," "," "]
["Tabasco",27,"Tab.","Cárdenas","Cárdenas, Tab.",2,17," "," "]
["Tabasco",27,"Tab.","Centla","Centla, Tab.",3,17," "," "]
["Tabasco",27,"Tab.","Centro","Centro, Tab.",4,17," "," "]
["Tabasco",27,"Tab.","Comalcalco","Comalcalco, Tab.",5,17," "," "]
["Tabasco",27,"Tab.","Cunduacán","Cunduacán, Tab.",6,17," "," "]
["Tabasco",27,"Tab.","Emiliano Zapata","Emiliano Zapata, Tab.",7,17," "," "]
["Tabasco",27,"Tab.","Huimanguillo","Huimanguillo, Tab.",8,17," "," "]
["Tabasco",27,"Tab.","Jalapa","Jalapa, Tab.",9,17," "," "]
["Tabasco",27,"Tab.","Jalpa de Méndez","Jalpa de Méndez, Tab.",10,17," "," "]
["Tabasco",27,"Tab.","Jonuta","Jonuta, Tab.",11,17," "," "]
["Tabasco",27,"Tab.","Macuspana","Macuspana, Tab.",12,17," "," "]
["Tabasco",27,"Tab.","Nacajuca","Nacajuca, Tab.",13,17," "," "]
["Tabasco",27,"Tab.","Paraíso","Paraíso, Tab.",14,17," "," "]
["Tabasco",27,"Tab.","Tacotalpa","Tacotalpa, Tab.",15,17," "," "]
["Tabasco",27,"Tab.","Teapa","Teapa, Tab.",16,17," "," "]
["Tabasco",27,"Tab.","Tenosique","Tenosique, Tab.",17,17," "," "]
["Tamaulipas",28,"Tamps.","Abasolo","Abasolo, Tamps.",1,43," "," "]
["Tamaulipas",28,"Tamps.","Aldama","Aldama, Tamps.",2,43," "," "]
["Tamaulipas",28,"Tamps.","Altamira","Altamira, Tamps.",3,43," "," "]
["Tamaulipas",28,"Tamps.","Antiguo Morelos","Antiguo Morelos, Tamps.",4,43," "," "]
["Tamaulipas",28,"Tamps.","Burgos","Burgos, Tamps.",5,43," "," "]
["Tamaulipas",28,"Tamps.","Bustamante","Bustamante, Tamps.",6,43," "," "]
["Tamaulipas",28,"Tamps.","Camargo",{"$f":"D1986&\", \"&C1986","v":"Camargo, Tamps."},7,43," "," "]
["Tamaulipas",28,"Tamps.","Casas","Casas, Tamps.",8,43,{"$f":"IF(E1987=E1988,\"mal\",\" \")","v":" "},{"$f":"IF(H1987=\"mal\",1,\" \")","v":" "}]
["Tamaulipas",28,"Tamps.","Ciudad Madero","Ciudad Madero, Tamps.",9,43," "," "]
["Tamaulipas",28,"Tamps.","Cruillas","Cruillas, Tamps.",10,43," "," "]
["Tamaulipas",28,"Tamps.","El Mante","El Mante, Tamps.",21,43," "," "]
["Tamaulipas",28,"Tamps.","Gómez Farías","Gómez Farías, Tamps.",11,43," "," "]
["Tamaulipas",28,"Tamps.","González","González, Tamps.",12,43," "," "]
["Tamaulipas",28,"Tamps.","Güémez","Güémez, Tamps.",13,43," "," "]
["Tamaulipas",28,"Tamps.","Guerrero","Guerrero, Tamps.",14,43," "," "]
["Tamaulipas",28,"Tamps.","Gustavo Díaz Ordaz","Gustavo Díaz Ordaz, Tamps.",15,43," "," "]
["Tamaulipas",28,"Tamps.","Hidalgo","Hidalgo, Tamps.",16,43," "," "]
["Tamaulipas",28,"Tamps.","Jaumave","Jaumave, Tamps.",17,43," "," "]
["Tamaulipas",28,"Tamps.","Jiménez","Jiménez, Tamps.",18,43," "," "]
["Tamaulipas",28,"Tamps.","Llera","Llera, Tamps.",19,43," "," "]
["Tamaulipas",28,"Tamps.","Mainero","Mainero, Tamps.",20,43," "," "]
["Tamaulipas",28,"Tamps.","Matamoros","Matamoros, Tamps.",22,43," "," "]
["Tamaulipas",28,"Tamps.","Méndez","Méndez, Tamps.",23,43," "," "]
["Tamaulipas",28,"Tamps.","Mier","Mier, Tamps.",24,43," "," "]
["Tamaulipas",28,"Tamps.","Miguel Alemán","Miguel Alemán, Tamps.",25,43," "," "]
["Tamaulipas",28,"Tamps.","Miquihuana","Miquihuana, Tamps.",26,43," "," "]
["Tamaulipas",28,"Tamps.","Nuevo Laredo","Nuevo Laredo, Tamps.",27,43," "," "]
["Tamaulipas",28,"Tamps.","Nuevo Morelos","Nuevo Morelos, Tamps.",28,43," "," "]
["Tamaulipas",28,"Tamps.","Ocampo","Ocampo, Tamps.",29,43," "," "]
["Tamaulipas",28,"Tamps.","Padilla","Padilla, Tamps.",30,43," "," "]
["Tamaulipas",28,"Tamps.","Palmillas","Palmillas, Tamps.",31,43," "," "]
["Tamaulipas",28,"Tamps.","Reynosa","Reynosa, Tamps.",32,43," "," "]
["Tamaulipas",28,"Tamps.","Río Bravo","Río Bravo, Tamps.",33,43," "," "]
["Tamaulipas",28,"Tamps.","San Carlos","San Carlos, Tamps.",34,43," "," "]
["Tamaulipas",28,"Tamps.","San Fernando","San Fernando, Tamps.",35,43," "," "]
["Tamaulipas",28,"Tamps.","San Nicolás","San Nicolás, Tamps.",36,43," "," "]
["Tamaulipas",28,"Tamps.","Soto la Marina","Soto la Marina, Tamps.",37,43," "," "]
["Tamaulipas",28,"Tamps.","Tampico","Tampico, Tamps.",38,43," "," "]
["Tamaulipas",28,"Tamps.","Tula","Tula, Tamps.",39,43," "," "]
["Tamaulipas",28,"Tamps.","Valle Hermoso","Valle Hermoso, Tamps.",40,43," "," "]
["Tamaulipas",28,"Tamps.","Victoria","Victoria, Tamps.",41,43," "," "]
["Tamaulipas",28,"Tamps.","Villagrán","Villagrán, Tamps.",42,43," "," "]
["Tamaulipas",28,"Tamps.","Xicoténcatl","Xicoténcatl, Tamps.",43,43," "," "]
["Tlaxcala",29,"Tlax.","Acuamanala de Miguel Hidalgo","Acuamanala de Miguel Hidalgo, Tlax.",22,60," "," "]
["Tlaxcala",29,"Tlax.","Amaxac de Guerrero","Amaxac de Guerrero, Tlax.",1,60," "," "]
["Tlaxcala",29,"Tlax.","Apetatitlán de Antonio Carvajal","Apetatitlán de Antonio Carvajal, Tlax.",2,60," "," "]
["Tlaxcala",29,"Tlax.","Apizaco","Apizaco, Tlax.",5,60," "," "]
["Tlaxcala",29,"Tlax.","Atlangatepec","Atlangatepec, Tlax.",3,60," "," "]
["Tlaxcala",29,"Tlax.","Atltzayanca","Atltzayanca, Tlax.",4,60," "," "]
["Tlaxcala",29,"Tlax.","Benito Juárez","Benito Juárez, Tlax.",45,60," "," "]
["Tlaxcala",29,"Tlax.","Calpulalpan","Calpulalpan, Tlax.",6,60," "," "]
["Tlaxcala",29,"Tlax.","Chiautempan","Chiautempan, Tlax.",10,60," "," "]
["Tlaxcala",29,"Tlax.","Contla de Juan Cuamatzi","Contla de Juan Cuamatzi, Tlax.",18,60," "," "]
["Tlaxcala",29,"Tlax.","Cuapiaxtla","Cuapiaxtla, Tlax.",8,60," "," "]
["Tlaxcala",29,"Tlax.","Cuaxomulco","Cuaxomulco, Tlax.",9,60," "," "]
["Tlaxcala",29,"Tlax.","El Carmen Tequexquitla","El Carmen Tequexquitla, Tlax.",7,60," "," "]
["Tlaxcala",29,"Tlax.","Emiliano Zapata","Emiliano Zapata, Tlax.",46,60," "," "]
["Tlaxcala",29,"Tlax.","Españita","Españita, Tlax.",12,60," "," "]
["Tlaxcala",29,"Tlax.","Huamantla","Huamantla, Tlax.",13,60," "," "]
["Tlaxcala",29,"Tlax.","Hueyotlipan","Hueyotlipan, Tlax.",14,60," "," "]
["Tlaxcala",29,"Tlax.","Ixtacuixtla de Mariano Matamoros","Ixtacuixtla de Mariano Matamoros, Tlax.",15,60," "," "]
["Tlaxcala",29,"Tlax.","Ixtenco","Ixtenco, Tlax.",16,60," "," "]
["Tlaxcala",29,"Tlax.","La Magdalena Tlaltelulco","La Magdalena Tlaltelulco, Tlax.",48,60," "," "]
["Tlaxcala",29,"Tlax.","Lázaro Cárdenas","Lázaro Cárdenas, Tlax.",47,60," "," "]
["Tlaxcala",29,"Tlax.","Mazatecochco de José María Morelos","Mazatecochco de José María Morelos, Tlax.",17,60," "," "]
["Tlaxcala",29,"Tlax.","Muñoz de Domingo Arenas","Muñoz de Domingo Arenas, Tlax.",11,60," "," "]
["Tlaxcala",29,"Tlax.","Nanacamilpa de Mariano Arista","Nanacamilpa de Mariano Arista, Tlax.",21,60," "," "]
["Tlaxcala",29,"Tlax.","Natívitas","Natívitas, Tlax.",23,60," "," "]
["Tlaxcala",29,"Tlax.","Panotla","Panotla, Tlax.",24,60," "," "]
["Tlaxcala",29,"Tlax.","Papalotla de Xicohténcatl","Papalotla de Xicohténcatl, Tlax.",41,60," "," "]
["Tlaxcala",29,"Tlax.","San Damián Texóloc",{"$f":"D2050&\", \"&C2050","v":"San Damián Texóloc, Tlax."},49,60," "," "]
["Tlaxcala",29,"Tlax.","San Francisco Tetlanohcan","San Francisco Tetlanohcan, Tlax.",50,60,{"$f":"IF(E2051=E2052,\"mal\",\" \")","v":" "},{"$f":"IF(H2051=\"mal\",1,\" \")","v":" "}]
["Tlaxcala",29,"Tlax.","San Jerónimo Zacualpan","San Jerónimo Zacualpan, Tlax.",51,60," "," "]
["Tlaxcala",29,"Tlax.","San José Teacalco","San José Teacalco, Tlax.",52,60," "," "]
["Tlaxcala",29,"Tlax.","San Juan Huactzinco","San Juan Huactzinco, Tlax.",53,60," "," "]
["Tlaxcala",29,"Tlax.","San Lorenzo Axocomanitla","San Lorenzo Axocomanitla, Tlax.",54,60," "," "]
["Tlaxcala",29,"Tlax.","San Lucas Tecopilco","San Lucas Tecopilco, Tlax.",55,60," "," "]
["Tlaxcala",29,"Tlax.","San Pablo del Monte","San Pablo del Monte, Tlax.",25,60," "," "]
["Tlaxcala",29,"Tlax.","Sanctórum de Lázaro Cárdenas","Sanctórum de Lázaro Cárdenas, Tlax.",20,60," "," "]
["Tlaxcala",29,"Tlax.","Santa Ana Nopalucan","Santa Ana Nopalucan, Tlax.",56,60," "," "]
["Tlaxcala",29,"Tlax.","Santa Apolonia Teacalco","Santa Apolonia Teacalco, Tlax.",57,60," "," "]
["Tlaxcala",29,"Tlax.","Santa Catarina Ayometla","Santa Catarina Ayometla, Tlax.",58,60," "," "]
["Tlaxcala",29,"Tlax.","Santa Cruz Quilehtla","Santa Cruz Quilehtla, Tlax.",59,60," "," "]
["Tlaxcala",29,"Tlax.","Santa Cruz Tlaxcala","Santa Cruz Tlaxcala, Tlax.",26,60," "," "]
["Tlaxcala",29,"Tlax.","Santa Isabel Xiloxoxtla","Santa Isabel Xiloxoxtla, Tlax.",60,60," "," "]
["Tlaxcala",29,"Tlax.","Tenancingo","Tenancingo, Tlax.",27,60," "," "]
["Tlaxcala",29,"Tlax.","Teolocholco","Teolocholco, Tlax.",28,60," "," "]
["Tlaxcala",29,"Tlax.","Tepetitla de Lardizábal","Tepetitla de Lardizábal, Tlax.",19,60," "," "]
["Tlaxcala",29,"Tlax.","Tepeyanco","Tepeyanco, Tlax.",29,60," "," "]
["Tlaxcala",29,"Tlax.","Terrenate","Terrenate, Tlax.",30,60," "," "]
["Tlaxcala",29,"Tlax.","Tetla de la Solidaridad","Tetla de la Solidaridad, Tlax.",31,60," "," "]
["Tlaxcala",29,"Tlax.","Tetlatlahuca","Tetlatlahuca, Tlax.",32,60," "," "]
["Tlaxcala",29,"Tlax.","Tlaxcala","Tlaxcala, Tlax.",33,60," "," "]
["Tlaxcala",29,"Tlax.","Tlaxco","Tlaxco, Tlax.",34,60," "," "]
["Tlaxcala",29,"Tlax.","Tocatlán","Tocatlán, Tlax.",35,60," "," "]
["Tlaxcala",29,"Tlax.","Totolac","Totolac, Tlax.",36,60," "," "]
["Tlaxcala",29,"Tlax.","Tzompantepec","Tzompantepec, Tlax.",38,60," "," "]
["Tlaxcala",29,"Tlax.","Xaloztoc","Xaloztoc, Tlax.",39,60," "," "]
["Tlaxcala",29,"Tlax.","Xaltocan","Xaltocan, Tlax.",40,60," "," "]
["Tlaxcala",29,"Tlax.","Xicohtzinco","Xicohtzinco, Tlax.",42,60," "," "]
["Tlaxcala",29,"Tlax.","Yauhquemehcan","Yauhquemehcan, Tlax.",43,60," "," "]
["Tlaxcala",29,"Tlax.","Zacatelco","Zacatelco, Tlax.",44,60," "," "]
["Tlaxcala",29,"Tlax.","Ziltlaltépec de Trinidad Sánchez Santos","Ziltlaltépec de Trinidad Sánchez Santos, Tlax.",37,60," "," "]
["Veracruz_de_Ignacio_de_la_Llave",30,"Ver.","Acajete","Acajete, Ver.",1,212," "," "]
["Veracruz_de_Ignacio_de_la_Llave",30,"Ver.","Acatlán","Acatlán, Ver.",2,212," "," "]
["Veracruz_de_Ignacio_de_la_Llave",30,"Ver.","Acayucan","Acayucan, Ver.",3,212," "," "]
["Veracruz_de_Ignacio_de_la_Llave",30,"Ver.","Actopan","Actopan, Ver.",4,212," "," "]
["Veracruz_de_Ignacio_de_la_Llave",30,"Ver.","Acula","Acula, Ver.",5,212," "," "]
["Veracruz_de_Ignacio_de_la_Llave",30,"Ver.","Acultzingo","Acultzingo, Ver.",6,212," "," "]
["Veracruz_de_Ignacio_de_la_Llave",30,"Ver.","Agua Dulce","Agua Dulce, Ver.",204,212," "," "]
["Veracruz_de_Ignacio_de_la_Llave",30,"Ver.","Alamo Temapache","Alamo Temapache, Ver.",160,212," "," "]
["Veracruz_de_Ignacio_de_la_Llave",30,"Ver.","Alpatláhuac","Alpatláhuac, Ver.",8,212," "," "]
["Veracruz_de_Ignacio_de_la_Llave",30,"Ver.","Alto Lucero de Gutiérrez Barrios","Alto Lucero de Gutiérrez Barrios, Ver.",9,212," "," "]
["Veracruz_de_Ignacio_de_la_Llave",30,"Ver.","Altotonga","Altotonga, Ver.",10,212," "," "]
["Veracruz_de_Ignacio_de_la_Llave",30,"Ver.","Alvarado","Alvarado, Ver.",11,212," "," "]
["Veracruz_de_Ignacio_de_la_Llave",30,"Ver.","Amatitlán","Amatitlán, Ver.",12,212," "," "]
["Veracruz_de_Ignacio_de_la_Llave",30,"Ver.","Amatlán de los Reyes","Amatlán de los Reyes, Ver.",14,212," "," "]
["Veracruz_de_Ignacio_de_la_Llave",30,"Ver.","Angel R. Cabada","Angel R. Cabada, Ver.",15,212," "," "]
["Veracruz_de_Ignacio_de_la_Llave",30,"Ver.","Apazapan","Apazapan, Ver.",17,212," "," "]
["Veracruz_de_Ignacio_de_la_Llave",30,"Ver.","Aquila","Aquila, Ver.",18,212," "," "]
["Veracruz_de_Ignacio_de_la_Llave",30,"Ver.","Astacinga","Astacinga, Ver.",19,212," "," "]
["Veracruz_de_Ignacio_de_la_Llave",30,"Ver.","Atlahuilco","Atlahuilco, Ver.",20,212," "," "]
["Veracruz_de_Ignacio_de_la_Llave",30,"Ver.","Atoyac","Atoyac, Ver.",21,212," "," "]
["Veracruz_de_Ignacio_de_la_Llave",30,"Ver.","Atzacan","Atzacan, Ver.",22,212," "," "]
["Veracruz_de_Ignacio_de_la_Llave",30,"Ver.","Atzalan","Atzalan, Ver.",23,212," "," "]
["Veracruz_de_Ignacio_de_la_Llave",30,"Ver.","Ayahualulco","Ayahualulco, Ver.",25,212," "," "]
["Veracruz_de_Ignacio_de_la_Llave",30,"Ver.","Banderilla","Banderilla, Ver.",26,212," "," "]
["Veracruz_de_Ignacio_de_la_Llave",30,"Ver.","Benito Juárez","Benito Juárez, Ver.",27,212," "," "]
["Veracruz_de_Ignacio_de_la_Llave",30,"Ver.","Boca del Río","Boca del Río, Ver.",28,212," "," "]
["Veracruz_de_Ignacio_de_la_Llave",30,"Ver.","Calcahualco","Calcahualco, Ver.",29,212," "," "]
["Veracruz_de_Ignacio_de_la_Llave",30,"Ver.","Camarón de Tejeda","Camarón de Tejeda, Ver.",7,212," "," "]
["Veracruz_de_Ignacio_de_la_Llave",30,"Ver.","Camerino Z. Mendoza","Camerino Z. Mendoza, Ver.",30,212," "," "]
["Veracruz_de_Ignacio_de_la_Llave",30,"Ver.","Carlos A. Carrillo","Carlos A. Carrillo, Ver.",208,212," "," "]
["Veracruz_de_Ignacio_de_la_Llave",30,"Ver.","Carrillo Puerto","Carrillo Puerto, Ver.",31,212," "," "]
["Veracruz_de_Ignacio_de_la_Llave",30,"Ver.","Castillo de Teayo",{"$f":"D2114&\", \"&C2114","v":"Castillo de Teayo, Ver."},157,212," "," "]
["Veracruz_de_Ignacio_de_la_Llave",30,"Ver.","Catemaco","Catemaco, Ver.",32,212,{"$f":"IF(E2115=E2116,\"mal\",\" \")","v":" "},{"$f":"IF(H2115=\"mal\",1,\" \")","v":" "}]
["Veracruz_de_Ignacio_de_la_Llave",30,"Ver.","Cazones de Herrera","Cazones de Herrera, Ver.",33,212," "," "]
["Veracruz_de_Ignacio_de_la_Llave",30,"Ver.","Cerro Azul","Cerro Azul, Ver.",34,212," "," "]
["Veracruz_de_Ignacio_de_la_Llave",30,"Ver.","Chacaltianguis","Chacaltianguis, Ver.",54,212," "," "]
["Veracruz_de_Ignacio_de_la_Llave",30,"Ver.","Chalma","Chalma, Ver.",55,212," "," "]
["Veracruz_de_Ignacio_de_la_Llave",30,"Ver.","Chiconamel","Chiconamel, Ver.",56,212," "," "]
["Veracruz_de_Ignacio_de_la_Llave",30,"Ver.","Chiconquiaco","Chiconquiaco, Ver.",57,212," "," "]
["Veracruz_de_Ignacio_de_la_Llave",30,"Ver.","Chicontepec","Chicontepec, Ver.",58,212," "," "]
["Veracruz_de_Ignacio_de_la_Llave",30,"Ver.","Chinameca","Chinameca, Ver.",59,212," "," "]
["Veracruz_de_Ignacio_de_la_Llave",30,"Ver.","Chinampa de Gorostiza","Chinampa de Gorostiza, Ver.",60,212," "," "]
["Veracruz_de_Ignacio_de_la_Llave",30,"Ver.","Chocamán","Chocamán, Ver.",62,212," "," "]
["Veracruz_de_Ignacio_de_la_Llave",30,"Ver.","Chontla","Chontla, Ver.",63,212," "," "]
["Veracruz_de_Ignacio_de_la_Llave",30,"Ver.","Chumatlán","Chumatlán, Ver.",64,212," "," "]
["Veracruz_de_Ignacio_de_la_Llave",30,"Ver.","Citlaltépetl","Citlaltépetl, Ver.",35,212," "," "]
["Veracruz_de_Ignacio_de_la_Llave",30,"Ver.","Coacoatzintla","Coacoatzintla, Ver.",36,212," "," "]
["Veracruz_de_Ignacio_de_la_Llave",30,"Ver.","Coahuitlán","Coahuitlán, Ver.",37,212," "," "]
["Veracruz_de_Ignacio_de_la_Llave",30,"Ver.","Coatepec","Coatepec, Ver.",38,212," "," "]
["Veracruz_de_Ignacio_de_la_Llave",30,"Ver.","Coatzacoalcos","Coatzacoalcos, Ver.",39,212," "," "]
["Veracruz_de_Ignacio_de_la_Llave",30,"Ver.","Coatzintla","Coatzintla, Ver.",40,212," "," "]
["Veracruz_de_Ignacio_de_la_Llave",30,"Ver.","Coetzala","Coetzala, Ver.",41,212," "," "]
["Veracruz_de_Ignacio_de_la_Llave",30,"Ver.","Colipa","Colipa, Ver.",42,212," "," "]
["Veracruz_de_Ignacio_de_la_Llave",30,"Ver.","Comapa","Comapa, Ver.",43,212," "," "]
["Veracruz_de_Ignacio_de_la_Llave",30,"Ver.","Córdoba","Córdoba, Ver.",44,212," "," "]
["Veracruz_de_Ignacio_de_la_Llave",30,"Ver.","Cosamaloapan de Carpio","Cosamaloapan de Carpio, Ver.",45,212," "," "]
["Veracruz_de_Ignacio_de_la_Llave",30,"Ver.","Cosautlán de Carvajal","Cosautlán de Carvajal, Ver.",46,212," "," "]
["Veracruz_de_Ignacio_de_la_Llave",30,"Ver.","Coscomatepec","Coscomatepec, Ver.",47,212," "," "]
["Veracruz_de_Ignacio_de_la_Llave",30,"Ver.","Cosoleacaque","Cosoleacaque, Ver.",48,212," "," "]
["Veracruz_de_Ignacio_de_la_Llave",30,"Ver.","Cotaxtla","Cotaxtla, Ver.",49,212," "," "]
["Veracruz_de_Ignacio_de_la_Llave",30,"Ver.","Coxquihui","Coxquihui, Ver.",50,212," "," "]
["Veracruz_de_Ignacio_de_la_Llave",30,"Ver.","Coyutla","Coyutla, Ver.",51,212," "," "]
["Veracruz_de_Ignacio_de_la_Llave",30,"Ver.","Cuichapa","Cuichapa, Ver.",52,212," "," "]
["Veracruz_de_Ignacio_de_la_Llave",30,"Ver.","Cuitláhuac","Cuitláhuac, Ver.",53,212," "," "]
["Veracruz_de_Ignacio_de_la_Llave",30,"Ver.","El Higo","El Higo, Ver.",205,212," "," "]
["Veracruz_de_Ignacio_de_la_Llave",30,"Ver.","Emiliano Zapata","Emiliano Zapata, Ver.",65,212," "," "]
["Veracruz_de_Ignacio_de_la_Llave",30,"Ver.","Espinal","Espinal, Ver.",66,212," "," "]
["Veracruz_de_Ignacio_de_la_Llave",30,"Ver.","Filomeno Mata","Filomeno Mata, Ver.",67,212," "," "]
["Veracruz_de_Ignacio_de_la_Llave",30,"Ver.","Fortín","Fortín, Ver.",68,212," "," "]
["Veracruz_de_Ignacio_de_la_Llave",30,"Ver.","Gutiérrez Zamora","Gutiérrez Zamora, Ver.",69,212," "," "]
["Veracruz_de_Ignacio_de_la_Llave",30,"Ver.","Hidalgotitlán","Hidalgotitlán, Ver.",70,212," "," "]
["Veracruz_de_Ignacio_de_la_Llave",30,"Ver.","Huatusco","Huatusco, Ver.",71,212," "," "]
["Veracruz_de_Ignacio_de_la_Llave",30,"Ver.","Huayacocotla","Huayacocotla, Ver.",72,212," "," "]
["Veracruz_de_Ignacio_de_la_Llave",30,"Ver.","Hueyapan de Ocampo","Hueyapan de Ocampo, Ver.",73,212," "," "]
["Veracruz_de_Ignacio_de_la_Llave",30,"Ver.","Huiloapan de Cuauhtémoc","Huiloapan de Cuauhtémoc, Ver.",74,212," "," "]
["Veracruz_de_Ignacio_de_la_Llave",30,"Ver.","Ignacio de la Llave","Ignacio de la Llave, Ver.",75,212," "," "]
["Veracruz_de_Ignacio_de_la_Llave",30,"Ver.","Ilamatlán","Ilamatlán, Ver.",76,212," "," "]
["Veracruz_de_Ignacio_de_la_Llave",30,"Ver.","Isla","Isla, Ver.",77,212," "," "]
["Veracruz_de_Ignacio_de_la_Llave",30,"Ver.","Ixcatepec","Ixcatepec, Ver.",78,212," "," "]
["Veracruz_de_Ignacio_de_la_Llave",30,"Ver.","Ixhuacán de los Reyes","Ixhuacán de los Reyes, Ver.",79,212," "," "]
["Veracruz_de_Ignacio_de_la_Llave",30,"Ver.","Ixhuatlán de Madero","Ixhuatlán de Madero, Ver.",83,212," "," "]
["Veracruz_de_Ignacio_de_la_Llave",30,"Ver.","Ixhuatlán del Café","Ixhuatlán del Café, Ver.",80,212," "," "]
["Veracruz_de_Ignacio_de_la_Llave",30,"Ver.","Ixhuatlán del Sureste","Ixhuatlán del Sureste, Ver.",82,212," "," "]
["Veracruz_de_Ignacio_de_la_Llave",30,"Ver.","Ixhuatlancillo","Ixhuatlancillo, Ver.",81,212," "," "]
["Veracruz_de_Ignacio_de_la_Llave",30,"Ver.","Ixmatlahuacan","Ixmatlahuacan, Ver.",84,212," "," "]
["Veracruz_de_Ignacio_de_la_Llave",30,"Ver.","Ixtaczoquitlán","Ixtaczoquitlán, Ver.",85,212," "," "]
["Veracruz_de_Ignacio_de_la_Llave",30,"Ver.","Jalacingo","Jalacingo, Ver.",86,212," "," "]
["Veracruz_de_Ignacio_de_la_Llave",30,"Ver.","Jalcomulco","Jalcomulco, Ver.",88,212," "," "]
["Veracruz_de_Ignacio_de_la_Llave",30,"Ver.","Jáltipan","Jáltipan, Ver.",89,212," "," "]
["Veracruz_de_Ignacio_de_la_Llave",30,"Ver.","Jamapa","Jamapa, Ver.",90,212," "," "]
["Veracruz_de_Ignacio_de_la_Llave",30,"Ver.","Jesús Carranza","Jesús Carranza, Ver.",91,212," "," "]
["Veracruz_de_Ignacio_de_la_Llave",30,"Ver.","Jilotepec","Jilotepec, Ver.",93,212," "," "]
["Veracruz_de_Ignacio_de_la_Llave",30,"Ver.","José Azueta","José Azueta, Ver.",169,212," "," "]
["Veracruz_de_Ignacio_de_la_Llave",30,"Ver.","Juan Rodríguez Clara","Juan Rodríguez Clara, Ver.",94,212," "," "]
["Veracruz_de_Ignacio_de_la_Llave",30,"Ver.","Juchique de Ferrer","Juchique de Ferrer, Ver.",95,212," "," "]
["Veracruz_de_Ignacio_de_la_Llave",30,"Ver.","La Antigua",{"$f":"D2178&\", \"&C2178","v":"La Antigua, Ver."},16,212," "," "]
["Veracruz_de_Ignacio_de_la_Llave",30,"Ver.","La Perla","La Perla, Ver.",127,212,{"$f":"IF(E2179=E2180,\"mal\",\" \")","v":" "},{"$f":"IF(H2179=\"mal\",1,\" \")","v":" "}]
["Veracruz_de_Ignacio_de_la_Llave",30,"Ver.","Landero y Coss","Landero y Coss, Ver.",96,212," "," "]
["Veracruz_de_Ignacio_de_la_Llave",30,"Ver.","Las Choapas","Las Choapas, Ver.",61,212," "," "]
["Veracruz_de_Ignacio_de_la_Llave",30,"Ver.","Las Minas","Las Minas, Ver.",107,212," "," "]
["Veracruz_de_Ignacio_de_la_Llave",30,"Ver.","Las Vigas de Ramírez","Las Vigas de Ramírez, Ver.",132,212," "," "]
["Veracruz_de_Ignacio_de_la_Llave",30,"Ver.","Lerdo de Tejada","Lerdo de Tejada, Ver.",97,212," "," "]
["Veracruz_de_Ignacio_de_la_Llave",30,"Ver.","Los Reyes","Los Reyes, Ver.",137,212," "," "]
["Veracruz_de_Ignacio_de_la_Llave",30,"Ver.","Magdalena","Magdalena, Ver.",98,212," "," "]
["Veracruz_de_Ignacio_de_la_Llave",30,"Ver.","Maltrata","Maltrata, Ver.",99,212," "," "]
["Veracruz_de_Ignacio_de_la_Llave",30,"Ver.","Manlio Fabio Altamirano","Manlio Fabio Altamirano, Ver.",100,212," "," "]
["Veracruz_de_Ignacio_de_la_Llave",30,"Ver.","Mariano Escobedo","Mariano Escobedo, Ver.",101,212," "," "]
["Veracruz_de_Ignacio_de_la_Llave",30,"Ver.","Martínez de la Torre","Martínez de la Torre, Ver.",102,212," "," "]
["Veracruz_de_Ignacio_de_la_Llave",30,"Ver.","Mecatlán","Mecatlán, Ver.",103,212," "," "]
["Veracruz_de_Ignacio_de_la_Llave",30,"Ver.","Mecayapan","Mecayapan, Ver.",104,212," "," "]
["Veracruz_de_Ignacio_de_la_Llave",30,"Ver.","Medellín","Medellín, Ver.",105,212," "," "]
["Veracruz_de_Ignacio_de_la_Llave",30,"Ver.","Miahuatlán","Miahuatlán, Ver.",106,212," "," "]
["Veracruz_de_Ignacio_de_la_Llave",30,"Ver.","Minatitlán","Minatitlán, Ver.",108,212," "," "]
["Veracruz_de_Ignacio_de_la_Llave",30,"Ver.","Misantla","Misantla, Ver.",109,212," "," "]
["Veracruz_de_Ignacio_de_la_Llave",30,"Ver.","Mixtla de Altamirano","Mixtla de Altamirano, Ver.",110,212," "," "]
["Veracruz_de_Ignacio_de_la_Llave",30,"Ver.","Moloacán","Moloacán, Ver.",111,212," "," "]
["Veracruz_de_Ignacio_de_la_Llave",30,"Ver.","Nanchital de Lázaro Cárdenas del Río","Nanchital de Lázaro Cárdenas del Río, Ver.",206,212," "," "]
["Veracruz_de_Ignacio_de_la_Llave",30,"Ver.","Naolinco","Naolinco, Ver.",112,212," "," "]
["Veracruz_de_Ignacio_de_la_Llave",30,"Ver.","Naranjal","Naranjal, Ver.",113,212," "," "]
["Veracruz_de_Ignacio_de_la_Llave",30,"Ver.","Naranjos Amatlán","Naranjos Amatlán, Ver.",13,212," "," "]
["Veracruz_de_Ignacio_de_la_Llave",30,"Ver.","Nautla","Nautla, Ver.",114,212," "," "]
["Veracruz_de_Ignacio_de_la_Llave",30,"Ver.","Nogales","Nogales, Ver.",115,212," "," "]
["Veracruz_de_Ignacio_de_la_Llave",30,"Ver.","Oluta","Oluta, Ver.",116,212," "," "]
["Veracruz_de_Ignacio_de_la_Llave",30,"Ver.","Omealca","Omealca, Ver.",117,212," "," "]
["Veracruz_de_Ignacio_de_la_Llave",30,"Ver.","Orizaba","Orizaba, Ver.",118,212," "," "]
["Veracruz_de_Ignacio_de_la_Llave",30,"Ver.","Otatitlán","Otatitlán, Ver.",119,212," "," "]
["Veracruz_de_Ignacio_de_la_Llave",30,"Ver.","Oteapan","Oteapan, Ver.",120,212," "," "]
["Veracruz_de_Ignacio_de_la_Llave",30,"Ver.","Ozuluama de Mascareñas","Ozuluama de Mascareñas, Ver.",121,212," "," "]
["Veracruz_de_Ignacio_de_la_Llave",30,"Ver.","Pajapan","Pajapan, Ver.",122,212," "," "]
["Veracruz_de_Ignacio_de_la_Llave",30,"Ver.","Pánuco","Pánuco, Ver.",123,212," "," "]
["Veracruz_de_Ignacio_de_la_Llave",30,"Ver.","Papantla","Papantla, Ver.",124,212," "," "]
["Veracruz_de_Ignacio_de_la_Llave",30,"Ver.","Paso de Ovejas","Paso de Ovejas, Ver.",126,212," "," "]
["Veracruz_de_Ignacio_de_la_Llave",30,"Ver.","Paso del Macho","Paso del Macho, Ver.",125,212," "," "]
["Veracruz_de_Ignacio_de_la_Llave",30,"Ver.","Perote","Perote, Ver.",128,212," "," "]
["Veracruz_de_Ignacio_de_la_Llave",30,"Ver.","Platón Sánchez","Platón Sánchez, Ver.",129,212," "," "]
["Veracruz_de_Ignacio_de_la_Llave",30,"Ver.","Playa Vicente","Playa Vicente, Ver.",130,212," "," "]
["Veracruz_de_Ignacio_de_la_Llave",30,"Ver.","Poza Rica de Hidalgo","Poza Rica de Hidalgo, Ver.",131,212," "," "]
["Veracruz_de_Ignacio_de_la_Llave",30,"Ver.","Pueblo Viejo","Pueblo Viejo, Ver.",133,212," "," "]
["Veracruz_de_Ignacio_de_la_Llave",30,"Ver.","Puente Nacional","Puente Nacional, Ver.",134,212," "," "]
["Veracruz_de_Ignacio_de_la_Llave",30,"Ver.","Rafael Delgado","Rafael Delgado, Ver.",135,212," "," "]
["Veracruz_de_Ignacio_de_la_Llave",30,"Ver.","Rafael Lucio","Rafael Lucio, Ver.",136,212," "," "]
["Veracruz_de_Ignacio_de_la_Llave",30,"Ver.","Río Blanco","Río Blanco, Ver.",138,212," "," "]
["Veracruz_de_Ignacio_de_la_Llave",30,"Ver.","Saltabarranca","Saltabarranca, Ver.",139,212," "," "]
["Veracruz_de_Ignacio_de_la_Llave",30,"Ver.","San Andrés Tenejapan","San Andrés Tenejapan, Ver.",140,212," "," "]
["Veracruz_de_Ignacio_de_la_Llave",30,"Ver.","San Andrés Tuxtla","San Andrés Tuxtla, Ver.",141,212," "," "]
["Veracruz_de_Ignacio_de_la_Llave",30,"Ver.","San Juan Evangelista","San Juan Evangelista, Ver.",142,212," "," "]
["Veracruz_de_Ignacio_de_la_Llave",30,"Ver.","San Rafael","San Rafael, Ver.",211,212," "," "]
["Veracruz_de_Ignacio_de_la_Llave",30,"Ver.","Santiago Sochiapan","Santiago Sochiapan, Ver.",212,212," "," "]
["Veracruz_de_Ignacio_de_la_Llave",30,"Ver.","Santiago Tuxtla","Santiago Tuxtla, Ver.",143,212," "," "]
["Veracruz_de_Ignacio_de_la_Llave",30,"Ver.","Sayula de Alemán","Sayula de Alemán, Ver.",144,212," "," "]
["Veracruz_de_Ignacio_de_la_Llave",30,"Ver.","Sochiapa","Sochiapa, Ver.",146,212," "," "]
["Veracruz_de_Ignacio_de_la_Llave",30,"Ver.","Soconusco","Soconusco, Ver.",145,212," "," "]
["Veracruz_de_Ignacio_de_la_Llave",30,"Ver.","Soledad Atzompa","Soledad Atzompa, Ver.",147,212," "," "]
["Veracruz_de_Ignacio_de_la_Llave",30,"Ver.","Soledad de Doblado","Soledad de Doblado, Ver.",148,212," "," "]
["Veracruz_de_Ignacio_de_la_Llave",30,"Ver.","Soteapan","Soteapan, Ver.",149,212," "," "]
["Veracruz_de_Ignacio_de_la_Llave",30,"Ver.","Tamalín","Tamalín, Ver.",150,212," "," "]
["Veracruz_de_Ignacio_de_la_Llave",30,"Ver.","Tamiahua","Tamiahua, Ver.",151,212," "," "]
["Veracruz_de_Ignacio_de_la_Llave",30,"Ver.","Tampico Alto","Tampico Alto, Ver.",152,212," "," "]
["Veracruz_de_Ignacio_de_la_Llave",30,"Ver.","Tancoco","Tancoco, Ver.",153,212," "," "]
["Veracruz_de_Ignacio_de_la_Llave",30,"Ver.","Tantima",{"$f":"D2242&\", \"&C2242","v":"Tantima, Ver."},154,212," "," "]
["Veracruz_de_Ignacio_de_la_Llave",30,"Ver.","Tantoyuca","Tantoyuca, Ver.",155,212,{"$f":"IF(E2243=E2244,\"mal\",\" \")","v":" "},{"$f":"IF(H2243=\"mal\",1,\" \")","v":" "}]
["Veracruz_de_Ignacio_de_la_Llave",30,"Ver.","Tatahuicapan de Juárez","Tatahuicapan de Juárez, Ver.",209,212," "," "]
["Veracruz_de_Ignacio_de_la_Llave",30,"Ver.","Tatatila","Tatatila, Ver.",156,212," "," "]
["Veracruz_de_Ignacio_de_la_Llave",30,"Ver.","Tecolutla","Tecolutla, Ver.",158,212," "," "]
["Veracruz_de_Ignacio_de_la_Llave",30,"Ver.","Tehuipango","Tehuipango, Ver.",159,212," "," "]
["Veracruz_de_Ignacio_de_la_Llave",30,"Ver.","Tempoal","Tempoal, Ver.",161,212," "," "]
["Veracruz_de_Ignacio_de_la_Llave",30,"Ver.","Tenampa","Tenampa, Ver.",162,212," "," "]
["Veracruz_de_Ignacio_de_la_Llave",30,"Ver.","Tenochtitlán","Tenochtitlán, Ver.",163,212," "," "]
["Veracruz_de_Ignacio_de_la_Llave",30,"Ver.","Teocelo","Teocelo, Ver.",164,212," "," "]
["Veracruz_de_Ignacio_de_la_Llave",30,"Ver.","Tepatlaxco","Tepatlaxco, Ver.",165,212," "," "]
["Veracruz_de_Ignacio_de_la_Llave",30,"Ver.","Tepetlán","Tepetlán, Ver.",166,212," "," "]
["Veracruz_de_Ignacio_de_la_Llave",30,"Ver.","Tepetzintla","Tepetzintla, Ver.",167,212," "," "]
["Veracruz_de_Ignacio_de_la_Llave",30,"Ver.","Tequila","Tequila, Ver.",168,212," "," "]
["Veracruz_de_Ignacio_de_la_Llave",30,"Ver.","Texcatepec","Texcatepec, Ver.",170,212," "," "]
["Veracruz_de_Ignacio_de_la_Llave",30,"Ver.","Texhuacán","Texhuacán, Ver.",171,212," "," "]
["Veracruz_de_Ignacio_de_la_Llave",30,"Ver.","Texistepec","Texistepec, Ver.",172,212," "," "]
["Veracruz_de_Ignacio_de_la_Llave",30,"Ver.","Tezonapa","Tezonapa, Ver.",173,212," "," "]
["Veracruz_de_Ignacio_de_la_Llave",30,"Ver.","Tierra Blanca","Tierra Blanca, Ver.",174,212," "," "]
["Veracruz_de_Ignacio_de_la_Llave",30,"Ver.","Tihuatlán","Tihuatlán, Ver.",175,212," "," "]
["Veracruz_de_Ignacio_de_la_Llave",30,"Ver.","Tlachichilco","Tlachichilco, Ver.",180,212," "," "]
["Veracruz_de_Ignacio_de_la_Llave",30,"Ver.","Tlacojalpan","Tlacojalpan, Ver.",176,212," "," "]
["Veracruz_de_Ignacio_de_la_Llave",30,"Ver.","Tlacolulan","Tlacolulan, Ver.",177,212," "," "]
["Veracruz_de_Ignacio_de_la_Llave",30,"Ver.","Tlacotalpan","Tlacotalpan, Ver.",178,212," "," "]
["Veracruz_de_Ignacio_de_la_Llave",30,"Ver.","Tlacotepec de Mejía","Tlacotepec de Mejía, Ver.",179,212," "," "]
["Veracruz_de_Ignacio_de_la_Llave",30,"Ver.","Tlalixcoyan","Tlalixcoyan, Ver.",181,212," "," "]
["Veracruz_de_Ignacio_de_la_Llave",30,"Ver.","Tlalnelhuayocan","Tlalnelhuayocan, Ver.",182,212," "," "]
["Veracruz_de_Ignacio_de_la_Llave",30,"Ver.","Tlaltetela","Tlaltetela, Ver.",24,212," "," "]
["Veracruz_de_Ignacio_de_la_Llave",30,"Ver.","Tlapacoyan","Tlapacoyan, Ver.",183,212," "," "]
["Veracruz_de_Ignacio_de_la_Llave",30,"Ver.","Tlaquilpa","Tlaquilpa, Ver.",184,212," "," "]
["Veracruz_de_Ignacio_de_la_Llave",30,"Ver.","Tlilapan","Tlilapan, Ver.",185,212," "," "]
["Veracruz_de_Ignacio_de_la_Llave",30,"Ver.","Tomatlán","Tomatlán, Ver.",186,212," "," "]
["Veracruz_de_Ignacio_de_la_Llave",30,"Ver.","Tonayán","Tonayán, Ver.",187,212," "," "]
["Veracruz_de_Ignacio_de_la_Llave",30,"Ver.","Totutla","Totutla, Ver.",188,212," "," "]
["Veracruz_de_Ignacio_de_la_Llave",30,"Ver.","Tres Valles","Tres Valles, Ver.",207,212," "," "]
["Veracruz_de_Ignacio_de_la_Llave",30,"Ver.","Tuxpan","Tuxpan, Ver.",189,212," "," "]
["Veracruz_de_Ignacio_de_la_Llave",30,"Ver.","Tuxtilla","Tuxtilla, Ver.",190,212," "," "]
["Veracruz_de_Ignacio_de_la_Llave",30,"Ver.","Ursulo Galván","Ursulo Galván, Ver.",191,212," "," "]
["Veracruz_de_Ignacio_de_la_Llave",30,"Ver.","Uxpanapa","Uxpanapa, Ver.",210,212," "," "]
["Veracruz_de_Ignacio_de_la_Llave",30,"Ver.","Vega de Alatorre","Vega de Alatorre, Ver.",192,212," "," "]
["Veracruz_de_Ignacio_de_la_Llave",30,"Ver.","Veracruz","Veracruz, Ver.",193,212," "," "]
["Veracruz_de_Ignacio_de_la_Llave",30,"Ver.","Villa Aldama","Villa Aldama, Ver.",194,212," "," "]
["Veracruz_de_Ignacio_de_la_Llave",30,"Ver.","Xalapa","Xalapa, Ver.",87,212," "," "]
["Veracruz_de_Ignacio_de_la_Llave",30,"Ver.","Xico","Xico, Ver.",92,212," "," "]
["Veracruz_de_Ignacio_de_la_Llave",30,"Ver.","Xoxocotla","Xoxocotla, Ver.",195,212," "," "]
["Veracruz_de_Ignacio_de_la_Llave",30,"Ver.","Yanga","Yanga, Ver.",196,212," "," "]
["Veracruz_de_Ignacio_de_la_Llave",30,"Ver.","Yecuatla","Yecuatla, Ver.",197,212," "," "]
["Veracruz_de_Ignacio_de_la_Llave",30,"Ver.","Zacualpan","Zacualpan, Ver.",198,212," "," "]
["Veracruz_de_Ignacio_de_la_Llave",30,"Ver.","Zaragoza","Zaragoza, Ver.",199,212," "," "]
["Veracruz_de_Ignacio_de_la_Llave",30,"Ver.","Zentla","Zentla, Ver.",200,212," "," "]
["Veracruz_de_Ignacio_de_la_Llave",30,"Ver.","Zongolica","Zongolica, Ver.",201,212," "," "]
["Veracruz_de_Ignacio_de_la_Llave",30,"Ver.","Zontecomatlán de López y Fuentes","Zontecomatlán de López y Fuentes, Ver.",202,212," "," "]
["Veracruz_de_Ignacio_de_la_Llave",30,"Ver.","Zozocolco de Hidalgo","Zozocolco de Hidalgo, Ver.",203,212," "," "]
["Yucatán",31,"Yuc.","Abalá","Abalá, Yuc.",1,106," "," "]
["Yucatán",31,"Yuc.","Acanceh","Acanceh, Yuc.",2,106," "," "]
["Yucatán",31,"Yuc.","Akil","Akil, Yuc.",3,106," "," "]
["Yucatán",31,"Yuc.","Baca","Baca, Yuc.",4,106," "," "]
["Yucatán",31,"Yuc.","Bokobá","Bokobá, Yuc.",5,106," "," "]
["Yucatán",31,"Yuc.","Buctzotz","Buctzotz, Yuc.",6,106," "," "]
["Yucatán",31,"Yuc.","Cacalchén","Cacalchén, Yuc.",7,106," "," "]
["Yucatán",31,"Yuc.","Calotmul","Calotmul, Yuc.",8,106," "," "]
["Yucatán",31,"Yuc.","Cansahcab","Cansahcab, Yuc.",9,106," "," "]
["Yucatán",31,"Yuc.","Cantamayec","Cantamayec, Yuc.",10,106," "," "]
["Yucatán",31,"Yuc.","Celestún","Celestún, Yuc.",11,106," "," "]
["Yucatán",31,"Yuc.","Cenotillo",{"$f":"D2306&\", \"&C2306","v":"Cenotillo, Yuc."},12,106," "," "]
["Yucatán",31,"Yuc.","Chacsinkín","Chacsinkín, Yuc.",16,106,{"$f":"IF(E2307=E2308,\"mal\",\" \")","v":" "},{"$f":"IF(H2307=\"mal\",1,\" \")","v":" "}]
["Yucatán",31,"Yuc.","Chankom","Chankom, Yuc.",17,106," "," "]
["Yucatán",31,"Yuc.","Chapab","Chapab, Yuc.",18,106," "," "]
["Yucatán",31,"Yuc.","Chemax","Chemax, Yuc.",19,106," "," "]
["Yucatán",31,"Yuc.","Chichimilá","Chichimilá, Yuc.",21,106," "," "]
["Yucatán",31,"Yuc.","Chicxulub Pueblo","Chicxulub Pueblo, Yuc.",20,106," "," "]
["Yucatán",31,"Yuc.","Chikindzonot","Chikindzonot, Yuc.",22,106," "," "]
["Yucatán",31,"Yuc.","Chocholá","Chocholá, Yuc.",23,106," "," "]
["Yucatán",31,"Yuc.","Chumayel","Chumayel, Yuc.",24,106," "," "]
["Yucatán",31,"Yuc.","Conkal","Conkal, Yuc.",13,106," "," "]
["Yucatán",31,"Yuc.","Cuncunul","Cuncunul, Yuc.",14,106," "," "]
["Yucatán",31,"Yuc.","Cuzamá","Cuzamá, Yuc.",15,106," "," "]
["Yucatán",31,"Yuc.","Dzán","Dzán, Yuc.",25,106," "," "]
["Yucatán",31,"Yuc.","Dzemul","Dzemul, Yuc.",26,106," "," "]
["Yucatán",31,"Yuc.","Dzidzantún","Dzidzantún, Yuc.",27,106," "," "]
["Yucatán",31,"Yuc.","Dzilam de Bravo","Dzilam de Bravo, Yuc.",28,106," "," "]
["Yucatán",31,"Yuc.","Dzilam González","Dzilam González, Yuc.",29,106," "," "]
["Yucatán",31,"Yuc.","Dzitás","Dzitás, Yuc.",30,106," "," "]
["Yucatán",31,"Yuc.","Dzoncauich","Dzoncauich, Yuc.",31,106," "," "]
["Yucatán",31,"Yuc.","Espita","Espita, Yuc.",32,106," "," "]
["Yucatán",31,"Yuc.","Halachó","Halachó, Yuc.",33,106," "," "]
["Yucatán",31,"Yuc.","Hocabá","Hocabá, Yuc.",34,106," "," "]
["Yucatán",31,"Yuc.","Hoctún","Hoctún, Yuc.",35,106," "," "]
["Yucatán",31,"Yuc.","Homún","Homún, Yuc.",36,106," "," "]
["Yucatán",31,"Yuc.","Huhí","Huhí, Yuc.",37,106," "," "]
["Yucatán",31,"Yuc.","Hunucmá","Hunucmá, Yuc.",38,106," "," "]
["Yucatán",31,"Yuc.","Ixil","Ixil, Yuc.",39,106," "," "]
["Yucatán",31,"Yuc.","Izamal","Izamal, Yuc.",40,106," "," "]
["Yucatán",31,"Yuc.","Kanasín","Kanasín, Yuc.",41,106," "," "]
["Yucatán",31,"Yuc.","Kantunil","Kantunil, Yuc.",42,106," "," "]
["Yucatán",31,"Yuc.","Kaua","Kaua, Yuc.",43,106," "," "]
["Yucatán",31,"Yuc.","Kinchil","Kinchil, Yuc.",44,106," "," "]
["Yucatán",31,"Yuc.","Kopomá","Kopomá, Yuc.",45,106," "," "]
["Yucatán",31,"Yuc.","Mama","Mama, Yuc.",46,106," "," "]
["Yucatán",31,"Yuc.","Maní","Maní, Yuc.",47,106," "," "]
["Yucatán",31,"Yuc.","Maxcanú","Maxcanú, Yuc.",48,106," "," "]
["Yucatán",31,"Yuc.","Mayapán","Mayapán, Yuc.",49,106," "," "]
["Yucatán",31,"Yuc.","Mérida","Mérida, Yuc.",50,106," "," "]
["Yucatán",31,"Yuc.","Mocochá","Mocochá, Yuc.",51,106," "," "]
["Yucatán",31,"Yuc.","Motul","Motul, Yuc.",52,106," "," "]
["Yucatán",31,"Yuc.","Muna","Muna, Yuc.",53,106," "," "]
["Yucatán",31,"Yuc.","Muxupip","Muxupip, Yuc.",54,106," "," "]
["Yucatán",31,"Yuc.","Opichén","Opichén, Yuc.",55,106," "," "]
["Yucatán",31,"Yuc.","Oxkutzcab","Oxkutzcab, Yuc.",56,106," "," "]
["Yucatán",31,"Yuc.","Panabá","Panabá, Yuc.",57,106," "," "]
["Yucatán",31,"Yuc.","Peto","Peto, Yuc.",58,106," "," "]
["Yucatán",31,"Yuc.","Progreso","Progreso, Yuc.",59,106," "," "]
["Yucatán",31,"Yuc.","Quintana Roo","Quintana Roo, Yuc.",60,106," "," "]
["Yucatán",31,"Yuc.","Río Lagartos","Río Lagartos, Yuc.",61,106," "," "]
["Yucatán",31,"Yuc.","Sacalum","Sacalum, Yuc.",62,106," "," "]
["Yucatán",31,"Yuc.","Samahil","Samahil, Yuc.",63,106," "," "]
["Yucatán",31,"Yuc.","San Felipe","San Felipe, Yuc.",65,106," "," "]
["Yucatán",31,"Yuc.","Sanahcat","Sanahcat, Yuc.",64,106," "," "]
["Yucatán",31,"Yuc.","Santa Elena","Santa Elena, Yuc.",66,106," "," "]
["Yucatán",31,"Yuc.","Seyé","Seyé, Yuc.",67,106," "," "]
["Yucatán",31,"Yuc.","Sinanché","Sinanché, Yuc.",68,106," "," "]
["Yucatán",31,"Yuc.","Sotuta","Sotuta, Yuc.",69,106," "," "]
["Yucatán",31,"Yuc.","Sucilá","Sucilá, Yuc.",70,106," "," "]
["Yucatán",31,"Yuc.","Sudzal","Sudzal, Yuc.",71,106," "," "]
["Yucatán",31,"Yuc.","Suma","Suma, Yuc.",72,106," "," "]
["Yucatán",31,"Yuc.","Tahdziú","Tahdziú, Yuc.",73,106," "," "]
["Yucatán",31,"Yuc.","Tahmek","Tahmek, Yuc.",74,106," "," "]
["Yucatán",31,"Yuc.","Teabo","Teabo, Yuc.",75,106," "," "]
["Yucatán",31,"Yuc.","Tecoh",{"$f":"D2370&\", \"&C2370","v":"Tecoh, Yuc."},76,106," "," "]
["Yucatán",31,"Yuc.","Tekal de Venegas","Tekal de Venegas, Yuc.",77,106,{"$f":"IF(E2371=E2372,\"mal\",\" \")","v":" "},{"$f":"IF(H2371=\"mal\",1,\" \")","v":" "}]
["Yucatán",31,"Yuc.","Tekantó","Tekantó, Yuc.",78,106," "," "]
["Yucatán",31,"Yuc.","Tekax","Tekax, Yuc.",79,106," "," "]
["Yucatán",31,"Yuc.","Tekit","Tekit, Yuc.",80,106," "," "]
["Yucatán",31,"Yuc.","Tekom","Tekom, Yuc.",81,106," "," "]
["Yucatán",31,"Yuc.","Telchac Pueblo","Telchac Pueblo, Yuc.",82,106," "," "]
["Yucatán",31,"Yuc.","Telchac Puerto","Telchac Puerto, Yuc.",83,106," "," "]
["Yucatán",31,"Yuc.","Temax","Temax, Yuc.",84,106," "," "]
["Yucatán",31,"Yuc.","Temozón","Temozón, Yuc.",85,106," "," "]
["Yucatán",31,"Yuc.","Tepakán","Tepakán, Yuc.",86,106," "," "]
["Yucatán",31,"Yuc.","Tetiz","Tetiz, Yuc.",87,106," "," "]
["Yucatán",31,"Yuc.","Teya","Teya, Yuc.",88,106," "," "]
["Yucatán",31,"Yuc.","Ticul","Ticul, Yuc.",89,106," "," "]
["Yucatán",31,"Yuc.","Timucuy","Timucuy, Yuc.",90,106," "," "]
["Yucatán",31,"Yuc.","Tinum","Tinum, Yuc.",91,106," "," "]
["Yucatán",31,"Yuc.","Tixcacalcupul","Tixcacalcupul, Yuc.",92,106," "," "]
["Yucatán",31,"Yuc.","Tixkokob","Tixkokob, Yuc.",93,106," "," "]
["Yucatán",31,"Yuc.","Tixmehuac","Tixmehuac, Yuc.",94,106," "," "]
["Yucatán",31,"Yuc.","Tixpéhual","Tixpéhual, Yuc.",95,106," "," "]
["Yucatán",31,"Yuc.","Tizimín","Tizimín, Yuc.",96,106," "," "]
["Yucatán",31,"Yuc.","Tunkás","Tunkás, Yuc.",97,106," "," "]
["Yucatán",31,"Yuc.","Tzucacab","Tzucacab, Yuc.",98,106," "," "]
["Yucatán",31,"Yuc.","Uayma","Uayma, Yuc.",99,106," "," "]
["Yucatán",31,"Yuc.","Ucú","Ucú, Yuc.",100,106," "," "]
["Yucatán",31,"Yuc.","Umán","Umán, Yuc.",101,106," "," "]
["Yucatán",31,"Yuc.","Valladolid","Valladolid, Yuc.",102,106," "," "]
["Yucatán",31,"Yuc.","Xocchel","Xocchel, Yuc.",103,106," "," "]
["Yucatán",31,"Yuc.","Yaxcabá","Yaxcabá, Yuc.",104,106," "," "]
["Yucatán",31,"Yuc.","Yaxkukul","Yaxkukul, Yuc.",105,106," "," "]
["Yucatán",31,"Yuc.","Yobaín","Yobaín, Yuc.",106,106," "," "]
["Zacatecas",32,"Zac.","Apozol","Apozol, Zac.",1,58," "," "]
["Zacatecas",32,"Zac.","Apulco","Apulco, Zac.",2,58," "," "]
["Zacatecas",32,"Zac.","Atolinga","Atolinga, Zac.",3,58," "," "]
["Zacatecas",32,"Zac.","Benito Juárez","Benito Juárez, Zac.",4,58," "," "]
["Zacatecas",32,"Zac.","Calera","Calera, Zac.",5,58," "," "]
["Zacatecas",32,"Zac.","Cañitas de Felipe Pescador","Cañitas de Felipe Pescador, Zac.",6,58," "," "]
["Zacatecas",32,"Zac.","Chalchihuites","Chalchihuites, Zac.",9,58," "," "]
["Zacatecas",32,"Zac.","Concepción del Oro","Concepción del Oro, Zac.",7,58," "," "]
["Zacatecas",32,"Zac.","Cuauhtémoc","Cuauhtémoc, Zac.",8,58," "," "]
["Zacatecas",32,"Zac.","El Plateado de Joaquín Amaro","El Plateado de Joaquín Amaro, Zac.",15,58," "," "]
["Zacatecas",32,"Zac.","El Salvador","El Salvador, Zac.",41,58," "," "]
["Zacatecas",32,"Zac.","Fresnillo","Fresnillo, Zac.",10,58," "," "]
["Zacatecas",32,"Zac.","Genaro Codina","Genaro Codina, Zac.",12,58," "," "]
["Zacatecas",32,"Zac.","General Enrique Estrada","General Enrique Estrada, Zac.",13,58," "," "]
["Zacatecas",32,"Zac.","General Francisco R. Murguía","General Francisco R. Murguía, Zac.",14,58," "," "]
["Zacatecas",32,"Zac.","General Pánfilo Natera","General Pánfilo Natera, Zac.",16,58," "," "]
["Zacatecas",32,"Zac.","Guadalupe","Guadalupe, Zac.",17,58," "," "]
["Zacatecas",32,"Zac.","Huanusco","Huanusco, Zac.",18,58," "," "]
["Zacatecas",32,"Zac.","Jalpa","Jalpa, Zac.",19,58," "," "]
["Zacatecas",32,"Zac.","Jerez","Jerez, Zac.",20,58," "," "]
["Zacatecas",32,"Zac.","Jiménez del Teul","Jiménez del Teul, Zac.",21,58," "," "]
["Zacatecas",32,"Zac.","Juan Aldama","Juan Aldama, Zac.",22,58," "," "]
["Zacatecas",32,"Zac.","Juchipila","Juchipila, Zac.",23,58," "," "]
["Zacatecas",32,"Zac.","Loreto","Loreto, Zac.",24,58," "," "]
["Zacatecas",32,"Zac.","Luis Moya","Luis Moya, Zac.",25,58," "," "]
["Zacatecas",32,"Zac.","Mazapil","Mazapil, Zac.",26,58," "," "]
["Zacatecas",32,"Zac.","Melchor Ocampo","Melchor Ocampo, Zac.",27,58," "," "]
["Zacatecas",32,"Zac.","Mezquital del Oro","Mezquital del Oro, Zac.",28,58," "," "]
["Zacatecas",32,"Zac.","Miguel Auza","Miguel Auza, Zac.",29,58," "," "]
["Zacatecas",32,"Zac.","Momax","Momax, Zac.",30,58," "," "]
["Zacatecas",32,"Zac.","Monte Escobedo","Monte Escobedo, Zac.",31,58," "," "]
["Zacatecas",32,"Zac.","Morelos","Morelos, Zac.",32,58," "," "]
["Zacatecas",32,"Zac.","Moyahua de Estrada","Moyahua de Estrada, Zac.",33,58," "," "]
["Zacatecas",32,"Zac.","Nochistlán de Mejía",{"$f":"D2434&\", \"&C2434","v":"Nochistlán de Mejía, Zac."},34,58," "," "]
["Zacatecas",32,"Zac.","Noria de Angeles","Noria de Angeles, Zac.",35,58,{"$f":"IF(E2435=E2436,\"mal\",\" \")","v":" "},{"$f":"IF(H2435=\"mal\",1,\" \")","v":" "}]
["Zacatecas",32,"Zac.","Ojocaliente","Ojocaliente, Zac.",36,58," "," "]
["Zacatecas",32,"Zac.","Pánuco","Pánuco, Zac.",37,58," "," "]
["Zacatecas",32,"Zac.","Pinos","Pinos, Zac.",38,58," "," "]
["Zacatecas",32,"Zac.","Río Grande","Río Grande, Zac.",39,58," "," "]
["Zacatecas",32,"Zac.","Sain Alto","Sain Alto, Zac.",40,58," "," "]
["Zacatecas",32,"Zac.","Santa María de la Paz","Santa María de la Paz, Zac.",58,58," "," "]
["Zacatecas",32,"Zac.","Sombrerete","Sombrerete, Zac.",42,58," "," "]
["Zacatecas",32,"Zac.","Susticacán","Susticacán, Zac.",43,58," "," "]
["Zacatecas",32,"Zac.","Tabasco","Tabasco, Zac.",44,58," "," "]
["Zacatecas",32,"Zac.","Tepechitlán","Tepechitlán, Zac.",45,58," "," "]
["Zacatecas",32,"Zac.","Tepetongo","Tepetongo, Zac.",46,58," "," "]
["Zacatecas",32,"Zac.","Teúl de González Ortega","Teúl de González Ortega, Zac.",47,58," "," "]
["Zacatecas",32,"Zac.","Tlaltenango de Sánchez Román","Tlaltenango de Sánchez Román, Zac.",48,58," "," "]
["Zacatecas",32,"Zac.","Trancoso","Trancoso, Zac.",57,58," "," "]
["Zacatecas",32,"Zac.","Trinidad García de la Cadena","Trinidad García de la Cadena, Zac.",11,58," "," "]
["Zacatecas",32,"Zac.","Valparaíso","Valparaíso, Zac.",49,58," "," "]
["Zacatecas",32,"Zac.","Vetagrande","Vetagrande, Zac.",50,58," "," "]
["Zacatecas",32,"Zac.","Villa de Cos","Villa de Cos, Zac.",51,58," "," "]
["Zacatecas",32,"Zac.","Villa García","Villa García, Zac.",52,58," "," "]
["Zacatecas",32,"Zac.","Villa González Ortega","Villa González Ortega, Zac.",53,58," "," "]
["Zacatecas",32,"Zac.","Villa Hidalgo","Villa Hidalgo, Zac.",54,58," "," "]
["Zacatecas",32,"Zac.","Villanueva","Villanueva, Zac.",55,58," "," "]
["Zacatecas",32,"Zac.","Zacatecas","Zacatecas, Zac.",56,58," "," "]

{"sheet":"ARCHIVO GENERADO PARA IMPRESION","index":4,"n_rows":14,"n_cols":15,"rows_kept":14,"merged":[[1,1,1,14],[3,1,3,14],[7,7,7,9],[7,10,7,14],[13,1,13,3]]}
[]
[null,"Anexo 2"]
[]
[null,"REQUERIMIENTOS PARA EL PRESUPUESTO DE EGRESOS DE LA FEDERACIÓN PARA EL EJERCICIO FISCAL 2015"]
[]
[]
[]
[{"$nulls":7},"ESTUDIOS",null,null,"MONTO DEL PROYECTO (PESOS)"]
["NUMERO DE PROYECTO","SECTOR  1/","ENTIDAD FEDERATIVA 2/","MUNICIPIO 3/","PROYECTO SOLICITADO 4/","CLAVE DE CARTERA DE LA SHCP 5/","NIVEL DE PRIORIZACIÓN 6/","PROYECTO EJECUTIVO (Si/No)  7/","FACTIBILIDAD (Si/No)  8/","ANÁLISIS (Si/No)  9/","COSTO TOTAL 10/","INVERSIÓN FEDERAL SOLICITADA PARA 2015 11/","INVERSIÓN ESTATAL 2015 12/","INVERSIÓN MUNICIPAL 2015 13/","OTRAS INVERSIONES 14/"]
[]
[1]
[2]
[]
[null,"TOTALES",null,null,{"$f":"COUNTA($E$11:E12)","v":0},{"$nulls":5},{"$f":"SUM($K$11:K13)","v":{"v":0,"d":"$0.00"}},{"$f":"SUM($L$11:L13)","v":{"v":0,"d":"$0.00"}},{"$f":"SUM($M$11:M12)","v":{"v":0,"d":"$0.00"}},{"$f":"SUM($N$11:N12)","v":{"v":0,"d":"$0.00"}},{"$f":"SUM($O$11:O12)","v":{"v":0,"d":"$0.00"}}]

{"sheet":"HABILITAR LAS MACROS EN EXCEL","index":5,"n_rows":39,"n_cols":1,"rows_kept":39}
["¿Cómo habilitar las macros en Excel 2000/2003, 2007 y 2010?"]
[]
["Excel 2000 y 2003"]
["1. Vaya al menú Herramientas > Macros > Seguridad"]
["                               "]
[]
["2. Seleccione nivel  Bajo y Acepte"]
["3. Cierre Excel y ábralo de nuevo para que se apliquen los cambios."]
[]
[]
[]
[]
["Excel 2007"]
["1. Abrir la aplicación Excel y desde el botón con el icono de Office de la parte superior izquierda, acceder a Opciones de Excel:"]
["                             "]
[]
[]
["2. A continuación seleccionamos el menú de centro de confianza y accedemos a la Configuración"]
["                            "]
[]
[]
["3. En el apartado Configuración de macros, marcamos la opción “Habilitar todas las macros...”"]
["                         "]
[]
["4. Cierre Excel y ábralo de nuevo para que se apliquen los cambios."]
[]
[]
[]
["Excel 2010"]
["1. Abrir la aplicación Excel, ir a la solapa Archivo y pulsar sobre Opciones:"]
["                             "]
["2. A continuación seleccionamos el menú de centro de confianza y accedemos a la Configuración"]
["                            "]
[]
[]
["3. En el apartado Configuración de macros, marcamos la opción “Habilitar todas las macros..”, tal y como muestra la imagen. "]
["                         "]
[]
["4. Cierre Excel y ábralo de nuevo para que se apliquen los cambios."]